Workbook

Sheet Input
C2: Master Check | D2: =SUM(Check!D4:D206) -> 6.569312871e-10
A6: GENERAL INPUTS
C8: General
C10: Project Year Zero | E10: 2018
C11: Next Rebasing Year | E11: 2029
C12: Inflation | D12: % | E12: 0.0127 | F12: Union's list of common assumptions
C13: Tax Rate | D13: % | E13: 0.265
C14: Days in a Year | D14: day | E14: 365 | F14: for estimating NWC
C15: Feet per Meter | D15: ft / m | E15: 3.28084
C16: GJ per m3 | D16: GJ / m3 | E16: =38.89/1000 -> 0.03889
C17: Working Capital | D17: % of Gas Commodity Cost , Upstream Costs & O&M | E17: 0.075
C19: Non-distribution Costs
C21: Commodity Cost of Gas | D21: base year $ / m3 | E21: =-3.17*$E$16 -> -0.1232813 | F21: must be negative | G21: pending on Gas Supply plan
C23: Union M17
C24: Upstream Transporation - Capacity Charge from Union | D24: 2019 $ / month / GJ / day | E24: -4.431 | F24: must be negative
C25: Upstream Transporation - Commodity Charge from Union | D25: 2019 $ / GJ | E25: =-AVERAGE(0.01,0.024) -> -0.017 | F25: must be negative
C26: Upstream Transporation - Customer Charge from Union | D26: 2019 $0,000s / month | E26: -1.99871 | F26: must be negative
C28: Load Balancing
C29: Daily Balancing & Nominations and Adivisory | D29: $ / GJ | E29: -0.0275
C31: Other Costs and LEAP Funding
C32: Other Cost per Customers | D32: $ / Cx / year | E32: -3.643314923
C33: Leap Funding | D33: % of Distribution Revenue | E33: 0.0012
C35: Regulated Cost of Capital | E35: Cost of Capital Released October 27, 2016 | F35: Cost of Capital Released October 27, 2016 | G35: Capital Structure
C36: ST Debt | D36: % | E36: 0.0176 | F36: 0.0176 | G36: 0.04
C37: LT Debt | D37: % | E37: 0.0372 | F37: 0.0372 | G37: 0.6
C38: Equity | D38: % | E38: 0.0878 | F38: 0.0878 | G38: 0.36
C39: WACC | E39: =SUMPRODUCT(E36:E38,G36:G38) -> 0.054632 | F39: =SUMPRODUCT(F36:F38,G36:G38) -> 0.054632 | G39: =SUM(G36:G38) -> 1
C41: CWIP Presecribed Interest Rate | D41: % | E41: 0.0299 | F41: Q4 2017 | K41: Source
C43: CCA and Depreciation Rates
F44: Union's list of common assumptions
C45: Asset Group | D45: CCA Rate | E45: Depreciation Rate | F45: Service Life
C46: CIAC to Enbridge - Owen Sound Reinforcement | D46: 0.05 | E46: 0.0198 | F46: =IFERROR(ROUND(1/E46,0),0) -> 51
C47: CIAC to Enbridge - Station | D47: 0.05 | E47: 0.026 | F47: 38
C48: Distribution Mains - Metallic | D48: 0.06 | E48: 0.0283 | F48: 35
C49: Distribution Land Rights | D49: 0.05 | E49: 0.0165 | F49: 61
C50: Distribution Mains - Plastic | D50: 0.06 | E50: 0.0231 | F50: 43
C51: Distribution Services Plastic | D51: 0.06 | E51: 0.0251 | F51: 40
C52: Distribution Meters | D52: 0.06 | E52: 0.0382 | F52: 26
C53: Distribution Measuring and Regulating Equipt. | D53: 0.06 | E53: 0.0366 | F53: 27
C54: Vehicles | D54: 0.3 | E54: 0.1111111111 | F54: 9
C55: Machinery and Equipment | D55: 0.5 | E55: 0.06 | F55: 17
C58: Property Taxes
C60: Municipality | D60: Tax Holiday in the Rate Stability Period | E60: Kincardine | F60: Arran-Elderslie | G60: Huron-Kinloss | H60: Brockton | I60: West Grey | J60: Chatsworth
C62: Pipeline Tax Rates
C63: Municipal Rate | D63: Tax Holiday | E63: 0.00662135 | F63: 0.00747501 | G63: 0.00606769 | H63: 0.00785353 | I63: 0.00559039 | J63: 0.00604158
C64: County Rate | D64: No Tax Holiday | E64: 0.00393288 | F64: 0.00393288 | G64: 0.00393288 | H64: 0.00393288 | I64: 0.00325647 | J64: 0.00325647
C65: School Rate | D65: No Tax Holiday | E65: 0.00978158 | F65: 0.00978158 | G65: 0.00978158 | H65: 0.00978158 | I65: 0.0109 | J65: 0.0109
C66: Mill Rate in the Rate Stability Period | E66: =SUMIF($D$63:$D$65,"No Tax Holiday",E63:E65) -> 0.01371446 | F66: =SUMIF($D$63:$D$65,"No Tax Holiday",F63:F65) -> 0.01371446 | G66: =SUMIF($D$63:$D$65,"No Tax Holiday",G63:G65) -> 0.01371446 | H66: =SUM(H63:H65) -> 0.02156799 | I66: =SUM(I63:I65) -> 0.01974686 | J66: =SUM(J63:J65) -> 0.02019805
C67: Mill Rate after the Rate Stability Period | E67: =SUM(E63:E65) -> 0.02033581 | F67: 0.02118947 | G67: 0.01978215 | H67: 0.02156799 | I67: 0.01974686 | J67: 0.02019805
C69: Pipeline Assessment Rates
C71: Last Effective Year of the Assessment Rate Below | E71: 2020
C72: Frequency of Regulation Change | D72: year | E72: 4
C73: Increase in Assessment Value Upon Regulation Change | D73: % / regulation change | E73: =(1+inflation)^$E$72-1 -> 0.05177595955
C75: Material | D75: Outside Diameter From | E75: Outside Diameter To | F75: Assessment Rate
D76: inches | E76: inches | F76: $ / foot
C77: Plastic | D77: 0 | E77: 0.5 | F77: 5.16
C78: Plastic | D78: 0.51 | E78: 1 | F78: 6.19
C79: Plastic | D79: 1.01 | E79: 1.5 | F79: 7.25
C80: Plastic | D80: 1.51 | E80: 2.5 | F80: 9.33
C81: Plastic | D81: 2.51 | E81: 3 | F81: 14.99
C82: Plastic | D82: 3.01 | E82: 4.5 | F82: 18.06
C83: Plastic | D83: 4.51 | E83: 8 | F83: 38.39
C84: Plastic | D84: 8.01 | E84: 100 | F84: 47.93
C85: Non-plastic | D85: 0 | E85: 1 | F85: 15.31
C86: Non-plastic | D86: 1.01 | E86: 1.5 | F86: 18.15
C87: Non-plastic | D87: 1.51 | E87: 2.5 | F87: 21.4
C88: Non-plastic | D88: 2.51 | E88: 3 | F88: 30.64
C89: Non-plastic | D89: 3.01 | E89: 4.5 | F89: 35.66
C90: Non-plastic | D90: 4.51 | E90: 5.625 | F90: 40.69
C91: Non-plastic | D91: 5.635 | E91: 6.625 | F91: 45.93
C92: Non-plastic | D92: 6.635 | E92: 8 | F92: 59.25
C93: Non-plastic | D93: 8.01 | E93: 10 | F93: 70.07
C94: Non-plastic | D94: 10.01 | E94: 12 | F94: 89.89
C95: Non-plastic | D95: 12.01 | E95: 14 | F95: 109.93
C96: Non-plastic | D96: 14.01 | E96: 16 | F96: 144.21
A98: COST ALLOCATION
C101: Aylmer Functionalization Factors | J101: Gas Supply | K101: Transportation Load Bal/ Storage | L101: Distribution Measurement | M101: Distribution - Mains | N101: Customer - Services | O101: Customer - Meters | P101: Billing & Accounting | Q101: Promotion | R101: Bad Debt & Collection | S101: A&G | T101: LEAP Funding | U101: Direct Assignment to IGPC | V101: Other Revenue
C102: Meters | D102: % | I102: =SUM(J102:V102) -> 1 | K102: 0 | L102: 0 | M102: 0 | N102: 0 | O102: 1 | P102: 0 | Q102: 0 | R102: 0 | S102: 0 | T102: 0
C103: Regulators | D103: % | I103: =SUM(J103:V103) -> 1 | K103: 0 | L103: 0 | M103: 0 | N103: 1 | O103: 0 | P103: 0 | Q103: 0 | R103: 0 | S103: 0 | T103: 0
C104: Computers | D104: % | I104: 1 | K104: 0 | L104: 0.005211185794 | M104: 0.1468698184 | N104: 0.148337671 | O104: 0.1022110576 | P104: 0.1909385113 | Q104: 0.06531332745 | R104: 0.05442777287 | S104: 0.2866906556 | T104: 0
C105: Bldgs&Impr. | D105: % | I105: 1 | K105: 0 | L105: 0.005463771353 | M105: 0.1488254677 | N105: 0.130111703 | O105: 0.09727532313 | P105: 0.1994745535 | Q105: 0.078892409 | R105: 0.04397895029 | S105: 0.295977822 | T105: 0
C106: Other Revenue | D106: % | I106: 1 | K106: 0 | L106: 0 | M106: 0 | N106: 0 | O106: 0 | P106: 0 | Q106: 0 | R106: 0 | S106: 0 | T106: 0 | U106: 0 | V106: 1
C107: Vehicles | D107: % | I107: 1 | K107: 0 | L107: 0.01027830851 | M107: 0.2671136403 | N107: 0.2371504025 | O107: 0.09250477655 | P107: 0.03181701917 | Q107: 0.1246705676 | R107: 0 | S107: 0.2364652854 | T107: 0
C108: Wages/Benefits | D108: % | I108: 1 | K108: 0 | L108: 0.005463771353 | M108: 0.1488254677 | N108: 0.130111703 | O108: 0.09727532313 | P108: 0.1994745535 | Q108: 0.078892409 | R108: 0.04397895029 | S108: 0.295977822 | T108: 0
C109: Marketing | D109: % | I109: 1 | K109: 0 | L109: 0 | M109: 0 | N109: 0 | O109: 0 | P109: 0 | Q109: 1 | R109: 0 | S109: 0 | T109: 0
C110: R&MGeneral | D110: % | I110: 1 | K110: 0 | L110: 0.0560673351 | M110: 0.1085881395 | N110: 0.09516144592 | O110: 0.3134682922 | P110: 0.1376604793 | Q110: 0.0544448735 | R110: 0.03035055483 | S110: 0.2042588797 | T110: 0
C111: Gas Supply | D111: % | I111: 1 | J111: 1
C112: Functionalization Factor 11 | D112: % | I112: 0
C113: Functionalization Factor 12 | D113: % | I113: 0
C114: Communications | D114: % | I114: 1 | K114: 0 | L114: 0 | M114: 0.25 | N114: 0.25 | O114: 0 | P114: 0 | Q114: 0 | R114: 0 | S114: 0.5 | T114: 0
C115: Travel&Ent. | D115: % | I115: 1 | K115: 0 | L115: 0 | M115: 0 | N115: 0 | O115: 0 | P115: 0 | Q115: 0 | R115: 0 | S115: 1 | T115: 0
C116: Consulting | D116: % | I116: 1 | K116: 0 | L116: 0 | M116: 0 | N116: 0.051 | O116: 0.712 | P116: 0 | Q116: 0 | R116: 0 | S116: 0.237 | T116: 0
C117: SmallTools | D117: % | I117: 1 | K117: 0 | L117: 0.01826360938 | M117: 0.4272815852 | N117: 0.390082321 | O117: 0.1643724844 | P117: 0 | Q117: 0 | R117: 0 | S117: 0 | T117: 0
C118: Computer Application Software | D118: % | I118: 1 | K118: 0 | L118: 0 | M118: 0 | N118: 0 | O118: 0 | P118: 0.75 | Q118: 0 | R118: 0 | S118: 0.25 | T118: 0
C119: Insurance | D119: % | I119: 1 | K119: 0 | L119: 0.0001551996054 | M119: 0.004033341823 | N119: 0.003580905251 | O119: 0.001396796449 | P119: 0.0004804281578 | Q119: 0.001882490965 | R119: 0 | S119: 0.9884708377 | T119: 0
C120: Property Taxes | D120: % | I120: 1 | K120: 0 | L120: 0.0003918580201 | M120: 0.9389543329 | N120: 0.009331524145 | O120: 0.006976520989 | P120: 0.01430618131 | Q120: 0.005658110706 | R120: 0.003154140844 | S120: 0.02122733105 | T120: 0 | U120: 0 | V120: 0
C121: Heavy Equipment | D121: % | I121: 1 | K121: 0 | L121: 0 | M121: 0.5227556318 | N121: 0.4772443682 | O121: 0 | P121: 0 | Q121: 0 | R121: 0 | S121: 0 | T121: 0 | U121: 0
C122: Transportation | D122: % | I122: 1 | K122: 1
C123: Mains | D123: % | I123: 1 | M123: 1
C124: Services | D124: % | I124: 1 | N124: 1
C125: A&G | D125: % | I125: 1 | S125: 1
C126: Rate Base | D126: % | I126: 1 | K126: 0 | L126: 0.04618204386 | M126: 0.4632421328 | N126: 0.08937480732 | O126: 0.1057106395 | P126: 0.02451379381 | Q126: 0.004579386865 | R126: 0.001783294324 | S126: 0.04364905352 | T126: 0 | U126: 0.220964848 | V126: 0
C127: Billing & Accounting | D127: % | I127: 1 | P127: 1
C128: Bad Debt & Collection | D128: % | I128: 1 | R128: 1
C129: IGPC Direct Assignment | D129: % | I129: 1 | U129: 1
C130: Distribution Measurement | D130: % | I130: 1 | L130: 1
C131: LEAP Funding | D131: % | I131: 1 | T131: 1
C132: Billing & Collection* | D132: % | I132: =SUM(J132:V132) -> 1 | P132: 0.7883580923 | R132: 0.2116419077
C133: Property Taxes | D133: % | I133: =SUM(J133:V133) -> 1 | J133: ='Exhibit 7'!E206 -> 0 | K133: ='Exhibit 7'!F217+'Exhibit 7'!G217+'Exhibit 7'!H217 -> 0 | L133: ='Exhibit 7'!L217 -> 0 | M133: ='Exhibit 7'!K217+'Exhibit 7'!M217 -> 1 | N133: ='Exhibit 7'!N217 -> 0 | O133: ='Exhibit 7'!O217 -> 0 | P133: ='Exhibit 7'!P217 -> 0 | Q133: ='Exhibit 7'!Q217 -> 0 | R133: ='Exhibit 7'!R217 -> 0 | S133: ='Exhibit 7'!S217 -> 0 | T133: 0 | U133: ='Exhibit 7'!J217 -> 0 | V133: 0
D134: % | I134: 0
D135: % | I135: 0
D136: % | I136: 0
D137: % | I137: 0
I138: =SUM(J138:V138) -> 0
C142: Classification of Functions
C143: x = functions, y = classifications, content = % of the function assigned to the classification
D144: Gas Supply | E144: Storage | F144: Load Balancing Admin | G144: Upstream Transportation | H144: Enbridge CIAC | I144: Industrial Direct Assignment | J144: Distribution Mains H.P. Steel | K144: Distribution Measurement | L144: Distribution Mains | M144: Customer - Services | N144: Customer - Meters | O144: Billing and Accounting | P144: Promotion | Q144: Bad Debt and Collection | R144: A&G
C145: Commodity | D145: 1 | F145: 0.4 | G145: =INDEX($H$471:$R$471,MATCH($E$182,$H$427:$R$427,0)) -> 0.02208179784
C146: Upstream Capacity | F146: 0.6 | G146: =INDEX($H$472:$R$472,MATCH($E$182,$H$427:$R$427,0))+INDEX($H$470:$R$470,MATCH($E$182,$H$427:$R$427,0)) -> 0.9779182022
C147: Storage Space | E147: 0.4
C148: Storage Deliverability | E148: 0.6
C149: Enbridge CIAC | H149: 1
C150: Industrial Direct Assignment | I150: 1 | K150: =18.4%*0.5 -> 0.092
C151: Delivery Commodity | K151: 0.5
C152: Capacity HP | J152: 1 | K152: =11.5%*0.5 -> 0.0575
C153: Capacity LP | K153: =1-SUM(K150:K152) -> 0.3505 | L153: 0.6653
C154: Customer | P154: 1
C155: Customer Weighted Services | M155: 1
C156: Customer Weighted Meters | N156: 1
C157: Customer Weighted Billing | O157: 1
C158: Customer Excluding Industrial | L158: 0.3347
C159: Bad Debt / Collection | Q159: 1
C161: Check | D161: =ABS(1-SUM(D145:D159)) -> 0 | E161: 0 | F161: 0 | G161: 0 | H161: 0 | I161: 0 | J161: 0 | K161: 0 | L161: 0 | M161: 0 | N161: 0 | O161: 0 | P161: 0 | Q161: 0
C163: Mapping of Allocation Factors to Classifications
C164: x = allocation factors y = classifications, content = % of costs associated with the classification mapped to the allocation factor
D165: =D192 -> Commodity Volume Including Industrial | E165: Commodity Volume Excluding Industrial | F165: Coincidental Peak | G165: Non-coincidental Peak | H165: Weighted Peak (Avg of CP 1 & NCP 1) | I165: Coincidental Peak Excluding Industrial | J165: Non-coincidental Peak Excluding Industrial | K165: Weighted Peak Excluding Industrial (Avg of CP 2 & NCP 2) | L165: Winter Excess Volume | M165: Peak Demand Over Winter Volume | N165: Customer | O165: Customer Weighted by Services | P165: Customer Weighted by Meters | Q165: Customer Weighted by Billing | R165: Customer Excluding Industrial | S165: Industrial Direct Assignment | T165: Bad Debt / Collection | V165: Check
C166: =C$145 -> Commodity | E166: 1 | V166: =SUM(D166:T166)-1 -> 0
C167: =C$146 -> Upstream Capacity | I167: 1 | V167: 0
C168: =C$147 -> Storage Space | L168: 1 | V168: 0
C169: =C$148 -> Storage Deliverability | M169: 1 | V169: 0
C170: =C$149 -> Enbridge CIAC | F170: 1 | V170: 0
C171: =C$150 -> Industrial Direct Assignment | S171: 1 | V171: 0
C172: =C$151 -> Delivery Commodity | D172: 1 | V172: 0
C173: =C$152 -> Capacity HP | H173: 1 | V173: 0
C174: =C$153 -> Capacity LP | K174: 1 | V174: 0
C175: =C$154 -> Customer | N175: 1 | V175: 0
C176: =C$155 -> Customer Weighted Services | O176: 1 | V176: 0
C177: =C$156 -> Customer Weighted Meters | P177: 1 | V177: 0
C178: =C$157 -> Customer Weighted Billing | Q178: 1 | V178: 0
C179: =C$158 -> Customer Excluding Industrial | R179: 1 | V179: 0
C180: =C$159 -> Bad Debt / Collection | T180: 1 | V180: 0
C182: Test Year | E182: 2028
C184: Supporting Inputs
O185: Service Factor / Customer | P185: Meter Factor / Customer | Q185: Billing Factor / Customer
C186: =C$569 -> Rate 1 - General Firm Service | O186: 1 | P186: 1 | Q186: 1
C187: =C$570 -> Rate 6 - Large Volume General Firm Service | O187: 4.666666667 | P187: 6.656978923 | Q187: 1
C188: =C$571 -> Rate 11 - Large Volume Seasonal Service | O188: 18 | P188: 32.30327869 | Q188: 6.583115668
C189: =C$572 -> Rate 16 - Contracted Firm Service | O189: 32.66666667 | P189: 39.62295082 | Q189: 6.496119676
C191: Test Year Allocation Factors
D192: Commodity Volume Including Industrial | E192: Commodity Volume Excluding Industrial | F192: Coincidental Peak | G192: Non-coincidental Peak | H192: Weighted Peak (Avg of CP 1 & NCP 1) | I192: Coincidental Peak Excluding Industrial | J192: Non-coincidental Peak Excluding Industrial | K192: Weighted Peak Excluding Industrial (Avg of CP 2 & NCP 2) | L192: Winter Excess Volume | M192: Peak Demand Over Winter Volume | N192: Customer | O192: Customer Weighted by Services | P192: Customer Weighted by Meters | Q192: Customer Weighted by Billing | R192: Customer Excluding Industrial | S192: Industrial Direct Assignment | T192: Bad Debt / Collection
D193: m3 | E193: m3 | F193: m3 / day | G193: m3 / day | H193: m3 / day | I193: m3 / day | J193: m3 / day | K193: m3 / day | L193: % | M193: % | N193: Cx | O193: Cx | P193: Cx | Q193: Cx | R193: Cx | S193: 0, 1 | T193: %
C194: =C$569 -> Rate 1 - General Firm Service | D194: =INDEX(Calculation!$I166:$AT166,1,MATCH($E$182,$I$528:$AW$528,0)) -> 12001951 | E194: =D194 -> 12001951 | F194: =INDEX($I1040:$AW1040,1,MATCH($E$182,$I$528:$AW$528,0)) -> 85968.98 | G194: =INDEX($I1033:$AW1033,1,MATCH($E$182,$I$528:$AW$528,0)) -> 103162.776 | H194: =AVERAGE(F194,G194) -> 94565.878 | I194: =$F194 -> 85968.98 | J194: =$G194 -> 103162.776 | K194: =AVERAGE(I194:J194) -> 94565.878 | L194: 615800.0402 | M194: 9703.41858 | N194: =INDEX($I576:$AW576,1,MATCH($E$182,$I$528:$AW$528,0)) -> 5175.5 | O194: =$N194*O186 -> 5175.5 | P194: 5175.5 | Q194: 5175.5 | R194: =$O194 -> 5175.5 | S194: 0 | T194: =INDEX(Calculation!$I15092:$R15092,1,MATCH($E$182,Calculation!$I$2:$R$2,0))/(INDEX(Calculation!$I$15092:$R$15092,1,MATCH($E$182,Calculation!$I$2:$R$2,0))+INDEX(Calculation!$I$15093:$R$15093,1,MATCH($E$182,Calculation!$I$2:$R$2,0))) -> 0.8371271224
C195: =C$570 -> Rate 6 - Large Volume General Firm Service | D195: =INDEX(Calculation!$I167:$AT167,1,MATCH($E$182,$I$528:$AW$528,0)) -> 3560459.829 | E195: =D195 -> 3560459.829 | F195: =INDEX($I1041:$AW1041,1,MATCH($E$182,$I$528:$AW$528,0)) -> 52235.51799 | G195: =INDEX($I1034:$AW1034,1,MATCH($E$182,$I$528:$AW$528,0)) -> 62682.62159 | H195: =AVERAGE(F195,G195) -> 57459.06979 | I195: =$F195 -> 52235.51799 | J195: =$G195 -> 62682.62159 | K195: =AVERAGE(I195:J195) -> 57459.06979 | L195: 441292.5918 | M195: 6339.787972 | N195: =INDEX($I577:$AW577,1,MATCH($E$182,$I$528:$AW$528,0)) -> 91 | O195: 424.6666667 | P195: 605.785082 | Q195: 91 | R195: =$O195 -> 424.6666667 | S195: 0 | T195: =INDEX(Calculation!$I15093:$R15093,1,MATCH($E$182,Calculation!$I$2:$R$2,0))/(INDEX(Calculation!$I$15092:$R$15092,1,MATCH($E$182,Calculation!$I$2:$R$2,0))+INDEX(Calculation!$I$15093:$R$15093,1,MATCH($E$182,Calculation!$I$2:$R$2,0))) -> 0.1628728776
C196: =C$571 -> Rate 11 - Large Volume Seasonal Service | D196: =INDEX(Calculation!$I168:$AT168,1,MATCH($E$182,$I$528:$AW$528,0)) -> 1353326.476 | E196: =D196 -> 1353326.476 | F196: =INDEX($I1042:$AW1042,1,MATCH($E$182,$I$528:$AW$528,0)) -> 0 | G196: =INDEX($I1035:$AW1035,1,MATCH($E$182,$I$528:$AW$528,0)) -> 13533.26476 | H196: =AVERAGE(F196,G196) -> 6766.632382 | I196: =$F196 -> 0 | J196: =$G196 -> 13533.26476 | K196: =AVERAGE(I196:J196) -> 6766.632382 | L196: 19131.32532 | M196: 433.9096437 | N196: =INDEX($I578:$AW578,1,MATCH($E$182,$I$528:$AW$528,0)) -> 5 | O196: 90 | P196: 161.5163934 | Q196: 32.91557834 | R196: =$O196 -> 90 | S196: 0 | T196: 0
C197: =C$572 -> Rate 16 - Contracted Firm Service | D197: =INDEX(Calculation!$I169:$AT169,1,MATCH($E$182,$I$528:$AW$528,0)) -> 23367679 | E197: 0 | F197: =INDEX($I1043:$AW1043,1,MATCH($E$182,$I$528:$AW$528,0)) -> 89716 | G197: =INDEX($I1036:$AW1036,1,MATCH($E$182,$I$528:$AW$528,0)) -> 89716 | H197: =AVERAGE(F197,G197) -> 89716 | I197: 0 | J197: 0 | K197: =AVERAGE(I197:J197) -> 0 | L197: 0 | M197: 0 | N197: =INDEX($I579:$AW579,1,MATCH($E$182,$I$528:$AW$528,0)) -> 2 | O197: 65.33333333 | P197: 79.24590164 | Q197: 12.99223935 | R197: 0 | S197: 1 | T197: 0
C198: Sum | D198: =SUM(D194:D197) -> 40283416.31 | E198: =SUM(E194:E197) -> 16915737.31 | F198: =SUM(F194:F197) -> 227920.498 | G198: 269094.6624 | H198: 248507.5802 | I198: 138204.498 | J198: 179378.6624 | K198: 158791.5802 | L198: 1076223.957 | M198: 16477.1162 | N198: 5273.5 | O198: 5755.5 | P198: 6022.047377 | Q198: 5312.407818 | R198: 5690.166667 | S198: 1 | T198: 1
A200: CAPEX
C202: Capitalized Overhead
F203: 2019 | G203: 2020 | H203: 2021 | I203: 2022 | J203: 2023 | K203: 2024 | L203: 2025 | M203: 2026 | N203: 2027 | O203: 2028
C204: Overhead Salaries | D204: $0,000s | E204: must be negative | F204: -145.8973747 | G204: -147.7502713 | H204: -149.6266998 | I204: -151.5269589 | J204: -153.4513512 | K204: -155.4001834 | L204: -157.3737657 | M204: -159.3724126 | N204: -161.3964422 | O204: -163.446177
C206: External Funding
C208: External Fund for EPCOR | D208: $0,000s | E208: 22000 | F208: must be positive
C209: External Fund for All Gas Distributors | D209: $0,000s | E209: 56510
C210: Number of Natural Gas Customers in Province | D210: Cx | E210: 3653986 | F210: as per 2017 Year Book
F212: 2019 | G212: 2020 | H212: 2021 | I212: 2022 | J212: 2023 | K212: 2024 | L212: 2025 | M212: 2026 | N212: 2027 | O212: 2028
C213: Number of Collections | D213: x / year | F213: 6 | G213: 12 | H213: 12 | I213: 12 | J213: 12 | K213: 12 | L213: 12 | M213: 12 | N213: 12 | O213: 12
C214: Amount Collected per Collection per Customer | D214: $ / x / Cx | F214: 1 | G214: 1 | H214: 1 | I214: 1 | J214: 1 | K214: 1 | L214: 1 | M214: 1 | N214: 1 | O214: 1
C215: External Fund Distributed to EPCOR | D215: $0,000 | F215: =Calculation!I$4286 -> 8535.235392 | G215: =Calculation!J$4286 -> 13464.76461 | H215: =Calculation!K$4286 -> 0 | I215: =Calculation!L$4286 -> 0 | J215: =Calculation!M$4286 -> 0 | K215: =Calculation!N$4286 -> 0 | L215: =Calculation!O$4286 -> 0 | M215: =Calculation!P$4286 -> 0 | N215: =Calculation!Q$4286 -> 0 | O215: =Calculation!R$4286 -> 0
C219: CapEx # (must be unique) | D219: Description | E219: Material (for Property Taxes) | F219: Year of Deployment | G219: Pipeline or Non-pipeline (for Property Taxes) | H219: ="Quantity in "&E$60 -> Quantity in Kincardine | I219: Quantity in Arran-Elderslie | J219: Quantity in Huron-Kinloss | K219: Quantity in Brockton | L219: Quantity in West Grey | M219: Quantity in Chatsworth | N219: Attract Overhead Salary | O219: Attract Grant | P219: Length of Construction | Q219: Asset Group (for Depreciation & CCA) | R219: Outside Diameter | S219: Function | T219: Distribution or Non-distribution Related Asset | U219: Construction and Material Cost | V219: Other Direct Costs | W219: External Funding (must be positive) | X219: CIAC to Union Row Counter | Y219: Deferred Revenue Row Counter | Z219: Capital Cost Excluding Overhead Salaries (must be negative) | AA219: Capitalized Overhead Salaries | AB219: Capital Cost without Grant (must be negative) | AC219: Pipeline Length | AD219: Amount after Grant (must be negative) | AE219: Depreciation Rate | AF219: CCA Rate | AG219: Assessed Value | AH219: Property Tax in Rate Stability Period | AI219: Property Tax after Rate Stability Period | AJ219: Check
H220: count or meters | I220: count or meters | J220: count or meters | K220: count or meters | L220: count or meters | M220: count or meters | N220: Yes, No | O220: Yes, No | P220: year | R220: inch | U220: $0,000 | V220: $0,000 | W220: $0,000s | Z220: $0,000 | AA220: $0,000 | AB220: $0,000s | AC220: ft | AD220: $0,000s | AE220: % / yr | AF220: % / yr | AG220: base year $0,000s | AH220: base year $0,000s
C221: 1 | D221: NPS 8 Steel - Dornach to Bruce Energy Centre - Non Industrial | E221: Non-plastic | F221: 2019 | G221: Pipeline | H221: 18500 | I221: 16300 | K221: 7500 | M221: 16300 | N221: Yes | O221: Yes | P221: 0.5 | Q221: Distribution Mains - Metallic | R221: 8 | S221: Distribution Mains H.P. Steel | T221: Distribution | U221: -24766.91 | V221: -4181.088043 | W221: =IF($O221="Yes",IFERROR($U221/SUMIFS($U$221:$U$420,$O$221:$O$420,"Yes")*$E$208,0),0) -> 8902.271751 | X221: =IF(AND(T221="CIAC to Union",ISERROR(MATCH($Q221,Q220:Q$221,0))),MAX(X220:X$221)+1,0) -> 0 | Y221: =IF(AND(T221="Deferred Revenue",ISERROR(MATCH($Q221,Q220:Q$221,0))),MAX(Y220:Y$221)+1,0) -> 0 | Z221: =SUM(U221:V221) -> -28947.99804 | AA221: =IF(N221="Yes",$U221/SUMIFS($U$221:$U$420,N$221:N$420,"Yes",$F$221:$F$420,$F221)*INDEX($F$204:$O$204,1,MATCH($F221,$F$203:$O$203,0)),0) -> -82.1133511 | AB221: =Z221+AA221 -> -29030.11139 | AC221: =IF($G221="Pipeline",SUM($H221:$M221)*$E$15,0) -> 192257.224 | AD221: =AB221+W221 -> -20127.83964 | AE221: =IFERROR(INDEX(Input!$E$46:$E$55,MATCH($Q221,Input!$C$46:$C$55,0),1),0) -> 0.0283 | AF221: =IFERROR(INDEX(Input!$D$46:$D$55,MATCH($Q221,Input!$C$46:$C$55,0),1),0) -> 0.06 | AG221: =IF($G221="Pipeline",SUMIFS($F$77:$F$96,$C$77:$C$96,$E221,$D$77:$D$96,"<="&$R221,$E$77:$E$96,">="&$R221)*$AC221/1000,-AB221) -> 11391.24052 | AH221: =IFERROR(SUMPRODUCT($H221:$M221,$E$66:$J$66)/SUM($H221:$M221),0) -> 0.01652306055 | AI221: =IFERROR(SUMPRODUCT($H221:$M221,$E$67:$J$67)/SUM($H221:$M221),0) -> 0.02069264481 | AJ221: =IF(AD221>0,1,0) -> 0
C222: 2 | D222: NPS 6 Steel - Bruce Energy to Kincardine - Non Industrial | E222: Non-plastic | F222: 2019 | G222: Pipeline | H222: 15807 | N222: Yes | O222: Yes | P222: 0.5 | Q222: Distribution Mains - Metallic | R222: 6 | S222: Distribution Mains H.P. Steel | T222: Distribution | U222: -5724.52215 | V222: -966.3995676 | W222: 2057.634635 | X222: =IF(AND(T222="CIAC to Union",ISERROR(MATCH($Q222,Q$221:Q221,0))),MAX(X$221:X221)+1,0) -> 0 | Y222: =IF(AND(T222="Deferred Revenue",ISERROR(MATCH($Q222,Q221:Q$221,0))),MAX(Y221:Y$221)+1,0) -> 0 | Z222: -6690.921718 | AA222: -18.9793437 | AB222: -6709.901061 | AC222: 51860.23788 | AD222: -4652.266426 | AE222: =IFERROR(INDEX(Input!$E$46:$E$55,MATCH($Q222,Input!$C$46:$C$55,0),1),0) -> 0.0283 | AF222: =IFERROR(INDEX(Input!$D$46:$D$55,MATCH($Q222,Input!$C$46:$C$55,0),1),0) -> 0.06 | AG222: =IF($G222="Pipeline",SUMIFS($F$77:$F$96,$C$77:$C$96,$E222,$D$77:$D$96,"<="&$R222,$E$77:$E$96,">="&$R222)*$AC222/1000,-AB222) -> 2381.940726 | AH222: =IFERROR(SUMPRODUCT($H222:$M222,$E$66:$J$66)/SUM($H222:$M222),0) -> 0.01371446 | AI222: =IFERROR(SUMPRODUCT($H222:$M222,$E$67:$J$67)/SUM($H222:$M222),0) -> 0.02033581 | AJ222: 0
C223: 3 | D223: CIAC to Union - Owen Sound Reinforcement | E223: N/A | F223: 2019 | G223: Pipeline | H223: 0 | I223: 0 | J223: 0 | K223: 0 | L223: 0 | M223: 0 | N223: No | O223: No | P223: 0 | Q223: CIAC to Enbridge - Owen Sound Reinforcement | S223: Enbridge CIAC | T223: CIAC to Union | U223: -2363.133949 | V223: 0 | W223: 0 | X223: =IF(AND(T223="CIAC to Union",ISERROR(MATCH($Q223,Q$221:Q222,0))),MAX(X$221:X222)+1,0) -> 1 | Y223: =IF(AND(T223="Deferred Revenue",ISERROR(MATCH($Q223,Q$221:Q222,0))),MAX(Y$221:Y222)+1,0) -> 0 | Z223: -2363.133949 | AA223: 0 | AB223: -2363.133949 | AC223: 0 | AD223: -2363.133949 | AE223: =IFERROR(INDEX(Input!$E$46:$E$55,MATCH($Q223,Input!$C$46:$C$55,0),1),0) -> 0.0198 | AF223: =IFERROR(INDEX(Input!$D$46:$D$55,MATCH($Q223,Input!$C$46:$C$55,0),1),0) -> 0.05 | AG223: =IF($G223="Pipeline",SUMIFS($F$77:$F$96,$C$77:$C$96,$E223,$D$77:$D$96,"<="&$R223,$E$77:$E$96,">="&$R223)*$AC223/1000,-AB223) -> 0 | AH223: 0 | AI223: 0 | AJ223: 0
C224: 4 | D224: NPS 6 Plastic South of Kincardine | E224: Plastic | F224: 2019 | G224: Pipeline | H224: 5000 | J224: 2140 | N224: Yes | O224: Yes | P224: 0.5 | Q224: Distribution Mains - Plastic | R224: 6 | S224: Distribution Mains | T224: Distribution | U224: -1286.628 | V224: -217.2053335 | W224: 462.4683539 | X224: =IF(AND(T224="CIAC to Union",ISERROR(MATCH($Q224,Q$221:Q223,0))),MAX(X$221:X223)+1,0) -> 0 | Y224: =IF(AND(T224="Deferred Revenue",ISERROR(MATCH($Q224,Q$221:Q223,0))),MAX(Y$221:Y223)+1,0) -> 0 | Z224: -1503.833334 | AA224: -4.265745573 | AB224: -1508.099079 | AC224: 23425.1976 | AD224: -1045.630725 | AE224: =IFERROR(INDEX(Input!$E$46:$E$55,MATCH($Q224,Input!$C$46:$C$55,0),1),0) -> 0.0231 | AF224: =IFERROR(INDEX(Input!$D$46:$D$55,MATCH($Q224,Input!$C$46:$C$55,0),1),0) -> 0.06 | AG224: =IF($G224="Pipeline",SUMIFS($F$77:$F$96,$C$77:$C$96,$E224,$D$77:$D$96,"<="&$R224,$E$77:$E$96,">="&$R224)*$AC224/1000,-AB224) -> 899.2933359 | AH224: 0.01371446 | AI224: 0.02016986709 | AJ224: 0
C225: 5 | D225: Dornach Check Meter Station (Lakeside + Aecon Install) | E225: N/A | F225: 2019 | G225: Non-pipeline | L225: 1 | N225: Yes | O225: Yes | P225: 0.5 | Q225: Distribution Measuring and Regulating Equipt. | S225: Distribution Measurement | T225: Distribution | U225: -216.46 | V225: -36.54223792 | W225: 77.80485103 | X225: =IF(AND(T225="CIAC to Union",ISERROR(MATCH($Q225,Q$221:Q224,0))),MAX(X$221:X224)+1,0) -> 0 | Y225: =IF(AND(T225="Deferred Revenue",ISERROR(MATCH($Q225,Q$221:Q224,0))),MAX(Y$221:Y224)+1,0) -> 0 | Z225: -253.0022379 | AA225: -0.7176614273 | AB225: -253.7198993 | AC225: 0 | AD225: -175.9150483 | AE225: =IFERROR(INDEX(Input!$E$46:$E$55,MATCH($Q225,Input!$C$46:$C$55,0),1),0) -> 0.0366 | AF225: =IFERROR(INDEX(Input!$D$46:$D$55,MATCH($Q225,Input!$C$46:$C$55,0),1),0) -> 0.06 | AG225: =IF($G225="Pipeline",SUMIFS($F$77:$F$96,$C$77:$C$96,$E225,$D$77:$D$96,"<="&$R225,$E$77:$E$96,">="&$R225)*$AC225/1000,-AB225) -> 253.7198993 | AH225: 0.01974686 | AI225: 0.01974686 | AJ225: 0
C226: 6 | D226: Lands for Dornach Check Meter Station | E226: N/A | F226: 2019 | G226: Non-pipeline | L226: 1 | N226: Yes | O226: Yes | P226: 0.5 | Q226: Distribution Land Rights | S226: Distribution Measurement | T226: Distribution | U226: -7.5 | V226: -1.266131315 | W226: 2.695816237 | X226: =IF(AND(T226="CIAC to Union",ISERROR(MATCH($Q226,Q$221:Q225,0))),MAX(X$221:X225)+1,0) -> 0 | Y226: =IF(AND(T226="Deferred Revenue",ISERROR(MATCH($Q226,Q$221:Q225,0))),MAX(Y$221:Y225)+1,0) -> 0 | Z226: -8.766131315 | AA226: -0.02486584452 | AB226: -8.790997159 | AC226: 0 | AD226: -6.095180922 | AE226: =IFERROR(INDEX(Input!$E$46:$E$55,MATCH($Q226,Input!$C$46:$C$55,0),1),0) -> 0.0165 | AF226: =IFERROR(INDEX(Input!$D$46:$D$55,MATCH($Q226,Input!$C$46:$C$55,0),1),0) -> 0.05 | AG226: 0 | AH226: 0.01974686 | AI226: 0.01974686 | AJ226: 0
C227: 7 | D227: Lands for Kincardine and Tiverton Stations | E227: N/A | F227: 2019 | G227: Non-pipeline | H227: 1 | N227: Yes | O227: Yes | P227: 0.5 | Q227: Distribution Land Rights | S227: Distribution Measurement | T227: Distribution | U227: -15 | V227: -2.53226263 | W227: 5.391632475 | X227: =IF(AND(T227="CIAC to Union",ISERROR(MATCH($Q227,Q$221:Q226,0))),MAX(X$221:X226)+1,0) -> 0 | Y227: =IF(AND(T227="Deferred Revenue",ISERROR(MATCH($Q227,Q$221:Q226,0))),MAX(Y$221:Y226)+1,0) -> 0 | Z227: -17.53226263 | AA227: -0.04973168904 | AB227: -17.58199432 | AC227: 0 | AD227: -12.19036184 | AE227: =IFERROR(INDEX(Input!$E$46:$E$55,MATCH($Q227,Input!$C$46:$C$55,0),1),0) -> 0.0165 | AF227: =IFERROR(INDEX(Input!$D$46:$D$55,MATCH($Q227,Input!$C$46:$C$55,0),1),0) -> 0.05 | AG227: 0 | AH227: 0.01371446 | AI227: 0.02033581 | AJ227: 0
C228: 8 | D228: Anode Installation on Steel Mains (install and supply) | E228: N/A | F228: 2019 | G228: Non-pipeline | H228: 0.4610722109 | I228: 0.2190654105 | J228: 0 | K228: 0 | L228: 0.2204093701 | M228: 0.09945300845 | N228: Yes | O228: Yes | P228: 0.5 | Q228: Distribution Mains - Metallic | S228: Distribution Mains H.P. Steel | T228: Distribution | U228: -80 | V228: -13.50540069 | W228: 28.7553732 | X228: =IF(AND(T228="CIAC to Union",ISERROR(MATCH($Q228,Q$221:Q227,0))),MAX(X$221:X227)+1,0) -> 0 | Y228: =IF(AND(T228="Deferred Revenue",ISERROR(MATCH($Q228,Q$221:Q227,0))),MAX(Y$221:Y227)+1,0) -> 0 | Z228: -93.50540069 | AA228: -0.2652356749 | AB228: -93.77063637 | AC228: 0 | AD228: -65.01526317 | AE228: =IFERROR(INDEX(Input!$E$46:$E$55,MATCH($Q228,Input!$C$46:$C$55,0),1),0) -> 0.0283 | AF228: =IFERROR(INDEX(Input!$D$46:$D$55,MATCH($Q228,Input!$C$46:$C$55,0),1),0) -> 0.06 | AG228: =IF($G228="Pipeline",SUMIFS($F$77:$F$96,$C$77:$C$96,$E228,$D$77:$D$96,"<="&$R228,$E$77:$E$96,">="&$R228)*$AC228/1000,-AB228) -> 93.77063637 | AH228: 0.01568887002 | AI228: 0.02037930663 | AJ228: 0
C229: 9 | D229: Supply Line Markers (installation included in lay price) | E229: N/A | F229: 2019 | G229: Non-pipeline | H229: 93 | I229: 82 | J229: 0 | K229: 0 | L229: 82 | M229: 37 | N229: Yes | O229: Yes | P229: 0.5 | Q229: Distribution Mains - Metallic | S229: Distribution Mains H.P. Steel | T229: Distribution | U229: -11.76 | V229: -1.985293902 | W229: 4.22703986 | X229: =IF(AND(T229="CIAC to Union",ISERROR(MATCH($Q229,Q$221:Q228,0))),MAX(X$221:X228)+1,0) -> 0 | Y229: =IF(AND(T229="Deferred Revenue",ISERROR(MATCH($Q229,Q$221:Q228,0))),MAX(Y$221:Y228)+1,0) -> 0 | Z229: -13.7452939 | AA229: -0.0389896442 | AB229: -13.78428355 | AC229: 0 | AD229: -9.557243686 | AE229: =IFERROR(INDEX(Input!$E$46:$E$55,MATCH($Q229,Input!$C$46:$C$55,0),1),0) -> 0.0283 | AF229: =IFERROR(INDEX(Input!$D$46:$D$55,MATCH($Q229,Input!$C$46:$C$55,0),1),0) -> 0.06 | AG229: 13.78428355 | AH229: 0.01621292813 | AI229: 0.02039230354 | AJ229: 0
C230: 10 | D230: Kincardine Station (Lakeside + Aecon Install) | E230: N/A | F230: 2019 | G230: Non-pipeline | H230: 1 | N230: Yes | O230: Yes | P230: 0.5 | Q230: Distribution Measuring and Regulating Equipt. | S230: Distribution Measurement | T230: Distribution | U230: -191.35649 | V230: -32.30432591 | W230: 68.78159105 | X230: =IF(AND(T230="CIAC to Union",ISERROR(MATCH($Q230,Q$221:Q229,0))),MAX(X$221:X229)+1,0) -> 0 | Y230: =IF(AND(T230="Deferred Revenue",ISERROR(MATCH($Q230,Q$221:Q229,0))),MAX(Y$221:Y229)+1,0) -> 0 | Z230: -223.6608159 | AA230: -0.6344320971 | AB230: -224.295248 | AC230: 0 | AD230: -155.513657 | AE230: =IFERROR(INDEX(Input!$E$46:$E$55,MATCH($Q230,Input!$C$46:$C$55,0),1),0) -> 0.0366 | AF230: =IFERROR(INDEX(Input!$D$46:$D$55,MATCH($Q230,Input!$C$46:$C$55,0),1),0) -> 0.06 | AG230: 224.295248 | AH230: 0.01371446 | AI230: 0.02033581 | AJ230: 0
C231: 11 | D231: Tiverton Station (Lakeside + Aecon Install) | E231: N/A | F231: 2019 | G231: Non-pipeline | H231: 1 | N231: Yes | O231: Yes | P231: 0.5 | Q231: Distribution Measuring and Regulating Equipt. | S231: Distribution Measurement | T231: Distribution | U231: -134.58596 | V231: -22.72046647 | W231: 48.37586884 | X231: =IF(AND(T231="CIAC to Union",ISERROR(MATCH($Q231,Q$221:Q230,0))),MAX(X$221:X230)+1,0) -> 0 | Y231: =IF(AND(T231="Deferred Revenue",ISERROR(MATCH($Q231,Q$221:Q230,0))),MAX(Y$221:Y230)+1,0) -> 0 | Z231: -157.3064265 | AA231: -0.4462124741 | AB231: -157.7526389 | AC231: 0 | AD231: -109.3767701 | AE231: =IFERROR(INDEX(Input!$E$46:$E$55,MATCH($Q231,Input!$C$46:$C$55,0),1),0) -> 0.0366 | AF231: =IFERROR(INDEX(Input!$D$46:$D$55,MATCH($Q231,Input!$C$46:$C$55,0),1),0) -> 0.06 | AG231: 157.7526389 | AH231: 0.01371446 | AI231: 0.02033581 | AJ231: 0
C232: 12 | D232: BEC Station (Lakeside + Aecon Install) | E232: N/A | F232: 2019 | G232: Non-pipeline | H232: 1 | N232: Yes | O232: Yes | P232: 0.5 | Q232: Distribution Measuring and Regulating Equipt. | S232: Distribution Measurement | T232: Distribution | U232: -185.74649 | V232: -31.35725968 | W232: 66.76512051 | X232: =IF(AND(T232="CIAC to Union",ISERROR(MATCH($Q232,Q$221:Q231,0))),MAX(X$221:X231)+1,0) -> 0 | Y232: =IF(AND(T232="Deferred Revenue",ISERROR(MATCH($Q232,Q$221:Q231,0))),MAX(Y$221:Y231)+1,0) -> 0 | Z232: -217.1037497 | AA232: -0.6158324454 | AB232: -217.7195821 | AC232: 0 | AD232: -150.9544616 | AE232: =IFERROR(INDEX(Input!$E$46:$E$55,MATCH($Q232,Input!$C$46:$C$55,0),1),0) -> 0.0366 | AF232: =IFERROR(INDEX(Input!$D$46:$D$55,MATCH($Q232,Input!$C$46:$C$55,0),1),0) -> 0.06 | AG232: 217.7195821 | AH232: 0.01371446 | AI232: 0.02033581 | AJ232: 0
C233: 13 | D233: Valve Sites | E233: N/A | F233: 2019 | G233: Non-pipeline | H233: 4 | I233: 2 | N233: Yes | O233: Yes | P233: 0.5 | Q233: Distribution Mains - Metallic | S233: Distribution Mains H.P. Steel | T233: Distribution | U233: -832.7600955 | V233: -140.5844846 | W233: 299.3290916 | X233: =IF(AND(T233="CIAC to Union",ISERROR(MATCH($Q233,Q$221:Q232,0))),MAX(X$221:X232)+1,0) -> 0 | Y233: =IF(AND(T233="Deferred Revenue",ISERROR(MATCH($Q233,Q$221:Q232,0))),MAX(Y$221:Y232)+1,0) -> 0 | Z233: -973.3445801 | AA233: -2.760971074 | AB233: -976.1055512 | AC233: 0 | AD233: -676.7764596 | AE233: =IFERROR(INDEX(Input!$E$46:$E$55,MATCH($Q233,Input!$C$46:$C$55,0),1),0) -> 0.0283 | AF233: =IFERROR(INDEX(Input!$D$46:$D$55,MATCH($Q233,Input!$C$46:$C$55,0),1),0) -> 0.06 | AG233: 976.1055512 | AH233: 0.01371446 | AI233: 0.02062036333 | AJ233: 0
C234: 14 | D234: Tiverton Plastic Distribution | E234: Plastic | F234: 2019 | G234: Pipeline | H234: 10820 | N234: Yes | O234: Yes | P234: 0.5 | Q234: Distribution Mains - Plastic | R234: 2 | S234: Distribution Mains | T234: Distribution | U234: -1029.523 | V234: -173.801508 | W234: 370.053976 | X234: =IF(AND(T234="CIAC to Union",ISERROR(MATCH($Q234,Q$221:Q233,0))),MAX(X$221:X233)+1,0) -> 0 | Y234: =IF(AND(T234="Deferred Revenue",ISERROR(MATCH($Q234,Q$221:Q233,0))),MAX(Y$221:Y233)+1,0) -> 0 | Z234: -1203.324508 | AA234: -3.413327846 | AB234: -1206.737836 | AC234: 35498.6888 | AD234: -836.6838598 | AE234: =IFERROR(INDEX(Input!$E$46:$E$55,MATCH($Q234,Input!$C$46:$C$55,0),1),0) -> 0.0231 | AF234: =IFERROR(INDEX(Input!$D$46:$D$55,MATCH($Q234,Input!$C$46:$C$55,0),1),0) -> 0.06 | AG234: 331.2027665 | AH234: 0.01371446 | AI234: 0.02033581 | AJ234: 0
C235: 15 | D235: Kincardine Plastic Distribution | E235: Plastic | F235: 2019 | G235: Pipeline | H235: 62400 | N235: Yes | O235: Yes | P235: 0.5 | Q235: Distribution Mains - Plastic | R235: 2 | S235: Distribution Mains | T235: Distribution | U235: -5937.36 | V235: -1002.330323 | W235: 2134.137533 | X235: =IF(AND(T235="CIAC to Union",ISERROR(MATCH($Q235,Q$221:Q234,0))),MAX(X$221:X234)+1,0) -> 0 | Y235: =IF(AND(T235="Deferred Revenue",ISERROR(MATCH($Q235,Q$221:Q234,0))),MAX(Y$221:Y234)+1,0) -> 0 | Z235: -6939.690323 | AA235: -19.68499608 | AB235: -6959.375319 | AC235: 204724.416 | AD235: -4825.237787 | AE235: =IFERROR(INDEX(Input!$E$46:$E$55,MATCH($Q235,Input!$C$46:$C$55,0),1),0) -> 0.0231 | AF235: =IFERROR(INDEX(Input!$D$46:$D$55,MATCH($Q235,Input!$C$46:$C$55,0),1),0) -> 0.06 | AG235: 1910.078801 | AH235: 0.01371446 | AI235: 0.02033581 | AJ235: 0
C236: 16 | D236: Kincardine NPS 6 Bypass | E236: Plastic | F236: 2019 | G236: Pipeline | H236: 5120 | N236: Yes | O236: Yes | P236: 0.5 | Q236: Distribution Mains - Plastic | R236: 6 | S236: Distribution Mains | T236: Distribution | U236: -1144.832 | V236: -193.2676861 | W236: 411.5008926 | X236: =IF(AND(T236="CIAC to Union",ISERROR(MATCH($Q236,Q$221:Q235,0))),MAX(X$221:X235)+1,0) -> 0 | Y236: =IF(AND(T236="Deferred Revenue",ISERROR(MATCH($Q236,Q$221:Q235,0))),MAX(Y$221:Y235)+1,0) -> 0 | Z236: -1338.099686 | AA236: -3.795628602 | AB236: -1341.895315 | AC236: 16797.9008 | AD236: -930.394422 | AE236: =IFERROR(INDEX(Input!$E$46:$E$55,MATCH($Q236,Input!$C$46:$C$55,0),1),0) -> 0.0231 | AF236: =IFERROR(INDEX(Input!$D$46:$D$55,MATCH($Q236,Input!$C$46:$C$55,0),1),0) -> 0.06 | AG236: 644.8714117 | AH236: 0.01371446 | AI236: 0.02033581 | AJ236: 0
C237: 17 | D237: Plastic Distribution - for Future Services | E237: Plastic | F237: 2019 | G237: Pipeline | H237: 1150 | N237: Yes | O237: Yes | P237: 0.5 | Q237: Distribution Mains - Plastic | R237: 2 | S237: Distribution Mains | T237: Distribution | U237: -109.4225 | V237: -18.47243384 | W237: 39.3310603 | X237: =IF(AND(T237="CIAC to Union",ISERROR(MATCH($Q237,Q$221:Q236,0))),MAX(X$221:X236)+1,0) -> 0 | Y237: =IF(AND(T237="Deferred Revenue",ISERROR(MATCH($Q237,Q$221:Q236,0))),MAX(Y$221:Y236)+1,0) -> 0 | Z237: -127.8949338 | AA237: -0.3627843829 | AB237: -128.2577182 | AC237: 3772.966 | AD237: -88.92665792 | AE237: =IFERROR(INDEX(Input!$E$46:$E$55,MATCH($Q237,Input!$C$46:$C$55,0),1),0) -> 0.0231 | AF237: =IFERROR(INDEX(Input!$D$46:$D$55,MATCH($Q237,Input!$C$46:$C$55,0),1),0) -> 0.06 | AG237: 35.20177278 | AH237: 0.01371446 | AI237: 0.02033581 | AJ237: 0
C238: 18 | D238: Chesley Station (Lakeside + Aecon Install) | E238: N/A | F238: 2020 | G238: Non-pipeline | I238: 1 | N238: Yes | O238: Yes | P238: 0.5 | Q238: Distribution Measuring and Regulating Equipt. | S238: Distribution Measurement | T238: Distribution | U238: -134.58596 | V238: -22.72046647 | W238: 48.37586884 | X238: =IF(AND(T238="CIAC to Union",ISERROR(MATCH($Q238,Q$221:Q237,0))),MAX(X$221:X237)+1,0) -> 0 | Y238: =IF(AND(T238="Deferred Revenue",ISERROR(MATCH($Q238,Q$221:Q237,0))),MAX(Y$221:Y237)+1,0) -> 0 | Z238: -157.3064265 | AA238: -0.9463849559 | AB238: -158.2528114 | AC238: 0 | AD238: -109.8769426 | AE238: =IFERROR(INDEX(Input!$E$46:$E$55,MATCH($Q238,Input!$C$46:$C$55,0),1),0) -> 0.0366 | AF238: =IFERROR(INDEX(Input!$D$46:$D$55,MATCH($Q238,Input!$C$46:$C$55,0),1),0) -> 0.06 | AG238: 158.2528114 | AH238: 0.01371446 | AI238: 0.02118947 | AJ238: 0
C239: 19 | D239: Paisley Station (Lakeside + Aecon Install) | E239: N/A | F239: 2020 | G239: Non-pipeline | I239: 1 | N239: Yes | O239: Yes | P239: 0.5 | Q239: Distribution Measuring and Regulating Equipt. | S239: Distribution Measurement | T239: Distribution | U239: -136.81509 | V239: -23.09678264 | W239: 49.17711215 | X239: =IF(AND(T239="CIAC to Union",ISERROR(MATCH($Q239,Q$221:Q238,0))),MAX(X$221:X238)+1,0) -> 0 | Y239: =IF(AND(T239="Deferred Revenue",ISERROR(MATCH($Q239,Q$221:Q238,0))),MAX(Y$221:Y238)+1,0) -> 0 | Z239: -159.9118726 | AA239: -0.9620598086 | AB239: -160.8739324 | AC239: 0 | AD239: -111.6968203 | AE239: =IFERROR(INDEX(Input!$E$46:$E$55,MATCH($Q239,Input!$C$46:$C$55,0),1),0) -> 0.0366 | AF239: =IFERROR(INDEX(Input!$D$46:$D$55,MATCH($Q239,Input!$C$46:$C$55,0),1),0) -> 0.06 | AG239: 160.8739324 | AH239: 0.01371446 | AI239: 0.02118947 | AJ239: 0
C240: 20 | D240: Lands for Chesley & Paisley Stations | E240: N/A | F240: 2020 | G240: Non-pipeline | I240: 1 | N240: Yes | O240: Yes | P240: 0.5 | Q240: Distribution Land Rights | S240: Distribution Measurement | T240: Distribution | U240: -15 | V240: -2.53226263 | W240: 5.391632475 | X240: =IF(AND(T240="CIAC to Union",ISERROR(MATCH($Q240,Q$221:Q239,0))),MAX(X$221:X239)+1,0) -> 0 | Y240: =IF(AND(T240="Deferred Revenue",ISERROR(MATCH($Q240,Q$221:Q239,0))),MAX(Y$221:Y239)+1,0) -> 0 | Z240: -17.53226263 | AA240: -0.1054773792 | AB240: -17.63774001 | AC240: 0 | AD240: -12.24610753 | AE240: =IFERROR(INDEX(Input!$E$46:$E$55,MATCH($Q240,Input!$C$46:$C$55,0),1),0) -> 0.0165 | AF240: =IFERROR(INDEX(Input!$D$46:$D$55,MATCH($Q240,Input!$C$46:$C$55,0),1),0) -> 0.05 | AG240: 0 | AH240: 0.01371446 | AI240: 0.02118947 | AJ240: 0
... 1021 more rows

Sheet Calculation
A1: Check | B1: =Input!D2 -> 6.569312871e-10 | H1: =H2-$H$2 -> 0 | I1: =I2-$H$2 -> 1 | J1: 2 | K1: 3 | L1: 4 | M1: 5 | N1: 6 | O1: 7 | P1: 8 | Q1: 9 | R1: 10
H2: =Input!$E$10 -> 2018 | I2: =H2+1 -> 2019 | J2: =I2+1 -> 2020 | K2: 2021 | L2: 2022 | M2: 2023 | N2: 2024 | O2: 2025 | P2: 2026 | Q2: 2027 | R2: 2028
B3: Unit | C3: Var 1 | D3: Var 2 | E3: Var 3 | F3: Var 4 | G3: 10 year Sum | H3: =IF(H1=0,DATE(H2,12,31),DATE(H2,7,1)) -> 2018-12-31 | I3: =IF(I1=0,DATE(I2,12,31),DATE(I2,7,1)) -> 2019-07-01 | J3: 2020-07-01 | K3: 2021-07-01 | L3: 2022-07-01 | M3: 2023-07-01 | N3: 2024-07-01 | O3: 2025-07-01 | P3: 2026-07-01 | Q3: 2027-07-01 | R3: 2028-07-01
A5: Flags and Metrics
A7: CPI Index | H7: =(1+inflation)^H$1 -> 1 | I7: 1.0127 | J7: 1.02556129 | K7: 1.038585918 | L7: 1.05177596 | M7: 1.065133514 | N7: 1.07866071 | O7: 1.092359701 | P7: 1.106232669 | Q7: 1.120281824 | R7: 1.134509403
A8: Assessment Value Index | H8: =IF(H$2<=Input!$E$71,1,IF(MOD((H$2-Input!$E$71),Input!$E$72)=1,G8*(1+Input!$E$73),G8)) -> 1 | I8: =IF(I$2<=Input!$E$71,1,IF(MOD((I$2-Input!$E$71),Input!$E$72)=1,H8*(1+Input!$E$73),H8)) -> 1 | J8: =IF(J$2<=Input!$E$71,1,IF(MOD((J$2-Input!$E$71),Input!$E$72)=1,I8*(1+Input!$E$73),I8)) -> 1 | K8: =IF(K$2<=Input!$E$71,1,IF(MOD((K$2-Input!$E$71),Input!$E$72)=1,J8*(1+Input!$E$73),J8)) -> 1.05177596 | L8: =IF(L$2<=Input!$E$71,1,IF(MOD((L$2-Input!$E$71),Input!$E$72)=1,K8*(1+Input!$E$73),K8)) -> 1.05177596 | M8: =IF(M$2<=Input!$E$71,1,IF(MOD((M$2-Input!$E$71),Input!$E$72)=1,L8*(1+Input!$E$73),L8)) -> 1.05177596 | N8: =IF(N$2<=Input!$E$71,1,IF(MOD((N$2-Input!$E$71),Input!$E$72)=1,M8*(1+Input!$E$73),M8)) -> 1.05177596 | O8: =IF(O$2<=Input!$E$71,1,IF(MOD((O$2-Input!$E$71),Input!$E$72)=1,N8*(1+Input!$E$73),N8)) -> 1.106232669 | P8: =IF(P$2<=Input!$E$71,1,IF(MOD((P$2-Input!$E$71),Input!$E$72)=1,O8*(1+Input!$E$73),O8)) -> 1.106232669 | Q8: =IF(Q$2<=Input!$E$71,1,IF(MOD((Q$2-Input!$E$71),Input!$E$72)=1,P8*(1+Input!$E$73),P8)) -> 1.106232669 | R8: =IF(R$2<=Input!$E$71,1,IF(MOD((R$2-Input!$E$71),Input!$E$72)=1,Q8*(1+Input!$E$73),Q8)) -> 1.106232669
A9: Rate Stability Period | H9: =IF(H$2<Input!$E$11,1,0) -> 1 | I9: =IF(I$2<Input!$E$11,1,0) -> 1 | J9: =IF(J$2<Input!$E$11,1,0) -> 1 | K9: =IF(K$2<Input!$E$11,1,0) -> 1 | L9: =IF(L$2<Input!$E$11,1,0) -> 1 | M9: =IF(M$2<Input!$E$11,1,0) -> 1 | N9: =IF(N$2<Input!$E$11,1,0) -> 1 | O9: =IF(O$2<Input!$E$11,1,0) -> 1 | P9: =IF(P$2<Input!$E$11,1,0) -> 1 | Q9: =IF(Q$2<Input!$E$11,1,0) -> 1 | R9: =IF(R$2<Input!$E$11,1,0) -> 1
A11: Integrated Financial Statements
A13: Income Statement
A16: Non-distribution Revenue | B16: $0,000s | G16: =SUM(H16:R16) -> 27056.49741 | H16: =H15103 -> 0 | I16: =I15103 -> 318.8792648 | J16: =J15103 -> 1273.195539 | K16: 2046.559935 | L16: 2677.668271 | M16: 3093.303448 | N16: 3390.654054 | O16: 3497.34777 | P16: 3543.60504 | Q16: 3587.933854 | R16: 3627.350232
A17: Non-distribution Cost | B17: $0,000s | G17: =SUM(H17:R17) -> -27056.49741 | H17: =-H$14237+SUMIF(Input!$D$429:$D$458,"Upstream",Input!H$429:H$458)*H$7 -> 0 | I17: =-I$14237+SUMIF(Input!$D$429:$D$458,"Upstream",Input!I$429:I$458)*I$7 -> -318.8792648 | J17: =-J$14237+SUMIF(Input!$D$429:$D$458,"Upstream",Input!J$429:J$458)*J$7 -> -1273.195539 | K17: =-K$14237+SUMIF(Input!$D$429:$D$458,"Upstream",Input!K$429:K$458)*K$7 -> -2046.559935 | L17: =-L$14237+SUMIF(Input!$D$429:$D$458,"Upstream",Input!L$429:L$458)*L$7 -> -2677.668271 | M17: =-M$14237+SUMIF(Input!$D$429:$D$458,"Upstream",Input!M$429:M$458)*M$7 -> -3093.303448 | N17: =-N$14237+SUMIF(Input!$D$429:$D$458,"Upstream",Input!N$429:N$458)*N$7 -> -3390.654054 | O17: =-O$14237+SUMIF(Input!$D$429:$D$458,"Upstream",Input!O$429:O$458)*O$7 -> -3497.34777 | P17: =-P$14237+SUMIF(Input!$D$429:$D$458,"Upstream",Input!P$429:P$458)*P$7 -> -3543.60504 | Q17: =-Q$14237+SUMIF(Input!$D$429:$D$458,"Upstream",Input!Q$429:Q$458)*Q$7 -> -3587.933854 | R17: =-R$14237+SUMIF(Input!$D$429:$D$458,"Upstream",Input!R$429:R$458)*R$7 -> -3627.350232
A18: Net | B18: $0,000s | G18: =SUM(H18:R18) -> 0 | H18: =SUM(H16:H17) -> 0 | I18: =SUM(I16:I17) -> 0 | J18: =SUM(J16:J17) -> 0 | K18: 0 | L18: 0 | M18: 0 | N18: 0 | O18: 0 | P18: 0 | Q18: 0 | R18: 0
A20: Distribution Revenue | B20: $0,000s | G20: =SUM(H20:R20) -> 58534.55127 | H20: =H15096 -> 0 | I20: 589.3574572 | J20: 3049.735184 | K20: 4620.571579 | L20: 5818.265115 | M20: 6645.722079 | N20: 7189.662155 | O20: 7454.57377 | P20: 7593.705961 | Q20: 7726.727811 | R20: =R15096 -> 7846.230162
A21: Distribution O&M | B21: $0,000s | G21: =SUM(H21:R21) -> -18360.28282 | H21: =SUMIF(Input!$D$429:$D$458,"Delivery",Input!H$429:H$458)*H$7 -> 0 | I21: =SUMIF(Input!$D$429:$D$458,"Delivery",Input!I$429:I$458)*I$7 -> -555.3495733 | J21: =SUMIF(Input!$D$429:$D$458,"Delivery",Input!J$429:J$458)*J$7 -> -1442.886221 | K21: =SUMIF(Input!$D$429:$D$458,"Delivery",Input!K$429:K$458)*K$7 -> -1715.428071 | L21: =SUMIF(Input!$D$429:$D$458,"Delivery",Input!L$429:L$458)*L$7 -> -1813.254908 | M21: =SUMIF(Input!$D$429:$D$458,"Delivery",Input!M$429:M$458)*M$7 -> -1894.890929 | N21: =SUMIF(Input!$D$429:$D$458,"Delivery",Input!N$429:N$458)*N$7 -> -2067.255337 | O21: =SUMIF(Input!$D$429:$D$458,"Delivery",Input!O$429:O$458)*O$7 -> -2103.156458 | P21: =SUMIF(Input!$D$429:$D$458,"Delivery",Input!P$429:P$458)*P$7 -> -2136.736822 | Q21: =SUMIF(Input!$D$429:$D$458,"Delivery",Input!Q$429:Q$458)*Q$7 -> -2170.608205 | R21: =SUMIF(Input!$D$429:$D$458,"Delivery",Input!R$429:R$458)*R$7 -> -2460.716292
A22: Property Taxes | B22: $0,000s | G22: =SUM(H22:R22) -> -5613.865073 | H22: =H13959 -> 0 | I22: -331.2186812 | J22: -490.1762393 | K22: -546.7012192 | L22: -565.324383 | M22: -581.5868961 | N22: -590.0554385 | O22: -623.7409517 | P22: -626.2768862 | Q22: -628.7596173 | R22: -630.0247608
A23: EBITDA | B23: $0,000s | G23: =SUM(H23:R23) -> 34560.40338 | H23: =SUM(H18,H20:H22) -> 0 | I23: -297.2107973 | J23: 1116.672723 | K23: 2358.442288 | L23: 3439.685824 | M23: 4169.244254 | N23: 4532.35138 | O23: 4727.67636 | P23: 4830.692253 | Q23: 4927.359989 | R23: 4755.489109
A25: Depreciation | B25: $0,000s | G25: =SUM(H25:R25) -> -16818.79012 | H25: =H12062 -> 0 | I25: -691.5907519 | J25: -1326.520276 | K25: -1709.410185 | L25: -1778.364476 | M25: -1826.157349 | N25: -1860.667851 | O25: -1878.267312 | P25: -1888.233857 | Q25: -1925.378153 | R25: -1934.199903
A26: Increase in IDC | B26: $0,000s | G26: =SUM(H26:R26) -> 965.9747961 | H26: =H10426 -> 0 | I26: 650.5156319 | J26: 180.1327785 | K26: 45.19014708 | L26: 26.76904116 | M26: 23.55803753 | N26: 13.02948026 | O26: 6.16786305 | P26: 5.14231567 | Q26: 12.53068862 | R26: 2.938812267
A27: EBIT | G27: =SUM(H27:R27) -> 18707.58806 | H27: =SUM(H23,H25:H26) -> 0 | I27: =SUM(I23,I25:I26) -> -338.2859173 | J27: -29.71477419 | K27: 694.2222503 | L27: 1688.090389 | M27: 2366.644942 | N27: 2684.713009 | O27: 2855.576912 | P27: 2947.600711 | Q27: 3014.512524 | R27: 2824.228017
A29: Interest | B29: $0,000s | G29: =SUM(H29:R29) -> -12641.64343 | H29: =-H13982 -> 0 | I29: =-I13982 -> -563.5146945 | J29: =-J13982 -> -1248.344882 | K29: -1385.830044 | L29: -1403.209042 | M29: -1401.933455 | N29: -1388.911259 | O29: -1361.176634 | P29: -1326.798334 | Q29: -1296.847612 | R29: -1265.077475
A30: Cash Tax | B30: $0,000s | G30: =SUM(H30:R30) -> 0 | H30: =H14267 -> 0 | I30: 0 | J30: 0 | K30: 0 | L30: 0 | M30: 0 | N30: 0 | O30: 0 | P30: 0 | Q30: 0 | R30: 0
A31: Net Income | B31: $0,000s | G31: =SUM(H31:R31) -> 6065.944631 | H31: =SUM(H27,H29:H30) -> 0 | I31: =SUM(I27,I29:I30) -> -901.8006118 | J31: -1278.059656 | K31: -691.6077936 | L31: 284.8813472 | M31: 964.7114866 | N31: 1295.80175 | O31: 1494.400277 | P31: 1620.802377 | Q31: 1717.664912 | R31: 1559.150542
A33: Balance Sheet
A35: Assets
A36: Cash | B36: $0,000s | H36: =H80 -> 0 | I36: =H36+I80 -> 0 | J36: 2.910383046e-11 | K36: 1.455191523e-11 | L36: 2.50111043e-12 | M36: 2.50111043e-12 | N36: -1.341504685e-11 | O36: 7.048583939e-12 | P36: 1.750777301e-11 | Q36: -1.29602995e-11 | R36: 1.38697942e-11
A37: NWC | B37: $0,000s | H37: =H13970 -> 0 | I37: 180.8171279 | J37: 300.121572 | K37: 346.1818118 | L37: 412.2553225 | M37: 423.2118685 | N37: 483.982856 | O37: 449.6539209 | P37: 496.3388914 | Q37: 461.7563601 | R37: 545.9573326
A38: CWIP & IDC | B38: $0,000s | H38: =H10834 -> 0 | I38: 0 | J38: 0 | K38: 0 | L38: 0 | M38: 0 | N38: 0 | O38: 0 | P38: 0 | Q38: 0 | R38: 0
A39: PP&E | B39: $0,000s | H39: =H2631+H3449 -> 0 | I39: =I2631+I3449 -> 57313.20011 | J39: =J2631+J3449 -> 80778.90796 | K39: 81547.53155 | L39: 80996.59873 | M39: 80179.87919 | N39: 78613.86928 | O39: 76564.42723 | P39: 74435.3946 | Q39: 72770.81159 | R39: 70446.21788
A40: Sum | B40: $0,000s | H40: =SUM(H36:H39) -> 0 | I40: 57494.01724 | J40: 81079.02953 | K40: 81893.71336 | L40: 81408.85406 | M40: 80603.09106 | N40: 79097.85213 | O40: 77014.08115 | P40: 74931.73349 | Q40: 73232.56795 | R40: 70992.17522
A42: Regulatory Assets
A43: Deferred Revenue | B43: $0,000s | H43: =H13297 -> 0 | I43: 61.4633637 | J43: 477.1610083 | K43: 825.5711225 | L43: 1033.648905 | M43: 1136.78884 | N43: 1126.230758 | O43: 1079.355099 | P43: 1032.853054 | Q43: 986.8378888 | R43: 939.8456084
A44: Sum | B44: $0,000s | H44: =SUM(H43) -> 0 | I44: =SUM(I43) -> 61.4633637 | J44: 477.1610083 | K44: 825.5711225 | L44: 1033.648905 | M44: 1136.78884 | N44: 1126.230758 | O44: 1079.355099 | P44: 1032.853054 | Q44: 986.8378888 | R44: 939.8456084
A46: Liabilities
A47: Contribution from External Fund | B47: $0,000s | H47: =-H7562-H8380 -> 0 | I47: =-I7562-I8380 -> 8543.81793 | J47: 21590.65328 | K47: 21000.74459 | L47: 20410.8359 | M47: 19820.9272 | N47: 19231.01851 | O47: 18641.10982 | P47: 18051.20113 | Q47: 17461.29244 | R47: 16871.38375
A48: ST Operating Debt | B48: $0,000s | H48: =H$13971*H$13338 -> 0 | I48: =I$13971*I$13338 -> 1958.007972 | J48: =J$13971*J$13338 -> 2379.53505 | K48: 2435.718751 | L48: 2439.920726 | M48: 2431.286554 | N48: 2394.673345 | O48: 2334.918853 | P48: 2275.221294 | Q48: 2230.85102 | R48: 2164.831659
A49: LT Debt | B49: $0,000s | H49: =H$13971*H$13339+H13297 -> 0 | I49: =I$13971*I$13339+I13297 -> 29431.58295 | J49: =J$13971*J$13339+J13297 -> 36170.18676 | K49: 37361.35239 | L49: 37632.4598 | M49: 37606.08716 | N49: 37046.33093 | O49: 36103.13789 | P49: 35161.17247 | Q49: 34449.6032 | R49: 33412.32049
A50: Sum | B50: $0,000s | H50: =SUM(H47:H49) -> 0 | I50: 39933.40885 | J50: 60140.37509 | K50: 60797.81572 | L50: 60483.21642 | M50: 59858.30091 | N50: 58672.02279 | O50: 57079.16657 | P50: 55487.59489 | Q50: 54141.74666 | R50: 52448.5359
A52: Equity
A53: Retained Earnings | B53: $0,000s | G53: 0 | H53: =G53+H31+H77 -> 0 | I53: -901.8006118 | J53: -2179.860268 | K53: -2871.468061 | L53: -2586.586714 | M53: -1621.875228 | N53: -326.0734774 | O53: 1168.3268 | P53: 2789.129176 | Q53: 4506.794088 | R53: 6065.944631
A54: Share Capital | B54: $0,000s | H54: =H$13340*H$13971-H53 -> 0 | I54: 18523.87236 | J54: 23595.67572 | K54: 24792.93682 | L54: 24545.87325 | M54: 23503.45422 | N54: 21878.13358 | O54: 19845.94288 | P54: 17687.86247 | Q54: 15570.8651 | R54: 13417.5403
A55: Sum | B55: $0,000s | H55: =SUM(H53:H54) -> 0 | I55: =SUM(I53:I54) -> 17622.07175 | J55: 21415.81545 | K55: 21921.46876 | L55: 21959.28654 | M55: 21881.57899 | N55: 21552.0601 | O55: 21014.26968 | P55: 20476.99165 | Q55: 20077.65918 | R55: 19483.48493
A57: Check | B57: $0,000s | H57: =ABS(H40+H44-H50-H55) -> 0 | I57: =ABS(I40+I44-I50-I55) -> 2.182787284e-11 | J57: 2.182787284e-11 | K57: 1.455191523e-11 | L57: 1.455191523e-11 | M57: 2.910383046e-11 | N57: 1.818989404e-11 | O57: 1.091393642e-11 | P57: 1.455191523e-11 | Q57: 1.455191523e-11 | R57: 3.637978807e-12
A59: Statement of Cash Flows
A61: Cash from Operations
A62: Net Income | B62: $0,000s | G62: =SUM(H62:R62) -> 6065.944631 | H62: =H31 -> 0 | I62: -901.8006118 | J62: -1278.059656 | K62: -691.6077936 | L62: 284.8813472 | M62: 964.7114866 | N62: 1295.80175 | O62: 1494.400277 | P62: 1620.802377 | Q62: 1717.664912 | R62: 1559.150542
A63: add: Depreciation | B63: $0,000s | G63: 16818.79012 | H63: =-H25 -> 0 | I63: 691.5907519 | J63: 1326.520276 | K63: 1709.410185 | L63: 1778.364476 | M63: 1826.157349 | N63: 1860.667851 | O63: 1878.267312 | P63: 1888.233857 | Q63: 1925.378153 | R63: 1934.199903
A64: less: increase in NWC | B64: $0,000s | G64: -545.9573326 | H64: =-H37 -> 0 | I64: =-(I37-H37) -> -180.8171279 | J64: -119.3044441 | K64: -46.06023984 | L64: -66.07351061 | M64: -10.95654609 | N64: -60.77098742 | O64: 34.32893502 | P64: -46.68497041 | Q64: 34.58253123 | R64: -84.20097251
A65: less: increase in IDC | B65: $0,000s | G65: -965.9747961 | H65: =-H10426 -> 0 | I65: -650.5156319 | J65: -180.1327785 | K65: -45.19014708 | L65: -26.76904116 | M65: -23.55803753 | N65: -13.02948026 | O65: -6.16786305 | P65: -5.14231567 | Q65: -12.53068862 | R65: -2.938812267
A66: less: increase in Deferred Revenue | B66: $0,000s | G66: -939.8456084 | H66: =G43-H43 -> 0 | I66: -61.4633637 | J66: -415.6976446 | K66: -348.4101142 | L66: -208.0777826 | M66: -103.1399347 | N66: 10.55808166 | O66: 46.87565922 | P66: 46.50204533 | Q66: 46.01516472 | R66: 46.99228042
A67: Cash from Operations | B67: $0,000s | G67: 20432.95701 | H67: =SUM(H62:H66) -> 0 | I67: =SUM(I62:I66) -> -1103.005983 | J67: -666.6742474 | K67: 578.1418901 | L67: 1762.325489 | M67: 2653.214318 | N67: 3093.227215 | O67: 3447.70432 | P67: 3503.710993 | Q67: 3711.110073 | R67: 3453.202942
A69: Cash from Investing
A70: CapEx | B70: $0,000s | G70: =SUM(H70:R70) -> -91427.64945 | H70: =-H$589 -> 0 | I70: =-I$589 -> -57345.6927 | J70: =-J$589 -> -25030.02461 | K70: -3022.752313 | L70: -1790.571315 | M70: -1575.788464 | N70: -871.5371414 | O70: -412.5660903 | P70: -343.9676033 | Q70: -838.1731518 | R70: -196.5760714
A71: External Funding | B71: $0,000s | G71: =SUM(H71:R71) -> 22000 | H71: =-H$5520 -> 0 | I71: =-I$5520 -> 8535.235392 | J71: =-J$5520 -> 13464.76461 | K71: 0 | L71: 0 | M71: 0 | N71: 0 | O71: 0 | P71: 0 | Q71: 0 | R71: 0
A72: Cash from Investing | B72: $0,000s | G72: =SUM(H72:R72) -> -69427.64945 | H72: =SUM(H70:H71) -> 0 | I72: =SUM(I70:I71) -> -48810.4573 | J72: =SUM(J70:J71) -> -11565.26 | K72: -3022.752313 | L72: -1790.571315 | M72: -1575.788464 | N72: -871.5371414 | O72: -412.5660903 | P72: -343.9676033 | Q72: -838.1731518 | R72: -196.5760714
A74: Cash from Financing
A75: Net Borrowing | B75: $0,000s | G75: =SUM(H75:R75) -> 35577.15215 | H75: =H48-G48+H49-G49 -> 0 | I75: =I48-H48+I49-H49 -> 31389.59092 | J75: =J48-I48+J49-I49 -> 7160.130889 | K75: 1247.349324 | L75: 275.3093923 | M75: -35.0068188 | N75: -596.3694363 | O75: -1002.947527 | P75: -1001.662985 | Q75: -755.9395449 | R75: -1103.302071
A76: Net Equity Injection | B76: $0,000s | G76: =SUM(H76:R76) -> 13417.5403 | H76: =H54-G54 -> 0 | I76: =I54-H54 -> 18523.87236 | J76: =J54-I54 -> 5071.803356 | K76: 1197.261099 | L76: -247.0635667 | M76: -1042.419035 | N76: -1625.320637 | O76: -2032.190703 | P76: -2158.080405 | Q76: -2116.997376 | R76: -2153.324799
A77: Dividends | B77: $0,000s | G77: =SUM(H77:R77) -> 0 | H77: 0 | I77: 0 | J77: 0 | K77: 0 | L77: 0 | M77: 0 | N77: 0 | O77: 0 | P77: 0 | Q77: 0 | R77: 0
A78: Cash from Financing | B78: $0,000s | G78: =SUM(H78:R78) -> 48994.69244 | H78: =SUM(H75:H77) -> 0 | I78: 49913.46329 | J78: 12231.93425 | K78: 2444.610423 | L78: 28.24582555 | M78: -1077.425854 | N78: -2221.690074 | O78: -3035.13823 | P78: -3159.74339 | Q78: -2872.936921 | R78: -3256.62687
A80: Net Change in Cash | B80: $0,000s | G80: =SUM(H80:R80) -> 1.38697942e-11 | H80: =H67+H72+H78 -> 0 | I80: 0 | J80: 2.910383046e-11 | K80: -1.455191523e-11 | L80: -1.20508048e-11 | M80: 0 | N80: -1.591615728e-11 | O80: 2.046363079e-11 | P80: 1.045918907e-11 | Q80: -3.046807251e-11 | R80: 2.68300937e-11
A82: Check | B82: $0,000s | H82: =ABS(H36-G36-H80) -> 0 | I82: 0 | J82: 0 | K82: 0 | L82: 0 | M82: 0 | N82: 0 | O82: 0 | P82: 0 | Q82: 0 | R82: 0
A84: Operational Forecast
A86: Volume Forecast by Tiers and Customer Type
A88: Tier 1
A89: Customer Type | C89: Rate Class
A90: =Input!C531 -> Existing Residential | B90: m3 | C90: =Input!D$531 -> Rate 1 - General Firm Service | G90: =SUM(H90:R90) -> 33928092.47 | I90: =Input!I605*Input!I550 -> 431066.5607 | J90: =Input!J605*Input!J550 -> 1581078.047 | K90: =Input!K605*Input!K550 -> 2770641.518 | L90: =Input!L605*Input!L550 -> 3494092.366 | M90: =Input!M605*Input!M550 -> 3964210.253 | N90: =Input!N605*Input!N550 -> 4268109.675 | O90: =Input!O605*Input!O550 -> 4354723.513 | P90: =Input!P605*Input!P550 -> 4354723.513 | Q90: =Input!Q605*Input!Q550 -> 4354723.513 | R90: =Input!R605*Input!R550 -> 4354723.513
A91: =Input!C532 -> New Residential | B91: m3 | C91: =Input!D$532 -> Rate 1 - General Firm Service | G91: 2608454.906 | I91: =Input!I633*Input!I551 -> 22841.9809 | J91: =Input!J633*Input!J551 -> 73988.15553 | K91: =Input!K633*Input!K551 -> 130099.9782 | L91: =Input!L633*Input!L551 -> 185715.236 | M91: =Input!M633*Input!M551 -> 241330.4939 | N91: =Input!N633*Input!N551 -> 297442.3165 | O91: =Input!O633*Input!O551 -> 353554.1392 | P91: =Input!P633*Input!P551 -> 401224.3602 | Q91: =Input!Q633*Input!Q551 -> 439956.4147 | R91: =Input!R633*Input!R551 -> 462301.8308
A92: =Input!C533 -> Small Commercial | B92: m3 | C92: =Input!D$533 -> Rate 1 - General Firm Service | G92: 3187733.91 | I92: =Input!I661*Input!I552 -> 32949.70214 | J92: =Input!J661*Input!J552 -> 119218.0132 | K92: =Input!K661*Input!K552 -> 215071.6921 | L92: =Input!L661*Input!L552 -> 301340.0032 | M92: =Input!M661*Input!M552 -> 378022.9463 | N92: =Input!N661*Input!N552 -> 420558.0164 | O92: =Input!O661*Input!O552 -> 430143.3843 | P92: =Input!P661*Input!P552 -> 430143.3843 | Q92: =Input!Q661*Input!Q552 -> 430143.3843 | R92: =Input!R661*Input!R552 -> 430143.3843
A93: =Input!C534 -> Small Agricultural | B93: m3 | C93: =Input!D$534 -> Rate 1 - General Firm Service | G93: 14384.82947 | I93: =Input!I689*Input!I553 -> 0 | J93: =Input!J689*Input!J553 -> 0 | K93: =Input!K689*Input!K553 -> 0 | L93: =Input!L689*Input!L553 -> 599.3678945 | M93: =Input!M689*Input!M553 -> 1798.103683 | N93: =Input!N689*Input!N553 -> 2397.471578 | O93: =Input!O689*Input!O553 -> 2397.471578 | P93: =Input!P689*Input!P553 -> 2397.471578 | Q93: =Input!Q689*Input!Q553 -> 2397.471578 | R93: =Input!R689*Input!R553 -> 2397.471578
A94: =Input!C535 -> Medium Commercial | B94: m3 | C94: =Input!D$535 -> Rate 6 - Large Volume General Firm Service | G94: 5077992.134 | I94: =Input!I717*Input!I554 -> 49157.71669 | J94: =Input!J717*Input!J554 -> 181883.5518 | K94: =Input!K717*Input!K554 -> 344104.0168 | L94: =Input!L717*Input!L554 -> 501408.7102 | M94: =Input!M717*Input!M554 -> 619387.2303 | N94: =Input!N717*Input!N554 -> 668544.947 | O94: =Input!O717*Input!O554 -> 678376.4903 | P94: =Input!P717*Input!P554 -> 678376.4903 | Q94: =Input!Q717*Input!Q554 -> 678376.4903 | R94: =Input!R717*Input!R554 -> 678376.4903
A95: =Input!C536 -> Large Commercial | B95: m3 | C95: =Input!D$536 -> Rate 6 - Large Volume General Firm Service | G95: 1657718.655 | I95: =Input!I745*Input!I555 -> 17572.98928 | J95: =Input!J745*Input!J555 -> 58576.63094 | K95: =Input!K745*Input!K555 -> 117153.2619 | L95: =Input!L745*Input!L555 -> 169872.2297 | M95: =Input!M745*Input!M555 -> 193302.8821 | N95: =Input!N745*Input!N555 -> 210875.8714 | O95: =Input!O745*Input!O555 -> 222591.1976 | P95: =Input!P745*Input!P555 -> 222591.1976 | Q95: =Input!Q745*Input!Q555 -> 222591.1976 | R95: =Input!R745*Input!R555 -> 222591.1976
A96: =Input!C537 -> Farm 1 | B96: m3 | C96: =Input!D$537 -> Rate 6 - Large Volume General Firm Service | G96: 78511.86691 | I96: =Input!I773*Input!I556 -> 0 | J96: =Input!J773*Input!J556 -> 4618.345112 | K96: =Input!K773*Input!K556 -> 9236.690224 | L96: =Input!L773*Input!L556 -> 9236.690224 | M96: =Input!M773*Input!M556 -> 9236.690224 | N96: =Input!N773*Input!N556 -> 9236.690224 | O96: =Input!O773*Input!O556 -> 9236.690224 | P96: =Input!P773*Input!P556 -> 9236.690224 | Q96: =Input!Q773*Input!Q556 -> 9236.690224 | R96: =Input!R773*Input!R556 -> 9236.690224
A97: =Input!C538 -> Farm 2 | B97: m3 | C97: =Input!D$538 -> Rate 6 - Large Volume General Firm Service | G97: 78000 | I97: =Input!I801*Input!I557 -> 0 | J97: =Input!J801*Input!J557 -> 0 | K97: =Input!K801*Input!K557 -> 0 | L97: =Input!L801*Input!L557 -> 6000 | M97: =Input!M801*Input!M557 -> 12000 | N97: =Input!N801*Input!N557 -> 12000 | O97: =Input!O801*Input!O557 -> 12000 | P97: =Input!P801*Input!P557 -> 12000 | Q97: =Input!Q801*Input!Q557 -> 12000 | R97: =Input!R801*Input!R557 -> 12000
A98: =Input!C539 -> Farm 3 | B98: m3 | C98: =Input!D$539 -> Rate 6 - Large Volume General Firm Service | G98: 87728.22962 | I98: =Input!I829*Input!I558 -> 0 | J98: =Input!J829*Input!J558 -> 0 | K98: =Input!K829*Input!K558 -> 5848.548641 | L98: =Input!L829*Input!L558 -> 11697.09728 | M98: =Input!M829*Input!M558 -> 11697.09728 | N98: =Input!N829*Input!N558 -> 11697.09728 | O98: =Input!O829*Input!O558 -> 11697.09728 | P98: =Input!P829*Input!P558 -> 11697.09728 | Q98: =Input!Q829*Input!Q558 -> 11697.09728 | R98: =Input!R829*Input!R558 -> 11697.09728
A99: =Input!C540 -> Dryer 1 | B99: m3 | C99: =Input!D$540 -> Rate 11 - Large Volume Seasonal Service | G99: 0 | I99: =Input!I857*Input!I559 -> 0 | J99: =Input!J857*Input!J559 -> 0 | K99: =Input!K857*Input!K559 -> 0 | L99: =Input!L857*Input!L559 -> 0 | M99: =Input!M857*Input!M559 -> 0 | N99: =Input!N857*Input!N559 -> 0 | O99: =Input!O857*Input!O559 -> 0 | P99: =Input!P857*Input!P559 -> 0 | Q99: =Input!Q857*Input!Q559 -> 0 | R99: =Input!R857*Input!R559 -> 0
A100: =Input!C541 -> Dryer 2 | B100: m3 | C100: =Input!D$541 -> Rate 11 - Large Volume Seasonal Service | G100: 0 | I100: =Input!I885*Input!I560 -> 0 | J100: =Input!J885*Input!J560 -> 0 | K100: =Input!K885*Input!K560 -> 0 | L100: =Input!L885*Input!L560 -> 0 | M100: =Input!M885*Input!M560 -> 0 | N100: =Input!N885*Input!N560 -> 0 | O100: =Input!O885*Input!O560 -> 0 | P100: =Input!P885*Input!P560 -> 0 | Q100: =Input!Q885*Input!Q560 -> 0 | R100: =Input!R885*Input!R560 -> 0
A101: =Input!C542 -> Dryer 3 | B101: m3 | C101: =Input!D$542 -> Rate 11 - Large Volume Seasonal Service | G101: 0 | I101: =Input!I913*Input!I561 -> 0 | J101: =Input!J913*Input!J561 -> 0 | K101: =Input!K913*Input!K561 -> 0 | L101: =Input!L913*Input!L561 -> 0 | M101: =Input!M913*Input!M561 -> 0 | N101: =Input!N913*Input!N561 -> 0 | O101: =Input!O913*Input!O561 -> 0 | P101: =Input!P913*Input!P561 -> 0 | Q101: =Input!Q913*Input!Q561 -> 0 | R101: =Input!R913*Input!R561 -> 0
A102: =Input!C543 -> Dryer 4 | B102: m3 | C102: =Input!D$543 -> Rate 11 - Large Volume Seasonal Service | G102: 0 | I102: =Input!I941*Input!I562 -> 0 | J102: =Input!J941*Input!J562 -> 0 | K102: =Input!K941*Input!K562 -> 0 | L102: =Input!L941*Input!L562 -> 0 | M102: =Input!M941*Input!M562 -> 0 | N102: =Input!N941*Input!N562 -> 0 | O102: =Input!O941*Input!O562 -> 0 | P102: =Input!P941*Input!P562 -> 0 | Q102: =Input!Q941*Input!Q562 -> 0 | R102: =Input!R941*Input!R562 -> 0
A103: =Input!C544 -> Dryer 5 | B103: m3 | C103: =Input!D$544 -> Rate 11 - Large Volume Seasonal Service | G103: 0 | I103: =Input!I969*Input!I563 -> 0 | J103: =Input!J969*Input!J563 -> 0 | K103: =Input!K969*Input!K563 -> 0 | L103: =Input!L969*Input!L563 -> 0 | M103: =Input!M969*Input!M563 -> 0 | N103: =Input!N969*Input!N563 -> 0 | O103: =Input!O969*Input!O563 -> 0 | P103: =Input!P969*Input!P563 -> 0 | Q103: =Input!Q969*Input!Q563 -> 0 | R103: =Input!R969*Input!R563 -> 0
A104: =Input!C545 -> Industrial 1 | B104: m3 | C104: =Input!D$545 -> Rate 16 - Contracted Firm Service | G104: 0 | I104: =Input!I997*Input!I564 -> 0 | J104: =Input!J997*Input!J564 -> 0 | K104: =Input!K997*Input!K564 -> 0 | L104: =Input!L997*Input!L564 -> 0 | M104: =Input!M997*Input!M564 -> 0 | N104: =Input!N997*Input!N564 -> 0 | O104: =Input!O997*Input!O564 -> 0 | P104: =Input!P997*Input!P564 -> 0 | Q104: =Input!Q997*Input!Q564 -> 0 | R104: =Input!R997*Input!R564 -> 0
A105: =Input!C546 -> Industrial 2 | B105: m3 | C105: =Input!D$546 -> Rate 16 - Contracted Firm Service | G105: 0 | I105: =Input!I1025*Input!I565 -> 0 | J105: =Input!J1025*Input!J565 -> 0 | K105: =Input!K1025*Input!K565 -> 0 | L105: =Input!L1025*Input!L565 -> 0 | M105: =Input!M1025*Input!M565 -> 0 | N105: =Input!N1025*Input!N565 -> 0 | O105: =Input!O1025*Input!O565 -> 0 | P105: =Input!P1025*Input!P565 -> 0 | Q105: =Input!Q1025*Input!Q565 -> 0 | R105: =Input!R1025*Input!R565 -> 0
A107: Tier 2
A108: Customer Type | C108: Rate Class
A109: =Input!C531 -> Existing Residential | B109: m3 | C109: =Input!D$531 -> Rate 1 - General Firm Service | G109: =SUM(H109:R109) -> 38887549.03 | I109: =Input!I606*Input!I550 -> 494077.9393 | J109: =Input!J606*Input!J550 -> 1812192.953 | K109: =Input!K606*Input!K550 -> 3175641.482 | L109: =Input!L606*Input!L550 -> 4004843.134 | M109: =Input!M606*Input!M550 -> 4543680.747 | N109: =Input!N606*Input!N550 -> 4892002.825 | O109: =Input!O606*Input!O550 -> 4991277.487 | P109: =Input!P606*Input!P550 -> 4991277.487 | Q109: =Input!Q606*Input!Q550 -> 4991277.487 | R109: =Input!R606*Input!R550 -> 4991277.487
A110: =Input!C532 -> New Residential | B110: m3 | C110: =Input!D$532 -> Rate 1 - General Firm Service | G110: 2817894.094 | I110: =Input!I634*Input!I551 -> 24676.0191 | J110: =Input!J634*Input!J551 -> 79928.84447 | K110: =Input!K634*Input!K551 -> 140546.0218 | L110: =Input!L634*Input!L551 -> 200626.764 | M110: =Input!M634*Input!M551 -> 260707.5061 | N110: =Input!N634*Input!N551 -> 321324.6835 | O110: =Input!O634*Input!O551 -> 381941.8608 | P110: =Input!P634*Input!P551 -> 433439.6398 | Q110: =Input!Q634*Input!Q551 -> 475281.5853 | R110: =Input!R634*Input!R551 -> 499421.1692
A111: =Input!C533 -> Small Commercial | B111: m3 | C111: =Input!D$533 -> Rate 1 - General Firm Service | G111: 6584748.389 | I111: =Input!I662*Input!I552 -> 68062.61255 | J111: =Input!J662*Input!J552 -> 246262.9072 | K111: =Input!K662*Input!K552 -> 444263.2347 | L111: =Input!L662*Input!L552 -> 622463.5293 | M111: =Input!M662*Input!M552 -> 780863.7913 | N111: =Input!N662*Input!N552 -> 868726.4366 | O111: =Input!O662*Input!O552 -> 888526.4693 | P111: =Input!P662*Input!P552 -> 888526.4693 | Q111: =Input!Q662*Input!Q552 -> 888526.4693 | R111: =Input!R662*Input!R552 -> 888526.4693
A112: =Input!C534 -> Small Agricultural | B112: m3 | C112: =Input!D$534 -> Rate 1 - General Firm Service | G112: 29808.78581 | I112: =Input!I690*Input!I553 -> 0 | J112: =Input!J690*Input!J553 -> 0 | K112: =Input!K690*Input!K553 -> 0 | L112: =Input!L690*Input!L553 -> 1242.032742 | M112: =Input!M690*Input!M553 -> 3726.098226 | N112: =Input!N690*Input!N553 -> 4968.130969 | O112: =Input!O690*Input!O553 -> 4968.130969 | P112: =Input!P690*Input!P553 -> 4968.130969 | Q112: =Input!Q690*Input!Q553 -> 4968.130969 | R112: =Input!R690*Input!R553 -> 4968.130969
A113: =Input!C535 -> Medium Commercial | B113: m3 | C113: =Input!D$535 -> Rate 6 - Large Volume General Firm Service | G113: 8832902.366 | I113: =Input!I718*Input!I554 -> 85507.28331 | J113: =Input!J718*Input!J554 -> 316376.9482 | K113: =Input!K718*Input!K554 -> 598550.9832 | L113: =Input!L718*Input!L554 -> 872174.2898 | M113: =Input!M718*Input!M554 -> 1077391.77 | N113: =Input!N718*Input!N554 -> 1162899.053 | O113: =Input!O718*Input!O554 -> 1180000.51 | P113: =Input!P718*Input!P554 -> 1180000.51 | Q113: =Input!Q718*Input!Q554 -> 1180000.51 | R113: =Input!R718*Input!R554 -> 1180000.51
A114: =Input!C536 -> Large Commercial | B114: m3 | C114: =Input!D$536 -> Rate 6 - Large Volume General Firm Service | G114: 5772169.656 | I114: =Input!I746*Input!I555 -> 61189.07763 | J114: =Input!J746*Input!J555 -> 203963.5921 | K114: =Input!K746*Input!K555 -> 407927.1842 | L114: =Input!L746*Input!L555 -> 591494.4171 | M114: =Input!M746*Input!M555 -> 673079.8539 | N114: =Input!N746*Input!N555 -> 734268.9315 | O114: =Input!O746*Input!O555 -> 775061.65 | P114: =Input!P746*Input!P555 -> 775061.65 | Q114: =Input!Q746*Input!Q555 -> 775061.65 | R114: =Input!R746*Input!R555 -> 775061.65
A115: =Input!C537 -> Farm 1 | B115: m3 | C115: =Input!D$537 -> Rate 6 - Large Volume General Firm Service | G115: 101226.8057 | I115: =Input!I774*Input!I556 -> 0 | J115: =Input!J774*Input!J556 -> 5954.517985 | K115: =Input!K774*Input!K556 -> 11909.03597 | L115: =Input!L774*Input!L556 -> 11909.03597 | M115: =Input!M774*Input!M556 -> 11909.03597 | N115: =Input!N774*Input!N556 -> 11909.03597 | O115: =Input!O774*Input!O556 -> 11909.03597 | P115: =Input!P774*Input!P556 -> 11909.03597 | Q115: =Input!Q774*Input!Q556 -> 11909.03597 | R115: =Input!R774*Input!R556 -> 11909.03597
A116: =Input!C538 -> Farm 2 | B116: m3 | C116: =Input!D$538 -> Rate 6 - Large Volume General Firm Service | G116: 357225.5785 | I116: =Input!I802*Input!I557 -> 0 | J116: =Input!J802*Input!J557 -> 0 | K116: =Input!K802*Input!K557 -> 0 | L116: =Input!L802*Input!L557 -> 27478.89065 | M116: =Input!M802*Input!M557 -> 54957.78131 | N116: =Input!N802*Input!N557 -> 54957.78131 | O116: =Input!O802*Input!O557 -> 54957.78131 | P116: =Input!P802*Input!P557 -> 54957.78131 | Q116: =Input!Q802*Input!Q557 -> 54957.78131 | R116: =Input!R802*Input!R557 -> 54957.78131
A117: =Input!C539 -> Farm 3 | B117: m3 | C117: =Input!D$539 -> Rate 6 - Large Volume General Firm Service | G117: 302735.8783 | I117: =Input!I830*Input!I558 -> 0 | J117: =Input!J830*Input!J558 -> 0 | K117: =Input!K830*Input!K558 -> 20182.39188 | L117: =Input!L830*Input!L558 -> 40364.78377 | M117: =Input!M830*Input!M558 -> 40364.78377 | N117: =Input!N830*Input!N558 -> 40364.78377 | O117: =Input!O830*Input!O558 -> 40364.78377 | P117: =Input!P830*Input!P558 -> 40364.78377 | Q117: =Input!Q830*Input!Q558 -> 40364.78377 | R117: =Input!R830*Input!R558 -> 40364.78377
A118: =Input!C540 -> Dryer 1 | B118: m3 | C118: =Input!D$540 -> Rate 11 - Large Volume Seasonal Service | G118: 0 | I118: =Input!I858*Input!I559 -> 0 | J118: =Input!J858*Input!J559 -> 0 | K118: =Input!K858*Input!K559 -> 0 | L118: =Input!L858*Input!L559 -> 0 | M118: =Input!M858*Input!M559 -> 0 | N118: =Input!N858*Input!N559 -> 0 | O118: =Input!O858*Input!O559 -> 0 | P118: =Input!P858*Input!P559 -> 0 | Q118: =Input!Q858*Input!Q559 -> 0 | R118: =Input!R858*Input!R559 -> 0
A119: =Input!C541 -> Dryer 2 | B119: m3 | C119: =Input!D$541 -> Rate 11 - Large Volume Seasonal Service | G119: 0 | I119: =Input!I886*Input!I560 -> 0 | J119: =Input!J886*Input!J560 -> 0 | K119: =Input!K886*Input!K560 -> 0 | L119: =Input!L886*Input!L560 -> 0 | M119: =Input!M886*Input!M560 -> 0 | N119: =Input!N886*Input!N560 -> 0 | O119: =Input!O886*Input!O560 -> 0 | P119: =Input!P886*Input!P560 -> 0 | Q119: =Input!Q886*Input!Q560 -> 0 | R119: =Input!R886*Input!R560 -> 0
A120: =Input!C542 -> Dryer 3 | B120: m3 | C120: =Input!D$542 -> Rate 11 - Large Volume Seasonal Service | G120: 0 | I120: =Input!I914*Input!I561 -> 0 | J120: =Input!J914*Input!J561 -> 0 | K120: =Input!K914*Input!K561 -> 0 | L120: =Input!L914*Input!L561 -> 0 | M120: =Input!M914*Input!M561 -> 0 | N120: =Input!N914*Input!N561 -> 0 | O120: =Input!O914*Input!O561 -> 0 | P120: =Input!P914*Input!P561 -> 0 | Q120: =Input!Q914*Input!Q561 -> 0 | R120: =Input!R914*Input!R561 -> 0
A121: =Input!C543 -> Dryer 4 | B121: m3 | C121: =Input!D$543 -> Rate 11 - Large Volume Seasonal Service | G121: 0 | I121: =Input!I942*Input!I562 -> 0 | J121: =Input!J942*Input!J562 -> 0 | K121: =Input!K942*Input!K562 -> 0 | L121: =Input!L942*Input!L562 -> 0 | M121: =Input!M942*Input!M562 -> 0 | N121: =Input!N942*Input!N562 -> 0 | O121: =Input!O942*Input!O562 -> 0 | P121: =Input!P942*Input!P562 -> 0 | Q121: =Input!Q942*Input!Q562 -> 0 | R121: =Input!R942*Input!R562 -> 0
A122: =Input!C544 -> Dryer 5 | B122: m3 | C122: =Input!D$544 -> Rate 11 - Large Volume Seasonal Service | G122: 0 | I122: =Input!I970*Input!I563 -> 0 | J122: =Input!J970*Input!J563 -> 0 | K122: =Input!K970*Input!K563 -> 0 | L122: =Input!L970*Input!L563 -> 0 | M122: =Input!M970*Input!M563 -> 0 | N122: =Input!N970*Input!N563 -> 0 | O122: =Input!O970*Input!O563 -> 0 | P122: =Input!P970*Input!P563 -> 0 | Q122: =Input!Q970*Input!Q563 -> 0 | R122: =Input!R970*Input!R563 -> 0
A123: =Input!C545 -> Industrial 1 | B123: m3 | C123: =Input!D$545 -> Rate 16 - Contracted Firm Service | G123: 0 | I123: =Input!I998*Input!I564 -> 0 | J123: =Input!J998*Input!J564 -> 0 | K123: =Input!K998*Input!K564 -> 0 | L123: =Input!L998*Input!L564 -> 0 | M123: =Input!M998*Input!M564 -> 0 | N123: =Input!N998*Input!N564 -> 0 | O123: =Input!O998*Input!O564 -> 0 | P123: =Input!P998*Input!P564 -> 0 | Q123: =Input!Q998*Input!Q564 -> 0 | R123: =Input!R998*Input!R564 -> 0
A124: =Input!C546 -> Industrial 2 | B124: m3 | C124: =Input!D$546 -> Rate 16 - Contracted Firm Service | G124: 0 | I124: =Input!I1026*Input!I565 -> 0 | J124: =Input!J1026*Input!J565 -> 0 | K124: =Input!K1026*Input!K565 -> 0 | L124: =Input!L1026*Input!L565 -> 0 | M124: =Input!M1026*Input!M565 -> 0 | N124: =Input!N1026*Input!N565 -> 0 | O124: =Input!O1026*Input!O565 -> 0 | P124: =Input!P1026*Input!P565 -> 0 | Q124: =Input!Q1026*Input!Q565 -> 0 | R124: =Input!R1026*Input!R565 -> 0
A126: Tier 3
A127: Customer Type | C127: Rate Class
A128: =Input!C531 -> Existing Residential | B128: m3 | C128: =Input!D$531 -> Rate 1 - General Firm Service | G128: =SUM(H128:R128) -> 0 | I128: =Input!I607*Input!I550 -> 0 | J128: =Input!J607*Input!J550 -> 0 | K128: =Input!K607*Input!K550 -> 0 | L128: =Input!L607*Input!L550 -> 0 | M128: =Input!M607*Input!M550 -> 0 | N128: =Input!N607*Input!N550 -> 0 | O128: =Input!O607*Input!O550 -> 0 | P128: =Input!P607*Input!P550 -> 0 | Q128: =Input!Q607*Input!Q550 -> 0 | R128: =Input!R607*Input!R550 -> 0
A129: =Input!C532 -> New Residential | B129: m3 | C129: =Input!D$532 -> Rate 1 - General Firm Service | G129: 0 | I129: =Input!I635*Input!I551 -> 0 | J129: =Input!J635*Input!J551 -> 0 | K129: =Input!K635*Input!K551 -> 0 | L129: =Input!L635*Input!L551 -> 0 | M129: =Input!M635*Input!M551 -> 0 | N129: =Input!N635*Input!N551 -> 0 | O129: =Input!O635*Input!O551 -> 0 | P129: =Input!P635*Input!P551 -> 0 | Q129: =Input!Q635*Input!Q551 -> 0 | R129: =Input!R635*Input!R551 -> 0
A130: =Input!C533 -> Small Commercial | B130: m3 | C130: =Input!D$533 -> Rate 1 - General Firm Service | G130: 2713244.201 | I130: =Input!I663*Input!I552 -> 28045.18531 | J130: =Input!J663*Input!J552 -> 101472.5796 | K130: =Input!K663*Input!K552 -> 183058.5732 | L130: =Input!L663*Input!L552 -> 256485.9675 | M130: =Input!M663*Input!M552 -> 321754.7624 | N130: =Input!N663*Input!N552 -> 357958.5471 | O130: =Input!O663*Input!O552 -> 366117.1464 | P130: =Input!P663*Input!P552 -> 366117.1464 | Q130: =Input!Q663*Input!Q552 -> 366117.1464 | R130: =Input!R663*Input!R552 -> 366117.1464
A131: =Input!C534 -> Small Agricultural | B131: m3 | C131: =Input!D$534 -> Rate 1 - General Firm Service | G131: 12446.38472 | I131: =Input!I691*Input!I553 -> 0 | J131: =Input!J691*Input!J553 -> 0 | K131: =Input!K691*Input!K553 -> 0 | L131: =Input!L691*Input!L553 -> 518.5993633 | M131: =Input!M691*Input!M553 -> 1555.79809 | N131: =Input!N691*Input!N553 -> 2074.397453 | O131: =Input!O691*Input!O553 -> 2074.397453 | P131: =Input!P691*Input!P553 -> 2074.397453 | Q131: =Input!Q691*Input!Q553 -> 2074.397453 | R131: =Input!R691*Input!R553 -> 2074.397453
A132: =Input!C535 -> Medium Commercial | B132: m3 | C132: =Input!D$535 -> Rate 6 - Large Volume General Firm Service | G132: 0 | I132: =Input!I719*Input!I554 -> 0 | J132: =Input!J719*Input!J554 -> 0 | K132: =Input!K719*Input!K554 -> 0 | L132: =Input!L719*Input!L554 -> 0 | M132: =Input!M719*Input!M554 -> 0 | N132: =Input!N719*Input!N554 -> 0 | O132: =Input!O719*Input!O554 -> 0 | P132: =Input!P719*Input!P554 -> 0 | Q132: =Input!Q719*Input!Q554 -> 0 | R132: =Input!R719*Input!R554 -> 0
A133: =Input!C536 -> Large Commercial | B133: m3 | C133: =Input!D$536 -> Rate 6 - Large Volume General Firm Service | G133: 3279539.188 | I133: =Input!I747*Input!I555 -> 34765.43309 | J133: =Input!J747*Input!J555 -> 115884.777 | K133: =Input!K747*Input!K555 -> 231769.5539 | L133: =Input!L747*Input!L555 -> 336065.8532 | M133: =Input!M747*Input!M555 -> 382419.764 | N133: =Input!N747*Input!N555 -> 417185.1971 | O133: =Input!O747*Input!O555 -> 440362.1525 | P133: =Input!P747*Input!P555 -> 440362.1525 | Q133: =Input!Q747*Input!Q555 -> 440362.1525 | R133: =Input!R747*Input!R555 -> 440362.1525
A134: =Input!C537 -> Farm 1 | B134: m3 | C134: =Input!D$537 -> Rate 6 - Large Volume General Firm Service | G134: 0 | I134: =Input!I775*Input!I556 -> 0 | J134: =Input!J775*Input!J556 -> 0 | K134: =Input!K775*Input!K556 -> 0 | L134: =Input!L775*Input!L556 -> 0 | M134: =Input!M775*Input!M556 -> 0 | N134: =Input!N775*Input!N556 -> 0 | O134: =Input!O775*Input!O556 -> 0 | P134: =Input!P775*Input!P556 -> 0 | Q134: =Input!Q775*Input!Q556 -> 0 | R134: =Input!R775*Input!R556 -> 0
A135: =Input!C538 -> Farm 2 | B135: m3 | C135: =Input!D$538 -> Rate 6 - Large Volume General Firm Service | G135: 664352.1837 | I135: =Input!I803*Input!I557 -> 0 | J135: =Input!J803*Input!J557 -> 0 | K135: =Input!K803*Input!K557 -> 0 | L135: =Input!L803*Input!L557 -> 51104.01413 | M135: =Input!M803*Input!M557 -> 102208.0283 | N135: =Input!N803*Input!N557 -> 102208.0283 | O135: =Input!O803*Input!O557 -> 102208.0283 | P135: =Input!P803*Input!P557 -> 102208.0283 | Q135: =Input!Q803*Input!Q557 -> 102208.0283 | R135: =Input!R803*Input!R557 -> 102208.0283
A136: =Input!C539 -> Farm 3 | B136: m3 | C136: =Input!D$539 -> Rate 6 - Large Volume General Firm Service | G136: 162708.0894 | I136: =Input!I831*Input!I558 -> 0 | J136: =Input!J831*Input!J558 -> 0 | K136: =Input!K831*Input!K558 -> 10847.20596 | L136: =Input!L831*Input!L558 -> 21694.41192 | M136: =Input!M831*Input!M558 -> 21694.41192 | N136: =Input!N831*Input!N558 -> 21694.41192 | O136: =Input!O831*Input!O558 -> 21694.41192 | P136: =Input!P831*Input!P558 -> 21694.41192 | Q136: =Input!Q831*Input!Q558 -> 21694.41192 | R136: =Input!R831*Input!R558 -> 21694.41192
A137: =Input!C540 -> Dryer 1 | B137: m3 | C137: =Input!D$540 -> Rate 11 - Large Volume Seasonal Service | G137: 3214150.382 | I137: =Input!I859*Input!I559 -> 169165.8096 | J137: =Input!J859*Input!J559 -> 338331.6191 | K137: =Input!K859*Input!K559 -> 338331.6191 | L137: =Input!L859*Input!L559 -> 338331.6191 | M137: =Input!M859*Input!M559 -> 338331.6191 | N137: =Input!N859*Input!N559 -> 338331.6191 | O137: =Input!O859*Input!O559 -> 338331.6191 | P137: =Input!P859*Input!P559 -> 338331.6191 | Q137: =Input!Q859*Input!Q559 -> 338331.6191 | R137: =Input!R859*Input!R559 -> 338331.6191
A138: =Input!C541 -> Dryer 2 | B138: m3 | C138: =Input!D$541 -> Rate 11 - Large Volume Seasonal Service | G138: 2791235.858 | I138: =Input!I887*Input!I560 -> 0 | J138: =Input!J887*Input!J560 -> 0 | K138: =Input!K887*Input!K560 -> 186082.3905 | L138: =Input!L887*Input!L560 -> 372164.781 | M138: =Input!M887*Input!M560 -> 372164.781 | N138: =Input!N887*Input!N560 -> 372164.781 | O138: =Input!O887*Input!O560 -> 372164.781 | P138: =Input!P887*Input!P560 -> 372164.781 | Q138: =Input!Q887*Input!Q560 -> 372164.781 | R138: =Input!R887*Input!R560 -> 372164.781
A139: =Input!C542 -> Dryer 3 | B139: m3 | C139: =Input!D$542 -> Rate 11 - Large Volume Seasonal Service | G139: 761246.143 | I139: =Input!I915*Input!I561 -> 0 | J139: =Input!J915*Input!J561 -> 0 | K139: =Input!K915*Input!K561 -> 50749.74287 | L139: =Input!L915*Input!L561 -> 101499.4857 | M139: =Input!M915*Input!M561 -> 101499.4857 | N139: =Input!N915*Input!N561 -> 101499.4857 | O139: =Input!O915*Input!O561 -> 101499.4857 | P139: =Input!P915*Input!P561 -> 101499.4857 | Q139: =Input!Q915*Input!Q561 -> 101499.4857 | R139: =Input!R915*Input!R561 -> 101499.4857
A140: =Input!C543 -> Dryer 4 | B140: m3 | C140: =Input!D$543 -> Rate 11 - Large Volume Seasonal Service | G140: 1319493.315 | I140: =Input!I943*Input!I562 -> 0 | J140: =Input!J943*Input!J562 -> 0 | K140: =Input!K943*Input!K562 -> 0 | L140: =Input!L943*Input!L562 -> 101499.4857 | M140: =Input!M943*Input!M562 -> 202998.9715 | N140: =Input!N943*Input!N562 -> 202998.9715 | O140: =Input!O943*Input!O562 -> 202998.9715 | P140: =Input!P943*Input!P562 -> 202998.9715 | Q140: =Input!Q943*Input!Q562 -> 202998.9715 | R140: =Input!R943*Input!R562 -> 202998.9715
A141: =Input!C544 -> Dryer 5 | B141: m3 | C141: =Input!D$544 -> Rate 11 - Large Volume Seasonal Service | G141: 2537487.143 | I141: =Input!I971*Input!I563 -> 0 | J141: =Input!J971*Input!J563 -> 0 | K141: =Input!K971*Input!K563 -> 169165.8096 | L141: =Input!L971*Input!L563 -> 338331.6191 | M141: =Input!M971*Input!M563 -> 338331.6191 | N141: =Input!N971*Input!N563 -> 338331.6191 | O141: =Input!O971*Input!O563 -> 338331.6191 | P141: =Input!P971*Input!P563 -> 338331.6191 | Q141: =Input!Q971*Input!Q563 -> 338331.6191 | R141: =Input!R971*Input!R563 -> 338331.6191
A142: =Input!C545 -> Industrial 1 | B142: m3 | C142: =Input!D$545 -> Rate 16 - Contracted Firm Service | G142: 145123585.2 | I142: =Input!I999*Input!I564 -> 2636388.167 | J142: =Input!J999*Input!J564 -> 15861997 | K142: =Input!K999*Input!K564 -> 15835779 | L142: =Input!L999*Input!L564 -> 15818329 | M142: =Input!M999*Input!M564 -> 15818329 | N142: =Input!N999*Input!N564 -> 15818329 | O142: =Input!O999*Input!O564 -> 15861997 | P142: =Input!P999*Input!P564 -> 15835779 | Q142: =Input!Q999*Input!Q564 -> 15818329 | R142: =Input!R999*Input!R564 -> 15818329
A143: =Input!C546 -> Industrial 2 | B143: m3 | C143: =Input!D$546 -> Rate 16 - Contracted Firm Service | G143: 69202375 | I143: =Input!I1027*Input!I565 -> 1258225 | J143: =Input!J1027*Input!J565 -> 7549350 | K143: =Input!K1027*Input!K565 -> 7549350 | L143: =Input!L1027*Input!L565 -> 7549350 | M143: =Input!M1027*Input!M565 -> 7549350 | N143: =Input!N1027*Input!N565 -> 7549350 | O143: =Input!O1027*Input!O565 -> 7549350 | P143: =Input!P1027*Input!P565 -> 7549350 | Q143: =Input!Q1027*Input!Q565 -> 7549350 | R143: =Input!R1027*Input!R565 -> 7549350
A145: Volume Forecast by Tiers and Rate Class
A147: Tier 1
A148: =Input!C$569 -> Rate 1 - General Firm Service | B148: m3 | G148: =SUM(H148:R148) -> 39738666.12 | I148: =SUMIF($C$90:$C$105,$A148,I$90:I$105) -> 486858.2437 | J148: 1774284.216 | K148: 3115813.188 | L148: 3981746.973 | M148: 4585361.797 | N148: 4988507.479 | O148: 5140818.508 | P148: 5188488.729 | Q148: 5227220.784 | R148: 5249566.2
A149: =Input!C$570 -> Rate 6 - Large Volume General Firm Service | B149: m3 | G149: =SUM(H149:R149) -> 6979950.886 | I149: 66730.70597 | J149: 245078.5278 | K149: 476342.5176 | L149: 698214.7275 | M149: 845623.8999 | N149: 912354.6059 | O149: 933901.4754 | P149: 933901.4754 | Q149: 933901.4754 | R149: 933901.4754
A150: =Input!C$571 -> Rate 11 - Large Volume Seasonal Service | B150: m3 | G150: =SUM(H150:R150) -> 0 | I150: 0 | J150: 0 | K150: 0 | L150: 0 | M150: 0 | N150: 0 | O150: 0 | P150: 0 | Q150: 0 | R150: 0
A151: =Input!C$572 -> Rate 16 - Contracted Firm Service | B151: m3 | G151: =SUM(H151:R151) -> 0 | I151: 0 | J151: 0 | K151: 0 | L151: 0 | M151: 0 | N151: 0 | O151: 0 | P151: 0 | Q151: 0 | R151: 0
A153: Tier 2
A154: =Input!C$569 -> Rate 1 - General Firm Service | B154: m3 | G154: =SUM(H154:R154) -> 48320000.3 | I154: =SUMIF($C$109:$C$124,$A154,I$109:I$124) -> 586816.5709 | J154: 2138384.704 | K154: 3760450.739 | L154: 4829175.46 | M154: 5588978.143 | N154: 6087022.076 | O154: 6266713.948 | P154: 6318211.727 | Q154: 6360053.672 | R154: 6384193.256
A155: =Input!C$570 -> Rate 6 - Large Volume General Firm Service | B155: m3 | G155: =SUM(H155:R155) -> 15366260.28 | I155: 146696.3609 | J155: 526295.0583 | K155: 1038569.595 | L155: 1543421.417 | M155: 1857703.225 | N155: 2004399.586 | O155: 2062293.761 | P155: 2062293.761 | Q155: 2062293.761 | R155: 2062293.761
A156: =Input!C$571 -> Rate 11 - Large Volume Seasonal Service | B156: m3 | G156: =SUM(H156:R156) -> 0 | I156: 0 | J156: 0 | K156: 0 | L156: 0 | M156: 0 | N156: 0 | O156: 0 | P156: 0 | Q156: 0 | R156: 0
A157: =Input!C$572 -> Rate 16 - Contracted Firm Service | B157: m3 | G157: =SUM(H157:R157) -> 0 | I157: 0 | J157: 0 | K157: 0 | L157: 0 | M157: 0 | N157: 0 | O157: 0 | P157: 0 | Q157: 0 | R157: 0
A159: Tier 3
A160: =Input!C$569 -> Rate 1 - General Firm Service | B160: m3 | G160: =SUM(H160:R160) -> 2725690.585 | I160: =SUMIF($C$128:$C$143,$A160,I$128:I$143) -> 28045.18531 | J160: 101472.5796 | K160: 183058.5732 | L160: 257004.5668 | M160: 323310.5605 | N160: 360032.9445 | O160: 368191.5439 | P160: 368191.5439 | Q160: 368191.5439 | R160: 368191.5439
A161: =Input!C$570 -> Rate 6 - Large Volume General Firm Service | B161: m3 | G161: =SUM(H161:R161) -> 4106599.461 | I161: 34765.43309 | J161: 115884.777 | K161: 242616.7599 | L161: 408864.2793 | M161: 506322.2042 | N161: 541087.6373 | O161: 564264.5927 | P161: 564264.5927 | Q161: 564264.5927 | R161: 564264.5927
A162: =Input!C$571 -> Rate 11 - Large Volume Seasonal Service | B162: m3 | G162: =SUM(H162:R162) -> 10623612.84 | I162: 169165.8096 | J162: 338331.6191 | K162: 744329.5621 | L162: 1251826.991 | M162: 1353326.476 | N162: 1353326.476 | O162: 1353326.476 | P162: 1353326.476 | Q162: 1353326.476 | R162: 1353326.476
A163: =Input!C$572 -> Rate 16 - Contracted Firm Service | B163: m3 | G163: =SUM(H163:R163) -> 214325960.2 | I163: 3894613.167 | J163: 23411347 | K163: 23385129 | L163: 23367679 | M163: 23367679 | N163: 23367679 | O163: 23411347 | P163: 23385129 | Q163: 23367679 | R163: 23367679
A165: Volume Forecast by Rate Class
A166: =Input!C$569 -> Rate 1 - General Firm Service | B166: m3 | G166: =SUM(H166:R166) -> 90784357 | I166: =I148+I154+I160 -> 1101720 | J166: 4014141.5 | K166: 7059322.5 | L166: 9067927 | M166: 10497650.5 | N166: 11435562.5 | O166: 11775724 | P166: 11874892 | Q166: 11955466 | R166: 12001951
A167: =Input!C$570 -> Rate 6 - Large Volume General Firm Service | B167: m3 | G167: =SUM(H167:R167) -> 26452810.63 | I167: =I149+I155+I161 -> 248192.5 | J167: 887258.3631 | K167: 1757528.873 | L167: 2650500.424 | M167: 3209649.329 | N167: 3457841.829 | O167: 3560459.829 | P167: 3560459.829 | Q167: 3560459.829 | R167: 3560459.829
A168: =Input!C$571 -> Rate 11 - Large Volume Seasonal Service | B168: m3 | G168: =SUM(H168:R168) -> 10623612.84 | I168: =I150+I156+I162 -> 169165.8096 | J168: 338331.6191 | K168: 744329.5621 | L168: 1251826.991 | M168: 1353326.476 | N168: 1353326.476 | O168: 1353326.476 | P168: 1353326.476 | Q168: 1353326.476 | R168: 1353326.476
A169: =Input!C$572 -> Rate 16 - Contracted Firm Service | B169: m3 | G169: =SUM(H169:R169) -> 214325960.2 | I169: =I151+I157+I163 -> 3894613.167 | J169: 23411347 | K169: 23385129 | L169: 23367679 | M169: 23367679 | N169: 23367679 | O169: 23411347 | P169: 23385129 | Q169: 23367679 | R169: 23367679 | S169: =R169/R170 -> 0.5800818586
A170: Sum | B170: m3 | G170: =SUM(H170:R170) -> 342186740.6 | I170: =SUM(I166:I169) -> 5413691.476 | J170: 28651078.48 | K170: 32946309.93 | L170: 36337933.41 | M170: 38428305.31 | N170: 39614409.81 | O170: 40100857.31 | P170: 40173807.31 | Q170: 40236931.31 | R170: 40283416.31
A172: Commodity Cost
A173: =Input!C$569 -> Rate 1 - General Firm Service | B173: $0,000s | G173: =SUM(H173:R173) -> -12158.94235 | I173: =(I166*Input!$E$21*(1+inflation)^I$1)/1000 -> -137.5464066 | J173: =(J166*Input!$E$21*(1+inflation)^J$1)/1000 -> -507.5180619 | K173: =(K166*Input!$E$21*(1+inflation)^K$1)/1000 -> -903.8631027 | L173: =(L166*Input!$E$21*(1+inflation)^L$1)/1000 -> -1175.786476 | M173: =(M166*Input!$E$21*(1+inflation)^M$1)/1000 -> -1378.45745 | N173: =(N166*Input!$E$21*(1+inflation)^N$1)/1000 -> -1520.686173 | O173: =(O166*Input!$E$21*(1+inflation)^O$1)/1000 -> -1585.807594 | P173: =(P166*Input!$E$21*(1+inflation)^P$1)/1000 -> -1619.471665 | Q173: =(Q166*Input!$E$21*(1+inflation)^Q$1)/1000 -> -1651.167014 | R173: =(R166*Input!$E$21*(1+inflation)^R$1)/1000 -> -1678.638403
A174: =Input!C$570 -> Rate 6 - Large Volume General Firm Service | B174: $0,000s | G174: =SUM(H174:R174) -> -3547.91208 | I174: =(I167*Input!$E$21*(1+inflation)^I$1)/1000 -> -30.98608222 | J174: =(J167*Input!$E$21*(1+inflation)^J$1)/1000 -> -112.1783188 | K174: =(K167*Input!$E$21*(1+inflation)^K$1)/1000 -> -225.0308723 | L174: =(L167*Input!$E$21*(1+inflation)^L$1)/1000 -> -343.6753023 | M174: =(M167*Input!$E$21*(1+inflation)^M$1)/1000 -> -421.4624052 | N174: =(N167*Input!$E$21*(1+inflation)^N$1)/1000 -> -459.8192924 | O174: =(O167*Input!$E$21*(1+inflation)^O$1)/1000 -> -479.4783094 | P174: =(P167*Input!$E$21*(1+inflation)^P$1)/1000 -> -485.5676839 | Q174: =(Q167*Input!$E$21*(1+inflation)^Q$1)/1000 -> -491.7343935 | R174: =(R167*Input!$E$21*(1+inflation)^R$1)/1000 -> -497.9794203
A175: =Input!C$571 -> Rate 11 - Large Volume Seasonal Service | B175: $0,000s | G175: =SUM(H175:R175) -> -1422.188016 | I175: =(I168*Input!$E$21*(1+inflation)^I$1)/1000 -> -21.11983918 | J175: =(J168*Input!$E$21*(1+inflation)^J$1)/1000 -> -42.77612227 | K175: =(K168*Input!$E$21*(1+inflation)^K$1)/1000 -> -95.30263384 | L175: =(L168*Input!$E$21*(1+inflation)^L$1)/1000 -> -162.31728 | M175: =(M168*Input!$E$21*(1+inflation)^M$1)/1000 -> -177.7067129 | N175: =(N168*Input!$E$21*(1+inflation)^N$1)/1000 -> -179.9635882 | O175: =(O168*Input!$E$21*(1+inflation)^O$1)/1000 -> -182.2491257 | P175: =(P168*Input!$E$21*(1+inflation)^P$1)/1000 -> -184.5636896 | Q175: =(Q168*Input!$E$21*(1+inflation)^Q$1)/1000 -> -186.9076485 | R175: =(R168*Input!$E$21*(1+inflation)^R$1)/1000 -> -189.2813756
A176: =Input!C$572 -> Rate 16 - Contracted Firm Service | B176: $0,000s | G176: =SUM(H176:R176) -> 0 | I176: 0 | J176: 0 | K176: 0 | L176: 0 | M176: 0 | N176: 0 | O176: 0 | P176: 0 | Q176: 0 | R176: 0
A177: Sum | B177: $0,000s | G177: =SUM(H177:R177) -> -17129.04244 | I177: =SUM(I173:I176) -> -189.652328 | J177: -662.4725029 | K177: -1224.196609 | L177: -1681.779058 | M177: -1977.626568 | N177: -2160.469054 | O177: -2247.535029 | P177: -2289.603038 | Q177: -2329.809056 | R177: -2365.899199
A179: PP&E Continuity Including the External Funded Assets
A181: CWIP
A183: Opening CWIP
A184: CapEx #
A185: =Input!C$221 -> 1 | B185: $0,000s | H185: 0 | I185: =H797 -> 0 | J185: =I797 -> 0 | K185: =J797 -> 0 | L185: =K797 -> 0 | M185: =L797 -> 0 | N185: =M797 -> 0 | O185: =N797 -> 0 | P185: =O797 -> 0 | Q185: =P797 -> 0 | R185: =Q797 -> 0
A186: =Input!C$222 -> 2 | B186: $0,000s | H186: 0 | I186: 0 | J186: 0 | K186: 0 | L186: 0 | M186: 0 | N186: 0 | O186: 0 | P186: 0 | Q186: 0 | R186: 0
A187: =Input!C$223 -> 3 | B187: $0,000s | H187: 0 | I187: 0 | J187: 0 | K187: 0 | L187: 0 | M187: 0 | N187: 0 | O187: 0 | P187: 0 | Q187: 0 | R187: 0
A188: =Input!C$224 -> 4 | B188: $0,000s | H188: 0 | I188: 0 | J188: 0 | K188: 0 | L188: 0 | M188: 0 | N188: 0 | O188: 0 | P188: 0 | Q188: 0 | R188: 0
A189: =Input!C$225 -> 5 | B189: $0,000s | H189: 0 | I189: 0 | J189: 0 | K189: 0 | L189: 0 | M189: 0 | N189: 0 | O189: 0 | P189: 0 | Q189: 0 | R189: 0
A190: =Input!C$226 -> 6 | B190: $0,000s | H190: 0 | I190: 0 | J190: 0 | K190: 0 | L190: 0 | M190: 0 | N190: 0 | O190: 0 | P190: 0 | Q190: 0 | R190: 0
A191: =Input!C$227 -> 7 | B191: $0,000s | H191: 0 | I191: 0 | J191: 0 | K191: 0 | L191: 0 | M191: 0 | N191: 0 | O191: 0 | P191: 0 | Q191: 0 | R191: 0
A192: =Input!C$228 -> 8 | B192: $0,000s | H192: 0 | I192: 0 | J192: 0 | K192: 0 | L192: 0 | M192: 0 | N192: 0 | O192: 0 | P192: 0 | Q192: 0 | R192: 0
A193: =Input!C$229 -> 9 | B193: $0,000s | H193: 0 | I193: 0 | J193: 0 | K193: 0 | L193: 0 | M193: 0 | N193: 0 | O193: 0 | P193: 0 | Q193: 0 | R193: 0
A194: =Input!C$230 -> 10 | B194: $0,000s | H194: 0 | I194: 0 | J194: 0 | K194: 0 | L194: 0 | M194: 0 | N194: 0 | O194: 0 | P194: 0 | Q194: 0 | R194: 0
A195: =Input!C$231 -> 11 | B195: $0,000s | H195: 0 | I195: 0 | J195: 0 | K195: 0 | L195: 0 | M195: 0 | N195: 0 | O195: 0 | P195: 0 | Q195: 0 | R195: 0
A196: =Input!C$232 -> 12 | B196: $0,000s | H196: 0 | I196: 0 | J196: 0 | K196: 0 | L196: 0 | M196: 0 | N196: 0 | O196: 0 | P196: 0 | Q196: 0 | R196: 0
A197: =Input!C$233 -> 13 | B197: $0,000s | H197: 0 | I197: 0 | J197: 0 | K197: 0 | L197: 0 | M197: 0 | N197: 0 | O197: 0 | P197: 0 | Q197: 0 | R197: 0
A198: =Input!C$234 -> 14 | B198: $0,000s | H198: 0 | I198: 0 | J198: 0 | K198: 0 | L198: 0 | M198: 0 | N198: 0 | O198: 0 | P198: 0 | Q198: 0 | R198: 0
A199: =Input!C$235 -> 15 | B199: $0,000s | H199: 0 | I199: 0 | J199: 0 | K199: 0 | L199: 0 | M199: 0 | N199: 0 | O199: 0 | P199: 0 | Q199: 0 | R199: 0
A200: =Input!C$236 -> 16 | B200: $0,000s | H200: 0 | I200: 0 | J200: 0 | K200: 0 | L200: 0 | M200: 0 | N200: 0 | O200: 0 | P200: 0 | Q200: 0 | R200: 0
A201: =Input!C$237 -> 17 | B201: $0,000s | H201: 0 | I201: 0 | J201: 0 | K201: 0 | L201: 0 | M201: 0 | N201: 0 | O201: 0 | P201: 0 | Q201: 0 | R201: 0
A202: =Input!C$238 -> 18 | B202: $0,000s | H202: 0 | I202: 0 | J202: 0 | K202: 0 | L202: 0 | M202: 0 | N202: 0 | O202: 0 | P202: 0 | Q202: 0 | R202: 0
A203: =Input!C$239 -> 19 | B203: $0,000s | H203: 0 | I203: 0 | J203: 0 | K203: 0 | L203: 0 | M203: 0 | N203: 0 | O203: 0 | P203: 0 | Q203: 0 | R203: 0
A204: =Input!C$240 -> 20 | B204: $0,000s | H204: 0 | I204: 0 | J204: 0 | K204: 0 | L204: 0 | M204: 0 | N204: 0 | O204: 0 | P204: 0 | Q204: 0 | R204: 0
A205: =Input!C$241 -> 21 | B205: $0,000s | H205: 0 | I205: 0 | J205: 0 | K205: 0 | L205: 0 | M205: 0 | N205: 0 | O205: 0 | P205: 0 | Q205: 0 | R205: 0
A206: =Input!C$242 -> 22 | B206: $0,000s | H206: 0 | I206: 0 | J206: 0 | K206: 0 | L206: 0 | M206: 0 | N206: 0 | O206: 0 | P206: 0 | Q206: 0 | R206: 0
A207: =Input!C$243 -> 23 | B207: $0,000s | H207: 0 | I207: 0 | J207: =I819 -> 0 | K207: =J819 -> 0 | L207: 0 | M207: 0 | N207: 0 | O207: 0 | P207: 0 | Q207: 0 | R207: 0
A208: =Input!C$244 -> 24 | B208: $0,000s | H208: 0 | I208: 0 | J208: =I820 -> 0 | K208: =J820 -> 0 | L208: 0 | M208: 0 | N208: 0 | O208: 0 | P208: 0 | Q208: 0 | R208: 0
A209: =Input!C$245 -> 25 | B209: $0,000s | H209: 0 | I209: 0 | J209: 0 | K209: 0 | L209: 0 | M209: 0 | N209: 0 | O209: 0 | P209: 0 | Q209: 0 | R209: 0
A210: =Input!C$246 -> 26 | B210: $0,000s | H210: 0 | I210: 0 | J210: 0 | K210: 0 | L210: 0 | M210: 0 | N210: 0 | O210: 0 | P210: 0 | Q210: 0 | R210: 0
A211: =Input!C$247 -> 27 | B211: $0,000s | H211: 0 | I211: 0 | J211: 0 | K211: 0 | L211: 0 | M211: 0 | N211: 0 | O211: 0 | P211: 0 | Q211: 0 | R211: 0
A212: =Input!C$248 -> 28 | B212: $0,000s | H212: 0 | I212: 0 | J212: 0 | K212: 0 | L212: 0 | M212: 0 | N212: 0 | O212: 0 | P212: 0 | Q212: 0 | R212: 0
A213: =Input!C$249 -> 29 | B213: $0,000s | H213: 0 | I213: 0 | J213: 0 | K213: 0 | L213: 0 | M213: 0 | N213: 0 | O213: 0 | P213: 0 | Q213: 0 | R213: 0
A214: =Input!C$250 -> 30 | B214: $0,000s | H214: 0 | I214: 0 | J214: 0 | K214: 0 | L214: 0 | M214: 0 | N214: 0 | O214: 0 | P214: 0 | Q214: 0 | R214: 0
A215: =Input!C$251 -> 31 | B215: $0,000s | H215: 0 | I215: 0 | J215: 0 | K215: 0 | L215: 0 | M215: 0 | N215: 0 | O215: 0 | P215: 0 | Q215: 0 | R215: 0
A216: =Input!C$252 -> 32 | B216: $0,000s | H216: 0 | I216: 0 | J216: 0 | K216: 0 | L216: 0 | M216: 0 | N216: 0 | O216: 0 | P216: 0 | Q216: 0 | R216: 0
A217: =Input!C$253 -> 33 | B217: $0,000s | H217: 0 | I217: 0 | J217: 0 | K217: 0 | L217: 0 | M217: 0 | N217: 0 | O217: 0 | P217: 0 | Q217: 0 | R217: 0
A218: =Input!C$254 -> 34 | B218: $0,000s | H218: 0 | I218: 0 | J218: 0 | K218: 0 | L218: 0 | M218: 0 | N218: 0 | O218: 0 | P218: 0 | Q218: 0 | R218: 0
A219: =Input!C$255 -> 35 | B219: $0,000s | H219: 0 | I219: 0 | J219: 0 | K219: 0 | L219: 0 | M219: 0 | N219: 0 | O219: 0 | P219: 0 | Q219: 0 | R219: 0
A220: =Input!C$256 -> 36 | B220: $0,000s | H220: 0 | I220: 0 | J220: 0 | K220: 0 | L220: 0 | M220: 0 | N220: 0 | O220: 0 | P220: 0 | Q220: 0 | R220: 0
A221: =Input!C$257 -> 37 | B221: $0,000s | H221: 0 | I221: 0 | J221: 0 | K221: 0 | L221: 0 | M221: 0 | N221: 0 | O221: 0 | P221: 0 | Q221: 0 | R221: 0
A222: =Input!C$258 -> 38 | B222: $0,000s | H222: 0 | I222: 0 | J222: 0 | K222: 0 | L222: 0 | M222: 0 | N222: 0 | O222: 0 | P222: 0 | Q222: 0 | R222: 0
A223: =Input!C$259 -> 39 | B223: $0,000s | H223: 0 | I223: 0 | J223: 0 | K223: 0 | L223: 0 | M223: 0 | N223: 0 | O223: 0 | P223: 0 | Q223: 0 | R223: 0
A224: =Input!C$260 -> 40 | B224: $0,000s | H224: 0 | I224: 0 | J224: 0 | K224: 0 | L224: 0 | M224: 0 | N224: 0 | O224: 0 | P224: 0 | Q224: 0 | R224: 0
A225: =Input!C$261 -> 41 | B225: $0,000s | H225: 0 | I225: 0 | J225: 0 | K225: 0 | L225: 0 | M225: 0 | N225: 0 | O225: 0 | P225: 0 | Q225: 0 | R225: 0
A226: =Input!C$262 -> 42 | B226: $0,000s | H226: 0 | I226: 0 | J226: 0 | K226: 0 | L226: 0 | M226: 0 | N226: 0 | O226: 0 | P226: 0 | Q226: 0 | R226: 0
A227: =Input!C$263 -> 43 | B227: $0,000s | H227: 0 | I227: 0 | J227: 0 | K227: 0 | L227: 0 | M227: 0 | N227: 0 | O227: 0 | P227: 0 | Q227: 0 | R227: 0
A228: =Input!C$264 -> 44 | B228: $0,000s | H228: 0 | I228: 0 | J228: 0 | K228: 0 | L228: 0 | M228: 0 | N228: 0 | O228: 0 | P228: 0 | Q228: 0 | R228: 0
A229: =Input!C$265 -> 45 | B229: $0,000s | H229: 0 | I229: 0 | J229: 0 | K229: 0 | L229: 0 | M229: 0 | N229: 0 | O229: 0 | P229: 0 | Q229: 0 | R229: 0
A230: =Input!C$266 -> 46 | B230: $0,000s | H230: 0 | I230: 0 | J230: 0 | K230: 0 | L230: 0 | M230: 0 | N230: 0 | O230: 0 | P230: 0 | Q230: 0 | R230: 0
A231: =Input!C$267 -> 47 | B231: $0,000s | H231: 0 | I231: 0 | J231: 0 | K231: 0 | L231: 0 | M231: 0 | N231: 0 | O231: 0 | P231: 0 | Q231: 0 | R231: 0
A232: =Input!C$268 -> 48 | B232: $0,000s | H232: 0 | I232: 0 | J232: 0 | K232: 0 | L232: 0 | M232: 0 | N232: 0 | O232: 0 | P232: 0 | Q232: 0 | R232: 0
A233: =Input!C$269 -> 49 | B233: $0,000s | H233: 0 | I233: 0 | J233: 0 | K233: 0 | L233: 0 | M233: 0 | N233: 0 | O233: 0 | P233: 0 | Q233: 0 | R233: 0
A234: =Input!C$270 -> 50 | B234: $0,000s | H234: 0 | I234: 0 | J234: 0 | K234: 0 | L234: 0 | M234: 0 | N234: 0 | O234: 0 | P234: 0 | Q234: 0 | R234: 0
A235: =Input!C$271 -> 51 | B235: $0,000s | H235: 0 | I235: 0 | J235: 0 | K235: 0 | L235: 0 | M235: 0 | N235: 0 | O235: 0 | P235: 0 | Q235: 0 | R235: 0
... 4218 more rows

Sheet Exhibit 1
C2: Master Check | E2: =Input!D2 -> 6.569312871e-10
A9: EXHIBIT 1 - Summary of Projected Revenue
C11: 2020 Typical Annual Distribution Charge
C12: (Thousands of Dollars)
C14: Col. 1 | D14: Col. 2 | E14: Col. 3
C16: Customer Type | D16: Rate Class | E16: Typical Annual Distribution Charge ($ / year)
B17: Row 1 | C17: =Input!C531 -> Existing Residential | D17: =Input!D531 -> Rate 1 - General Firm Service | E17: ='Exhibit 8'!G1195 -> 880.8086903
B18: Row 2 | C18: =Input!C532 -> New Residential | D18: =Input!D532 -> Rate 1 - General Firm Service | E18: ='Exhibit 8'!G1222 -> 858.6864494
B19: Row 3 | C19: =Input!C533 -> Small Commercial | D19: =Input!D533 -> Rate 1 - General Firm Service | E19: ='Exhibit 8'!G1249 -> 1550.566577
B20: Row 4 | C20: =Input!C534 -> Small Agricultural | D20: =Input!D534 -> Rate 1 - General Firm Service | E20: ='Exhibit 8'!G1276 -> 1557.615241
B21: Row 5 | C21: =Input!C535 -> Medium Commercial | D21: =Input!D535 -> Rate 6 - Large Volume General Firm Service | E21: ='Exhibit 8'!G1305 -> 7553.529632
B22: Row 6 | C22: =Input!C536 -> Large Commercial | D22: =Input!D536 -> Rate 6 - Large Volume General Firm Service | E22: ='Exhibit 8'!G1332 -> 18323.19159
B23: Row 7 | C23: ='Exhibit 8'!B1347 -> Sample Dryer 1 | D23: =Input!D540 -> Rate 11 - Large Volume Seasonal Service | E23: ='Exhibit 8'!G1359 -> 17435.49391
B24: Row 8 | C24: ='Exhibit 8'!B1372 -> Sample Dryer 2 | D24: =Input!D541 -> Rate 11 - Large Volume Seasonal Service | E24: ='Exhibit 8'!G1384 -> 54261.95142
C32: 10 Year Distribution Revenue
C33: (Thousands of Dollars)
C35: Col. 1 | D35: Col. 2
C37: Rate Class | D37: 10 Year Distribution Revenue
B38: Row 1 | C38: =Input!C569 -> Rate 1 - General Firm Service | D38: =SUM(Calculation!I15092:R15092) -> 38272.60946
B39: Row 2 | C39: =Input!C570 -> Rate 6 - Large Volume General Firm Service | D39: =SUM(Calculation!I15093:R15093) -> 7346.298633
B40: Row 3 | C40: =Input!C571 -> Rate 11 - Large Volume Seasonal Service | D40: =SUM(Calculation!I15094:R15094) -> 1815.937803
B41: Row 4 | C41: =Input!C572 -> Rate 16 - Contracted Firm Service | D41: =SUM(Calculation!I15095:R15095) -> 11099.70538
B42: Row 5 | C42: Sum | D42: =SUM(D38:D41) -> 58534.55127
A45: 3 | C45: ="Table 1-"&$A45&": "&"Ten Year Revenue Requirement" -> Table 1-3: Ten Year Revenue Requirement
C46: (Thousands of Dollars)
D48: Col. 1 | E48: Col. 2 | F48: Col. 3 | G48: Col. 4 | H48: Col. 5 | I48: Col. 6 | J48: Col. 7 | K48: Col. 8 | L48: Col. 9 | M48: Col. 10 | N48: Col. 11
C50: Description | D50: =Calculation!I$2 -> 2019 | E50: =Calculation!J$2 -> 2020 | F50: =Calculation!K$2 -> 2021 | G50: =Calculation!L$2 -> 2022 | H50: =Calculation!M$2 -> 2023 | I50: =Calculation!N$2 -> 2024 | J50: =Calculation!O$2 -> 2025 | K50: =Calculation!P$2 -> 2026 | L50: =Calculation!Q$2 -> 2027 | M50: =Calculation!R$2 -> 2028 | N50: Sum | S50: Check
B51: Row 1 | C51: CIP Distribution Revenue Requirement | D51: 1332.492019 | E51: 4388.984365 | F51: 6155.922334 | G51: 7534.171887 | H51: 8488.867305 | I51: 9122.04958 | J51: 9406.087115 | K51: 9567.338287 | L51: 9722.806588 | M51: 9864.541871 | N51: =SUM(D51:M51) -> 75583.26135
B52: Row 2 | C52: less Grant Impact | D52: =-'Exhibit 3'!D71 -> -352.4021617 | E52: =-'Exhibit 3'!E71 -> -1435.148566 | F52: =-'Exhibit 3'!F71 -> -1753.335315 | G52: =-'Exhibit 3'!G71 -> -1721.107423 | H52: =-'Exhibit 3'!H71 -> -1688.879531 | I52: =-'Exhibit 3'!I71 -> -1656.65164 | J52: =-'Exhibit 3'!J71 -> -1624.423748 | K52: =-'Exhibit 3'!K71 -> -1592.195857 | L52: =-'Exhibit 3'!L71 -> -1559.967965 | M52: =-'Exhibit 3'!M71 -> -1527.740074 | N52: =SUM(D52:M52) -> -14911.85228
B53: Row 3 | C53: less Tax Holidays | D53: =-'Exhibit 3'!D92 -> -113.9263522 | E53: =-'Exhibit 3'!E92 -> -189.0699892 | F53: =-'Exhibit 3'!F92 -> -214.0702208 | G53: =-'Exhibit 3'!G92 -> -223.140401 | H53: =-'Exhibit 3'!H92 -> -231.0497736 | I53: =-'Exhibit 3'!I92 -> -235.1878616 | J53: =-'Exhibit 3'!J92 -> -248.8558361 | K53: =-'Exhibit 3'!K92 -> -250.057152 | L53: =-'Exhibit 3'!L92 -> -251.2373529 | M53: =-'Exhibit 3'!M92 -> -251.7970905 | N53: =SUM(D53:M53) -> -2208.39203
B54: Row 4 | C54: Rate Smoothing Adjustment | D54: =SUM(D51:D53)-(Calculation!I$20-Calculation!I13978) -> 278.8060478 | E54: =SUM(E51:E53)-(Calculation!J$20-Calculation!J13978) -> -281.3096916 | F54: =SUM(F51:F53)-(Calculation!K$20-Calculation!K13978) -> -426.5100942 | G54: =SUM(G51:G53)-(Calculation!L$20-Calculation!L13978) -> -221.3591345 | H54: =SUM(H51:H53)-(Calculation!M$20-Calculation!M13978) -> -68.80921248 | I54: =SUM(I51:I53)-(Calculation!N$20-Calculation!N13978) -> 49.17551801 | J54: =SUM(J51:J53)-(Calculation!O$20-Calculation!O13978) -> 87.17924902 | K54: =SUM(K51:K53)-(Calculation!P$20-Calculation!P13978) -> 140.4917649 | L54: =SUM(L51:L53)-(Calculation!Q$20-Calculation!Q13978) -> 194.1455318 | M54: =SUM(M51:M53)-(Calculation!R$20-Calculation!R13978) -> 248.1900213 | N54: =SUM(D54:M54) -> -2.955857781e-12
B55: Row 5 | C55: add LEAP Funding | D55: =Calculation!I13978 -> 2 | E55: =Calculation!J13978 -> 3.65968222 | F55: =Calculation!K13978 -> 5.544685894 | G55: =Calculation!L13978 -> 6.981918138 | H55: =Calculation!M13978 -> 7.974866495 | I55: =Calculation!N13978 -> 8.627594586 | J55: =Calculation!O13978 -> 8.945488524 | K55: =Calculation!P13978 -> 9.112447153 | L55: =Calculation!Q13978 -> 9.272073373 | M55: =Calculation!R13978 -> 9.415476194 | N55: =SUM(D55:M55) -> 71.53423258
B56: Row 6 | C56: Distribution Revenue Requirement | D56: =SUM(D51:D55) -> 1146.969553 | E56: 2487.1158 | F56: 3767.55139 | G56: 5375.546846 | H56: 6508.103654 | I56: 7288.013191 | J56: 7628.932268 | K56: 7874.689491 | L56: 8115.018875 | M56: 8342.610204 | N56: 58534.55127 | S56: =N56-'Exhibit 3'!E26 -> 0
B57: Row 7
B58: Row 8 | C58: add Upstream Recovery Charge | D58: =Calculation!I15156 -> 49.23445932 | E58: =Calculation!J15156 -> 239.1759074 | F58: =Calculation!K15156 -> 309.8046374 | G58: =Calculation!L15156 -> 365.8141584 | H58: =Calculation!M15156 -> 403.3511245 | I58: =Calculation!N15156 -> 466.7974624 | J58: =Calculation!O15156 -> 460.4335088 | K58: =Calculation!P15156 -> 451.9484704 | L58: =Calculation!Q15156 -> 443.4966197 | M58: =Calculation!R15156 -> 435.0606815 | N58: =SUM(D58:M58) -> 3625.11703
B59: Row 9 | C59: add Transportation and Storage Charge | D59: =Calculation!I15163 -> 79.99247748 | E59: =Calculation!J15163 -> 371.5471287 | F59: =Calculation!K15163 -> 512.5586889 | G59: =Calculation!L15163 -> 630.0750541 | H59: =Calculation!M15163 -> 712.3257552 | I59: =Calculation!N15163 -> 763.3875385 | J59: =Calculation!O15163 -> 789.3792317 | K59: =Calculation!P15163 -> 802.0535318 | L59: =Calculation!Q15163 -> 814.628179 | M59: =Calculation!R15163 -> 826.3903513 | N59: =SUM(D59:M59) -> 6302.337937
B60: Row 10 | C60: add Gas Supply Charge | D60: =Calculation!I15170 -> 189.652328 | E60: =Calculation!J15170 -> 662.4725029 | F60: =Calculation!K15170 -> 1224.196609 | G60: =Calculation!L15170 -> 1681.779058 | H60: =Calculation!M15170 -> 1977.626568 | I60: =Calculation!N15170 -> 2160.469054 | J60: =Calculation!O15170 -> 2247.535029 | K60: =Calculation!P15170 -> 2289.603038 | L60: =Calculation!Q15170 -> 2329.809056 | M60: =Calculation!R15170 -> 2365.899199 | N60: =SUM(D60:M60) -> 17129.04244
B61: Row 11 | C61: Non-distribution Revenue Requirement | D61: =SUM(D58:D60) -> 318.8792648 | E61: 1273.195539 | F61: 2046.559935 | G61: 2677.668271 | H61: 3093.303448 | I61: 3390.654054 | J61: 3497.34777 | K61: 3543.60504 | L61: 3587.933854 | M61: 3627.350232 | N61: 27056.49741 | S61: =N61-'Exhibit 3'!N41 -> 0
B62: Row 12
B63: Row 13 | C63: Total EPCOR Revenue Requirement | D63: =D56+D61 -> 1465.848818 | E63: 3760.311339 | F63: 5814.111325 | G63: 8053.215117 | H63: 9601.407102 | I63: 10678.66725 | J63: 11126.28004 | K63: 11418.29453 | L63: 11702.95273 | M63: 11969.96044 | N63: 85591.04868 | S63: =N63-Calculation!G16-Calculation!G20 -> 0
A65: 4 | C65: ="Table 1-"&$A65&": "&"Annual Customer Attachments and Throughput Volumes " -> Table 1-4: Annual Customer Attachments and Throughput Volumes
C66: (Thousands of Dollars)
D68: Col. 1 | E68: Col. 2 | F68: Col. 3 | G68: Col. 4 | H68: Col. 5 | I68: Col. 6 | J68: Col. 7 | K68: Col. 8 | L68: Col. 9 | M68: Col. 10 | N68: Col. 11
C70: Description | D70: =Calculation!I$2 -> 2019 | E70: =Calculation!J$2 -> 2020 | F70: =Calculation!K$2 -> 2021 | G70: =Calculation!L$2 -> 2022 | H70: =Calculation!M$2 -> 2023 | I70: =Calculation!N$2 -> 2024 | J70: =Calculation!O$2 -> 2025 | K70: =Calculation!P$2 -> 2026 | L70: =Calculation!Q$2 -> 2027 | M70: =Calculation!R$2 -> 2028 | N70: Cumulative
B71: Row 1 | C71: Customer Attachments | D71: 979 | E71: 2583 | F71: 3676 | G71: 4332 | H71: 4887 | I71: 5137 | J71: 5193 | K71: 5233 | L71: 5271 | M71: 5278 | N71: 42569
B72: Row 2 | C72: Throughput Volumes | D72: 5414 | E72: 28651 | F72: 32946 | G72: 36338 | H72: 38428 | I72: 39614 | J72: 40101 | K72: 40174 | L72: 40237 | M72: 40283 | N72: 342187
A75: 5 | C75: ="Table 1-"&$A75&": "&"Summary of Projected Utility Rate Base" -> Table 1-5: Summary of Projected Utility Rate Base
C76: (Thousands of Dollars)
D78: Col. 1 | E78: Col. 2 | F78: Col. 3 | G78: Col. 4 | H78: Col. 5 | I78: Col. 6 | J78: Col. 7 | K78: Col. 8 | L78: Col. 9 | M78: Col. 10
C80: Description | D80: =Calculation!I$2 -> 2019 | E80: =Calculation!J$2 -> 2020 | F80: =Calculation!K$2 -> 2021 | G80: =Calculation!L$2 -> 2022 | H80: =Calculation!M$2 -> 2023 | I80: =Calculation!N$2 -> 2024 | J80: =Calculation!O$2 -> 2025 | K80: =Calculation!P$2 -> 2026 | L80: =Calculation!Q$2 -> 2027 | M80: =Calculation!R$2 -> 2028
B81: Row 1
B82: Row 2 | C82: Fixed Assets
B83: Row 3 | C83: Gross Book Value | D83: ='Exhibit 2'!D11 -> 24730.48647 | E83: ='Exhibit 2'!E11 -> 55333.66932 | F83: ='Exhibit 2'!F11 -> 62740.33694 | G83: ='Exhibit 2'!G11 -> 65182.97835 | H83: ='Exhibit 2'!H11 -> 66891.32178 | I83: ='Exhibit 2'!I11 -> 68133.27834 | J83: ='Exhibit 2'!J11 -> 68784.92863 | K83: ='Exhibit 2'!K11 -> 69168.85056 | L83: ='Exhibit 2'!L11 -> 69768.75744 | M83: ='Exhibit 2'!M11 -> 70293.86681
B84: Row 4 | C84: Accumulated Depreciation | D84: ='Exhibit 2'!D12 -> -345.7953759 | E84: ='Exhibit 2'!E12 -> -1354.85089 | F84: ='Exhibit 2'!F12 -> -2872.81612 | G84: ='Exhibit 2'!G12 -> -4616.703451 | H84: ='Exhibit 2'!H12 -> -6418.964364 | I84: ='Exhibit 2'!I12 -> -8262.376964 | J84: ='Exhibit 2'!J12 -> -10131.84455 | K84: ='Exhibit 2'!K12 -> -12015.09513 | L84: ='Exhibit 2'!L12 -> -13921.90114 | M84: ='Exhibit 2'!M12 -> -15851.69016
B85: Row 5 | C85: Net Book Value | D85: ='Exhibit 2'!D13 -> 24384.69109 | E85: ='Exhibit 2'!E13 -> 53978.81843 | F85: ='Exhibit 2'!F13 -> 59867.52082 | G85: ='Exhibit 2'!G13 -> 60566.2749 | H85: ='Exhibit 2'!H13 -> 60472.35741 | I85: ='Exhibit 2'!I13 -> 59870.90138 | J85: ='Exhibit 2'!J13 -> 58653.08408 | K85: ='Exhibit 2'!K13 -> 57153.75543 | L85: ='Exhibit 2'!L13 -> 55846.85631 | M85: ='Exhibit 2'!M13 -> 54442.17664
B86: Row 6
B87: Row 7 | C87: Allowance for Working Capital
B88: Row 8 | C88: Working Capital | D88: ='Exhibit 2'!D16 -> 90.40856395 | E88: ='Exhibit 2'!E16 -> 240.4693499 | F88: ='Exhibit 2'!F16 -> 323.1516919 | G88: ='Exhibit 2'!G16 -> 379.2185671 | H88: ='Exhibit 2'!H16 -> 417.7335955 | I88: ='Exhibit 2'!I16 -> 453.5973622 | J88: ='Exhibit 2'!J16 -> 466.8183885 | K88: ='Exhibit 2'!K16 -> 472.9964061 | L88: ='Exhibit 2'!L16 -> 479.0476257 | M88: ='Exhibit 2'!M16 -> 503.8568464
B89: Row 9
B90: Row 10 | C90: Rate Base
B91: Row 11 | C91: Rate Base | D91: ='Exhibit 2'!D19 -> 24475.09966 | E91: ='Exhibit 2'!E19 -> 54219.28778 | F91: ='Exhibit 2'!F19 -> 60190.67251 | G91: ='Exhibit 2'!G19 -> 60945.49347 | H91: ='Exhibit 2'!H19 -> 60890.09101 | I91: ='Exhibit 2'!I19 -> 60324.49874 | J91: ='Exhibit 2'!J19 -> 59119.90247 | K91: ='Exhibit 2'!K19 -> 57626.75184 | L91: ='Exhibit 2'!L19 -> 56325.90393 | M91: ='Exhibit 2'!M19 -> 54946.03349
A94: 6 | C94: ="Table 1-"&$A94&": "&"Summary of Capital Budget" -> Table 1-6: Summary of Capital Budget
C95: (Thousands of Dollars)
D97: Col. 1 | E97: Col. 2 | F97: Col. 3 | G97: Col. 4 | H97: Col. 5 | I97: Col. 6 | J97: Col. 7 | K97: Col. 8 | L97: Col. 9 | M97: Col. 10
C99: Asset Group | D99: =Calculation!I$2 -> 2019 | E99: =Calculation!J$2 -> 2020 | F99: =Calculation!K$2 -> 2021 | G99: =Calculation!L$2 -> 2022 | H99: =Calculation!M$2 -> 2023 | I99: =Calculation!N$2 -> 2024 | J99: =Calculation!O$2 -> 2025 | K99: =Calculation!P$2 -> 2026 | L99: =Calculation!Q$2 -> 2027 | M99: =Calculation!R$2 -> 2028
B100: Row 1 | C100: ='Exhibit 2'!C123 -> CIAC to Enbridge - Owen Sound Reinforcement | D100: ='Exhibit 2'!D123 -> 2363.133949 | E100: ='Exhibit 2'!E123 -> 0 | F100: ='Exhibit 2'!F123 -> 0 | G100: ='Exhibit 2'!G123 -> 0 | H100: ='Exhibit 2'!H123 -> 0 | I100: ='Exhibit 2'!I123 -> 0 | J100: ='Exhibit 2'!J123 -> 0 | K100: ='Exhibit 2'!K123 -> 0 | L100: ='Exhibit 2'!L123 -> 0 | M100: ='Exhibit 2'!M123 -> 0
B101: Row 2 | C101: ='Exhibit 2'!C124 -> CIAC to Enbridge - Station | D101: ='Exhibit 2'!D124 -> 2934.572055 | E101: ='Exhibit 2'!E124 -> 0 | F101: ='Exhibit 2'!F124 -> 0 | G101: ='Exhibit 2'!G124 -> 0 | H101: ='Exhibit 2'!H124 -> 0 | I101: ='Exhibit 2'!I124 -> 0 | J101: ='Exhibit 2'!J124 -> 0 | K101: ='Exhibit 2'!K124 -> 0 | L101: ='Exhibit 2'!L124 -> 0 | M101: ='Exhibit 2'!M124 -> 0
B102: Row 3 | C102: ='Exhibit 2'!C125 -> Distribution Mains - Metallic | D102: ='Exhibit 2'!D125 -> 36823.67293 | E102: ='Exhibit 2'!E125 -> 0 | F102: ='Exhibit 2'!F125 -> 0 | G102: ='Exhibit 2'!G125 -> 0 | H102: ='Exhibit 2'!H125 -> 0 | I102: ='Exhibit 2'!I125 -> 0 | J102: ='Exhibit 2'!J125 -> 0 | K102: ='Exhibit 2'!K125 -> 0 | L102: ='Exhibit 2'!L125 -> 0 | M102: ='Exhibit 2'!M125 -> 0
B103: Row 4 | C103: ='Exhibit 2'!C126 -> Distribution Land Rights | D103: ='Exhibit 2'!D126 -> 26.37299148 | E103: ='Exhibit 2'!E126 -> 26.45661001 | F103: ='Exhibit 2'!F126 -> 0 | G103: ='Exhibit 2'!G126 -> 0 | H103: ='Exhibit 2'!H126 -> 0 | I103: ='Exhibit 2'!I126 -> 0 | J103: ='Exhibit 2'!J126 -> 0 | K103: ='Exhibit 2'!K126 -> 0 | L103: ='Exhibit 2'!L126 -> 0 | M103: ='Exhibit 2'!M126 -> 0
B104: Row 5 | C104: ='Exhibit 2'!C127 -> Distribution Mains - Plastic | D104: ='Exhibit 2'!D127 -> 11144.36527 | E104: ='Exhibit 2'!E127 -> 19877.75821 | F104: ='Exhibit 2'!F127 -> 124.0456679 | G104: ='Exhibit 2'!G127 -> 126.3601273 | H104: ='Exhibit 2'!H127 -> 129.7732925 | I104: ='Exhibit 2'!I127 -> 146.9424917 | J104: ='Exhibit 2'!J127 -> 194.2126393 | K104: ='Exhibit 2'!K127 -> 161.920375 | L104: ='Exhibit 2'!L127 -> 159.5767387 | M104: ='Exhibit 2'!M127 -> 92.53682874
B105: Row 6 | C105: ='Exhibit 2'!C128 -> Distribution Services Plastic | D105: ='Exhibit 2'!D128 -> 1803.992439 | E105: ='Exhibit 2'!E128 -> 2965.557045 | F105: ='Exhibit 2'!F128 -> 2116.357415 | G105: ='Exhibit 2'!G128 -> 1248.220789 | H105: ='Exhibit 2'!H128 -> 1084.565596 | I105: ='Exhibit 2'!I128 -> 543.4731555 | J105: ='Exhibit 2'!J128 -> 163.7732753 | K105: ='Exhibit 2'!K128 -> 136.542247 | L105: ='Exhibit 2'!L128 -> 134.5659338 | M105: ='Exhibit 2'!M128 -> 78.03333286
B106: Row 7 | C106: ='Exhibit 2'!C129 -> Distribution Meters | D106: ='Exhibit 2'!D129 -> 572.5869483 | E106: ='Exhibit 2'!E129 -> 941.2673918 | F106: ='Exhibit 2'!F129 -> 676.6191276 | G106: ='Exhibit 2'!G129 -> 415.9903983 | H106: ='Exhibit 2'!H129 -> 361.4495753 | I106: ='Exhibit 2'!I129 -> 181.1214942 | J106: ='Exhibit 2'!J129 -> 54.58017573 | K106: ='Exhibit 2'!K129 -> 45.50498132 | L106: ='Exhibit 2'!L129 -> 44.84634198 | M106: ='Exhibit 2'!M129 -> 26.00590977
B107: Row 8 | C107: ='Exhibit 2'!C130 -> Distribution Measuring and Regulating Equipt. | D107: ='Exhibit 2'!D130 -> 1209.13595 | E107: ='Exhibit 2'!E130 -> 895.4986911 | F107: ='Exhibit 2'!F130 -> 105.730102 | G107: ='Exhibit 2'!G130 -> 0 | H107: ='Exhibit 2'!H130 -> 0 | I107: ='Exhibit 2'!I130 -> 0 | J107: ='Exhibit 2'!J130 -> 0 | K107: ='Exhibit 2'!K130 -> 0 | L107: ='Exhibit 2'!L130 -> 0 | M107: ='Exhibit 2'!M130 -> 0
B108: Row 9 | C108: ='Exhibit 2'!C131 -> Vehicles | D108: ='Exhibit 2'!D131 -> 467.8601687 | E108: ='Exhibit 2'!E131 -> 0 | F108: ='Exhibit 2'!F131 -> 0 | G108: ='Exhibit 2'!G131 -> 0 | H108: ='Exhibit 2'!H131 -> 0 | I108: ='Exhibit 2'!I131 -> 0 | J108: ='Exhibit 2'!J131 -> 0 | K108: ='Exhibit 2'!K131 -> 0 | L108: ='Exhibit 2'!L131 -> 499.1841374 | M108: ='Exhibit 2'!M131 -> 0
B109: Row 10 | C109: ='Exhibit 2'!C132 -> Machinery and Equipment | D109: ='Exhibit 2'!D132 -> 0 | E109: ='Exhibit 2'!E132 -> 323.4866561 | F109: ='Exhibit 2'!F132 -> 0 | G109: ='Exhibit 2'!G132 -> 0 | H109: ='Exhibit 2'!H132 -> 0 | I109: ='Exhibit 2'!I132 -> 0 | J109: ='Exhibit 2'!J132 -> 0 | K109: ='Exhibit 2'!K132 -> 0 | L109: ='Exhibit 2'!L132 -> 0 | M109: ='Exhibit 2'!M132 -> 0
B110: Row 11 | C110: Sum | D110: ='Exhibit 2'!D133 -> 57345.6927 | E110: ='Exhibit 2'!E133 -> 25030.02461 | F110: ='Exhibit 2'!F133 -> 3022.752313 | G110: ='Exhibit 2'!G133 -> 1790.571315 | H110: ='Exhibit 2'!H133 -> 1575.788464 | I110: ='Exhibit 2'!I133 -> 871.5371414 | J110: ='Exhibit 2'!J133 -> 412.5660903 | K110: ='Exhibit 2'!K133 -> 343.9676033 | L110: ='Exhibit 2'!L133 -> 838.1731518 | M110: ='Exhibit 2'!M133 -> 196.5760714
A114: 7 | C114: Table 1‑7: 2019-2028 OM&A Forecast – Nominal Dollars
C115: (Thousands)
D116: Col. 1 | E116: Col. 2 | F116: Col. 3 | G116: Col. 4 | H116: Col. 5 | I116: Col. 6 | J116: Col. 7 | K116: Col. 8 | L116: Col. 9 | M116: Col. 10 | N116: Col. 11
C118: Operating Expense | D118: 2019 | E118: 2020 | F118: 2021 | G118: 2022 | H118: 2023 | I118: 2024 | J118: 2025 | K118: 2026 | L118: 2027 | M118: 2028 | N118: Cumulative
B119: Row 1 | C119: Salaries & Wages & Benefits | D119: 615 | E119: 1246 | F119: 1185 | G119: 1200 | H119: 1215 | I119: 1231 | J119: 1246 | K119: 1262 | L119: 1278 | M119: 1294 | N119: 11772
B120: Row 2 | C120: Utilities | D120: 9 | E120: 18 | F120: 18 | G120: 18 | H120: 19 | I120: 19 | J120: 19 | K120: 19 | L120: 19 | M120: 20 | N120: 178
B121: Row 3 | C121: Billing & Collection | D121: 15 | E121: 62 | F121: 74 | G121: 88 | H121: 101 | I121: 107 | J121: 110 | K121: 112 | L121: 114 | M121: 116 | N121: 901
B122: Row 4 | C122: Insurance | D122: 12 | E122: 41 | F122: 53 | G122: 59 | H122: 59 | I122: 60 | J122: 61 | K122: 62 | L122: 62 | M122: 63 | N122: 532
B123: Row 5 | C123: Repairs & Maintenance | D123: 5 | E123: 28 | F123: 40 | G123: 48 | H123: 55 | I123: 58 | J123: 60 | K123: 61 | L123: 62 | M123: 63 | N123: 481
B124: Row 6 | C124: Vehicle & Travel | D124: 27 | E124: 55 | F124: 55 | G124: 56 | H124: 57 | I124: 57 | J124: 58 | K124: 59 | L124: 60 | M124: 60 | N124: 543
B125: Row 7 | C125: Office & Administrative | D125: 54 | E125: 110 | F125: 111 | G125: 112 | H125: 114 | I125: 115 | J125: 117 | K125: 118 | L125: 120 | M125: 121 | N125: 1093
B126: Row 8 | C126: Contractors & Emergency Services | D126: 52 | E126: 119 | F126: 131 | G126: 139 | H126: 146 | I126: 150 | J126: 152 | K126: 155 | L126: 157 | M126: 159 | N126: 1359
B127: Row 9 | C127: Shared Services | D127: 92 | E127: 423 | F127: 495 | G127: 546 | H127: 589 | I127: 615 | J127: 631 | K127: 644 | L127: 657 | M127: 669 | N127: 5361
B128: Row 10 | C128: Marketing | D128: 13 | E128: 26 | F128: 26 | G128: 27 | H128: 27 | I128: 27 | J128: 28 | K128: 28 | L128: 28 | M128: 29 | N128: 259
B129: Row 11 | C129: Capitalization | D129: -338 | E129: -685 | F129: -474 | G129: -480 | H129: -486 | I129: -373 | J129: -378 | K129: -383 | L129: -388 | M129: -134 | N129: -4119
B130: Row 12
B131: Row 13 | C131: Grand Total | D131: 555 | E131: 1443 | F131: 1715 | G131: 1813 | H131: 1895 | I131: 2067 | J131: 2103 | K131: 2137 | L131: 2171 | M131: 2461 | N131: 18360
A134: 8 | C134: ="Table 1-"&$A134&": "&"Forecasted Upstream Costs" -> Table 1-8: Forecasted Upstream Costs
C135: (Thousands of Dollars)
D137: Col. 1 | E137: Col. 2 | F137: Col. 3 | G137: Col. 4 | H137: Col. 5 | I137: Col. 6 | J137: Col. 7 | K137: Col. 8 | L137: Col. 9 | M137: Col. 10 | N137: Col. 11
C139: Description | D139: =Calculation!I$2 -> 2019 | E139: =Calculation!J$2 -> 2020 | F139: =Calculation!K$2 -> 2021 | G139: =Calculation!L$2 -> 2022 | H139: =Calculation!M$2 -> 2023 | I139: =Calculation!N$2 -> 2024 | J139: =Calculation!O$2 -> 2025 | K139: =Calculation!P$2 -> 2026 | L139: =Calculation!Q$2 -> 2027 | M139: =Calculation!R$2 -> 2028 | N139: Cumulative
B140: Row 1 | C140: Gas Supply Commodity Cost | D140: ='Exhibit 4'!D9 -> 187.2739488 | E140: ='Exhibit 4'!E9 -> 645.9609088 | F140: ='Exhibit 4'!F9 -> 1178.714815 | G140: ='Exhibit 4'!G9 -> 1598.989826 | H140: ='Exhibit 4'!H9 -> 1856.69359 | I140: ='Exhibit 4'!I9 -> 2002.918094 | J140: ='Exhibit 4'!J9 -> 2057.504527 | K140: ='Exhibit 4'!K9 -> 2069.730087 | L140: ='Exhibit 4'!L9 -> 2079.663354 | M140: ='Exhibit 4'!M9 -> 2085.394085 | N140: ='Exhibit 4'!N9 -> 15762.84324
B141: Row 2 | C141: Transportation | D141: ='Exhibit 4'!D10 -> 82.50226591 | E141: ='Exhibit 4'!E10 -> 492.4840153 | F141: ='Exhibit 4'!F10 -> 495.3052258 | G141: ='Exhibit 4'!G10 -> 497.5308018 | H141: ='Exhibit 4'!H10 -> 498.8954779 | I141: ='Exhibit 4'!I10 -> 499.6698132 | J141: ='Exhibit 4'!J10 -> 499.9588769 | K141: ='Exhibit 4'!K10 -> 500.0236176 | L141: ='Exhibit 4'!L10 -> 500.0762194 | M141: ='Exhibit 4'!M10 -> 500.1065666 | N141: ='Exhibit 4'!N10 -> 4566.55288
B142: Row 3 | C142: Storage | D142: ='Exhibit 4'!D11 -> 51.38980769 | E142: ='Exhibit 4'!E11 -> 91.68961216 | F142: ='Exhibit 4'!F11 -> 127.9422548 | G142: ='Exhibit 4'!G11 -> 152.1959851 | H142: ='Exhibit 4'!H11 -> 167.8648836 | I142: ='Exhibit 4'!I11 -> 176.7232533 | J142: ='Exhibit 4'!J11 -> 179.8373213 | K142: ='Exhibit 4'!K11 -> 182.4284862 | L142: ='Exhibit 4'!L11 -> 184.8875613 | M142: ='Exhibit 4'!M11 -> 185.2234042 | N142: ='Exhibit 4'!N11 -> 1500.18257
B143: Row 4 | C143: Load Balancing Administration | D143: ='Exhibit 4'!D12 -> 5.789807692 | E143: ='Exhibit 4'!E12 -> 30.64161216 | F143: ='Exhibit 4'!F12 -> 35.23525482 | G143: ='Exhibit 4'!G12 -> 38.86251134 | H143: ='Exhibit 4'!H12 -> 41.09811182 | I143: ='Exhibit 4'!I12 -> 42.36662093 | J143: ='Exhibit 4'!J12 -> 42.88686437 | K143: ='Exhibit 4'!K12 -> 42.96488257 | L143: ='Exhibit 4'!L12 -> 43.03239211 | M143: ='Exhibit 4'!M12 -> 43.08210665 | N143: ='Exhibit 4'!N12 -> 365.9601644
B144: Row 5 | C144: Sum | D144: ='Exhibit 4'!D13 -> 326.9558301 | E144: ='Exhibit 4'!E13 -> 1260.776148 | F144: ='Exhibit 4'!F13 -> 1837.197551 | G144: ='Exhibit 4'!G13 -> 2287.579124 | H144: ='Exhibit 4'!H13 -> 2564.552063 | I144: ='Exhibit 4'!I13 -> 2721.677782 | J144: ='Exhibit 4'!J13 -> 2780.187589 | K144: ='Exhibit 4'!K13 -> 2795.147073 | L144: ='Exhibit 4'!L13 -> 2807.659527 | M144: ='Exhibit 4'!M13 -> 2813.806163 | N144: ='Exhibit 4'!N13 -> 22195.53885
A147: 9 | C147: ="Table 1-"&$A147&": "&"Cost of Capital" -> Table 1-9: Cost of Capital
C149: Col. 1 | D149: Col. 2
C150: Capital Component | D150: Annual Cost
B151: Row 1 | C151: Equity | D151: ='Exhibit 5'!D16 -> 0.0878
B152: Row 2 | C152: Long-term Debt | D152: ='Exhibit 5'!D17 -> 0.0372
B153: Row 3 | C153: Short-term Debt | D153: ='Exhibit 5'!D18 -> 0.0176
B154: Row 4 | C154: WACC | D154: ='Exhibit 5'!D19 -> 0.054632
A157: 10 | C157: ="Table 1-"&A157&": "&"2028 Distribution Revenue to Cost Comparison with External Funding" -> Table 1-10: 2028 Distribution Revenue to Cost Comparison with External Funding
C158: (Thousands of Dollars)
D161: Col. 1 | E161: Col. 2 | F161: Col. 3 | G161: Col. 4 | H161: Col. 5
C163: Description | D163: Total | E163: =Input!C$569 -> Rate 1 - General Firm Service | F163: =Input!C$570 -> Rate 6 - Large Volume General Firm Service | G163: =Input!C$571 -> Rate 11 - Large Volume Seasonal Service | H163: =Input!C$572 -> Rate 16 - Contracted Firm Service
B164: Row 1 | C164: Revenue | D164: ='Exhibit 7'!D113 -> 7846.230162 | E164: ='Exhibit 7'!E113 -> 5298.991843 | F164: ='Exhibit 7'!F113 -> 1030.980871 | G164: ='Exhibit 7'!G113 -> 241.9336733 | H164: ='Exhibit 7'!H113 -> 1274.323774
B165: Row 2 | C165: Cost of Service | D165: ='Exhibit 7'!D114 -> 7683.936046 | E165: ='Exhibit 7'!E114 -> 5246.982138 | F165: ='Exhibit 7'!F114 -> 1324.257667 | G165: ='Exhibit 7'!G114 -> 179.8102658 | H165: ='Exhibit 7'!H114 -> 932.8859755
B166: Row 3 | C166: Over / Under Contributions | D166: ='Exhibit 7'!D115 -> 162.2941156 | E166: ='Exhibit 7'!E115 -> 52.00970522 | F166: ='Exhibit 7'!F115 -> -293.2767958 | G166: ='Exhibit 7'!G115 -> 62.12340752 | H166: ='Exhibit 7'!H115 -> 341.4377986
B167: Row 4 | C167: Revenue to Cost Ratio | D167: ='Exhibit 7'!D116 -> 1.021121222 | E167: ='Exhibit 7'!E116 -> 1.009912308 | F167: ='Exhibit 7'!F116 -> 0.7785349459 | G167: ='Exhibit 7'!G116 -> 1.34549422 | H167: ='Exhibit 7'!H116 -> 1.366001642
A170: 11 | C170: ="Table 1-"&A170&": "&"2028 Distribution Revenue to Cost Comparison without External Funding" -> Table 1-11: 2028 Distribution Revenue to Cost Comparison without External Funding
C171: (Thousands of Dollars)
D174: Col. 1 | E174: Col. 2 | F174: Col. 3 | G174: Col. 4 | H174: Col. 5
C176: Description | D176: Total | E176: =Input!C$569 -> Rate 1 - General Firm Service | F176: =Input!C$570 -> Rate 6 - Large Volume General Firm Service | G176: =Input!C$571 -> Rate 11 - Large Volume Seasonal Service | H176: =Input!C$572 -> Rate 16 - Contracted Firm Service
B177: Row 1 | C177: Revenue | D177: ='Exhibit 7'!D19 -> 7846.230162 | E177: ='Exhibit 7'!E19 -> 5298.991843 | F177: ='Exhibit 7'!F19 -> 1030.980871 | G177: ='Exhibit 7'!G19 -> 241.9336733 | H177: ='Exhibit 7'!H19 -> 1274.323774
B178: Row 2 | C178: Cost of Service | D178: ='Exhibit 7'!D20 -> 9211.67612 | E178: ='Exhibit 7'!E20 -> 6053.056623 | F178: ='Exhibit 7'!F20 -> 1691.673391 | G178: ='Exhibit 7'!G20 -> 225.4163615 | H178: ='Exhibit 7'!H20 -> 1241.529744
B179: Row 3 | C179: Over / Under Contributions | D179: ='Exhibit 7'!D21 -> -1365.445958 | E179: ='Exhibit 7'!E21 -> -754.0647797 | F179: ='Exhibit 7'!F21 -> -660.6925202 | G179: ='Exhibit 7'!G21 -> 16.51731181 | H179: ='Exhibit 7'!H21 -> 32.79403015
B180: Row 4 | C180: Revenue to Cost Ratio | D180: ='Exhibit 7'!D22 -> 0.8517700861 | E180: ='Exhibit 7'!E22 -> 0.8754241325 | F180: ='Exhibit 7'!F22 -> 0.6094443977 | G180: ='Exhibit 7'!G22 -> 1.07327468 | H180: ='Exhibit 7'!H22 -> 1.026414212
A183: 12 | B183: ="Table 1-"&$A183&": "&"Customer Bill Impact" -> Table 1-12: Customer Bill Impact
B184: 2020
B185: =Input!$C$569 -> Rate 1 - General Firm Service
B186: =Input!$C$531 -> Existing Residential
B187: (Dollars unless Otherwise Specified)
D189: Col. 1 | E189: Col. 2 | F189: Col. 3 | G189: Col. 4
C191: Description
B192: Row 1
B193: Row 2 | D193: Months | E193: Effective Cx (Cx) | F193: Charge ($/Cx/month) | G193: Bill Amount
B194: Row 3 | C194: Monthly Fixed Charge | D194: ='Exhibit 8'!D1189 -> 12 | E194: ='Exhibit 8'!E1189 -> 1 | F194: ='Exhibit 8'!F1189 -> 25.3175 | G194: ='Exhibit 8'!G1189 -> 303.81
B195: Row 4
B196: Row 5 | D196: Rate Block (m3) | E196: Volumes (m3) | F196: Charge (¢/m3)
B197: Row 6 | C197: Delivery Charge | D197: ='Exhibit 8'!D1192 -> First 100 m3 | E197: ='Exhibit 8'!E1192 -> 1001.316053 | F197: ='Exhibit 8'!F1192 -> 27.13509681 | G197: ='Exhibit 8'!G1192 -> 271.7080803
B198: Row 7 | D198: ='Exhibit 8'!D1193 -> Next 400 m3 | E198: ='Exhibit 8'!E1193 -> 1147.683947 | F198: ='Exhibit 8'!F1193 -> 26.60058204 | G198: ='Exhibit 8'!G1193 -> 305.29061
B199: Row 8 | D199: ='Exhibit 8'!D1194 -> Over 500 m3 | E199: ='Exhibit 8'!E1194 -> 0 | F199: ='Exhibit 8'!F1194 -> 25.81484533 | G199: ='Exhibit 8'!G1194 -> 0
B200: Row 9 | C200: Total Distribution Charge | E200: ='Exhibit 8'!E1195 -> 2149 | G200: ='Exhibit 8'!G1195 -> 880.8086903
B201: Row 10 | C201: Fixed Charge Ratio of Distribution Charge | G201: ='Exhibit 8'!G1196 -> 0.344921665
B202: Row 11 | E202: Volumes (m3) | F202: Charge (¢/m3)
B203: Row 12 | C203: Upstream Charges | D203: ='Exhibit 8'!D1198 -> Upstream Recovery Charge | E203: ='Exhibit 8'!E1198 -> 2149 | F203: ='Exhibit 8'!F1198 -> 1.477913365 | G203: ='Exhibit 8'!G1198 -> 31.76035822
B204: Row 13 | D204: ='Exhibit 8'!D1199 -> Transportation and Storage Charge | E204: ='Exhibit 8'!E1199 -> 2149 | F204: ='Exhibit 8'!F1199 -> 2.739792213 | G204: ='Exhibit 8'!G1199 -> 58.87813465
B205: Row 14 | C205: Gas Supply Charge | E205: ='Exhibit 8'!E1200 -> 2149 | F205: ='Exhibit 8'!F1200 -> 12.64325291 | G205: ='Exhibit 8'!G1200 -> 271.703505
B206: Row 15 | C206: Total Non-Distribution Charges | G206: ='Exhibit 8'!G1201 -> 362.3419978
B207: Row 16
B208: Row 17 | C208: Total Revenue | G208: ='Exhibit 8'!G1203 -> 1243.150688
A211: 13 | B211: ="Table 1-"&$A211&": "&"Customer Bill Impact" -> Table 1-13: Customer Bill Impact
B212: 2020
B213: =Input!$C$569 -> Rate 1 - General Firm Service
B214: =Input!$C$532 -> New Residential
B215: (Dollars unless Otherwise Specified)
D217: Col. 1 | E217: Col. 2 | F217: Col. 3 | G217: Col. 4
C219: Description
B220: Row 1
B221: Row 2 | D221: Months | E221: Effective Cx (Cx) | F221: Charge ($/Cx/month) | G221: Bill Amount
B222: Row 3 | C222: Monthly Fixed Charge | D222: ='Exhibit 8'!D1216 -> 12 | E222: ='Exhibit 8'!E1216 -> 1 | F222: ='Exhibit 8'!F1216 -> 25.3175 | G222: ='Exhibit 8'!G1216 -> 303.81
B223: Row 4
B224: Row 5 | D224: Rate Block (m3) | E224: Volumes (m3) | F224: Charge (¢/m3)
B225: Row 6 | C225: Delivery Charge | D225: ='Exhibit 8'!D1219 -> First 100 m3 | E225: ='Exhibit 8'!E1219 -> 993.1296044 | F225: ='Exhibit 8'!F1219 -> 27.13509681 | G225: ='Exhibit 8'!G1219 -> 269.4866796
B226: Row 7 | D226: ='Exhibit 8'!D1220 -> Next 400 m3 | E226: ='Exhibit 8'!E1220 -> 1072.870396 | F226: ='Exhibit 8'!F1220 -> 26.60058204 | G226: ='Exhibit 8'!G1220 -> 285.3897698
B227: Row 8 | D227: ='Exhibit 8'!D1221 -> Over 500 m3 | E227: ='Exhibit 8'!E1221 -> 0 | F227: ='Exhibit 8'!F1221 -> 25.81484533 | G227: ='Exhibit 8'!G1221 -> 0
B228: Row 9 | C228: Total Distribution Charge | E228: ='Exhibit 8'!E1222 -> 2066 | G228: ='Exhibit 8'!G1222 -> 858.6864494
B229: Row 10 | C229: Fixed Charge Ratio of Distribution Charge | G229: ='Exhibit 8'!G1223 -> 0.3538078425
B230: Row 11 | E230: Volumes (m3) | F230: Charge (¢/m3)
B231: Row 12 | C231: Upstream Charges | D231: ='Exhibit 8'!D1225 -> Upstream Recovery Charge | E231: ='Exhibit 8'!E1225 -> 2066 | F231: ='Exhibit 8'!F1225 -> 1.477913365 | G231: ='Exhibit 8'!G1225 -> 30.53369013
B232: Row 13 | D232: ='Exhibit 8'!D1226 -> Transportation and Storage Charge | E232: ='Exhibit 8'!E1226 -> 2066 | F232: ='Exhibit 8'!F1226 -> 2.739792213 | G232: ='Exhibit 8'!G1226 -> 56.60410711
B233: Row 14 | C233: Gas Supply Charge | E233: ='Exhibit 8'!E1227 -> 2066 | F233: ='Exhibit 8'!F1227 -> 12.64325291 | G233: ='Exhibit 8'!G1227 -> 261.209605
B234: Row 15 | C234: Total Non-Distribution Charges | G234: ='Exhibit 8'!G1228 -> 348.3474023
B235: Row 16
B236: Row 17 | C236: Total Revenue | G236: ='Exhibit 8'!G1230 -> 1207.033852
A239: 14 | B239: ="Table 1-"&$A239&": "&"Customer Bill Impact" -> Table 1-14: Customer Bill Impact
B240: 2020
B241: =Input!$C$569 -> Rate 1 - General Firm Service
B242: =Input!$C$533 -> Small Commercial
B243: (Dollars unless Otherwise Specified)
D245: Col. 1 | E245: Col. 2 | F245: Col. 3 | G245: Col. 4
C247: Description
B248: Row 1
B249: Row 2 | D249: Months | E249: Effective Cx (Cx) | F249: Charge ($/Cx/month) | G249: Bill Amount
B250: Row 3 | C250: Monthly Fixed Charge | D250: ='Exhibit 8'!D1243 -> 12 | E250: ='Exhibit 8'!E1243 -> 1 | F250: ='Exhibit 8'!F1243 -> 25.3175 | G250: ='Exhibit 8'!G1243 -> 303.81
B251: Row 4
B252: Row 5 | D252: Rate Block (m3) | E252: Volumes (m3) | F252: Charge (¢/m3)
B253: Row 6 | C253: Delivery Charge | D253: ='Exhibit 8'!D1246 -> First 100 m3 | E253: ='Exhibit 8'!E1246 -> 1198.170987 | F253: ='Exhibit 8'!F1246 -> 27.13509681 | G253: ='Exhibit 8'!G1246 -> 325.1248572
B254: Row 7 | D254: ='Exhibit 8'!D1247 -> Next 400 m3 | E254: ='Exhibit 8'!E1247 -> 2475.004093 | F254: ='Exhibit 8'!F1247 -> 26.60058204 | G254: ='Exhibit 8'!G1247 -> 658.3654942
B255: Row 8 | D255: ='Exhibit 8'!D1248 -> Over 500 m3 | E255: ='Exhibit 8'!E1248 -> 1019.82492 | F255: ='Exhibit 8'!F1248 -> 25.81484533 | G255: ='Exhibit 8'!G1248 -> 263.2662259
B256: Row 9 | C256: Total Distribution Charge | E256: ='Exhibit 8'!E1249 -> 4693 | G256: ='Exhibit 8'!G1249 -> 1550.566577
B257: Row 10 | C257: Fixed Charge Ratio of Distribution Charge | G257: ='Exhibit 8'!G1250 -> 0.1959348308
B258: Row 11 | E258: Volumes (m3) | F258: Charge (¢/m3)
B259: Row 12 | C259: Upstream Charges | D259: ='Exhibit 8'!D1252 -> Upstream Recovery Charge | E259: ='Exhibit 8'!E1252 -> 4693 | F259: ='Exhibit 8'!F1252 -> 1.477913365 | G259: ='Exhibit 8'!G1252 -> 69.35847423
B260: Row 13 | D260: ='Exhibit 8'!D1253 -> Transportation and Storage Charge | E260: ='Exhibit 8'!E1253 -> 4693 | F260: ='Exhibit 8'!F1253 -> 2.739792213 | G260: ='Exhibit 8'!G1253 -> 128.5784485
B261: Row 14 | C261: Gas Supply Charge | E261: ='Exhibit 8'!E1254 -> 4693 | F261: ='Exhibit 8'!F1254 -> 12.64325291 | G261: ='Exhibit 8'!G1254 -> 593.3478589
B262: Row 15 | C262: Total Non-Distribution Charges | G262: ='Exhibit 8'!G1255 -> 791.2847816
B263: Row 16
B264: Row 17 | C264: Total Revenue | G264: ='Exhibit 8'!G1257 -> 2341.851359
A267: 15 | B267: ="Table 1-"&$A267&": "&"Customer Bill Impact" -> Table 1-15: Customer Bill Impact
B268: 2020
B269: =Input!$C$569 -> Rate 1 - General Firm Service
... 203 more rows

Sheet Exhibit 2
A1: EXHIBIT 2 - Fixed Asset Tables
A3: 1 | C3: ="Table 2-"&$A3&": "&"Summary of Projected Utility Rate Base" -> Table 2-1: Summary of Projected Utility Rate Base
C4: (Thousands of Dollars)
D6: Col. 1 | E6: Col. 2 | F6: Col. 3 | G6: Col. 4 | H6: Col. 5 | I6: Col. 6 | J6: Col. 7 | K6: Col. 8 | L6: Col. 9 | M6: Col. 10 | S6: Check
C8: Description | D8: =Calculation!I$2 -> 2019 | E8: =Calculation!J$2 -> 2020 | F8: =Calculation!K$2 -> 2021 | G8: =Calculation!L$2 -> 2022 | H8: =Calculation!M$2 -> 2023 | I8: =Calculation!N$2 -> 2024 | J8: =Calculation!O$2 -> 2025 | K8: =Calculation!P$2 -> 2026 | L8: =Calculation!Q$2 -> 2027 | M8: =Calculation!R$2 -> 2028
B9: Row 1
B10: Row 2 | C10: Fixed Assets
B11: Row 3 | C11: Gross Book Value | D11: =AVERAGE(Calculation!H11652:I11652) -> 24730.48647 | E11: =AVERAGE(Calculation!I11652:J11652) -> 55333.66932 | F11: =AVERAGE(Calculation!J11652:K11652) -> 62740.33694 | G11: =AVERAGE(Calculation!K11652:L11652) -> 65182.97835 | H11: =AVERAGE(Calculation!L11652:M11652) -> 66891.32178 | I11: =AVERAGE(Calculation!M11652:N11652) -> 68133.27834 | J11: =AVERAGE(Calculation!N11652:O11652) -> 68784.92863 | K11: =AVERAGE(Calculation!O11652:P11652) -> 69168.85056 | L11: =AVERAGE(Calculation!P11652:Q11652) -> 69768.75744 | M11: =AVERAGE(Calculation!Q11652:R11652) -> 70293.86681
B12: Row 4 | C12: Accumulated Depreciation | D12: =AVERAGE(Calculation!H12470:I12470) -> -345.7953759 | E12: =AVERAGE(Calculation!I12470:J12470) -> -1354.85089 | F12: =AVERAGE(Calculation!J12470:K12470) -> -2872.81612 | G12: =AVERAGE(Calculation!K12470:L12470) -> -4616.703451 | H12: =AVERAGE(Calculation!L12470:M12470) -> -6418.964364 | I12: =AVERAGE(Calculation!M12470:N12470) -> -8262.376964 | J12: =AVERAGE(Calculation!N12470:O12470) -> -10131.84455 | K12: =AVERAGE(Calculation!O12470:P12470) -> -12015.09513 | L12: =AVERAGE(Calculation!P12470:Q12470) -> -13921.90114 | M12: =AVERAGE(Calculation!Q12470:R12470) -> -15851.69016
B13: Row 5 | C13: Net Book Value | D13: =SUM(D11:D12) -> 24384.69109 | E13: 53978.81843 | F13: 59867.52082 | G13: 60566.2749 | H13: 60472.35741 | I13: 59870.90138 | J13: 58653.08408 | K13: 57153.75543 | L13: 55846.85631 | M13: 54442.17664
B14: Row 6
B15: Row 7 | C15: Allowance for Working Capital
B16: Row 8 | C16: Working Capital | D16: =Calculation!I13964 -> 90.40856395 | E16: =Calculation!J13964 -> 240.4693499 | F16: =Calculation!K13964 -> 323.1516919 | G16: =Calculation!L13964 -> 379.2185671 | H16: =Calculation!M13964 -> 417.7335955 | I16: =Calculation!N13964 -> 453.5973622 | J16: =Calculation!O13964 -> 466.8183885 | K16: =Calculation!P13964 -> 472.9964061 | L16: =Calculation!Q13964 -> 479.0476257 | M16: =Calculation!R13964 -> 503.8568464
B17: Row 9
B18: Row 10 | C18: Rate Base
B19: Row 11 | C19: Rate Base | D19: =D13+D16 -> 24475.09966 | E19: 54219.28778 | F19: 60190.67251 | G19: 60945.49347 | H19: 60890.09101 | I19: 60324.49874 | J19: 59119.90247 | K19: 57626.75184 | L19: 56325.90393 | M19: 54946.03349 | S19: =SUM(D19:M19)-SUM(Calculation!H13965:R13965) -> 0
A21: 2 | C21: ="Table 2-"&$A3&": "&"Projected Fixed Assets Including External Funded Fixed Assets" -> Table 2-1: Projected Fixed Assets Including External Funded Fixed Assets
C22: (Thousands of Dollars)
D24: Col. 1 | E24: Col. 2 | F24: Col. 3 | G24: Col. 4 | H24: Col. 5 | I24: Col. 6 | J24: Col. 7 | K24: Col. 8 | L24: Col. 9 | M24: Col. 10 | S24: Check
C26: Description | D26: =Calculation!I$2 -> 2019 | E26: =Calculation!J$2 -> 2020 | F26: =Calculation!K$2 -> 2021 | G26: =Calculation!L$2 -> 2022 | H26: =Calculation!M$2 -> 2023 | I26: =Calculation!N$2 -> 2024 | J26: =Calculation!O$2 -> 2025 | K26: =Calculation!P$2 -> 2026 | L26: =Calculation!Q$2 -> 2027 | M26: =Calculation!R$2 -> 2028
B27: Row 1
B28: Row 2 | C28: Gross Fixed Assets
B29: Row 3 | C29: Opening Balance | D29: 0 | E29: =D34 -> 58123.8101 | F29: 83528.03357 | G29: 86595.97603 | H29: 88413.31639 | I29: 90012.66289 | J29: 90897.22951 | K29: 91315.96346 | L29: 91665.07338 | M29: 92515.77722
B30: Row 4 | C30: Capital Expenditure | D30: =-SUMIF(Input!$F$221:$F$420,D$26,Input!$Z$221:$Z$420) -> 57199.79532 | E30: =-SUMIF(Input!$F$221:$F$420,E$26,Input!$Z$221:$Z$420) -> 24882.27433 | F30: =-SUMIF(Input!$F$221:$F$420,F$26,Input!$Z$221:$Z$420) -> 2873.125613 | G30: =-SUMIF(Input!$F$221:$F$420,G$26,Input!$Z$221:$Z$420) -> 1639.044356 | H30: =-SUMIF(Input!$F$221:$F$420,H$26,Input!$Z$221:$Z$420) -> 1422.337112 | I30: =-SUMIF(Input!$F$221:$F$420,I$26,Input!$Z$221:$Z$420) -> 716.136958 | J30: =-SUMIF(Input!$F$221:$F$420,J$26,Input!$Z$221:$Z$420) -> 255.1923246 | K30: =-SUMIF(Input!$F$221:$F$420,K$26,Input!$Z$221:$Z$420) -> 184.5951908 | L30: =-SUMIF(Input!$F$221:$F$420,L$26,Input!$Z$221:$Z$420) -> 676.7767096 | M30: =-SUMIF(Input!$F$221:$F$420,M$26,Input!$Z$221:$Z$420) -> 33.12989435
B31: Row 5 | C31: Interest During Construction | D31: =-Calculation!I1609 -> 778.117401 | E31: =-Calculation!J1609 -> 374.1988679 | F31: =-Calculation!K1609 -> 45.19014708 | G31: =-Calculation!L1609 -> 26.76904116 | H31: =-Calculation!M1609 -> 23.55803753 | I31: =-Calculation!N1609 -> 13.02948026 | J31: =-Calculation!O1609 -> 6.16786305 | K31: =-Calculation!P1609 -> 5.14231567 | L31: =-Calculation!Q1609 -> 12.53068862 | M31: =-Calculation!R1609 -> 2.938812267
B32: Row 6 | C32: Capitalized Overhead | D32: =-SUMIF(Input!$F$221:$F$420,D$26,Input!$AA$221:$AA$420) -> 145.8973747 | E32: =-SUMIF(Input!$F$221:$F$420,E$26,Input!$AA$221:$AA$420) -> 147.7502713 | F32: =-SUMIF(Input!$F$221:$F$420,F$26,Input!$AA$221:$AA$420) -> 149.6266998 | G32: =-SUMIF(Input!$F$221:$F$420,G$26,Input!$AA$221:$AA$420) -> 151.5269589 | H32: =-SUMIF(Input!$F$221:$F$420,H$26,Input!$AA$221:$AA$420) -> 153.4513512 | I32: =-SUMIF(Input!$F$221:$F$420,I$26,Input!$AA$221:$AA$420) -> 155.4001834 | J32: =-SUMIF(Input!$F$221:$F$420,J$26,Input!$AA$221:$AA$420) -> 157.3737657 | K32: =-SUMIF(Input!$F$221:$F$420,K$26,Input!$AA$221:$AA$420) -> 159.3724126 | L32: =-SUMIF(Input!$F$221:$F$420,L$26,Input!$AA$221:$AA$420) -> 161.3964422 | M32: =-SUMIF(Input!$F$221:$F$420,M$26,Input!$AA$221:$AA$420) -> 163.446177
B33: Row 8 | C33: Retirement | D33: =Calculation!I$11448 -> 0 | E33: =Calculation!J$11448 -> 0 | F33: =Calculation!K$11448 -> 0 | G33: =Calculation!L$11448 -> 0 | H33: =Calculation!M$11448 -> 0 | I33: =Calculation!N$11448 -> 0 | J33: =Calculation!O$11448 -> 0 | K33: =Calculation!P$11448 -> 0 | L33: =Calculation!Q$11448 -> 0 | M33: =Calculation!R$11448 -> 0
B34: Row 9 | C34: Closing Balance | D34: =SUM(D29:D33) -> 58123.8101 | E34: 83528.03357 | F34: 86595.97603 | G34: 88413.31639 | H34: 90012.66289 | I34: 90897.22951 | J34: 91315.96346 | K34: 91665.07338 | L34: 92515.77722 | M34: 92715.29211 | S34: =SUM(D34:M34)-SUM(Calculation!$H$2631:$R$2631) -> 0
B35: Row 10
B36: Row 13 | C36: Accumulated Depreciation
B37: Row 14 | C37: Opening Balance | D37: 0 | E37: =D40 -> -810.609983 | F37: -2749.12561 | G37: -5048.444485 | H37: -7416.717652 | I37: -9832.783692 | J37: -12283.36023 | K37: -14751.53624 | L37: -17229.67878 | M37: -19744.96563
B38: Row 15 | C38: Depreciation | D38: =Calculation!I3041 -> -810.609983 | E38: =Calculation!J3041 -> -1938.515627 | F38: =Calculation!K3041 -> -2299.318875 | G38: =Calculation!L3041 -> -2368.273167 | H38: =Calculation!M3041 -> -2416.06604 | I38: =Calculation!N3041 -> -2450.576541 | J38: =Calculation!O3041 -> -2468.176003 | K38: =Calculation!P3041 -> -2478.142548 | L38: =Calculation!Q3041 -> -2515.286844 | M38: =Calculation!R3041 -> -2524.108594
B39: Row 16 | C39: Retirement | D39: =Calculation!I3245 -> 0 | E39: =Calculation!J3245 -> 0 | F39: =Calculation!K3245 -> 0 | G39: =Calculation!L3245 -> 0 | H39: =Calculation!M3245 -> 0 | I39: =Calculation!N3245 -> 0 | J39: =Calculation!O3245 -> 0 | K39: =Calculation!P3245 -> 0 | L39: =Calculation!Q3245 -> 0 | M39: =Calculation!R3245 -> 0
B40: Row 17 | C40: Closing Balance | D40: =SUM(D37:D39) -> -810.609983 | E40: -2749.12561 | F40: -5048.444485 | G40: -7416.717652 | H40: -9832.783692 | I40: -12283.36023 | J40: -14751.53624 | K40: -17229.67878 | L40: -19744.96563 | M40: -22269.07422 | S40: =SUM(D40:M40)-SUM(Calculation!$H$3449:$R$3449) -> 0
B41: Row 18
B42: Row 19 | C42: Net Fixed Assets | D42: =D34+D40 -> 57313.20011 | E42: 80778.90796 | F42: 81547.53155 | G42: 80996.59873 | H42: 80179.87919 | I42: 78613.86928 | J42: 76564.42723 | K42: 74435.3946 | L42: 72770.81159 | M42: 70446.21788
A44: 3 | C44: ="Table 2-"&$A44&": "&"Projected External Funded Fixed Assets" -> Table 2-3: Projected External Funded Fixed Assets
C45: (Thousands of Dollars)
D47: Col. 1 | E47: Col. 2 | F47: Col. 3 | G47: Col. 4 | H47: Col. 5 | I47: Col. 6 | J47: Col. 7 | K47: Col. 8 | L47: Col. 9 | M47: Col. 10 | S47: Check
C49: Description | D49: =Calculation!I$2 -> 2019 | E49: =Calculation!J$2 -> 2020 | F49: =Calculation!K$2 -> 2021 | G49: =Calculation!L$2 -> 2022 | H49: =Calculation!M$2 -> 2023 | I49: =Calculation!N$2 -> 2024 | J49: =Calculation!O$2 -> 2025 | K49: =Calculation!P$2 -> 2026 | L49: =Calculation!Q$2 -> 2027 | M49: =Calculation!R$2 -> 2028
B50: Row 1
B51: Row 2 | C51: Gross Fixed Assets
B52: Row 3 | C52: Opening Balance | D52: 0 | E52: =D56 -> 8662.837161 | F52: 22321.66786 | G52: 22321.66786 | H52: 22321.66786 | I52: 22321.66786 | J52: 22321.66786 | K52: 22321.66786 | L52: 22321.66786 | M52: 22321.66786
B53: Row 4 | C53: External Funding | D53: =-Calculation!I5520 -> 8535.235392 | E53: =-Calculation!J5520 -> 13464.76461 | F53: =-Calculation!K5520 -> 0 | G53: =-Calculation!L5520 -> 0 | H53: =-Calculation!M5520 -> 0 | I53: =-Calculation!N5520 -> 0 | J53: =-Calculation!O5520 -> 0 | K53: =-Calculation!P5520 -> 0 | L53: =-Calculation!Q5520 -> 0 | M53: =-Calculation!R5520 -> 0
B54: Row 5 | C54: Reduction in Interest During Construction | D54: =-Calculation!I6336 -> 127.6017691 | E54: =-Calculation!J6336 -> 194.0660893 | F54: =-Calculation!K6336 -> 0 | G54: =-Calculation!L6336 -> 0 | H54: =-Calculation!M6336 -> 0 | I54: =-Calculation!N6336 -> 0 | J54: =-Calculation!O6336 -> 0 | K54: =-Calculation!P6336 -> 0 | L54: =-Calculation!Q6336 -> 0 | M54: =-Calculation!R6336 -> 0
B55: Row 6 | C55: Retirement | D55: =-Calculation!H7358 -> 0 | E55: =-Calculation!I7358 -> 0 | F55: =-Calculation!J7358 -> 0 | G55: =-Calculation!K7358 -> 0 | H55: =-Calculation!L7358 -> 0 | I55: =-Calculation!M7358 -> 0 | J55: =-Calculation!N7358 -> 0 | K55: =-Calculation!O7358 -> 0 | L55: =-Calculation!P7358 -> 0 | M55: =-Calculation!Q7358 -> 0
B56: Row 7 | C56: Closing Balance | D56: =SUM(D52:D55) -> 8662.837161 | E56: 22321.66786 | F56: 22321.66786 | G56: 22321.66786 | H56: 22321.66786 | I56: 22321.66786 | J56: 22321.66786 | K56: 22321.66786 | L56: 22321.66786 | M56: 22321.66786 | S56: =SUM(D56:M56)+SUM(Calculation!H7562:R7562) -> 0
B57: Row 8
B58: Row 9 | C58: Accumulated Depreciation
B59: Row 10 | C59: Opening Balance | D59: 0 | E59: =D62 -> -119.0192311 | F59: -731.0145819 | G59: -1320.923273 | H59: -1910.831963 | I59: -2500.740654 | J59: -3090.649344 | K59: -3680.558035 | L59: -4270.466726 | M59: -4860.375416
B60: Row 11 | C60: Depreciation | D60: =-Calculation!I7972 -> -119.0192311 | E60: =-Calculation!J7972 -> -611.9953508 | F60: =-Calculation!K7972 -> -589.9086906 | G60: =-Calculation!L7972 -> -589.9086906 | H60: =-Calculation!M7972 -> -589.9086906 | I60: =-Calculation!N7972 -> -589.9086906 | J60: =-Calculation!O7972 -> -589.9086906 | K60: =-Calculation!P7972 -> -589.9086906 | L60: =-Calculation!Q7972 -> -589.9086906 | M60: =-Calculation!R7972 -> -589.9086906
B61: Row 12 | C61: Retirement | D61: =-Calculation!I8176 -> 0 | E61: =-Calculation!J8176 -> 0 | F61: =-Calculation!K8176 -> 0 | G61: =-Calculation!L8176 -> 0 | H61: =-Calculation!M8176 -> 0 | I61: =-Calculation!N8176 -> 0 | J61: =-Calculation!O8176 -> 0 | K61: =-Calculation!P8176 -> 0 | L61: =-Calculation!Q8176 -> 0 | M61: =-Calculation!R8176 -> 0
B62: Row 13 | C62: Closing Balance | D62: =SUM(D59:D61) -> -119.0192311 | E62: -731.0145819 | F62: -1320.923273 | G62: -1910.831963 | H62: -2500.740654 | I62: -3090.649344 | J62: -3680.558035 | K62: -4270.466726 | L62: -4860.375416 | M62: -5450.284107 | S62: =SUM(D62:M62)+SUM(Calculation!$H$8380:$R$8380) -> 0
B63: Row 14
B64: Row 15 | C64: Net Fixed Assets | D64: =D56+D62 -> 8543.81793 | E64: 21590.65328 | F64: 21000.74459 | G64: 20410.8359 | H64: 19820.9272 | I64: 19231.01851 | J64: 18641.10982 | K64: 18051.20113 | L64: 17461.29244 | M64: 16871.38375
A66: 4 | C66: ="Table 2-"&$A66&": "&"Projected Fixed Assets Net of External Funded Fixed Assets" -> Table 2-4: Projected Fixed Assets Net of External Funded Fixed Assets
C67: (Thousands of Dollars)
D69: Col. 1 | E69: Col. 2 | F69: Col. 3 | G69: Col. 4 | H69: Col. 5 | I69: Col. 6 | J69: Col. 7 | K69: Col. 8 | L69: Col. 9 | M69: Col. 10 | S69: Check
C71: Description | D71: =Calculation!I$2 -> 2019 | E71: =Calculation!J$2 -> 2020 | F71: =Calculation!K$2 -> 2021 | G71: =Calculation!L$2 -> 2022 | H71: =Calculation!M$2 -> 2023 | I71: =Calculation!N$2 -> 2024 | J71: =Calculation!O$2 -> 2025 | K71: =Calculation!P$2 -> 2026 | L71: =Calculation!Q$2 -> 2027 | M71: =Calculation!R$2 -> 2028
B72: Row 1
B73: Row 2 | C73: Gross Fixed Assets
B74: Row 3 | C74: Opening Balance | D74: 0 | E74: =D79 -> 49460.97294 | F74: 61206.36571 | G74: 64274.30817 | H74: 66091.64853 | I74: 67690.99503 | J74: 68575.56165 | K74: 68994.2956 | L74: 69343.40552 | M74: 70194.10936
B75: Row 4 | C75: Capital Expenditure | D75: =D30-D53 -> 48664.55993 | E75: 11417.50973 | F75: 2873.125613 | G75: 1639.044356 | H75: 1422.337112 | I75: 716.136958 | J75: 255.1923246 | K75: 184.5951908 | L75: 676.7767096 | M75: 33.12989435
B76: Row 5 | C76: Interest During Construction | D76: =Calculation!I10426 -> 650.5156319 | E76: =Calculation!J10426 -> 180.1327785 | F76: =Calculation!K10426 -> 45.19014708 | G76: =Calculation!L10426 -> 26.76904116 | H76: =Calculation!M10426 -> 23.55803753 | I76: =Calculation!N10426 -> 13.02948026 | J76: =Calculation!O10426 -> 6.16786305 | K76: =Calculation!P10426 -> 5.14231567 | L76: =Calculation!Q10426 -> 12.53068862 | M76: =Calculation!R10426 -> 2.938812267
B77: Row 6 | C77: Capitalized Overhead | D77: =D32 -> 145.8973747 | E77: 147.7502713 | F77: 149.6266998 | G77: 151.5269589 | H77: 153.4513512 | I77: 155.4001834 | J77: 157.3737657 | K77: 159.3724126 | L77: 161.3964422 | M77: 163.446177
B78: Row 8 | C78: Retirement | D78: =Calculation!I11448 -> 0 | E78: =Calculation!J11448 -> 0 | F78: =Calculation!K11448 -> 0 | G78: =Calculation!L11448 -> 0 | H78: =Calculation!M11448 -> 0 | I78: =Calculation!N11448 -> 0 | J78: =Calculation!O11448 -> 0 | K78: =Calculation!P11448 -> 0 | L78: =Calculation!Q11448 -> 0 | M78: =Calculation!R11448 -> 0
B79: Row 9 | C79: Closing Balance | D79: =SUM(D74:D78) -> 49460.97294 | E79: 61206.36571 | F79: 64274.30817 | G79: 66091.64853 | H79: 67690.99503 | I79: 68575.56165 | J79: 68994.2956 | K79: 69343.40552 | L79: 70194.10936 | M79: 70393.62425 | S79: =SUM(D79:M79)-SUM(Calculation!$H$11652:$R$11652) -> 0
B80: Row 10
B81: Row 13 | C81: Accumulated Depreciation
B82: Row 14 | C82: Opening Balance | D82: 0 | E82: =D85 -> -691.5907519 | F82: -2018.111028 | G82: -3727.521213 | H82: -5505.885689 | I82: -7332.043038 | J82: -9192.710889 | K82: -11070.9782 | L82: -12959.21206 | M82: -14884.59021
B83: Row 15 | C83: Depreciation | D83: =Calculation!I12062 -> -691.5907519 | E83: =Calculation!J12062 -> -1326.520276 | F83: =Calculation!K12062 -> -1709.410185 | G83: =Calculation!L12062 -> -1778.364476 | H83: =Calculation!M12062 -> -1826.157349 | I83: =Calculation!N12062 -> -1860.667851 | J83: =Calculation!O12062 -> -1878.267312 | K83: =Calculation!P12062 -> -1888.233857 | L83: =Calculation!Q12062 -> -1925.378153 | M83: =Calculation!R12062 -> -1934.199903
B84: Row 16 | C84: Retirement | D84: =Calculation!I12266 -> 0 | E84: =Calculation!J12266 -> 0 | F84: =Calculation!K12266 -> 0 | G84: =Calculation!L12266 -> 0 | H84: =Calculation!M12266 -> 0 | I84: =Calculation!N12266 -> 0 | J84: =Calculation!O12266 -> 0 | K84: =Calculation!P12266 -> 0 | L84: =Calculation!Q12266 -> 0 | M84: =Calculation!R12266 -> 0
B85: Row 17 | C85: Closing Balance | D85: =SUM(D82:D84) -> -691.5907519 | E85: -2018.111028 | F85: -3727.521213 | G85: -5505.885689 | H85: -7332.043038 | I85: -9192.710889 | J85: -11070.9782 | K85: -12959.21206 | L85: -14884.59021 | M85: -16818.79012 | S85: =SUM(D85:M85)-SUM(Calculation!$H$12470:$R$12470) -> 0
B86: Row 18
B87: Row 19 | C87: Net Fixed Assets (Year End) | D87: =D79+D85 -> 48769.38218 | E87: 59188.25468 | F87: 60546.78696 | G87: 60585.76284 | H87: 60358.95199 | I87: 59382.85076 | J87: 57923.3174 | K87: 56384.19346 | L87: 55309.51915 | M87: 53574.83413 | S87: =ABS(SUM(D87:M87)-SUM($D$154:$M$154)-SUM($D$160:$M$160)-SUM($D$179:$M$179)-SUM($D$185:$M$185)-SUM($D$204:$M$204)-SUM($D$210:$M$210)-SUM($D$229:$M$229)-SUM($D$235:$M$235)-SUM(D254:M254)-SUM(D260:M260)-SUM(D279:M279)-SUM(D285:M285)-SUM(D304:M304)-SUM(D310:M310)-SUM(D329:M329)-SUM(D335:M335)-SUM(D354:M354)-SUM(D360:M360)-SUM(D379:M379)-SUM(D385:M385)) -> 1.24714461e-10
B88: Row 20 | C88: Net Fixed Assets (Mid-year) | D88: =AVERAGE(D74,D79)+AVERAGE(D82,D85) -> 24384.69109 | E88: 53978.81843 | F88: 59867.52082 | G88: 60566.2749 | H88: 60472.35741 | I88: 59870.90138 | J88: 58653.08408 | K88: 57153.75543 | L88: 55846.85631 | M88: 54442.17664 | S88: =ABS(SUM(D88:M88)-SUM(Calculation!$H$13963:$R$13963)) -> 3.492459655e-10
A90: EXHIBIT 2 - Working Capital Table
A92: 5 | C92: ="Table 2-"&$A92&": "&"Projected Working Capital Requirements" -> Table 2-5: Projected Working Capital Requirements
C93: (Thousands of Dollars)
D95: Col. 1 | E95: Col. 2 | F95: Col. 3 | G95: Col. 4 | H95: Col. 5 | I95: Col. 6 | J95: Col. 7 | K95: Col. 8 | L95: Col. 9 | M95: Col. 10 | S95: Check
C97: Description | D97: =Calculation!I$2 -> 2019 | E97: =Calculation!J$2 -> 2020 | F97: =Calculation!K$2 -> 2021 | G97: =Calculation!L$2 -> 2022 | H97: =Calculation!M$2 -> 2023 | I97: =Calculation!N$2 -> 2024 | J97: =Calculation!O$2 -> 2025 | K97: =Calculation!P$2 -> 2026 | L97: =Calculation!Q$2 -> 2027 | M97: =Calculation!R$2 -> 2028
B98: Row 1 | C98: =Input!$C483 -> Working Capital for Non-distribution Costs | D98: =Input!I483 -> 23.91594486 | E98: =Input!J483 -> 95.48966542 | F98: =Input!K483 -> 153.4919951 | G98: =Input!L483 -> 200.8251203 | H98: =Input!M483 -> 231.9977586 | I98: =Input!N483 -> 254.2990541 | J98: =Input!O483 -> 262.3010827 | K98: =Input!P483 -> 265.770378 | L98: =Input!Q483 -> 269.0950391 | M98: =Input!R483 -> 272.0512674 | S98: =SUM(D98:M98)-SUM(Input!H483:R483) -> 0
B99: Row 2 | C99: =Input!$C484 -> Working Capital for O&M | D99: =Input!I484 -> 66.49261909 | E99: =Input!J484 -> 144.9796845 | F99: =Input!K484 -> 169.6596968 | G99: =Input!L484 -> 178.3934469 | H99: =Input!M484 -> 185.7358369 | I99: =Input!N484 -> 199.2983082 | J99: =Input!O484 -> 204.5173057 | K99: =Input!P484 -> 207.2260281 | L99: =Input!Q484 -> 209.9525867 | M99: =Input!R484 -> 231.805579 | S99: =SUM(D99:M99)-SUM(Input!H484:R484) -> 0
B100: Row 3 | C100: Working Capital Requirement | D100: =SUM(D98:D99) -> 90.40856395 | E100: 240.4693499 | F100: 323.1516919 | G100: 379.2185671 | H100: 417.7335955 | I100: 453.5973622 | J100: 466.8183885 | K100: 472.9964061 | L100: 479.0476257 | M100: 503.8568464 | S100: =SUM(D100:M100)-SUM(Calculation!$H$13964:$R$13964) -> 0
B101: Row 4
B102: Row 5 | C102: Working Capital as % of Rate Base | D102: =D100/Calculation!I13965 -> 0.003693899727 | E102: =E100/Calculation!J13965 -> 0.004435125576 | F102: =F100/Calculation!K13965 -> 0.005368800155 | G102: =G100/Calculation!L13965 -> 0.006222257719 | H102: =H100/Calculation!M13965 -> 0.006860452802 | I102: =I100/Calculation!N13965 -> 0.007519289372 | J102: =J100/Calculation!O13965 -> 0.007896129204 | K102: =K100/Calculation!P13965 -> 0.008207931057 | L102: =L100/Calculation!Q13965 -> 0.008504925661 | M102: =M100/Calculation!R13965 -> 0.009170031291
A104: EXHIBIT 2 - Capital Budget Tables
A106: 6 | C106: ="Table 2-"&$A106&": "&"Direct Capital Cost and Capitalized Overhead" -> Table 2-6: Direct Capital Cost and Capitalized Overhead
C107: (Thousands of Dollars)
D109: Col. 1 | E109: Col. 2 | F109: Col. 3 | G109: Col. 4 | H109: Col. 5 | I109: Col. 6 | J109: Col. 7 | K109: Col. 8 | L109: Col. 9 | M109: Col. 10
C111: Capital Cost Type | D111: =Calculation!I$2 -> 2019 | E111: =Calculation!J$2 -> 2020 | F111: =Calculation!K$2 -> 2021 | G111: =Calculation!L$2 -> 2022 | H111: =Calculation!M$2 -> 2023 | I111: =Calculation!N$2 -> 2024 | J111: =Calculation!O$2 -> 2025 | K111: =Calculation!P$2 -> 2026 | L111: =Calculation!Q$2 -> 2027 | M111: =Calculation!R$2 -> 2028
B112: Row 1 | C112: Direct Capital Cost | D112: =-SUMIFS(Input!$Z$221:$Z$420,Input!$F$221:$F$420,D$111) -> 57199.79532 | E112: =-SUMIFS(Input!$Z$221:$Z$420,Input!$F$221:$F$420,E$111) -> 24882.27433 | F112: =-SUMIFS(Input!$Z$221:$Z$420,Input!$F$221:$F$420,F$111) -> 2873.125613 | G112: =-SUMIFS(Input!$Z$221:$Z$420,Input!$F$221:$F$420,G$111) -> 1639.044356 | H112: =-SUMIFS(Input!$Z$221:$Z$420,Input!$F$221:$F$420,H$111) -> 1422.337112 | I112: =-SUMIFS(Input!$Z$221:$Z$420,Input!$F$221:$F$420,I$111) -> 716.136958 | J112: =-SUMIFS(Input!$Z$221:$Z$420,Input!$F$221:$F$420,J$111) -> 255.1923246 | K112: =-SUMIFS(Input!$Z$221:$Z$420,Input!$F$221:$F$420,K$111) -> 184.5951908 | L112: =-SUMIFS(Input!$Z$221:$Z$420,Input!$F$221:$F$420,L$111) -> 676.7767096 | M112: =-SUMIFS(Input!$Z$221:$Z$420,Input!$F$221:$F$420,M$111) -> 33.12989435
B113: Row 2 | C113: Capitalized Overhead | D113: =-SUMIFS(Input!$AA$221:$AA$420,Input!$F$221:$F$420,D$111) -> 145.8973747 | E113: =-SUMIFS(Input!$AA$221:$AA$420,Input!$F$221:$F$420,E$111) -> 147.7502713 | F113: =-SUMIFS(Input!$AA$221:$AA$420,Input!$F$221:$F$420,F$111) -> 149.6266998 | G113: =-SUMIFS(Input!$AA$221:$AA$420,Input!$F$221:$F$420,G$111) -> 151.5269589 | H113: =-SUMIFS(Input!$AA$221:$AA$420,Input!$F$221:$F$420,H$111) -> 153.4513512 | I113: =-SUMIFS(Input!$AA$221:$AA$420,Input!$F$221:$F$420,I$111) -> 155.4001834 | J113: =-SUMIFS(Input!$AA$221:$AA$420,Input!$F$221:$F$420,J$111) -> 157.3737657 | K113: =-SUMIFS(Input!$AA$221:$AA$420,Input!$F$221:$F$420,K$111) -> 159.3724126 | L113: =-SUMIFS(Input!$AA$221:$AA$420,Input!$F$221:$F$420,L$111) -> 161.3964422 | M113: =-SUMIFS(Input!$AA$221:$AA$420,Input!$F$221:$F$420,M$111) -> 163.446177
B114: Row 3 | C114: Sum | D114: =SUM(D112:D113) -> 57345.6927 | E114: 25030.02461 | F114: 3022.752313 | G114: 1790.571315 | H114: 1575.788464 | I114: 871.5371414 | J114: 412.5660903 | K114: 343.9676033 | L114: 838.1731518 | M114: 196.5760714
A117: 8 | C117: ="Table 2-"&$A117&": "&"Summary of Capital Budget" -> Table 2-8: Summary of Capital Budget
C118: (Thousands of Dollars)
D120: Col. 1 | E120: Col. 2 | F120: Col. 3 | G120: Col. 4 | H120: Col. 5 | I120: Col. 6 | J120: Col. 7 | K120: Col. 8 | L120: Col. 9 | M120: Col. 10
C122: Asset Group | D122: =Calculation!I$2 -> 2019 | E122: =Calculation!J$2 -> 2020 | F122: =Calculation!K$2 -> 2021 | G122: =Calculation!L$2 -> 2022 | H122: =Calculation!M$2 -> 2023 | I122: =Calculation!N$2 -> 2024 | J122: =Calculation!O$2 -> 2025 | K122: =Calculation!P$2 -> 2026 | L122: =Calculation!Q$2 -> 2027 | M122: =Calculation!R$2 -> 2028
B123: Row 1 | C123: =Input!C46 -> CIAC to Enbridge - Owen Sound Reinforcement | D123: =SUMIF(Input!$Q$221:$Q$420,$C123,Calculation!I$389:I$588) -> 2363.133949 | E123: =SUMIF(Input!$Q$221:$Q$420,$C123,Calculation!J$389:J$588) -> 0 | F123: =SUMIF(Input!$Q$221:$Q$420,$C123,Calculation!K$389:K$588) -> 0 | G123: =SUMIF(Input!$Q$221:$Q$420,$C123,Calculation!L$389:L$588) -> 0 | H123: =SUMIF(Input!$Q$221:$Q$420,$C123,Calculation!M$389:M$588) -> 0 | I123: =SUMIF(Input!$Q$221:$Q$420,$C123,Calculation!N$389:N$588) -> 0 | J123: =SUMIF(Input!$Q$221:$Q$420,$C123,Calculation!O$389:O$588) -> 0 | K123: =SUMIF(Input!$Q$221:$Q$420,$C123,Calculation!P$389:P$588) -> 0 | L123: =SUMIF(Input!$Q$221:$Q$420,$C123,Calculation!Q$389:Q$588) -> 0 | M123: =SUMIF(Input!$Q$221:$Q$420,$C123,Calculation!R$389:R$588) -> 0
B124: Row 2 | C124: =Input!C47 -> CIAC to Enbridge - Station | D124: =SUMIF(Input!$Q$221:$Q$420,$C124,Calculation!I$389:I$588) -> 2934.572055 | E124: =SUMIF(Input!$Q$221:$Q$420,$C124,Calculation!J$389:J$588) -> 0 | F124: =SUMIF(Input!$Q$221:$Q$420,$C124,Calculation!K$389:K$588) -> 0 | G124: =SUMIF(Input!$Q$221:$Q$420,$C124,Calculation!L$389:L$588) -> 0 | H124: =SUMIF(Input!$Q$221:$Q$420,$C124,Calculation!M$389:M$588) -> 0 | I124: =SUMIF(Input!$Q$221:$Q$420,$C124,Calculation!N$389:N$588) -> 0 | J124: =SUMIF(Input!$Q$221:$Q$420,$C124,Calculation!O$389:O$588) -> 0 | K124: =SUMIF(Input!$Q$221:$Q$420,$C124,Calculation!P$389:P$588) -> 0 | L124: =SUMIF(Input!$Q$221:$Q$420,$C124,Calculation!Q$389:Q$588) -> 0 | M124: =SUMIF(Input!$Q$221:$Q$420,$C124,Calculation!R$389:R$588) -> 0
B125: Row 3 | C125: =Input!C48 -> Distribution Mains - Metallic | D125: =SUMIF(Input!$Q$221:$Q$420,$C125,Calculation!I$389:I$588) -> 36823.67293 | E125: =SUMIF(Input!$Q$221:$Q$420,$C125,Calculation!J$389:J$588) -> 0 | F125: =SUMIF(Input!$Q$221:$Q$420,$C125,Calculation!K$389:K$588) -> 0 | G125: =SUMIF(Input!$Q$221:$Q$420,$C125,Calculation!L$389:L$588) -> 0 | H125: =SUMIF(Input!$Q$221:$Q$420,$C125,Calculation!M$389:M$588) -> 0 | I125: =SUMIF(Input!$Q$221:$Q$420,$C125,Calculation!N$389:N$588) -> 0 | J125: =SUMIF(Input!$Q$221:$Q$420,$C125,Calculation!O$389:O$588) -> 0 | K125: =SUMIF(Input!$Q$221:$Q$420,$C125,Calculation!P$389:P$588) -> 0 | L125: =SUMIF(Input!$Q$221:$Q$420,$C125,Calculation!Q$389:Q$588) -> 0 | M125: =SUMIF(Input!$Q$221:$Q$420,$C125,Calculation!R$389:R$588) -> 0
B126: Row 4 | C126: =Input!C49 -> Distribution Land Rights | D126: =SUMIF(Input!$Q$221:$Q$420,$C126,Calculation!I$389:I$588) -> 26.37299148 | E126: =SUMIF(Input!$Q$221:$Q$420,$C126,Calculation!J$389:J$588) -> 26.45661001 | F126: =SUMIF(Input!$Q$221:$Q$420,$C126,Calculation!K$389:K$588) -> 0 | G126: =SUMIF(Input!$Q$221:$Q$420,$C126,Calculation!L$389:L$588) -> 0 | H126: =SUMIF(Input!$Q$221:$Q$420,$C126,Calculation!M$389:M$588) -> 0 | I126: =SUMIF(Input!$Q$221:$Q$420,$C126,Calculation!N$389:N$588) -> 0 | J126: =SUMIF(Input!$Q$221:$Q$420,$C126,Calculation!O$389:O$588) -> 0 | K126: =SUMIF(Input!$Q$221:$Q$420,$C126,Calculation!P$389:P$588) -> 0 | L126: =SUMIF(Input!$Q$221:$Q$420,$C126,Calculation!Q$389:Q$588) -> 0 | M126: =SUMIF(Input!$Q$221:$Q$420,$C126,Calculation!R$389:R$588) -> 0
B127: Row 5 | C127: =Input!C50 -> Distribution Mains - Plastic | D127: =SUMIF(Input!$Q$221:$Q$420,$C127,Calculation!I$389:I$588) -> 11144.36527 | E127: =SUMIF(Input!$Q$221:$Q$420,$C127,Calculation!J$389:J$588) -> 19877.75821 | F127: =SUMIF(Input!$Q$221:$Q$420,$C127,Calculation!K$389:K$588) -> 124.0456679 | G127: =SUMIF(Input!$Q$221:$Q$420,$C127,Calculation!L$389:L$588) -> 126.3601273 | H127: =SUMIF(Input!$Q$221:$Q$420,$C127,Calculation!M$389:M$588) -> 129.7732925 | I127: =SUMIF(Input!$Q$221:$Q$420,$C127,Calculation!N$389:N$588) -> 146.9424917 | J127: =SUMIF(Input!$Q$221:$Q$420,$C127,Calculation!O$389:O$588) -> 194.2126393 | K127: =SUMIF(Input!$Q$221:$Q$420,$C127,Calculation!P$389:P$588) -> 161.920375 | L127: =SUMIF(Input!$Q$221:$Q$420,$C127,Calculation!Q$389:Q$588) -> 159.5767387 | M127: =SUMIF(Input!$Q$221:$Q$420,$C127,Calculation!R$389:R$588) -> 92.53682874
B128: Row 6 | C128: =Input!C51 -> Distribution Services Plastic | D128: =SUMIF(Input!$Q$221:$Q$420,$C128,Calculation!I$389:I$588) -> 1803.992439 | E128: =SUMIF(Input!$Q$221:$Q$420,$C128,Calculation!J$389:J$588) -> 2965.557045 | F128: =SUMIF(Input!$Q$221:$Q$420,$C128,Calculation!K$389:K$588) -> 2116.357415 | G128: =SUMIF(Input!$Q$221:$Q$420,$C128,Calculation!L$389:L$588) -> 1248.220789 | H128: =SUMIF(Input!$Q$221:$Q$420,$C128,Calculation!M$389:M$588) -> 1084.565596 | I128: =SUMIF(Input!$Q$221:$Q$420,$C128,Calculation!N$389:N$588) -> 543.4731555 | J128: =SUMIF(Input!$Q$221:$Q$420,$C128,Calculation!O$389:O$588) -> 163.7732753 | K128: =SUMIF(Input!$Q$221:$Q$420,$C128,Calculation!P$389:P$588) -> 136.542247 | L128: =SUMIF(Input!$Q$221:$Q$420,$C128,Calculation!Q$389:Q$588) -> 134.5659338 | M128: =SUMIF(Input!$Q$221:$Q$420,$C128,Calculation!R$389:R$588) -> 78.03333286
B129: Row 7 | C129: =Input!C52 -> Distribution Meters | D129: =SUMIF(Input!$Q$221:$Q$420,$C129,Calculation!I$389:I$588) -> 572.5869483 | E129: =SUMIF(Input!$Q$221:$Q$420,$C129,Calculation!J$389:J$588) -> 941.2673918 | F129: =SUMIF(Input!$Q$221:$Q$420,$C129,Calculation!K$389:K$588) -> 676.6191276 | G129: =SUMIF(Input!$Q$221:$Q$420,$C129,Calculation!L$389:L$588) -> 415.9903983 | H129: =SUMIF(Input!$Q$221:$Q$420,$C129,Calculation!M$389:M$588) -> 361.4495753 | I129: =SUMIF(Input!$Q$221:$Q$420,$C129,Calculation!N$389:N$588) -> 181.1214942 | J129: =SUMIF(Input!$Q$221:$Q$420,$C129,Calculation!O$389:O$588) -> 54.58017573 | K129: =SUMIF(Input!$Q$221:$Q$420,$C129,Calculation!P$389:P$588) -> 45.50498132 | L129: =SUMIF(Input!$Q$221:$Q$420,$C129,Calculation!Q$389:Q$588) -> 44.84634198 | M129: =SUMIF(Input!$Q$221:$Q$420,$C129,Calculation!R$389:R$588) -> 26.00590977
B130: Row 8 | C130: =Input!C53 -> Distribution Measuring and Regulating Equipt. | D130: =SUMIF(Input!$Q$221:$Q$420,$C130,Calculation!I$389:I$588) -> 1209.13595 | E130: =SUMIF(Input!$Q$221:$Q$420,$C130,Calculation!J$389:J$588) -> 895.4986911 | F130: =SUMIF(Input!$Q$221:$Q$420,$C130,Calculation!K$389:K$588) -> 105.730102 | G130: =SUMIF(Input!$Q$221:$Q$420,$C130,Calculation!L$389:L$588) -> 0 | H130: =SUMIF(Input!$Q$221:$Q$420,$C130,Calculation!M$389:M$588) -> 0 | I130: =SUMIF(Input!$Q$221:$Q$420,$C130,Calculation!N$389:N$588) -> 0 | J130: =SUMIF(Input!$Q$221:$Q$420,$C130,Calculation!O$389:O$588) -> 0 | K130: =SUMIF(Input!$Q$221:$Q$420,$C130,Calculation!P$389:P$588) -> 0 | L130: =SUMIF(Input!$Q$221:$Q$420,$C130,Calculation!Q$389:Q$588) -> 0 | M130: =SUMIF(Input!$Q$221:$Q$420,$C130,Calculation!R$389:R$588) -> 0
B131: Row 9 | C131: =Input!C54 -> Vehicles | D131: =SUMIF(Input!$Q$221:$Q$420,$C131,Calculation!I$389:I$588) -> 467.8601687 | E131: =SUMIF(Input!$Q$221:$Q$420,$C131,Calculation!J$389:J$588) -> 0 | F131: =SUMIF(Input!$Q$221:$Q$420,$C131,Calculation!K$389:K$588) -> 0 | G131: =SUMIF(Input!$Q$221:$Q$420,$C131,Calculation!L$389:L$588) -> 0 | H131: =SUMIF(Input!$Q$221:$Q$420,$C131,Calculation!M$389:M$588) -> 0 | I131: =SUMIF(Input!$Q$221:$Q$420,$C131,Calculation!N$389:N$588) -> 0 | J131: =SUMIF(Input!$Q$221:$Q$420,$C131,Calculation!O$389:O$588) -> 0 | K131: =SUMIF(Input!$Q$221:$Q$420,$C131,Calculation!P$389:P$588) -> 0 | L131: =SUMIF(Input!$Q$221:$Q$420,$C131,Calculation!Q$389:Q$588) -> 499.1841374 | M131: =SUMIF(Input!$Q$221:$Q$420,$C131,Calculation!R$389:R$588) -> 0
B132: Row 10 | C132: =Input!C55 -> Machinery and Equipment | D132: =SUMIF(Input!$Q$221:$Q$420,$C132,Calculation!I$389:I$588) -> 0 | E132: =SUMIF(Input!$Q$221:$Q$420,$C132,Calculation!J$389:J$588) -> 323.4866561 | F132: =SUMIF(Input!$Q$221:$Q$420,$C132,Calculation!K$389:K$588) -> 0 | G132: =SUMIF(Input!$Q$221:$Q$420,$C132,Calculation!L$389:L$588) -> 0 | H132: =SUMIF(Input!$Q$221:$Q$420,$C132,Calculation!M$389:M$588) -> 0 | I132: =SUMIF(Input!$Q$221:$Q$420,$C132,Calculation!N$389:N$588) -> 0 | J132: =SUMIF(Input!$Q$221:$Q$420,$C132,Calculation!O$389:O$588) -> 0 | K132: =SUMIF(Input!$Q$221:$Q$420,$C132,Calculation!P$389:P$588) -> 0 | L132: =SUMIF(Input!$Q$221:$Q$420,$C132,Calculation!Q$389:Q$588) -> 0 | M132: =SUMIF(Input!$Q$221:$Q$420,$C132,Calculation!R$389:R$588) -> 0
B133: Row 11 | C133: Sum | D133: =SUM(D123:D132) -> 57345.6927 | E133: 25030.02461 | F133: 3022.752313 | G133: 1790.571315 | H133: 1575.788464 | I133: 871.5371414 | J133: 412.5660903 | K133: 343.9676033 | L133: 838.1731518 | M133: 196.5760714
A135: EXHIBIT 2 - Asset Continuity Schedules of Fixed Assets
C139: Asset Category | D139: =Input!C$46 -> CIAC to Enbridge - Owen Sound Reinforcement
A140: 9 | C140: ="Table 2-"&A140&": "&""&$D139 -> Table 2-9: CIAC to Enbridge - Owen Sound Reinforcement
C141: (Thousands of Dollars)
D143: Col. 1 | E143: Col. 2 | F143: Col. 3 | G143: Col. 4 | H143: Col. 5 | I143: Col. 6 | J143: Col. 7 | K143: Col. 8 | L143: Col. 9 | M143: Col. 10
C145: Description | D145: =Calculation!I$2 -> 2019 | E145: =Calculation!J$2 -> 2020 | F145: =Calculation!K$2 -> 2021 | G145: =Calculation!L$2 -> 2022 | H145: =Calculation!M$2 -> 2023 | I145: =Calculation!N$2 -> 2024 | J145: =Calculation!O$2 -> 2025 | K145: =Calculation!P$2 -> 2026 | L145: =Calculation!Q$2 -> 2027 | M145: =Calculation!R$2 -> 2028
B146: Row 1
B147: Row 2 | C147: Gross Fixed Assets
B148: Row 3 | C148: Opening Balance | D148: 0 | E148: =D154 -> 2363.133949 | F148: =E154 -> 2363.133949 | G148: =F154 -> 2363.133949 | H148: =G154 -> 2363.133949 | I148: =H154 -> 2363.133949 | J148: =I154 -> 2363.133949 | K148: =J154 -> 2363.133949 | L148: =K154 -> 2363.133949 | M148: =L154 -> 2363.133949
B149: Row 4 | C149: Capital Expenditure | D149: =-SUMIFS(Input!$Z$221:$Z$420,Input!$F$221:$F$420,D145,Input!$Q$221:$Q$420,$D139) -> 2363.133949 | E149: =-SUMIFS(Input!$Z$221:$Z$420,Input!$F$221:$F$420,E145,Input!$Q$221:$Q$420,$D139) -> 0 | F149: =-SUMIFS(Input!$Z$221:$Z$420,Input!$F$221:$F$420,F145,Input!$Q$221:$Q$420,$D139) -> 0 | G149: =-SUMIFS(Input!$Z$221:$Z$420,Input!$F$221:$F$420,G145,Input!$Q$221:$Q$420,$D139) -> 0 | H149: =-SUMIFS(Input!$Z$221:$Z$420,Input!$F$221:$F$420,H145,Input!$Q$221:$Q$420,$D139) -> 0 | I149: =-SUMIFS(Input!$Z$221:$Z$420,Input!$F$221:$F$420,I145,Input!$Q$221:$Q$420,$D139) -> 0 | J149: =-SUMIFS(Input!$Z$221:$Z$420,Input!$F$221:$F$420,J145,Input!$Q$221:$Q$420,$D139) -> 0 | K149: =-SUMIFS(Input!$Z$221:$Z$420,Input!$F$221:$F$420,K145,Input!$Q$221:$Q$420,$D139) -> 0 | L149: =-SUMIFS(Input!$Z$221:$Z$420,Input!$F$221:$F$420,L145,Input!$Q$221:$Q$420,$D139) -> 0 | M149: =-SUMIFS(Input!$Z$221:$Z$420,Input!$F$221:$F$420,M145,Input!$Q$221:$Q$420,$D139) -> 0
B150: Row 5 | C150: Interest During Construction | D150: =SUMIFS(Calculation!I$10226:I$10425,Input!$Q$221:$Q$420,$D139) -> 0 | E150: =SUMIFS(Calculation!J$10226:J$10425,Input!$Q$221:$Q$420,$D139) -> 0 | F150: =SUMIFS(Calculation!K$10226:K$10425,Input!$Q$221:$Q$420,$D139) -> 0 | G150: =SUMIFS(Calculation!L$10226:L$10425,Input!$Q$221:$Q$420,$D139) -> 0 | H150: =SUMIFS(Calculation!M$10226:M$10425,Input!$Q$221:$Q$420,$D139) -> 0 | I150: =SUMIFS(Calculation!N$10226:N$10425,Input!$Q$221:$Q$420,$D139) -> 0 | J150: =SUMIFS(Calculation!O$10226:O$10425,Input!$Q$221:$Q$420,$D139) -> 0 | K150: =SUMIFS(Calculation!P$10226:P$10425,Input!$Q$221:$Q$420,$D139) -> 0 | L150: =SUMIFS(Calculation!Q$10226:Q$10425,Input!$Q$221:$Q$420,$D139) -> 0 | M150: =SUMIFS(Calculation!R$10226:R$10425,Input!$Q$221:$Q$420,$D139) -> 0
B151: Row 6 | C151: Capitalized Overhead | D151: =-SUMIFS(Input!$AA$221:$AA$420,Input!$F$221:$F$420,D145,Input!$Q$221:$Q$420,$D139) -> 0 | E151: =-SUMIFS(Input!$AA$221:$AA$420,Input!$F$221:$F$420,E145,Input!$Q$221:$Q$420,$D139) -> 0 | F151: =-SUMIFS(Input!$AA$221:$AA$420,Input!$F$221:$F$420,F145,Input!$Q$221:$Q$420,$D139) -> 0 | G151: =-SUMIFS(Input!$AA$221:$AA$420,Input!$F$221:$F$420,G145,Input!$Q$221:$Q$420,$D139) -> 0 | H151: =-SUMIFS(Input!$AA$221:$AA$420,Input!$F$221:$F$420,H145,Input!$Q$221:$Q$420,$D139) -> 0 | I151: =-SUMIFS(Input!$AA$221:$AA$420,Input!$F$221:$F$420,I145,Input!$Q$221:$Q$420,$D139) -> 0 | J151: =-SUMIFS(Input!$AA$221:$AA$420,Input!$F$221:$F$420,J145,Input!$Q$221:$Q$420,$D139) -> 0 | K151: =-SUMIFS(Input!$AA$221:$AA$420,Input!$F$221:$F$420,K145,Input!$Q$221:$Q$420,$D139) -> 0 | L151: =-SUMIFS(Input!$AA$221:$AA$420,Input!$F$221:$F$420,L145,Input!$Q$221:$Q$420,$D139) -> 0 | M151: =-SUMIFS(Input!$AA$221:$AA$420,Input!$F$221:$F$420,M145,Input!$Q$221:$Q$420,$D139) -> 0
B152: Row 7 | C152: External Funding | D152: =SUMIFS(Calculation!I$5320:I$5519,Input!$Q$221:$Q$420,$D139) -> 0 | E152: =SUMIFS(Calculation!J$5320:J$5519,Input!$Q$221:$Q$420,$D139) -> 0 | F152: =SUMIFS(Calculation!K$5320:K$5519,Input!$Q$221:$Q$420,$D139) -> 0 | G152: =SUMIFS(Calculation!L$5320:L$5519,Input!$Q$221:$Q$420,$D139) -> 0 | H152: =SUMIFS(Calculation!M$5320:M$5519,Input!$Q$221:$Q$420,$D139) -> 0 | I152: =SUMIFS(Calculation!N$5320:N$5519,Input!$Q$221:$Q$420,$D139) -> 0 | J152: =SUMIFS(Calculation!O$5320:O$5519,Input!$Q$221:$Q$420,$D139) -> 0 | K152: =SUMIFS(Calculation!P$5320:P$5519,Input!$Q$221:$Q$420,$D139) -> 0 | L152: =SUMIFS(Calculation!Q$5320:Q$5519,Input!$Q$221:$Q$420,$D139) -> 0 | M152: =SUMIFS(Calculation!R$5320:R$5519,Input!$Q$221:$Q$420,$D139) -> 0
B153: Row 8 | C153: Retirement | D153: =SUMIFS(Calculation!I$11248:I$11447,Input!$F$221:$F$420,D145,Input!$Q$221:$Q$420,$D139) -> 0 | E153: =SUMIFS(Calculation!J$11248:J$11447,Input!$F$221:$F$420,E145,Input!$Q$221:$Q$420,$D139) -> 0 | F153: =SUMIFS(Calculation!K$11248:K$11447,Input!$F$221:$F$420,F145,Input!$Q$221:$Q$420,$D139) -> 0 | G153: =SUMIFS(Calculation!L$11248:L$11447,Input!$F$221:$F$420,G145,Input!$Q$221:$Q$420,$D139) -> 0 | H153: =SUMIFS(Calculation!M$11248:M$11447,Input!$F$221:$F$420,H145,Input!$Q$221:$Q$420,$D139) -> 0 | I153: =SUMIFS(Calculation!N$11248:N$11447,Input!$F$221:$F$420,I145,Input!$Q$221:$Q$420,$D139) -> 0 | J153: =SUMIFS(Calculation!O$11248:O$11447,Input!$F$221:$F$420,J145,Input!$Q$221:$Q$420,$D139) -> 0 | K153: =SUMIFS(Calculation!P$11248:P$11447,Input!$F$221:$F$420,K145,Input!$Q$221:$Q$420,$D139) -> 0 | L153: =SUMIFS(Calculation!Q$11248:Q$11447,Input!$F$221:$F$420,L145,Input!$Q$221:$Q$420,$D139) -> 0 | M153: =SUMIFS(Calculation!R$11248:R$11447,Input!$F$221:$F$420,M145,Input!$Q$221:$Q$420,$D139) -> 0
B154: Row 9 | C154: Closing Balance | D154: =SUM(D148:D153) -> 2363.133949 | E154: 2363.133949 | F154: 2363.133949 | G154: 2363.133949 | H154: 2363.133949 | I154: 2363.133949 | J154: 2363.133949 | K154: 2363.133949 | L154: 2363.133949 | M154: 2363.133949
B155: Row 10
B156: Row 11 | C156: Accumulated Depreciation
B157: Row 12 | C157: Opening Balance | D157: 0 | E157: =D160 -> -23.1679799 | F157: =E160 -> -69.50393969 | G157: =F160 -> -115.8398995 | H157: =G160 -> -162.1758593 | I157: =H160 -> -208.5118191 | J157: =I160 -> -254.8477789 | K157: =J160 -> -301.1837387 | L157: =K160 -> -347.5196985 | M157: =L160 -> -393.8556582
B158: Row 13 | C158: Depreciation | D158: =SUMIFS(Calculation!I$11862:I$12061,Input!$Q$221:$Q$420,$D139) -> -23.1679799 | E158: =SUMIFS(Calculation!J$11862:J$12061,Input!$Q$221:$Q$420,$D139) -> -46.33595979 | F158: =SUMIFS(Calculation!K$11862:K$12061,Input!$Q$221:$Q$420,$D139) -> -46.33595979 | G158: =SUMIFS(Calculation!L$11862:L$12061,Input!$Q$221:$Q$420,$D139) -> -46.33595979 | H158: =SUMIFS(Calculation!M$11862:M$12061,Input!$Q$221:$Q$420,$D139) -> -46.33595979 | I158: =SUMIFS(Calculation!N$11862:N$12061,Input!$Q$221:$Q$420,$D139) -> -46.33595979 | J158: =SUMIFS(Calculation!O$11862:O$12061,Input!$Q$221:$Q$420,$D139) -> -46.33595979 | K158: =SUMIFS(Calculation!P$11862:P$12061,Input!$Q$221:$Q$420,$D139) -> -46.33595979 | L158: =SUMIFS(Calculation!Q$11862:Q$12061,Input!$Q$221:$Q$420,$D139) -> -46.33595979 | M158: =SUMIFS(Calculation!R$11862:R$12061,Input!$Q$221:$Q$420,$D139) -> -46.33595979
B159: Row 14 | C159: Retirement | D159: =SUMIFS(Calculation!I$12066:I$12265,Input!$Q$221:$Q$420,$D139) -> 0 | E159: =SUMIFS(Calculation!J$12066:J$12265,Input!$Q$221:$Q$420,$D139) -> 0 | F159: =SUMIFS(Calculation!K$12066:K$12265,Input!$Q$221:$Q$420,$D139) -> 0 | G159: =SUMIFS(Calculation!L$12066:L$12265,Input!$Q$221:$Q$420,$D139) -> 0 | H159: =SUMIFS(Calculation!M$12066:M$12265,Input!$Q$221:$Q$420,$D139) -> 0 | I159: =SUMIFS(Calculation!N$12066:N$12265,Input!$Q$221:$Q$420,$D139) -> 0 | J159: =SUMIFS(Calculation!O$12066:O$12265,Input!$Q$221:$Q$420,$D139) -> 0 | K159: =SUMIFS(Calculation!P$12066:P$12265,Input!$Q$221:$Q$420,$D139) -> 0 | L159: =SUMIFS(Calculation!Q$12066:Q$12265,Input!$Q$221:$Q$420,$D139) -> 0 | M159: =SUMIFS(Calculation!R$12066:R$12265,Input!$Q$221:$Q$420,$D139) -> 0
B160: Row 15 | C160: Closing Balance | D160: =SUM(D157:D159) -> -23.1679799 | E160: -69.50393969 | F160: -115.8398995 | G160: -162.1758593 | H160: -208.5118191 | I160: -254.8477789 | J160: -301.1837387 | K160: -347.5196985 | L160: -393.8556582 | M160: -440.191618
B161: Row 16
B162: Row 17 | C162: Net Asset | D162: =D154+D160 -> 2339.96597 | E162: 2293.63001 | F162: 2247.29405 | G162: 2200.95809 | H162: 2154.62213 | I162: 2108.286171 | J162: 2061.950211 | K162: 2015.614251 | L162: 1969.278291 | M162: 1922.942331
C164: Asset Category | D164: =Input!C$47 -> CIAC to Enbridge - Station
A165: 10 | C165: ="Table 2-"&A165&": "&""&$D164 -> Table 2-10: CIAC to Enbridge - Station
C166: (Thousands of Dollars)
D168: Col. 1 | E168: Col. 2 | F168: Col. 3 | G168: Col. 4 | H168: Col. 5 | I168: Col. 6 | J168: Col. 7 | K168: Col. 8 | L168: Col. 9 | M168: Col. 10
C170: Description | D170: =Calculation!I$2 -> 2019 | E170: =Calculation!J$2 -> 2020 | F170: =Calculation!K$2 -> 2021 | G170: =Calculation!L$2 -> 2022 | H170: =Calculation!M$2 -> 2023 | I170: =Calculation!N$2 -> 2024 | J170: =Calculation!O$2 -> 2025 | K170: =Calculation!P$2 -> 2026 | L170: =Calculation!Q$2 -> 2027 | M170: =Calculation!R$2 -> 2028
B171: Row 1
B172: Row 2 | C172: Gross Fixed Assets
B173: Row 3 | C173: Opening Balance | D173: 0 | E173: =D179 -> 2934.572055 | F173: =E179 -> 2934.572055 | G173: =F179 -> 2934.572055 | H173: =G179 -> 2934.572055 | I173: =H179 -> 2934.572055 | J173: =I179 -> 2934.572055 | K173: =J179 -> 2934.572055 | L173: =K179 -> 2934.572055 | M173: =L179 -> 2934.572055
B174: Row 4 | C174: Capital Expenditure | D174: =-SUMIFS(Input!$Z$221:$Z$420,Input!$F$221:$F$420,D170,Input!$Q$221:$Q$420,$D164) -> 2934.572055 | E174: =-SUMIFS(Input!$Z$221:$Z$420,Input!$F$221:$F$420,E170,Input!$Q$221:$Q$420,$D164) -> 0 | F174: =-SUMIFS(Input!$Z$221:$Z$420,Input!$F$221:$F$420,F170,Input!$Q$221:$Q$420,$D164) -> 0 | G174: =-SUMIFS(Input!$Z$221:$Z$420,Input!$F$221:$F$420,G170,Input!$Q$221:$Q$420,$D164) -> 0 | H174: =-SUMIFS(Input!$Z$221:$Z$420,Input!$F$221:$F$420,H170,Input!$Q$221:$Q$420,$D164) -> 0 | I174: =-SUMIFS(Input!$Z$221:$Z$420,Input!$F$221:$F$420,I170,Input!$Q$221:$Q$420,$D164) -> 0 | J174: =-SUMIFS(Input!$Z$221:$Z$420,Input!$F$221:$F$420,J170,Input!$Q$221:$Q$420,$D164) -> 0 | K174: =-SUMIFS(Input!$Z$221:$Z$420,Input!$F$221:$F$420,K170,Input!$Q$221:$Q$420,$D164) -> 0 | L174: =-SUMIFS(Input!$Z$221:$Z$420,Input!$F$221:$F$420,L170,Input!$Q$221:$Q$420,$D164) -> 0 | M174: =-SUMIFS(Input!$Z$221:$Z$420,Input!$F$221:$F$420,M170,Input!$Q$221:$Q$420,$D164) -> 0
B175: Row 5 | C175: Interest During Construction | D175: =SUMIFS(Calculation!I$10226:I$10425,Input!$Q$221:$Q$420,$D164) -> 0 | E175: =SUMIFS(Calculation!J$10226:J$10425,Input!$Q$221:$Q$420,$D164) -> 0 | F175: =SUMIFS(Calculation!K$10226:K$10425,Input!$Q$221:$Q$420,$D164) -> 0 | G175: =SUMIFS(Calculation!L$10226:L$10425,Input!$Q$221:$Q$420,$D164) -> 0 | H175: =SUMIFS(Calculation!M$10226:M$10425,Input!$Q$221:$Q$420,$D164) -> 0 | I175: =SUMIFS(Calculation!N$10226:N$10425,Input!$Q$221:$Q$420,$D164) -> 0 | J175: =SUMIFS(Calculation!O$10226:O$10425,Input!$Q$221:$Q$420,$D164) -> 0 | K175: =SUMIFS(Calculation!P$10226:P$10425,Input!$Q$221:$Q$420,$D164) -> 0 | L175: =SUMIFS(Calculation!Q$10226:Q$10425,Input!$Q$221:$Q$420,$D164) -> 0 | M175: =SUMIFS(Calculation!R$10226:R$10425,Input!$Q$221:$Q$420,$D164) -> 0
B176: Row 6 | C176: Capitalized Overhead | D176: =-SUMIFS(Input!$AA$221:$AA$420,Input!$F$221:$F$420,D170,Input!$Q$221:$Q$420,$D164) -> 0 | E176: =-SUMIFS(Input!$AA$221:$AA$420,Input!$F$221:$F$420,E170,Input!$Q$221:$Q$420,$D164) -> 0 | F176: =-SUMIFS(Input!$AA$221:$AA$420,Input!$F$221:$F$420,F170,Input!$Q$221:$Q$420,$D164) -> 0 | G176: =-SUMIFS(Input!$AA$221:$AA$420,Input!$F$221:$F$420,G170,Input!$Q$221:$Q$420,$D164) -> 0 | H176: =-SUMIFS(Input!$AA$221:$AA$420,Input!$F$221:$F$420,H170,Input!$Q$221:$Q$420,$D164) -> 0 | I176: =-SUMIFS(Input!$AA$221:$AA$420,Input!$F$221:$F$420,I170,Input!$Q$221:$Q$420,$D164) -> 0 | J176: =-SUMIFS(Input!$AA$221:$AA$420,Input!$F$221:$F$420,J170,Input!$Q$221:$Q$420,$D164) -> 0 | K176: =-SUMIFS(Input!$AA$221:$AA$420,Input!$F$221:$F$420,K170,Input!$Q$221:$Q$420,$D164) -> 0 | L176: =-SUMIFS(Input!$AA$221:$AA$420,Input!$F$221:$F$420,L170,Input!$Q$221:$Q$420,$D164) -> 0 | M176: =-SUMIFS(Input!$AA$221:$AA$420,Input!$F$221:$F$420,M170,Input!$Q$221:$Q$420,$D164) -> 0
B177: Row 7 | C177: External Funding | D177: =SUMIFS(Calculation!I$5320:I$5519,Input!$Q$221:$Q$420,$D164) -> 0 | E177: =SUMIFS(Calculation!J$5320:J$5519,Input!$Q$221:$Q$420,$D164) -> 0 | F177: =SUMIFS(Calculation!K$5320:K$5519,Input!$Q$221:$Q$420,$D164) -> 0 | G177: =SUMIFS(Calculation!L$5320:L$5519,Input!$Q$221:$Q$420,$D164) -> 0 | H177: =SUMIFS(Calculation!M$5320:M$5519,Input!$Q$221:$Q$420,$D164) -> 0 | I177: =SUMIFS(Calculation!N$5320:N$5519,Input!$Q$221:$Q$420,$D164) -> 0 | J177: =SUMIFS(Calculation!O$5320:O$5519,Input!$Q$221:$Q$420,$D164) -> 0 | K177: =SUMIFS(Calculation!P$5320:P$5519,Input!$Q$221:$Q$420,$D164) -> 0 | L177: =SUMIFS(Calculation!Q$5320:Q$5519,Input!$Q$221:$Q$420,$D164) -> 0 | M177: =SUMIFS(Calculation!R$5320:R$5519,Input!$Q$221:$Q$420,$D164) -> 0
B178: Row 8 | C178: Retirement | D178: =SUMIFS(Calculation!I$11248:I$11447,Input!$F$221:$F$420,D170,Input!$Q$221:$Q$420,$D164) -> 0 | E178: =SUMIFS(Calculation!J$11248:J$11447,Input!$F$221:$F$420,E170,Input!$Q$221:$Q$420,$D164) -> 0 | F178: =SUMIFS(Calculation!K$11248:K$11447,Input!$F$221:$F$420,F170,Input!$Q$221:$Q$420,$D164) -> 0 | G178: =SUMIFS(Calculation!L$11248:L$11447,Input!$F$221:$F$420,G170,Input!$Q$221:$Q$420,$D164) -> 0 | H178: =SUMIFS(Calculation!M$11248:M$11447,Input!$F$221:$F$420,H170,Input!$Q$221:$Q$420,$D164) -> 0 | I178: =SUMIFS(Calculation!N$11248:N$11447,Input!$F$221:$F$420,I170,Input!$Q$221:$Q$420,$D164) -> 0 | J178: =SUMIFS(Calculation!O$11248:O$11447,Input!$F$221:$F$420,J170,Input!$Q$221:$Q$420,$D164) -> 0 | K178: =SUMIFS(Calculation!P$11248:P$11447,Input!$F$221:$F$420,K170,Input!$Q$221:$Q$420,$D164) -> 0 | L178: =SUMIFS(Calculation!Q$11248:Q$11447,Input!$F$221:$F$420,L170,Input!$Q$221:$Q$420,$D164) -> 0 | M178: =SUMIFS(Calculation!R$11248:R$11447,Input!$F$221:$F$420,M170,Input!$Q$221:$Q$420,$D164) -> 0
B179: Row 9 | C179: Closing Balance | D179: =SUM(D173:D178) -> 2934.572055 | E179: 2934.572055 | F179: 2934.572055 | G179: 2934.572055 | H179: 2934.572055 | I179: 2934.572055 | J179: 2934.572055 | K179: 2934.572055 | L179: 2934.572055 | M179: 2934.572055
B180: Row 10
B181: Row 11 | C181: Accumulated Depreciation
B182: Row 12 | C182: Opening Balance | D182: 0 | E182: =D185 -> -38.6127902 | F182: =E185 -> -115.8383706 | G182: =F185 -> -193.063951 | H182: =G185 -> -270.2895314 | I182: =H185 -> -347.5151118 | J182: =I185 -> -424.7406922 | K182: =J185 -> -501.9662726 | L182: =K185 -> -579.1918529 | M182: =L185 -> -656.4174333
B183: Row 13 | C183: Depreciation | D183: =SUMIFS(Calculation!I$11862:I$12061,Input!$Q$221:$Q$420,$D164) -> -38.6127902 | E183: =SUMIFS(Calculation!J$11862:J$12061,Input!$Q$221:$Q$420,$D164) -> -77.22558039 | F183: =SUMIFS(Calculation!K$11862:K$12061,Input!$Q$221:$Q$420,$D164) -> -77.22558039 | G183: =SUMIFS(Calculation!L$11862:L$12061,Input!$Q$221:$Q$420,$D164) -> -77.22558039 | H183: =SUMIFS(Calculation!M$11862:M$12061,Input!$Q$221:$Q$420,$D164) -> -77.22558039 | I183: =SUMIFS(Calculation!N$11862:N$12061,Input!$Q$221:$Q$420,$D164) -> -77.22558039 | J183: =SUMIFS(Calculation!O$11862:O$12061,Input!$Q$221:$Q$420,$D164) -> -77.22558039 | K183: =SUMIFS(Calculation!P$11862:P$12061,Input!$Q$221:$Q$420,$D164) -> -77.22558039 | L183: =SUMIFS(Calculation!Q$11862:Q$12061,Input!$Q$221:$Q$420,$D164) -> -77.22558039 | M183: =SUMIFS(Calculation!R$11862:R$12061,Input!$Q$221:$Q$420,$D164) -> -77.22558039
B184: Row 14 | C184: Retirement | D184: =SUMIFS(Calculation!I$12066:I$12265,Input!$Q$221:$Q$420,$D164) -> 0 | E184: =SUMIFS(Calculation!J$12066:J$12265,Input!$Q$221:$Q$420,$D164) -> 0 | F184: =SUMIFS(Calculation!K$12066:K$12265,Input!$Q$221:$Q$420,$D164) -> 0 | G184: =SUMIFS(Calculation!L$12066:L$12265,Input!$Q$221:$Q$420,$D164) -> 0 | H184: =SUMIFS(Calculation!M$12066:M$12265,Input!$Q$221:$Q$420,$D164) -> 0 | I184: =SUMIFS(Calculation!N$12066:N$12265,Input!$Q$221:$Q$420,$D164) -> 0 | J184: =SUMIFS(Calculation!O$12066:O$12265,Input!$Q$221:$Q$420,$D164) -> 0 | K184: =SUMIFS(Calculation!P$12066:P$12265,Input!$Q$221:$Q$420,$D164) -> 0 | L184: =SUMIFS(Calculation!Q$12066:Q$12265,Input!$Q$221:$Q$420,$D164) -> 0 | M184: =SUMIFS(Calculation!R$12066:R$12265,Input!$Q$221:$Q$420,$D164) -> 0
B185: Row 15 | C185: Closing Balance | D185: =SUM(D182:D184) -> -38.6127902 | E185: -115.8383706 | F185: -193.063951 | G185: -270.2895314 | H185: -347.5151118 | I185: -424.7406922 | J185: -501.9662726 | K185: -579.1918529 | L185: -656.4174333 | M185: -733.6430137
B186: Row 16
B187: Row 17 | C187: Net Asset | D187: =D179+D185 -> 2895.959265 | E187: 2818.733684 | F187: 2741.508104 | G187: 2664.282524 | H187: 2587.056943 | I187: 2509.831363 | J187: 2432.605782 | K187: 2355.380202 | L187: 2278.154622 | M187: 2200.929041
C189: Asset Category | D189: =Input!C$48 -> Distribution Mains - Metallic
A190: 11 | C190: ="Table 2-"&A190&": "&""&$D189 -> Table 2-11: Distribution Mains - Metallic
C191: (Thousands of Dollars)
D193: Col. 1 | E193: Col. 2 | F193: Col. 3 | G193: Col. 4 | H193: Col. 5 | I193: Col. 6 | J193: Col. 7 | K193: Col. 8 | L193: Col. 9 | M193: Col. 10
C195: Description | D195: =Calculation!I$2 -> 2019 | E195: =Calculation!J$2 -> 2020 | F195: =Calculation!K$2 -> 2021 | G195: =Calculation!L$2 -> 2022 | H195: =Calculation!M$2 -> 2023 | I195: =Calculation!N$2 -> 2024 | J195: =Calculation!O$2 -> 2025 | K195: =Calculation!P$2 -> 2026 | L195: =Calculation!Q$2 -> 2027 | M195: =Calculation!R$2 -> 2028
B196: Row 1
B197: Row 2 | C197: Gross Fixed Assets
B198: Row 3 | C198: Opening Balance | D198: 0 | E198: =D204 -> 31120.25879 | F198: 25915.49615 | G198: 25915.49615 | H198: 25915.49615 | I198: 25915.49615 | J198: 25915.49615 | K198: 25915.49615 | L198: 25915.49615 | M198: 25915.49615
B199: Row 4 | C199: Capital Expenditure | D199: =-SUMIFS(Input!$Z$221:$Z$420,Input!$F$221:$F$420,D195,Input!$Q$221:$Q$420,$D189) -> 36719.51504 | E199: =-SUMIFS(Input!$Z$221:$Z$420,Input!$F$221:$F$420,E195,Input!$Q$221:$Q$420,$D189) -> 0 | F199: =-SUMIFS(Input!$Z$221:$Z$420,Input!$F$221:$F$420,F195,Input!$Q$221:$Q$420,$D189) -> 0 | G199: =-SUMIFS(Input!$Z$221:$Z$420,Input!$F$221:$F$420,G195,Input!$Q$221:$Q$420,$D189) -> 0 | H199: =-SUMIFS(Input!$Z$221:$Z$420,Input!$F$221:$F$420,H195,Input!$Q$221:$Q$420,$D189) -> 0 | I199: =-SUMIFS(Input!$Z$221:$Z$420,Input!$F$221:$F$420,I195,Input!$Q$221:$Q$420,$D189) -> 0 | J199: =-SUMIFS(Input!$Z$221:$Z$420,Input!$F$221:$F$420,J195,Input!$Q$221:$Q$420,$D189) -> 0 | K199: =-SUMIFS(Input!$Z$221:$Z$420,Input!$F$221:$F$420,K195,Input!$Q$221:$Q$420,$D189) -> 0 | L199: =-SUMIFS(Input!$Z$221:$Z$420,Input!$F$221:$F$420,L195,Input!$Q$221:$Q$420,$D189) -> 0 | M199: =-SUMIFS(Input!$Z$221:$Z$420,Input!$F$221:$F$420,M195,Input!$Q$221:$Q$420,$D189) -> 0
B200: Row 5 | C200: Interest During Construction | D200: =SUMIFS(Calculation!I$10226:I$10425,Input!$Q$221:$Q$420,$D189) -> 458.3948657 | E200: =SUMIFS(Calculation!J$10226:J$10425,Input!$Q$221:$Q$420,$D189) -> -74.35375203 | F200: =SUMIFS(Calculation!K$10226:K$10425,Input!$Q$221:$Q$420,$D189) -> 0 | G200: =SUMIFS(Calculation!L$10226:L$10425,Input!$Q$221:$Q$420,$D189) -> 0 | H200: =SUMIFS(Calculation!M$10226:M$10425,Input!$Q$221:$Q$420,$D189) -> 0 | I200: =SUMIFS(Calculation!N$10226:N$10425,Input!$Q$221:$Q$420,$D189) -> 0 | J200: =SUMIFS(Calculation!O$10226:O$10425,Input!$Q$221:$Q$420,$D189) -> 0 | K200: =SUMIFS(Calculation!P$10226:P$10425,Input!$Q$221:$Q$420,$D189) -> 0 | L200: =SUMIFS(Calculation!Q$10226:Q$10425,Input!$Q$221:$Q$420,$D189) -> 0 | M200: =SUMIFS(Calculation!R$10226:R$10425,Input!$Q$221:$Q$420,$D189) -> 0
B201: Row 6 | C201: Capitalized Overhead | D201: =-SUMIFS(Input!$AA$221:$AA$420,Input!$F$221:$F$420,D195,Input!$Q$221:$Q$420,$D189) -> 104.1578912 | E201: =-SUMIFS(Input!$AA$221:$AA$420,Input!$F$221:$F$420,E195,Input!$Q$221:$Q$420,$D189) -> 0 | F201: =-SUMIFS(Input!$AA$221:$AA$420,Input!$F$221:$F$420,F195,Input!$Q$221:$Q$420,$D189) -> 0 | G201: =-SUMIFS(Input!$AA$221:$AA$420,Input!$F$221:$F$420,G195,Input!$Q$221:$Q$420,$D189) -> 0 | H201: =-SUMIFS(Input!$AA$221:$AA$420,Input!$F$221:$F$420,H195,Input!$Q$221:$Q$420,$D189) -> 0 | I201: =-SUMIFS(Input!$AA$221:$AA$420,Input!$F$221:$F$420,I195,Input!$Q$221:$Q$420,$D189) -> 0 | J201: =-SUMIFS(Input!$AA$221:$AA$420,Input!$F$221:$F$420,J195,Input!$Q$221:$Q$420,$D189) -> 0 | K201: =-SUMIFS(Input!$AA$221:$AA$420,Input!$F$221:$F$420,K195,Input!$Q$221:$Q$420,$D189) -> 0 | L201: =-SUMIFS(Input!$AA$221:$AA$420,Input!$F$221:$F$420,L195,Input!$Q$221:$Q$420,$D189) -> 0 | M201: =-SUMIFS(Input!$AA$221:$AA$420,Input!$F$221:$F$420,M195,Input!$Q$221:$Q$420,$D189) -> 0
B202: Row 7 | C202: External Funding | D202: =SUMIFS(Calculation!I$5320:I$5519,Input!$Q$221:$Q$420,$D189) -> -6161.809 | E202: =SUMIFS(Calculation!J$5320:J$5519,Input!$Q$221:$Q$420,$D189) -> -5130.40889 | F202: =SUMIFS(Calculation!K$5320:K$5519,Input!$Q$221:$Q$420,$D189) -> 0 | G202: =SUMIFS(Calculation!L$5320:L$5519,Input!$Q$221:$Q$420,$D189) -> 0 | H202: =SUMIFS(Calculation!M$5320:M$5519,Input!$Q$221:$Q$420,$D189) -> 0 | I202: =SUMIFS(Calculation!N$5320:N$5519,Input!$Q$221:$Q$420,$D189) -> 0 | J202: =SUMIFS(Calculation!O$5320:O$5519,Input!$Q$221:$Q$420,$D189) -> 0 | K202: =SUMIFS(Calculation!P$5320:P$5519,Input!$Q$221:$Q$420,$D189) -> 0 | L202: =SUMIFS(Calculation!Q$5320:Q$5519,Input!$Q$221:$Q$420,$D189) -> 0 | M202: =SUMIFS(Calculation!R$5320:R$5519,Input!$Q$221:$Q$420,$D189) -> 0
B203: Row 8 | C203: Retirement | D203: =SUMIFS(Calculation!I$11248:I$11447,Input!$F$221:$F$420,D195,Input!$Q$221:$Q$420,$D189) -> 0 | E203: =SUMIFS(Calculation!J$11248:J$11447,Input!$F$221:$F$420,E195,Input!$Q$221:$Q$420,$D189) -> 0 | F203: =SUMIFS(Calculation!K$11248:K$11447,Input!$F$221:$F$420,F195,Input!$Q$221:$Q$420,$D189) -> 0 | G203: =SUMIFS(Calculation!L$11248:L$11447,Input!$F$221:$F$420,G195,Input!$Q$221:$Q$420,$D189) -> 0 | H203: =SUMIFS(Calculation!M$11248:M$11447,Input!$F$221:$F$420,H195,Input!$Q$221:$Q$420,$D189) -> 0 | I203: =SUMIFS(Calculation!N$11248:N$11447,Input!$F$221:$F$420,I195,Input!$Q$221:$Q$420,$D189) -> 0 | J203: =SUMIFS(Calculation!O$11248:O$11447,Input!$F$221:$F$420,J195,Input!$Q$221:$Q$420,$D189) -> 0 | K203: =SUMIFS(Calculation!P$11248:P$11447,Input!$F$221:$F$420,K195,Input!$Q$221:$Q$420,$D189) -> 0 | L203: =SUMIFS(Calculation!Q$11248:Q$11447,Input!$F$221:$F$420,L195,Input!$Q$221:$Q$420,$D189) -> 0 | M203: =SUMIFS(Calculation!R$11248:R$11447,Input!$F$221:$F$420,M195,Input!$Q$221:$Q$420,$D189) -> 0
B204: Row 9 | C204: Closing Balance | D204: =SUM(D198:D203) -> 31120.25879 | E204: 25915.49615 | F204: 25915.49615 | G204: 25915.49615 | H204: 25915.49615 | I204: 25915.49615 | J204: 25915.49615 | K204: 25915.49615 | L204: 25915.49615 | M204: 25915.49615
B205: Row 10
B206: Row 11 | C206: Accumulated Depreciation
B207: Row 12 | C207: Opening Balance | D207: 0 | E207: =D210 -> -444.5751256 | F207: -1110.664121 | G207: -1851.106868 | H207: -2591.549615 | I207: -3331.992362 | J207: -4072.435109 | K207: -4812.877856 | L207: -5553.320604 | M207: -6293.763351
B208: Row 13 | C208: Depreciation | D208: =SUMIFS(Calculation!I$11862:I$12061,Input!$Q$221:$Q$420,$D189) -> -444.5751256 | E208: =SUMIFS(Calculation!J$11862:J$12061,Input!$Q$221:$Q$420,$D189) -> -666.0889951 | F208: =SUMIFS(Calculation!K$11862:K$12061,Input!$Q$221:$Q$420,$D189) -> -740.4427471 | G208: =SUMIFS(Calculation!L$11862:L$12061,Input!$Q$221:$Q$420,$D189) -> -740.4427471 | H208: =SUMIFS(Calculation!M$11862:M$12061,Input!$Q$221:$Q$420,$D189) -> -740.4427471 | I208: =SUMIFS(Calculation!N$11862:N$12061,Input!$Q$221:$Q$420,$D189) -> -740.4427471 | J208: =SUMIFS(Calculation!O$11862:O$12061,Input!$Q$221:$Q$420,$D189) -> -740.4427471 | K208: =SUMIFS(Calculation!P$11862:P$12061,Input!$Q$221:$Q$420,$D189) -> -740.4427471 | L208: =SUMIFS(Calculation!Q$11862:Q$12061,Input!$Q$221:$Q$420,$D189) -> -740.4427471 | M208: =SUMIFS(Calculation!R$11862:R$12061,Input!$Q$221:$Q$420,$D189) -> -740.4427471
B209: Row 14 | C209: Retirement | D209: =SUMIFS(Calculation!I$12066:I$12265,Input!$Q$221:$Q$420,$D189) -> 0 | E209: =SUMIFS(Calculation!J$12066:J$12265,Input!$Q$221:$Q$420,$D189) -> 0 | F209: =SUMIFS(Calculation!K$12066:K$12265,Input!$Q$221:$Q$420,$D189) -> 0 | G209: =SUMIFS(Calculation!L$12066:L$12265,Input!$Q$221:$Q$420,$D189) -> 0 | H209: =SUMIFS(Calculation!M$12066:M$12265,Input!$Q$221:$Q$420,$D189) -> 0 | I209: =SUMIFS(Calculation!N$12066:N$12265,Input!$Q$221:$Q$420,$D189) -> 0 | J209: =SUMIFS(Calculation!O$12066:O$12265,Input!$Q$221:$Q$420,$D189) -> 0 | K209: =SUMIFS(Calculation!P$12066:P$12265,Input!$Q$221:$Q$420,$D189) -> 0 | L209: =SUMIFS(Calculation!Q$12066:Q$12265,Input!$Q$221:$Q$420,$D189) -> 0 | M209: =SUMIFS(Calculation!R$12066:R$12265,Input!$Q$221:$Q$420,$D189) -> 0
B210: Row 15 | C210: Closing Balance | D210: =SUM(D207:D209) -> -444.5751256 | E210: -1110.664121 | F210: -1851.106868 | G210: -2591.549615 | H210: -3331.992362 | I210: -4072.435109 | J210: -4812.877856 | K210: -5553.320604 | L210: -6293.763351 | M210: -7034.206098
B211: Row 16
B212: Row 17 | C212: Net Asset | D212: =D204+D210 -> 30675.68367 | E212: 24804.83203 | F212: 24064.38928 | G212: 23323.94653 | H212: 22583.50379 | I212: 21843.06104 | J212: 21102.61829 | K212: 20362.17555 | L212: 19621.7328 | M212: 18881.29005
C214: Asset Category | D214: =Input!C$49 -> Distribution Land Rights
A215: 12 | C215: ="Table 2-"&A215&": "&""&$D214 -> Table 2-12: Distribution Land Rights
C216: (Thousands of Dollars)
D218: Col. 1 | E218: Col. 2 | F218: Col. 3 | G218: Col. 4 | H218: Col. 5 | I218: Col. 6 | J218: Col. 7 | K218: Col. 8 | L218: Col. 9 | M218: Col. 10
C220: Description | D220: =Calculation!I$2 -> 2019 | E220: =Calculation!J$2 -> 2020 | F220: =Calculation!K$2 -> 2021 | G220: =Calculation!L$2 -> 2022 | H220: =Calculation!M$2 -> 2023 | I220: =Calculation!N$2 -> 2024 | J220: =Calculation!O$2 -> 2025 | K220: =Calculation!P$2 -> 2026 | L220: =Calculation!Q$2 -> 2027 | M220: =Calculation!R$2 -> 2028
B221: Row 1
B222: Row 2 | C222: Gross Fixed Assets
B223: Row 3 | C223: Opening Balance | D223: 0 | E223: =D229 -> 22.28822534 | F223: =E229 -> 37.22725711 | G223: =F229 -> 37.22725711 | H223: =G229 -> 37.22725711 | I223: =H229 -> 37.22725711 | J223: =I229 -> 37.22725711 | K223: =J229 -> 37.22725711 | L223: =K229 -> 37.22725711 | M223: =L229 -> 37.22725711
B224: Row 4 | C224: Capital Expenditure | D224: =-SUMIFS(Input!$Z$221:$Z$420,Input!$F$221:$F$420,D220,Input!$Q$221:$Q$420,$D214) -> 26.29839394 | E224: =-SUMIFS(Input!$Z$221:$Z$420,Input!$F$221:$F$420,E220,Input!$Q$221:$Q$420,$D214) -> 26.29839394 | F224: =-SUMIFS(Input!$Z$221:$Z$420,Input!$F$221:$F$420,F220,Input!$Q$221:$Q$420,$D214) -> 0 | G224: =-SUMIFS(Input!$Z$221:$Z$420,Input!$F$221:$F$420,G220,Input!$Q$221:$Q$420,$D214) -> 0 | H224: =-SUMIFS(Input!$Z$221:$Z$420,Input!$F$221:$F$420,H220,Input!$Q$221:$Q$420,$D214) -> 0 | I224: =-SUMIFS(Input!$Z$221:$Z$420,Input!$F$221:$F$420,I220,Input!$Q$221:$Q$420,$D214) -> 0 | J224: =-SUMIFS(Input!$Z$221:$Z$420,Input!$F$221:$F$420,J220,Input!$Q$221:$Q$420,$D214) -> 0 | K224: =-SUMIFS(Input!$Z$221:$Z$420,Input!$F$221:$F$420,K220,Input!$Q$221:$Q$420,$D214) -> 0 | L224: =-SUMIFS(Input!$Z$221:$Z$420,Input!$F$221:$F$420,L220,Input!$Q$221:$Q$420,$D214) -> 0 | M224: =-SUMIFS(Input!$Z$221:$Z$420,Input!$F$221:$F$420,M220,Input!$Q$221:$Q$420,$D214) -> 0
B225: Row 5 | C225: Interest During Construction | D225: =SUMIFS(Calculation!I$10226:I$10425,Input!$Q$221:$Q$420,$D214) -> 0.3283008708 | E225: =SUMIFS(Calculation!J$10226:J$10425,Input!$Q$221:$Q$420,$D214) -> 0.2442521705 | F225: =SUMIFS(Calculation!K$10226:K$10425,Input!$Q$221:$Q$420,$D214) -> 0 | G225: =SUMIFS(Calculation!L$10226:L$10425,Input!$Q$221:$Q$420,$D214) -> 0 | H225: =SUMIFS(Calculation!M$10226:M$10425,Input!$Q$221:$Q$420,$D214) -> 0 | I225: =SUMIFS(Calculation!N$10226:N$10425,Input!$Q$221:$Q$420,$D214) -> 0 | J225: =SUMIFS(Calculation!O$10226:O$10425,Input!$Q$221:$Q$420,$D214) -> 0 | K225: =SUMIFS(Calculation!P$10226:P$10425,Input!$Q$221:$Q$420,$D214) -> 0 | L225: =SUMIFS(Calculation!Q$10226:Q$10425,Input!$Q$221:$Q$420,$D214) -> 0 | M225: =SUMIFS(Calculation!R$10226:R$10425,Input!$Q$221:$Q$420,$D214) -> 0
B226: Row 6 | C226: Capitalized Overhead | D226: =-SUMIFS(Input!$AA$221:$AA$420,Input!$F$221:$F$420,D220,Input!$Q$221:$Q$420,$D214) -> 0.07459753356 | E226: =-SUMIFS(Input!$AA$221:$AA$420,Input!$F$221:$F$420,E220,Input!$Q$221:$Q$420,$D214) -> 0.1582160688 | F226: =-SUMIFS(Input!$AA$221:$AA$420,Input!$F$221:$F$420,F220,Input!$Q$221:$Q$420,$D214) -> 0 | G226: =-SUMIFS(Input!$AA$221:$AA$420,Input!$F$221:$F$420,G220,Input!$Q$221:$Q$420,$D214) -> 0 | H226: =-SUMIFS(Input!$AA$221:$AA$420,Input!$F$221:$F$420,H220,Input!$Q$221:$Q$420,$D214) -> 0 | I226: =-SUMIFS(Input!$AA$221:$AA$420,Input!$F$221:$F$420,I220,Input!$Q$221:$Q$420,$D214) -> 0 | J226: =-SUMIFS(Input!$AA$221:$AA$420,Input!$F$221:$F$420,J220,Input!$Q$221:$Q$420,$D214) -> 0 | K226: =-SUMIFS(Input!$AA$221:$AA$420,Input!$F$221:$F$420,K220,Input!$Q$221:$Q$420,$D214) -> 0 | L226: =-SUMIFS(Input!$AA$221:$AA$420,Input!$F$221:$F$420,L220,Input!$Q$221:$Q$420,$D214) -> 0 | M226: =-SUMIFS(Input!$AA$221:$AA$420,Input!$F$221:$F$420,M220,Input!$Q$221:$Q$420,$D214) -> 0
B227: Row 7 | C227: External Funding | D227: =SUMIFS(Calculation!I$5320:I$5519,Input!$Q$221:$Q$420,$D214) -> -4.413067012 | E227: =SUMIFS(Calculation!J$5320:J$5519,Input!$Q$221:$Q$420,$D214) -> -11.76183041 | F227: =SUMIFS(Calculation!K$5320:K$5519,Input!$Q$221:$Q$420,$D214) -> 0 | G227: =SUMIFS(Calculation!L$5320:L$5519,Input!$Q$221:$Q$420,$D214) -> 0 | H227: =SUMIFS(Calculation!M$5320:M$5519,Input!$Q$221:$Q$420,$D214) -> 0 | I227: =SUMIFS(Calculation!N$5320:N$5519,Input!$Q$221:$Q$420,$D214) -> 0 | J227: =SUMIFS(Calculation!O$5320:O$5519,Input!$Q$221:$Q$420,$D214) -> 0 | K227: =SUMIFS(Calculation!P$5320:P$5519,Input!$Q$221:$Q$420,$D214) -> 0 | L227: =SUMIFS(Calculation!Q$5320:Q$5519,Input!$Q$221:$Q$420,$D214) -> 0 | M227: =SUMIFS(Calculation!R$5320:R$5519,Input!$Q$221:$Q$420,$D214) -> 0
B228: Row 8 | C228: Retirement | D228: =SUMIFS(Calculation!I$11248:I$11447,Input!$F$221:$F$420,D220,Input!$Q$221:$Q$420,$D214) -> 0 | E228: =SUMIFS(Calculation!J$11248:J$11447,Input!$F$221:$F$420,E220,Input!$Q$221:$Q$420,$D214) -> 0 | F228: =SUMIFS(Calculation!K$11248:K$11447,Input!$F$221:$F$420,F220,Input!$Q$221:$Q$420,$D214) -> 0 | G228: =SUMIFS(Calculation!L$11248:L$11447,Input!$F$221:$F$420,G220,Input!$Q$221:$Q$420,$D214) -> 0 | H228: =SUMIFS(Calculation!M$11248:M$11447,Input!$F$221:$F$420,H220,Input!$Q$221:$Q$420,$D214) -> 0 | I228: =SUMIFS(Calculation!N$11248:N$11447,Input!$F$221:$F$420,I220,Input!$Q$221:$Q$420,$D214) -> 0 | J228: =SUMIFS(Calculation!O$11248:O$11447,Input!$F$221:$F$420,J220,Input!$Q$221:$Q$420,$D214) -> 0 | K228: =SUMIFS(Calculation!P$11248:P$11447,Input!$F$221:$F$420,K220,Input!$Q$221:$Q$420,$D214) -> 0 | L228: =SUMIFS(Calculation!Q$11248:Q$11447,Input!$F$221:$F$420,L220,Input!$Q$221:$Q$420,$D214) -> 0 | M228: =SUMIFS(Calculation!R$11248:R$11447,Input!$F$221:$F$420,M220,Input!$Q$221:$Q$420,$D214) -> 0
B229: Row 9 | C229: Closing Balance | D229: =SUM(D223:D228) -> 22.28822534 | E229: 37.22725711 | F229: 37.22725711 | G229: 37.22725711 | H229: 37.22725711 | I229: 37.22725711 | J229: 37.22725711 | K229: 37.22725711 | L229: 37.22725711 | M229: 37.22725711
B230: Row 10
B231: Row 11 | C231: Accumulated Depreciation
B232: Row 12 | C232: Opening Balance | D232: 0 | E232: =D235 -> -0.1826903716 | F232: =E235 -> -0.6097886131 | G232: =F235 -> -1.220071517 | H232: =G235 -> -1.83035442 | I232: =H235 -> -2.440637323 | J232: =I235 -> -3.050920227 | K232: =J235 -> -3.66120313 | L232: =K235 -> -4.271486034 | M232: =L235 -> -4.881768937
B233: Row 13 | C233: Depreciation | D233: =SUMIFS(Calculation!I$11862:I$12061,Input!$Q$221:$Q$420,$D214) -> -0.1826903716 | E233: =SUMIFS(Calculation!J$11862:J$12061,Input!$Q$221:$Q$420,$D214) -> -0.4270982415 | F233: =SUMIFS(Calculation!K$11862:K$12061,Input!$Q$221:$Q$420,$D214) -> -0.6102829034 | G233: =SUMIFS(Calculation!L$11862:L$12061,Input!$Q$221:$Q$420,$D214) -> -0.6102829034 | H233: =SUMIFS(Calculation!M$11862:M$12061,Input!$Q$221:$Q$420,$D214) -> -0.6102829034 | I233: =SUMIFS(Calculation!N$11862:N$12061,Input!$Q$221:$Q$420,$D214) -> -0.6102829034 | J233: =SUMIFS(Calculation!O$11862:O$12061,Input!$Q$221:$Q$420,$D214) -> -0.6102829034 | K233: =SUMIFS(Calculation!P$11862:P$12061,Input!$Q$221:$Q$420,$D214) -> -0.6102829034 | L233: =SUMIFS(Calculation!Q$11862:Q$12061,Input!$Q$221:$Q$420,$D214) -> -0.6102829034 | M233: =SUMIFS(Calculation!R$11862:R$12061,Input!$Q$221:$Q$420,$D214) -> -0.6102829034
B234: Row 14 | C234: Retirement | D234: =SUMIFS(Calculation!I$12066:I$12265,Input!$Q$221:$Q$420,$D214) -> 0 | E234: =SUMIFS(Calculation!J$12066:J$12265,Input!$Q$221:$Q$420,$D214) -> 0 | F234: =SUMIFS(Calculation!K$12066:K$12265,Input!$Q$221:$Q$420,$D214) -> 0 | G234: =SUMIFS(Calculation!L$12066:L$12265,Input!$Q$221:$Q$420,$D214) -> 0 | H234: =SUMIFS(Calculation!M$12066:M$12265,Input!$Q$221:$Q$420,$D214) -> 0 | I234: =SUMIFS(Calculation!N$12066:N$12265,Input!$Q$221:$Q$420,$D214) -> 0 | J234: =SUMIFS(Calculation!O$12066:O$12265,Input!$Q$221:$Q$420,$D214) -> 0 | K234: =SUMIFS(Calculation!P$12066:P$12265,Input!$Q$221:$Q$420,$D214) -> 0 | L234: =SUMIFS(Calculation!Q$12066:Q$12265,Input!$Q$221:$Q$420,$D214) -> 0 | M234: =SUMIFS(Calculation!R$12066:R$12265,Input!$Q$221:$Q$420,$D214) -> 0
B235: Row 15 | C235: Closing Balance | D235: =SUM(D232:D234) -> -0.1826903716 | E235: -0.6097886131 | F235: -1.220071517 | G235: -1.83035442 | H235: -2.440637323 | I235: -3.050920227 | J235: -3.66120313 | K235: -4.271486034 | L235: -4.881768937 | M235: -5.49205184
B236: Row 16
B237: Row 17 | C237: Net Asset | D237: =D229+D235 -> 22.10553497 | E237: 36.6174685 | F237: 36.00718559 | G237: 35.39690269 | H237: 34.78661978 | I237: 34.17633688 | J237: 33.56605398 | K237: 32.95577107 | L237: 32.34548817 | M237: 31.73520527
C239: Asset Category | D239: =Input!C$50 -> Distribution Mains - Plastic
A240: 13 | C240: ="Table 2-"&A240&": "&""&$D239 -> Table 2-13: Distribution Mains - Plastic
... 130 more rows

Sheet Exhibit 3
A1: EXHIBIT 3 - Revenue Adjustment Tables
A3: 4 | B3: ="Table 3-"&$A3&": "&"10 - Year Cumulative Forecasted Revenues" -> Table 3-4: 10 - Year Cumulative Forecasted Revenues
B4: (Thousands of Dollars)
D6: Col. 1
C8: Description | D8: Cumulative
B9: Row 1 | C9: Distribution Revenue | D9: =Calculation!G15096 -> 58534.55127
B10: Row 2 | C10: Non-distribution Revenue | D10: =Calculation!G15103 -> 27056.49741
B11: Row 3 | C11: Sum | D11: =SUM(D9:D10) -> 85591.04868
A14: 5 | B14: ="Table 3-"&$A14&": "&"Distribution Revenue Requirement Adjustment" -> Table 3-5: Distribution Revenue Requirement Adjustment
B15: (Thousands of Dollars)
D17: Col. 1
C19: Description | D19: Calculation | E19: Cumulative
B20: Row 1 | C20: CIP Revenue Requirement | E20: ='Exhibit 1'!N51 -> 75583.26135
B21: Row 2
B22: Row 3 | C22: Adjustments
B23: Row 4 | C23: Less: Grant Funding | E23: =-$N$71 -> -14911.85228
B24: Row 5 | C24: Less: Municipal Tax Holidays | E24: =-$N$92 -> -2208.39203
B25: Row 6 | C25: Add: LEAP Funding | E25: =SUM(Calculation!$H$13978:$R$13978) -> 71.53423258
B26: Row 7 | C26: Adjusted Distribution Revenue Requirement | E26: =E20+E23+E24+E25 -> 58534.55127
B27: Row 8
B28: Row 9 | C28: Cumulative Volume (m3) | E28: =Calculation!$G$170 -> 342186740.6
B29: Row 10
B30: Row 11 | C30: CIP Revenue per m3 ($ / m3) | D30: Row 1 / Row 9 | E30: 0.2209
B31: Row 12 | C31: Adjusted Revenue per m3 ($ / m3) | D31: Row 7 / Row 9 | E31: =E26/E28*1000 -> 0.1710602555
A34: 10 | B34: ="Table 3-"&A34&": "&"Ten Year Operating Revenue" -> Table 3-10: Ten Year Operating Revenue
B35: (Thousands of Dollars)
C37: EPCOR Southern Bruce System | D37: Col. 1 | E37: Col. 2 | F37: Col. 3 | G37: Col. 4 | H37: Col. 5 | I37: Col. 6 | J37: Col. 7 | K37: Col. 8 | L37: Col. 9 | M37: Col. 10 | N37: Col. 11
C39: Description | D39: 2019 | E39: 2020 | F39: 2021 | G39: 2022 | H39: 2023 | I39: 2024 | J39: 2025 | K39: 2026 | L39: 2027 | M39: 2028 | N39: Cumulative | S39: Check
B40: Row 1 | C40: Distribution Charge | D40: =Calculation!I15096 -> 589.3574572 | E40: =Calculation!J15096 -> 3049.735184 | F40: =Calculation!K15096 -> 4620.571579 | G40: =Calculation!L15096 -> 5818.265115 | H40: =Calculation!M15096 -> 6645.722079 | I40: =Calculation!N15096 -> 7189.662155 | J40: =Calculation!O15096 -> 7454.57377 | K40: =Calculation!P15096 -> 7593.705961 | L40: =Calculation!Q15096 -> 7726.727811 | M40: =Calculation!R15096 -> 7846.230162 | N40: =SUM(D40:M40) -> 58534.55127
B41: Row 2 | C41: Non-distribution Charges | D41: =Calculation!I$16 -> 318.8792648 | E41: =Calculation!J$16 -> 1273.195539 | F41: =Calculation!K$16 -> 2046.559935 | G41: =Calculation!L$16 -> 2677.668271 | H41: =Calculation!M$16 -> 3093.303448 | I41: =Calculation!N$16 -> 3390.654054 | J41: =Calculation!O$16 -> 3497.34777 | K41: =Calculation!P$16 -> 3543.60504 | L41: =Calculation!Q$16 -> 3587.933854 | M41: =Calculation!R$16 -> 3627.350232 | N41: =SUM(D41:M41) -> 27056.49741
B42: Row 3 | C42: Total Revenues | D42: =SUM(D40:D41) -> 908.236722 | E42: 4322.930723 | F42: 6667.131514 | G42: 8495.933386 | H42: 9739.025527 | I42: 10580.31621 | J42: 10951.92154 | K42: 11137.311 | L42: 11314.66167 | M42: 11473.58039 | N42: 85591.04868 | S42: =$N$42-$G$146-$G$172-$G$196-$G$219 -> 0
A45: 11 | B45: ="Table 3-"&A45&": "&"Rate of Return" -> Table 3-11: Rate of Return
D47: Col. 1 | E47: Col. 2
C48: Description | D48: Weight | E48: Cost
B49: Row 1 | C49: Equity | D49: ='Exhibit 5'!D7 -> 0.36 | E49: ='Exhibit 5'!D16 -> 0.0878
B50: Row 2 | C50: Long-term Debt | D50: ='Exhibit 5'!D8 -> 0.6 | E50: ='Exhibit 5'!D17 -> 0.0372
B51: Row 3 | C51: Short-term Debt | D51: ='Exhibit 5'!D9 -> 0.04 | E51: ='Exhibit 5'!D18 -> 0.0176
B52: Row 4 | C52: WACC | D52: =SUM(D49:D51) -> 1 | E52: ='Exhibit 5'!D19 -> 0.054632
A55: 12 | B55: ="Table 3-"&A55&": "&"Revenue Requirement Impact of Grant Funding" -> Table 3-12: Revenue Requirement Impact of Grant Funding
B56: (Thousands of Dollars)
D58: Col. 1 | E58: Col. 2 | F58: Col. 3 | G58: Col. 4 | H58: Col. 5 | I58: Col. 6 | J58: Col. 7 | K58: Col. 8 | L58: Col. 9 | M58: Col. 10 | N58: Col. 11
C60: Description | D60: 2019 | E60: 2020 | F60: 2021 | G60: 2022 | H60: 2023 | I60: 2024 | J60: 2025 | K60: 2026 | L60: 2027 | M60: 2028 | N60: Cumulative
B61: Row 1 | C61: Balance Brought Forward | D61: 0 | E61: =D64 -> 8543.81793 | F61: 21590.65328 | G61: 21000.74459 | H61: 20410.8359 | I61: 19820.9272 | J61: 19231.01851 | K61: 18641.10982 | L61: 18051.20113 | M61: 17461.29244 | N61: =SUM(D61:M61) -> 164751.6008
B62: Row 2 | C62: Additions (Including IDC) | D62: =-Calculation!I7154 -> 8662.837161 | E62: =-Calculation!J7154 -> 13658.8307 | F62: =-Calculation!K7154 -> 0 | G62: =-Calculation!L7154 -> 0 | H62: =-Calculation!M7154 -> 0 | I62: =-Calculation!N7154 -> 0 | J62: =-Calculation!O7154 -> 0 | K62: =-Calculation!P7154 -> 0 | L62: =-Calculation!Q7154 -> 0 | M62: =-Calculation!R7154 -> 0 | N62: =SUM(D62:M62) -> 22321.66786
B63: Row 3 | C63: Depreciation | D63: =-Calculation!I7972 -> -119.0192311 | E63: =-Calculation!J7972 -> -611.9953508 | F63: =-Calculation!K7972 -> -589.9086906 | G63: =-Calculation!L7972 -> -589.9086906 | H63: =-Calculation!M7972 -> -589.9086906 | I63: =-Calculation!N7972 -> -589.9086906 | J63: =-Calculation!O7972 -> -589.9086906 | K63: =-Calculation!P7972 -> -589.9086906 | L63: =-Calculation!Q7972 -> -589.9086906 | M63: =-Calculation!R7972 -> -589.9086906 | N63: =SUM(D63:M63) -> -5450.284107
B64: Row 4 | C64: Closing Balance | D64: =SUM(D61:D63) -> 8543.81793 | E64: 21590.65328 | F64: 21000.74459 | G64: 20410.8359 | H64: 19820.9272 | I64: 19231.01851 | J64: 18641.10982 | K64: 18051.20113 | L64: 17461.29244 | M64: 16871.38375 | N64: =SUM(D64:M64) -> 181622.9846
B65: Row 5
B66: Row 6 | C66: Mid-Year Grant Funded Asset | D66: =AVERAGE(D61,D64) -> 4271.908965 | E66: 15067.2356 | F66: 21295.69893 | G66: 20705.79024 | H66: 20115.88155 | I66: 19525.97286 | J66: 18936.06417 | K66: 18346.15548 | L66: 17756.24679 | M66: 17166.3381 | N66: =SUM(D66:M66) -> 173187.2927
B67: Row 7
B68: Row 8 | C68: Return on Grant Funded Asset | D68: =D$66*Input!$F$39 -> 233.3829306 | E68: =E$66*Input!$F$39 -> 823.1532155 | F68: =F$66*Input!$F$39 -> 1163.426624 | G68: =G$66*Input!$F$39 -> 1131.198732 | H68: =H$66*Input!$F$39 -> 1098.970841 | I68: =I$66*Input!$F$39 -> 1066.742949 | J68: =J$66*Input!$F$39 -> 1034.515058 | K68: =K$66*Input!$F$39 -> 1002.287166 | L68: =L$66*Input!$F$39 -> 970.0592745 | M68: =M$66*Input!$F$39 -> 937.8313829 | N68: =N$66*Input!$F$39 -> 9461.568174
B69: Row 9 | C69: Depreciation Recovery | D69: =-D63 -> 119.0192311 | E69: 611.9953508 | F69: 589.9086906 | G69: 589.9086906 | H69: 589.9086906 | I69: 589.9086906 | J69: 589.9086906 | K69: 589.9086906 | L69: 589.9086906 | M69: 589.9086906 | N69: =SUM(D69:M69) -> 5450.284107
B70: Row 10
B71: Row 11 | C71: Total Revenue Requirement Impact | D71: =SUM(D68:D69) -> 352.4021617 | E71: 1435.148566 | F71: 1753.335315 | G71: 1721.107423 | H71: 1688.879531 | I71: 1656.65164 | J71: 1624.423748 | K71: 1592.195857 | L71: 1559.967965 | M71: 1527.740074 | N71: =SUM(D71:M71) -> 14911.85228
A74: 13 | B74: ="Table 3-"&A74&": "&"Mill Rate of Property Tax Holidays" -> Table 3-13: Mill Rate of Property Tax Holidays
B75: (Thousands of Dollars)
D77: Col. 1 | E77: Col. 2 | F77: Col. 3
C79: Description | D79: =Input!E60 -> Kincardine | E79: =Input!F60 -> Arran-Elderslie | F79: =Input!G60 -> Huron-Kinloss
B80: Row 1 | C80: Municipal Rate - Pipelines | D80: =Input!E63 -> 0.00662135 | E80: =Input!F63 -> 0.00747501 | F80: =Input!G63 -> 0.00606769
A84: 14 | B84: ="Table 3-"&A84&": "&"Value of Tax Holidays" -> Table 3-14: Value of Tax Holidays
B85: (Thousands of Dollars)
D87: Col. 1 | E87: Col. 2 | F87: Col. 3 | G87: Col. 4 | H87: Col. 5 | I87: Col. 6 | J87: Col. 7 | K87: Col. 8 | L87: Col. 9 | M87: Col. 10 | N87: Col. 11
C89: Description | D89: 2019 | E89: 2020 | F89: 2021 | G89: 2022 | H89: 2023 | I89: 2024 | J89: 2025 | K89: 2026 | L89: 2027 | M89: 2028 | N89: Cumulative | S89: Check
B90: Row 1 | C90: Assessment Base | D90: =Calculation!I13755 -> 21690.6182 | E90: =Calculation!J13755 -> 33715.74949 | F90: =Calculation!K13755 -> 37843.62616 | G90: =Calculation!L13755 -> 39201.54793 | H90: =Calculation!M13755 -> 40387.34111 | I90: =Calculation!N13755 -> 41004.83114 | J90: =Calculation!O13755 -> 43356.47383 | K90: =Calculation!P13755 -> 43541.38337 | L90: =Calculation!Q13755 -> 43722.41354 | M90: =Calculation!R13755 -> 43814.66242 | N90: N/A | S90: =SUM(D90:M90)-SUM(Calculation!$H$13755:$R$13755) -> 0
B91: Row 2
B92: Row 3 | C92: Value of Tax Holidays | D92: =-Calculation!I15376+Calculation!I13959 -> 113.9263522 | E92: =-Calculation!J15376+Calculation!J13959 -> 189.0699892 | F92: =-Calculation!K15376+Calculation!K13959 -> 214.0702208 | G92: =-Calculation!L15376+Calculation!L13959 -> 223.140401 | H92: =-Calculation!M15376+Calculation!M13959 -> 231.0497736 | I92: =-Calculation!N15376+Calculation!N13959 -> 235.1878616 | J92: =-Calculation!O15376+Calculation!O13959 -> 248.8558361 | K92: =-Calculation!P15376+Calculation!P13959 -> 250.057152 | L92: =-Calculation!Q15376+Calculation!Q13959 -> 251.2373529 | M92: =-Calculation!R15376+Calculation!R13959 -> 251.7970905 | N92: =SUM(D92:M92) -> 2208.39203
A95: 15 | B95: ="Table 3-"&A95&": "&"Revenue Requirement Impact of LEAP Funding" -> Table 3-15: Revenue Requirement Impact of LEAP Funding
B96: (Thousands of Dollars)
D98: Col. 1 | E98: Col. 2 | F98: Col. 3 | G98: Col. 4 | H98: Col. 5 | I98: Col. 6 | J98: Col. 7 | K98: Col. 8 | L98: Col. 9 | M98: Col. 10 | N98: Col. 11
C100: Description | D100: 2019 | E100: 2020 | F100: 2021 | G100: 2022 | H100: 2023 | I100: 2024 | J100: 2025 | K100: 2026 | L100: 2027 | M100: 2028 | N100: Cumulative
B101: Row 1 | C101: LEAD Funding Cost | D101: =Calculation!I13978 -> 2 | E101: =Calculation!J13978 -> 3.65968222 | F101: =Calculation!K13978 -> 5.544685894 | G101: =Calculation!L13978 -> 6.981918138 | H101: =Calculation!M13978 -> 7.974866495 | I101: =Calculation!N13978 -> 8.627594586 | J101: =Calculation!O13978 -> 8.945488524 | K101: =Calculation!P13978 -> 9.112447153 | L101: =Calculation!Q13978 -> 9.272073373 | M101: =Calculation!R13978 -> 9.415476194 | N101: =SUM(D101:M101) -> 71.53423258
B104: Cumulative Revenue
B105: (Thousands of Dollars)
D107: Col. 1
C109: Description | D109: Revenue
B110: Row 1 | C110: Fixed Charges | D110: =Calculation!$G$15119 -> 13794.77033
B111: Row 2 | C111: Delivery Charges | D111: =Calculation!$G$15126+Calculation!$G$15133+Calculation!$G$15140+Calculation!$G$15147 -> 44739.78095
B112: Row 3 | C112: Distribution Revenue | D112: =SUM(D110:D111) -> 58534.55127
B113: Row 4 | C113: Fixed Charge Ratio of Distribution Charge | D113: =D110/SUM(D110:D111) -> 0.235668849
B114: Row 5
B115: Row 6 | C115: Transportation and Storage | D115: =Calculation!$G$15163 -> 6302.337937
B116: Row 7 | C116: Gas Supply | D116: =Calculation!$G$15170 -> 17129.04244
B117: Row 8 | C117: Upstream Recovery | D117: =Calculation!$G$15156 -> 3625.11703
B118: Row 10 | C118: Upstream Charges | D118: =SUM(D115:D117) -> 27056.49741
B119: Row 11
B120: Row 12 | C120: Total Revenues | D120: =D112+D118 -> 85591.04868
A123: 18 | B123: ="Table 3-"&A123&": "&"Cumulative 10-Year" -> Table 3-18: Cumulative 10-Year
B124: =Input!$C$569 -> Rate 1 - General Firm Service
B125: (Thousands of Dollars unless Otherwise Specified)
D127: Col. 1 | E127: Col. 2 | F127: Col. 3 | G127: Col. 4
C129: Description
B130: Row 1
B131: Row 2 | D131: Effective Cx (Cx) | F131: Charge ($/Cx/month) | G131: Revenue
B132: Row 3 | C132: Monthly Fixed Charge | D132: =SUM(OFFSET(Input!$H$575,MATCH($B124,Input!$C$576:$C$579,0),0,1,11)) -> 39182.5 | F132: N/A | G132: =SUM(OFFSET(Calculation!$H$15114,MATCH($B124,Calculation!$A$15115:$A$15118,0),0,1,11)) -> 12488.71332
B133: Row 4
B134: Row 5 | D134: Rate Block (m3) | E134: Volumes (m3) | F134: Charge (¢/m3)
B135: Row 6 | C135: Delivery Charge | D135: =Input!$C$1075 -> First 100 m3 | E135: =SUM(OFFSET(Calculation!$H$147,MATCH($B124,Calculation!$A$148:$A$151,0),0,1,11)) -> 39738666.12 | F135: N/A | G135: =SUM(OFFSET(Calculation!$H$15121,MATCH($B124,Calculation!$A$15122:$A$15125,0),0,1,11)) -> 11421.85552
B136: Row 7 | D136: =Input!$C$1076 -> Next 400 m3 | E136: =SUM(OFFSET(Calculation!$H$153,MATCH($B124,Calculation!$A$154:$A$157,0),0,1,11)) -> 48320000.3 | F136: N/A | G136: =SUM(OFFSET(Calculation!$H$15128,MATCH($B124,Calculation!$A$15129:$A$110011,0),0,1,11)) -> 13615.62677
B137: Row 8 | D137: =Input!$C$1077 -> Over 500 m3 | E137: =SUM(OFFSET(Calculation!$H$159,MATCH($B124,Calculation!$A$160:$A$163,0),0,1,11)) -> 2725690.585 | F137: N/A | G137: =SUM(OFFSET(Calculation!$H$15135,MATCH($B124,Calculation!$A$15136:$A$15139,0),0,1,11)) -> 746.4138521
B138: Row 9 | C138: Total Distribution Charge | E138: =SUM(E135:E137) -> 90784357 | G138: =SUM(G132,G135:G137) -> 38272.60946
B139: Row 10 | C139: Fixed Charge Ratio of Distribution Charge | G139: =G132/SUM(G132,G135:G137) -> 0.3263094285
B140: Row 11 | E140: Volumes (m3) | F140: Charge (¢/m3)
B141: Row 12 | C141: Upstream Charges | D141: Upstream Recovery Charge | E141: =E138 -> 90784357 | F141: N/A | G141: =SUM(OFFSET(Calculation!$H$15151,MATCH($B124,Calculation!$A$15152:$A$15155,0),0,1,11)) -> 1410.12907
B142: Row 13 | D142: Transportation and Storage Charge | E142: =E138 -> 90784357 | F142: N/A | G142: =SUM(OFFSET(Calculation!$H$15158,MATCH($B124,Calculation!$A$15159:$A$15162,0),0,1,11)) -> 2634.842141
B143: Row 14 | C143: Gas Supply Charge | E143: =E138 -> 90784357 | F143: N/A | G143: =SUM(OFFSET(Calculation!$H$15165,MATCH($B124,Calculation!$A$15166:$A$15169,0),0,1,11)) -> 12158.94235
B144: Row 15 | C144: Total Non-Distribution Charges | G144: =SUM(G141:G143) -> 16203.91356
B145: Row 16
B146: Row 17 | C146: Total Revenue | G146: =G138+G144 -> 54476.52301
A149: 19 | B149: ="Table 3-"&A149&": "&"Cumulative 10-Year" -> Table 3-19: Cumulative 10-Year
B150: =Input!$C$570 -> Rate 6 - Large Volume General Firm Service
B151: (Thousands of Dollars unless Otherwise Specified)
D153: Col. 1 | E153: Col. 2 | F153: Col. 3 | G153: Col. 4
C155: Description
B156: Row 1
B157: Row 2 | D157: Effective Cx (Cx) | F157: Charge ($/Cx/month) | G157: Revenue
B158: Row 3 | C158: Monthly Fixed Charge | D158: =SUM(OFFSET(Input!$H$575,MATCH($B150,Input!$C$576:$C$579,0),0,1,11)) -> 680.5 | F158: N/A | G158: =SUM(OFFSET(Calculation!$H$15114,MATCH($B150,Calculation!$A$15115:$A$15118,0),0,1,11)) -> 887.9442534
B159: Row 4
B160: Row 5 | D160: Rate Block (m3) | E160: Volumes (m3) | F160: Charge (¢/m3)
B161: Row 6 | C161: Delivery Charge | D161: =Input!$C$1093 -> First 1000 m3 | E161: =SUM(OFFSET(Calculation!$H$147,MATCH($B150,Calculation!$A$148:$A$151,0),0,1,11)) -> 6979950.886 | F161: N/A | G161: =SUM(OFFSET(Calculation!$H$15121,MATCH($B150,Calculation!$A$15122:$A$15125,0),0,1,11)) -> 1853.085874
B162: Row 7 | D162: =Input!$C$1094 -> Next 6000 m3 | E162: =SUM(OFFSET(Calculation!$H$153,MATCH($B150,Calculation!$A$154:$A$157,0),0,1,11)) -> 15366260.28 | F162: N/A | G162: =SUM(OFFSET(Calculation!$H$15128,MATCH($B150,Calculation!$A$15129:$A$110011,0),0,1,11)) -> 3672.000885
B163: Row 8 | D163: =Input!$C$1095 -> Over 7000 m3 | E163: =SUM(OFFSET(Calculation!$H$159,MATCH($B150,Calculation!$A$160:$A$163,0),0,1,11)) -> 4106599.461 | F163: N/A | G163: =SUM(OFFSET(Calculation!$H$15135,MATCH($B150,Calculation!$A$15136:$A$15139,0),0,1,11)) -> 933.2676203
B164: Row 9 | C164: Total Distribution Charge | E164: =SUM(E161:E163) -> 26452810.63 | G164: =SUM(G158,G161:G163) -> 7346.298633
B165: Row 10 | C165: Fixed Charge Ratio of Distribution Charge | G165: =G158/SUM(G158,G161:G163) -> 0.1208696104
B166: Row 11 | E166: Volumes (m3) | F166: Charge (¢/m3)
B167: Row 12 | C167: Upstream Charges | D167: Upstream Recovery Charge | E167: =E164 -> 26452810.63 | F167: N/A | G167: =SUM(OFFSET(Calculation!$H$15151,MATCH($B150,Calculation!$A$15152:$A$15155,0),0,1,11)) -> 826.0938189
B168: Row 13 | D168: Transportation and Storage Charge | E168: =E164 -> 26452810.63 | F168: N/A | G168: =SUM(OFFSET(Calculation!$H$15158,MATCH($B150,Calculation!$A$15159:$A$15162,0),0,1,11)) -> 1607.444736
B169: Row 14 | C169: Gas Supply Charge | E169: =E164 -> 26452810.63 | F169: N/A | G169: =SUM(OFFSET(Calculation!$H$15165,MATCH($B150,Calculation!$A$15166:$A$15169,0),0,1,11)) -> 3547.91208
B170: Row 15 | C170: Total Non-Distribution Charges | G170: =SUM(G167:G169) -> 5981.450636
B171: Row 16
B172: Row 17 | C172: Total Revenue | G172: =G164+G170 -> 13327.74927
A175: 20 | B175: ="Table 3-"&A175&": "&"Cumulative 10-Year" -> Table 3-20: Cumulative 10-Year
B176: =Input!$C$571 -> Rate 11 - Large Volume Seasonal Service
B177: (Thousands of Dollars unless Otherwise Specified)
D179: Col. 1 | E179: Col. 2 | F179: Col. 3 | G179: Col. 4
C181: Description
B182: Row 1
B183: Row 2 | D183: Effective Cx (Cx) | F183: Charge ($/Cx/month) | G183: Revenue
B184: Row 3 | C184: Monthly Fixed Charge | D184: =SUM(OFFSET(Input!$H$575,MATCH($B176,Input!$C$576:$C$579,0),0,1,11)) -> 38.5 | F184: N/A | G184: =SUM(OFFSET(Calculation!$H$15114,MATCH($B176,Calculation!$A$15115:$A$15118,0),0,1,11)) -> 66.82625757
B185: Row 4
B186: Row 5 | D186: Rate Block (m3) | E186: Volumes (m3) | F186: Charge (¢/m3)
B187: Row 6 | C187: Delivery Charge | D187: =Input!$C$1113 -> Over 0 m3 | E187: =SUM(OFFSET(Calculation!$H$159,MATCH($B176,Calculation!$A$160:$A$163,0),0,1,11)) -> 10623612.84 | F187: N/A | G187: =SUM(OFFSET(Calculation!$H$15135,MATCH($B176,Calculation!$A$15136:$A$15139,0),0,1,11)) -> 1749.111546
B188: Row 7 | C188: Total Distribution Charge | E188: =SUM(E187:E187) -> 10623612.84 | G188: =SUM(G184,G187:G187) -> 1815.937803
B189: Row 8 | C189: Fixed Charge Ratio of Distribution Charge | G189: =G184/SUM(G184,G187:G187) -> 0.03679986035
B190: Row 9 | E190: Volumes (m3) | F190: Charge (¢/m3)
B191: Row 10 | C191: Upstream Charges | D191: Upstream Recovery Charge | E191: =E188 -> 10623612.84 | F191: N/A | G191: =SUM(OFFSET(Calculation!$H$15151,MATCH($B176,Calculation!$A$15152:$A$15155,0),0,1,11)) -> 2.073381468
B192: Row 11 | D192: Transportation and Storage Charge | E192: =E188 -> 10623612.84 | F192: N/A | G192: =SUM(OFFSET(Calculation!$H$15158,MATCH($B176,Calculation!$A$15159:$A$15162,0),0,1,11)) -> 207.4913081
B193: Row 12 | C193: Gas Supply Charge | E193: =E188 -> 10623612.84 | F193: N/A | G193: =SUM(OFFSET(Calculation!$H$15165,MATCH($B176,Calculation!$A$15166:$A$15169,0),0,1,11)) -> 1422.188016
B194: Row 13 | C194: Total Non-Distribution Charges | G194: =SUM(G191:G193) -> 1631.752705
B195: Row 14
B196: Row 15 | C196: Total Revenue | G196: =G188+G194 -> 3447.690509
A199: 21 | B199: ="Table 3-"&A199&": "&"Cumulative 10-Year" -> Table 3-21: Cumulative 10-Year
B200: =Input!$C$572 -> Rate 16 - Contracted Firm Service
B201: (Thousands of Dollars unless Otherwise Specified)
D203: Col. 1 | E203: Col. 2 | F203: Col. 3 | G203: Col. 4
C205: Description
B206: Row 1
B207: Row 2 | D207: Effective Cx (Cx) | F207: Charge ($/Cx/month) | G207: Revenue
B208: Row 3 | C208: Monthly Fixed Charge | D208: =SUM(OFFSET(Input!$H$575,MATCH($B200,Input!$C$576:$C$579,0),0,1,11)) -> 20 | F208: N/A | G208: =SUM(OFFSET(Calculation!$H$15114,MATCH($B200,Calculation!$A$15115:$A$15118,0),0,1,11)) -> 351.2864971
B209: Row 4
B210: Row 5 | C210: Delivery Charge | D210: based on contracted demand | G210: =SUM(OFFSET(Calculation!$H$15142,MATCH($B200,Calculation!$A$15143:$A$15146,0),0,1,11)) -> 10748.41888
B211: Row 6 | C211: Total Distribution Charge | G211: =SUM(G208,G210:G210) -> 11099.70538
B212: Row 7 | C212: Fixed Charge Ratio of Distribution Charge | G212: =G208/SUM(G208,G210:G210) -> 0.03164827219
B213: Row 8
B214: Row 9 | C214: Upstream Charges | D214: Upstream Recovery Charge | G214: =SUM(OFFSET(Calculation!$H$15151,MATCH($B200,Calculation!$A$15152:$A$15155,0),0,1,11)) -> 1386.82076
B215: Row 10 | D215: Transportation and Storage Charge - Contracted Demand | G215: =Calculation!$G$15585 -> 1852.559752
B216: Row 12 | C216: Gas Supply Charge | G216: =SUM(OFFSET(Calculation!$H$15165,MATCH($B200,Calculation!$A$15166:$A$15169,0),0,1,11)) -> 0
B217: Row 13 | C217: Total Non-Distribution Charges | G217: =SUM(G214:G216) -> 3239.380511
B218: Row 14
B219: Row 15 | C219: Total Revenue | G219: =G211+G217 -> 14339.08589

Sheet Exhibit 4
A1: EXHIBIT 4
A3: 1 | C3: ="Table 4-"&$A3&": "&"Forecasted Upstream Costs" -> Table 4-1: Forecasted Upstream Costs
C4: (Thousands of Dollars)
D6: Col. 1 | E6: Col. 2 | F6: Col. 3 | G6: Col. 4 | H6: Col. 5 | I6: Col. 6 | J6: Col. 7 | K6: Col. 8 | L6: Col. 9 | M6: Col. 10 | N6: Col. 11
C8: Description | D8: =Calculation!I$2 -> 2019 | E8: =Calculation!J$2 -> 2020 | F8: =Calculation!K$2 -> 2021 | G8: =Calculation!L$2 -> 2022 | H8: =Calculation!M$2 -> 2023 | I8: =Calculation!N$2 -> 2024 | J8: =Calculation!O$2 -> 2025 | K8: =Calculation!P$2 -> 2026 | L8: =Calculation!Q$2 -> 2027 | M8: =Calculation!R$2 -> 2028 | N8: Cumulative
B9: Row 1 | C9: Gas Supply Commodity Cost | D9: =-Input!I429 -> 187.2739488 | E9: =-Input!J429 -> 645.9609088 | F9: =-Input!K429 -> 1178.714815 | G9: =-Input!L429 -> 1598.989826 | H9: =-Input!M429 -> 1856.69359 | I9: =-Input!N429 -> 2002.918094 | J9: =-Input!O429 -> 2057.504527 | K9: =-Input!P429 -> 2069.730087 | L9: =-Input!Q429 -> 2079.663354 | M9: =-Input!R429 -> 2085.394085 | N9: =SUM(D9:M9) -> 15762.84324
B10: Row 2 | C10: Transportation | D10: =-Input!I432-Input!I446 -> 82.50226591 | E10: =-Input!J432-Input!J446 -> 492.4840153 | F10: =-Input!K432-Input!K446 -> 495.3052258 | G10: =-Input!L432-Input!L446 -> 497.5308018 | H10: =-Input!M432-Input!M446 -> 498.8954779 | I10: =-Input!N432-Input!N446 -> 499.6698132 | J10: =-Input!O432-Input!O446 -> 499.9588769 | K10: =-Input!P432-Input!P446 -> 500.0236176 | L10: =-Input!Q432-Input!Q446 -> 500.0762194 | M10: =-Input!R432-Input!R446 -> 500.1065666 | N10: =SUM(D10:M10) -> 4566.55288
B11: Row 3 | C11: Storage | D11: =-Input!I430 -> 51.38980769 | E11: =-Input!J430 -> 91.68961216 | F11: =-Input!K430 -> 127.9422548 | G11: =-Input!L430 -> 152.1959851 | H11: =-Input!M430 -> 167.8648836 | I11: =-Input!N430 -> 176.7232533 | J11: =-Input!O430 -> 179.8373213 | K11: =-Input!P430 -> 182.4284862 | L11: =-Input!Q430 -> 184.8875613 | M11: =-Input!R430 -> 185.2234042 | N11: =SUM(D11:M11) -> 1500.18257
B12: Row 4 | C12: Load Balancing Administration | D12: =-Input!I431-Input!I445 -> 5.789807692 | E12: =-Input!J431-Input!J445 -> 30.64161216 | F12: =-Input!K431-Input!K445 -> 35.23525482 | G12: =-Input!L431-Input!L445 -> 38.86251134 | H12: =-Input!M431-Input!M445 -> 41.09811182 | I12: =-Input!N431-Input!N445 -> 42.36662093 | J12: =-Input!O431-Input!O445 -> 42.88686437 | K12: =-Input!P431-Input!P445 -> 42.96488257 | L12: =-Input!Q431-Input!Q445 -> 43.03239211 | M12: =-Input!R431-Input!R445 -> 43.08210665 | N12: =SUM(D12:M12) -> 365.9601644
B13: Row 5 | C13: Sum | D13: =SUM(D9:D12) -> 326.9558301 | E13: 1260.776148 | F13: 1837.197551 | G13: 2287.579124 | H13: 2564.552063 | I13: 2721.677782 | J13: 2780.187589 | K13: 2795.147073 | L13: 2807.659527 | M13: 2813.806163 | N13: 22195.53885
A15: 10 | B15: ="Table 4-"&A15&": "&"Revenue Requirement Impact of LEAP Funding" -> Table 4-10: Revenue Requirement Impact of LEAP Funding
B16: (Thousands of Dollars)
D18: Col. 1 | E18: Col. 2 | F18: Col. 3 | G18: Col. 4 | H18: Col. 5 | I18: Col. 6 | J18: Col. 7 | K18: Col. 8 | L18: Col. 9 | M18: Col. 10 | N18: Col. 11
C20: Description | D20: 2019 | E20: 2020 | F20: 2021 | G20: 2022 | H20: 2023 | I20: 2024 | J20: 2025 | K20: 2026 | L20: 2027 | M20: 2028 | N20: Cumulative
B21: Row 1 | C21: LEAD Funding Cost | D21: =Calculation!I13978 -> 2 | E21: =Calculation!J13978 -> 3.65968222 | F21: =Calculation!K13978 -> 5.544685894 | G21: =Calculation!L13978 -> 6.981918138 | H21: =Calculation!M13978 -> 7.974866495 | I21: =Calculation!N13978 -> 8.627594586 | J21: =Calculation!O13978 -> 8.945488524 | K21: =Calculation!P13978 -> 9.112447153 | L21: =Calculation!Q13978 -> 9.272073373 | M21: =Calculation!R13978 -> 9.415476194 | N21: =SUM(D21:M21) -> 71.53423258
A24: EXHIBIT 4 - Depreciation by Asset Groups
C26: Depreciation Rates by Asset Groups
C29: Col. 1 | D29: Col. 2
C31: Asset Group | D31: Depreciation Rate
B32: Row 1 | C32: =Input!C46 -> CIAC to Enbridge - Owen Sound Reinforcement | D32: =Input!E46 -> 0.0198
B33: Row 2 | C33: =Input!C47 -> CIAC to Enbridge - Station | D33: =Input!E47 -> 0.026
B34: Row 3 | C34: =Input!C48 -> Distribution Mains - Metallic | D34: =Input!E48 -> 0.0283
B35: Row 4 | C35: =Input!C49 -> Distribution Land Rights | D35: =Input!E49 -> 0.0165
B36: Row 5 | C36: =Input!C50 -> Distribution Mains - Plastic | D36: =Input!E50 -> 0.0231
B37: Row 6 | C37: =Input!C51 -> Distribution Services Plastic | D37: =Input!E51 -> 0.0251
B38: Row 7 | C38: =Input!C52 -> Distribution Meters | D38: =Input!E52 -> 0.0382
B39: Row 8 | C39: =Input!C53 -> Distribution Measuring and Regulating Equipt. | D39: =Input!E53 -> 0.0366
B40: Row 9 | C40: =Input!C54 -> Vehicles | D40: =Input!E54 -> 0.1111111111
B41: Row 10 | C41: =Input!C55 -> Machinery and Equipment | D41: =Input!E55 -> 0.06
C43: Asset Category | D43: =Input!C$46 -> CIAC to Enbridge - Owen Sound Reinforcement
C44: ="Projected Continuity Schedule of "&$D43 -> Projected Continuity Schedule of CIAC to Enbridge - Owen Sound Reinforcement
C45: (Thousands of Dollars)
D47: Col. 1 | E47: Col. 2 | F47: Col. 3 | G47: Col. 4 | H47: Col. 5 | I47: Col. 6 | J47: Col. 7 | K47: Col. 8 | L47: Col. 9 | M47: Col. 10
C49: Description | D49: =Calculation!I$2 -> 2019 | E49: =Calculation!J$2 -> 2020 | F49: =Calculation!K$2 -> 2021 | G49: =Calculation!L$2 -> 2022 | H49: =Calculation!M$2 -> 2023 | I49: =Calculation!N$2 -> 2024 | J49: =Calculation!O$2 -> 2025 | K49: =Calculation!P$2 -> 2026 | L49: =Calculation!Q$2 -> 2027 | M49: =Calculation!R$2 -> 2028
B50: Row 1
B51: Row 2 | C51: Gross Fixed Assets
B52: Row 3 | C52: Opening Balance | D52: 0 | E52: =D55 -> 2363.133949 | F52: 2363.133949 | G52: 2363.133949 | H52: 2363.133949 | I52: 2363.133949 | J52: 2363.133949 | K52: 2363.133949 | L52: 2363.133949 | M52: 2363.133949
B53: Row 4 | C53: Additions | D53: =SUM('Exhibit 2'!D149:D152) -> 2363.133949 | E53: =SUM('Exhibit 2'!E149:E152) -> 0 | F53: =SUM('Exhibit 2'!F149:F152) -> 0 | G53: =SUM('Exhibit 2'!G149:G152) -> 0 | H53: =SUM('Exhibit 2'!H149:H152) -> 0 | I53: =SUM('Exhibit 2'!I149:I152) -> 0 | J53: =SUM('Exhibit 2'!J149:J152) -> 0 | K53: =SUM('Exhibit 2'!K149:K152) -> 0 | L53: =SUM('Exhibit 2'!L149:L152) -> 0 | M53: =SUM('Exhibit 2'!M149:M152) -> 0
B54: Row 5 | C54: Retirement | D54: =SUMIFS(Calculation!I$11248:I$11447,Input!$F$221:$F$420,'Exhibit 2'!D$145,Input!$Q$221:$Q$420,$D43) -> 0 | E54: =SUMIFS(Calculation!J$11248:J$11447,Input!$F$221:$F$420,'Exhibit 2'!E$145,Input!$Q$221:$Q$420,$D43) -> 0 | F54: =SUMIFS(Calculation!K$11248:K$11447,Input!$F$221:$F$420,'Exhibit 2'!F$145,Input!$Q$221:$Q$420,$D43) -> 0 | G54: =SUMIFS(Calculation!L$11248:L$11447,Input!$F$221:$F$420,'Exhibit 2'!G$145,Input!$Q$221:$Q$420,$D43) -> 0 | H54: =SUMIFS(Calculation!M$11248:M$11447,Input!$F$221:$F$420,'Exhibit 2'!H$145,Input!$Q$221:$Q$420,$D43) -> 0 | I54: =SUMIFS(Calculation!N$11248:N$11447,Input!$F$221:$F$420,'Exhibit 2'!I$145,Input!$Q$221:$Q$420,$D43) -> 0 | J54: =SUMIFS(Calculation!O$11248:O$11447,Input!$F$221:$F$420,'Exhibit 2'!J$145,Input!$Q$221:$Q$420,$D43) -> 0 | K54: =SUMIFS(Calculation!P$11248:P$11447,Input!$F$221:$F$420,'Exhibit 2'!K$145,Input!$Q$221:$Q$420,$D43) -> 0 | L54: =SUMIFS(Calculation!Q$11248:Q$11447,Input!$F$221:$F$420,'Exhibit 2'!L$145,Input!$Q$221:$Q$420,$D43) -> 0 | M54: =SUMIFS(Calculation!R$11248:R$11447,Input!$F$221:$F$420,'Exhibit 2'!M$145,Input!$Q$221:$Q$420,$D43) -> 0
B55: Row 6 | C55: Closing Balance | D55: =SUM(D52:D54) -> 2363.133949 | E55: 2363.133949 | F55: 2363.133949 | G55: 2363.133949 | H55: 2363.133949 | I55: 2363.133949 | J55: 2363.133949 | K55: 2363.133949 | L55: 2363.133949 | M55: 2363.133949
B56: Row 7
B57: Row 8 | C57: Accumulated Depreciation
B58: Row 9 | C58: Opening Balance | D58: 0 | E58: =D61 -> -23.1679799 | F58: -69.50393969 | G58: -115.8398995 | H58: -162.1758593 | I58: -208.5118191 | J58: -254.8477789 | K58: -301.1837387 | L58: -347.5196985 | M58: -393.8556582
B59: Row 10 | C59: Depreciation | D59: =SUMIFS(Calculation!I$11862:I$12061,Input!$Q$221:$Q$420,$D43) -> -23.1679799 | E59: =SUMIFS(Calculation!J$11862:J$12061,Input!$Q$221:$Q$420,$D43) -> -46.33595979 | F59: =SUMIFS(Calculation!K$11862:K$12061,Input!$Q$221:$Q$420,$D43) -> -46.33595979 | G59: =SUMIFS(Calculation!L$11862:L$12061,Input!$Q$221:$Q$420,$D43) -> -46.33595979 | H59: =SUMIFS(Calculation!M$11862:M$12061,Input!$Q$221:$Q$420,$D43) -> -46.33595979 | I59: =SUMIFS(Calculation!N$11862:N$12061,Input!$Q$221:$Q$420,$D43) -> -46.33595979 | J59: =SUMIFS(Calculation!O$11862:O$12061,Input!$Q$221:$Q$420,$D43) -> -46.33595979 | K59: =SUMIFS(Calculation!P$11862:P$12061,Input!$Q$221:$Q$420,$D43) -> -46.33595979 | L59: =SUMIFS(Calculation!Q$11862:Q$12061,Input!$Q$221:$Q$420,$D43) -> -46.33595979 | M59: =SUMIFS(Calculation!R$11862:R$12061,Input!$Q$221:$Q$420,$D43) -> -46.33595979
B60: Row 11 | C60: Retirement | D60: =SUMIFS(Calculation!I$12066:I$12265,Input!$Q$221:$Q$420,$D43) -> 0 | E60: =SUMIFS(Calculation!J$12066:J$12265,Input!$Q$221:$Q$420,$D43) -> 0 | F60: =SUMIFS(Calculation!K$12066:K$12265,Input!$Q$221:$Q$420,$D43) -> 0 | G60: =SUMIFS(Calculation!L$12066:L$12265,Input!$Q$221:$Q$420,$D43) -> 0 | H60: =SUMIFS(Calculation!M$12066:M$12265,Input!$Q$221:$Q$420,$D43) -> 0 | I60: =SUMIFS(Calculation!N$12066:N$12265,Input!$Q$221:$Q$420,$D43) -> 0 | J60: =SUMIFS(Calculation!O$12066:O$12265,Input!$Q$221:$Q$420,$D43) -> 0 | K60: =SUMIFS(Calculation!P$12066:P$12265,Input!$Q$221:$Q$420,$D43) -> 0 | L60: =SUMIFS(Calculation!Q$12066:Q$12265,Input!$Q$221:$Q$420,$D43) -> 0 | M60: =SUMIFS(Calculation!R$12066:R$12265,Input!$Q$221:$Q$420,$D43) -> 0
B61: Row 12 | C61: Closing Balance | D61: =SUM(D58:D60) -> -23.1679799 | E61: -69.50393969 | F61: -115.8398995 | G61: -162.1758593 | H61: -208.5118191 | I61: -254.8477789 | J61: -301.1837387 | K61: -347.5196985 | L61: -393.8556582 | M61: -440.191618
C63: Asset Category | D63: =Input!C$47 -> CIAC to Enbridge - Station
C64: ="Projected Continuity Schedule of "&$D63 -> Projected Continuity Schedule of CIAC to Enbridge - Station
C65: (Thousands of Dollars)
D67: Col. 1 | E67: Col. 2 | F67: Col. 3 | G67: Col. 4 | H67: Col. 5 | I67: Col. 6 | J67: Col. 7 | K67: Col. 8 | L67: Col. 9 | M67: Col. 10
C69: Description | D69: =Calculation!I$2 -> 2019 | E69: =Calculation!J$2 -> 2020 | F69: =Calculation!K$2 -> 2021 | G69: =Calculation!L$2 -> 2022 | H69: =Calculation!M$2 -> 2023 | I69: =Calculation!N$2 -> 2024 | J69: =Calculation!O$2 -> 2025 | K69: =Calculation!P$2 -> 2026 | L69: =Calculation!Q$2 -> 2027 | M69: =Calculation!R$2 -> 2028
B70: Row 1
B71: Row 2 | C71: Gross Fixed Assets
B72: Row 3 | C72: Opening Balance | D72: 0 | E72: =D75 -> 2019 | F72: 4039 | G72: 6060 | H72: 8082 | I72: 10105 | J72: 12129 | K72: 14154 | L72: 16180 | M72: 18207
B73: Row 4 | C73: Additions | D73: =SUM('Exhibit 2'!D169:D172) -> 2019 | E73: =SUM('Exhibit 2'!E169:E172) -> 2020 | F73: =SUM('Exhibit 2'!F169:F172) -> 2021 | G73: =SUM('Exhibit 2'!G169:G172) -> 2022 | H73: =SUM('Exhibit 2'!H169:H172) -> 2023 | I73: =SUM('Exhibit 2'!I169:I172) -> 2024 | J73: =SUM('Exhibit 2'!J169:J172) -> 2025 | K73: =SUM('Exhibit 2'!K169:K172) -> 2026 | L73: =SUM('Exhibit 2'!L169:L172) -> 2027 | M73: =SUM('Exhibit 2'!M169:M172) -> 2028
B74: Row 5 | C74: Retirement | D74: =SUMIFS(Calculation!I$11248:I$11447,Input!$F$221:$F$420,'Exhibit 2'!D$145,Input!$Q$221:$Q$420,$D63) -> 0 | E74: =SUMIFS(Calculation!J$11248:J$11447,Input!$F$221:$F$420,'Exhibit 2'!E$145,Input!$Q$221:$Q$420,$D63) -> 0 | F74: =SUMIFS(Calculation!K$11248:K$11447,Input!$F$221:$F$420,'Exhibit 2'!F$145,Input!$Q$221:$Q$420,$D63) -> 0 | G74: =SUMIFS(Calculation!L$11248:L$11447,Input!$F$221:$F$420,'Exhibit 2'!G$145,Input!$Q$221:$Q$420,$D63) -> 0 | H74: =SUMIFS(Calculation!M$11248:M$11447,Input!$F$221:$F$420,'Exhibit 2'!H$145,Input!$Q$221:$Q$420,$D63) -> 0 | I74: =SUMIFS(Calculation!N$11248:N$11447,Input!$F$221:$F$420,'Exhibit 2'!I$145,Input!$Q$221:$Q$420,$D63) -> 0 | J74: =SUMIFS(Calculation!O$11248:O$11447,Input!$F$221:$F$420,'Exhibit 2'!J$145,Input!$Q$221:$Q$420,$D63) -> 0 | K74: =SUMIFS(Calculation!P$11248:P$11447,Input!$F$221:$F$420,'Exhibit 2'!K$145,Input!$Q$221:$Q$420,$D63) -> 0 | L74: =SUMIFS(Calculation!Q$11248:Q$11447,Input!$F$221:$F$420,'Exhibit 2'!L$145,Input!$Q$221:$Q$420,$D63) -> 0 | M74: =SUMIFS(Calculation!R$11248:R$11447,Input!$F$221:$F$420,'Exhibit 2'!M$145,Input!$Q$221:$Q$420,$D63) -> 0
B75: Row 6 | C75: Closing Balance | D75: =SUM(D72:D74) -> 2019 | E75: 4039 | F75: 6060 | G75: 8082 | H75: 10105 | I75: 12129 | J75: 14154 | K75: 16180 | L75: 18207 | M75: 20235
B76: Row 7
B77: Row 8 | C77: Accumulated Depreciation
B78: Row 9 | C78: Opening Balance | D78: 0 | E78: =D81 -> -38.6127902 | F78: -115.8383706 | G78: -193.063951 | H78: -270.2895314 | I78: -347.5151118 | J78: -424.7406922 | K78: -501.9662726 | L78: -579.1918529 | M78: -656.4174333
B79: Row 10 | C79: Depreciation | D79: =SUMIFS(Calculation!I$11862:I$12061,Input!$Q$221:$Q$420,$D63) -> -38.6127902 | E79: =SUMIFS(Calculation!J$11862:J$12061,Input!$Q$221:$Q$420,$D63) -> -77.22558039 | F79: =SUMIFS(Calculation!K$11862:K$12061,Input!$Q$221:$Q$420,$D63) -> -77.22558039 | G79: =SUMIFS(Calculation!L$11862:L$12061,Input!$Q$221:$Q$420,$D63) -> -77.22558039 | H79: =SUMIFS(Calculation!M$11862:M$12061,Input!$Q$221:$Q$420,$D63) -> -77.22558039 | I79: =SUMIFS(Calculation!N$11862:N$12061,Input!$Q$221:$Q$420,$D63) -> -77.22558039 | J79: =SUMIFS(Calculation!O$11862:O$12061,Input!$Q$221:$Q$420,$D63) -> -77.22558039 | K79: =SUMIFS(Calculation!P$11862:P$12061,Input!$Q$221:$Q$420,$D63) -> -77.22558039 | L79: =SUMIFS(Calculation!Q$11862:Q$12061,Input!$Q$221:$Q$420,$D63) -> -77.22558039 | M79: =SUMIFS(Calculation!R$11862:R$12061,Input!$Q$221:$Q$420,$D63) -> -77.22558039
B80: Row 11 | C80: Retirement | D80: =SUMIFS(Calculation!I$12066:I$12265,Input!$Q$221:$Q$420,$D63) -> 0 | E80: =SUMIFS(Calculation!J$12066:J$12265,Input!$Q$221:$Q$420,$D63) -> 0 | F80: =SUMIFS(Calculation!K$12066:K$12265,Input!$Q$221:$Q$420,$D63) -> 0 | G80: =SUMIFS(Calculation!L$12066:L$12265,Input!$Q$221:$Q$420,$D63) -> 0 | H80: =SUMIFS(Calculation!M$12066:M$12265,Input!$Q$221:$Q$420,$D63) -> 0 | I80: =SUMIFS(Calculation!N$12066:N$12265,Input!$Q$221:$Q$420,$D63) -> 0 | J80: =SUMIFS(Calculation!O$12066:O$12265,Input!$Q$221:$Q$420,$D63) -> 0 | K80: =SUMIFS(Calculation!P$12066:P$12265,Input!$Q$221:$Q$420,$D63) -> 0 | L80: =SUMIFS(Calculation!Q$12066:Q$12265,Input!$Q$221:$Q$420,$D63) -> 0 | M80: =SUMIFS(Calculation!R$12066:R$12265,Input!$Q$221:$Q$420,$D63) -> 0
B81: Row 12 | C81: Closing Balance | D81: =SUM(D78:D80) -> -38.6127902 | E81: -115.8383706 | F81: -193.063951 | G81: -270.2895314 | H81: -347.5151118 | I81: -424.7406922 | J81: -501.9662726 | K81: -579.1918529 | L81: -656.4174333 | M81: -733.6430137
C83: Asset Category | D83: =Input!C$48 -> Distribution Mains - Metallic
C84: ="Projected Continuity Schedule of "&$D83 -> Projected Continuity Schedule of Distribution Mains - Metallic
C85: (Thousands of Dollars)
D87: Col. 1 | E87: Col. 2 | F87: Col. 3 | G87: Col. 4 | H87: Col. 5 | I87: Col. 6 | J87: Col. 7 | K87: Col. 8 | L87: Col. 9 | M87: Col. 10
C89: Description | D89: =Calculation!I$2 -> 2019 | E89: =Calculation!J$2 -> 2020 | F89: =Calculation!K$2 -> 2021 | G89: =Calculation!L$2 -> 2022 | H89: =Calculation!M$2 -> 2023 | I89: =Calculation!N$2 -> 2024 | J89: =Calculation!O$2 -> 2025 | K89: =Calculation!P$2 -> 2026 | L89: =Calculation!Q$2 -> 2027 | M89: =Calculation!R$2 -> 2028
B90: Row 1
B91: Row 2 | C91: Gross Fixed Assets
B92: Row 3 | C92: Opening Balance | D92: 0 | E92: =D95 -> 31120.25879 | F92: 25915.49615 | G92: 25915.49615 | H92: 25915.49615 | I92: 25915.49615 | J92: 25915.49615 | K92: 25915.49615 | L92: 25915.49615 | M92: 25915.49615
B93: Row 4 | C93: Additions | D93: =SUM('Exhibit 2'!D199:D202) -> 31120.25879 | E93: =SUM('Exhibit 2'!E199:E202) -> -5204.762642 | F93: =SUM('Exhibit 2'!F199:F202) -> 0 | G93: =SUM('Exhibit 2'!G199:G202) -> 0 | H93: =SUM('Exhibit 2'!H199:H202) -> 0 | I93: =SUM('Exhibit 2'!I199:I202) -> 0 | J93: =SUM('Exhibit 2'!J199:J202) -> 0 | K93: =SUM('Exhibit 2'!K199:K202) -> 0 | L93: =SUM('Exhibit 2'!L199:L202) -> 0 | M93: =SUM('Exhibit 2'!M199:M202) -> 0
B94: Row 5 | C94: Retirement | D94: =SUMIFS(Calculation!I$11248:I$11447,Input!$F$221:$F$420,'Exhibit 2'!D$145,Input!$Q$221:$Q$420,$D83) -> 0 | E94: =SUMIFS(Calculation!J$11248:J$11447,Input!$F$221:$F$420,'Exhibit 2'!E$145,Input!$Q$221:$Q$420,$D83) -> 0 | F94: =SUMIFS(Calculation!K$11248:K$11447,Input!$F$221:$F$420,'Exhibit 2'!F$145,Input!$Q$221:$Q$420,$D83) -> 0 | G94: =SUMIFS(Calculation!L$11248:L$11447,Input!$F$221:$F$420,'Exhibit 2'!G$145,Input!$Q$221:$Q$420,$D83) -> 0 | H94: =SUMIFS(Calculation!M$11248:M$11447,Input!$F$221:$F$420,'Exhibit 2'!H$145,Input!$Q$221:$Q$420,$D83) -> 0 | I94: =SUMIFS(Calculation!N$11248:N$11447,Input!$F$221:$F$420,'Exhibit 2'!I$145,Input!$Q$221:$Q$420,$D83) -> 0 | J94: =SUMIFS(Calculation!O$11248:O$11447,Input!$F$221:$F$420,'Exhibit 2'!J$145,Input!$Q$221:$Q$420,$D83) -> 0 | K94: =SUMIFS(Calculation!P$11248:P$11447,Input!$F$221:$F$420,'Exhibit 2'!K$145,Input!$Q$221:$Q$420,$D83) -> 0 | L94: =SUMIFS(Calculation!Q$11248:Q$11447,Input!$F$221:$F$420,'Exhibit 2'!L$145,Input!$Q$221:$Q$420,$D83) -> 0 | M94: =SUMIFS(Calculation!R$11248:R$11447,Input!$F$221:$F$420,'Exhibit 2'!M$145,Input!$Q$221:$Q$420,$D83) -> 0
B95: Row 6 | C95: Closing Balance | D95: =SUM(D92:D94) -> 31120.25879 | E95: 25915.49615 | F95: 25915.49615 | G95: 25915.49615 | H95: 25915.49615 | I95: 25915.49615 | J95: 25915.49615 | K95: 25915.49615 | L95: 25915.49615 | M95: 25915.49615
B96: Row 7
B97: Row 8 | C97: Accumulated Depreciation
B98: Row 9 | C98: Opening Balance | D98: 0 | E98: =D101 -> -444.5751256 | F98: -1110.664121 | G98: -1851.106868 | H98: -2591.549615 | I98: -3331.992362 | J98: -4072.435109 | K98: -4812.877856 | L98: -5553.320604 | M98: -6293.763351
B99: Row 10 | C99: Depreciation | D99: =SUMIFS(Calculation!I$11862:I$12061,Input!$Q$221:$Q$420,$D83) -> -444.5751256 | E99: =SUMIFS(Calculation!J$11862:J$12061,Input!$Q$221:$Q$420,$D83) -> -666.0889951 | F99: =SUMIFS(Calculation!K$11862:K$12061,Input!$Q$221:$Q$420,$D83) -> -740.4427471 | G99: =SUMIFS(Calculation!L$11862:L$12061,Input!$Q$221:$Q$420,$D83) -> -740.4427471 | H99: =SUMIFS(Calculation!M$11862:M$12061,Input!$Q$221:$Q$420,$D83) -> -740.4427471 | I99: =SUMIFS(Calculation!N$11862:N$12061,Input!$Q$221:$Q$420,$D83) -> -740.4427471 | J99: =SUMIFS(Calculation!O$11862:O$12061,Input!$Q$221:$Q$420,$D83) -> -740.4427471 | K99: =SUMIFS(Calculation!P$11862:P$12061,Input!$Q$221:$Q$420,$D83) -> -740.4427471 | L99: =SUMIFS(Calculation!Q$11862:Q$12061,Input!$Q$221:$Q$420,$D83) -> -740.4427471 | M99: =SUMIFS(Calculation!R$11862:R$12061,Input!$Q$221:$Q$420,$D83) -> -740.4427471
B100: Row 11 | C100: Retirement | D100: =SUMIFS(Calculation!I$12066:I$12265,Input!$Q$221:$Q$420,$D83) -> 0 | E100: =SUMIFS(Calculation!J$12066:J$12265,Input!$Q$221:$Q$420,$D83) -> 0 | F100: =SUMIFS(Calculation!K$12066:K$12265,Input!$Q$221:$Q$420,$D83) -> 0 | G100: =SUMIFS(Calculation!L$12066:L$12265,Input!$Q$221:$Q$420,$D83) -> 0 | H100: =SUMIFS(Calculation!M$12066:M$12265,Input!$Q$221:$Q$420,$D83) -> 0 | I100: =SUMIFS(Calculation!N$12066:N$12265,Input!$Q$221:$Q$420,$D83) -> 0 | J100: =SUMIFS(Calculation!O$12066:O$12265,Input!$Q$221:$Q$420,$D83) -> 0 | K100: =SUMIFS(Calculation!P$12066:P$12265,Input!$Q$221:$Q$420,$D83) -> 0 | L100: =SUMIFS(Calculation!Q$12066:Q$12265,Input!$Q$221:$Q$420,$D83) -> 0 | M100: =SUMIFS(Calculation!R$12066:R$12265,Input!$Q$221:$Q$420,$D83) -> 0
B101: Row 12 | C101: Closing Balance | D101: =SUM(D98:D100) -> -444.5751256 | E101: -1110.664121 | F101: -1851.106868 | G101: -2591.549615 | H101: -3331.992362 | I101: -4072.435109 | J101: -4812.877856 | K101: -5553.320604 | L101: -6293.763351 | M101: -7034.206098
C103: Asset Category | D103: =Input!C$49 -> Distribution Land Rights
C104: ="Projected Continuity Schedule of "&$D103 -> Projected Continuity Schedule of Distribution Land Rights
C105: (Thousands of Dollars)
D107: Col. 1 | E107: Col. 2 | F107: Col. 3 | G107: Col. 4 | H107: Col. 5 | I107: Col. 6 | J107: Col. 7 | K107: Col. 8 | L107: Col. 9 | M107: Col. 10
C109: Description | D109: =Calculation!I$2 -> 2019 | E109: =Calculation!J$2 -> 2020 | F109: =Calculation!K$2 -> 2021 | G109: =Calculation!L$2 -> 2022 | H109: =Calculation!M$2 -> 2023 | I109: =Calculation!N$2 -> 2024 | J109: =Calculation!O$2 -> 2025 | K109: =Calculation!P$2 -> 2026 | L109: =Calculation!Q$2 -> 2027 | M109: =Calculation!R$2 -> 2028
B110: Row 1
B111: Row 2 | C111: Gross Fixed Assets
B112: Row 3 | C112: Opening Balance | D112: 0 | E112: =D115 -> 22.28822534 | F112: 37.22725711 | G112: 37.22725711 | H112: 37.22725711 | I112: 37.22725711 | J112: 37.22725711 | K112: 37.22725711 | L112: 37.22725711 | M112: 37.22725711
B113: Row 4 | C113: Additions | D113: =SUM('Exhibit 2'!D224:D227) -> 22.28822534 | E113: =SUM('Exhibit 2'!E224:E227) -> 14.93903177 | F113: =SUM('Exhibit 2'!F224:F227) -> 0 | G113: =SUM('Exhibit 2'!G224:G227) -> 0 | H113: =SUM('Exhibit 2'!H224:H227) -> 0 | I113: =SUM('Exhibit 2'!I224:I227) -> 0 | J113: =SUM('Exhibit 2'!J224:J227) -> 0 | K113: =SUM('Exhibit 2'!K224:K227) -> 0 | L113: =SUM('Exhibit 2'!L224:L227) -> 0 | M113: =SUM('Exhibit 2'!M224:M227) -> 0
B114: Row 5 | C114: Retirement | D114: =SUMIFS(Calculation!I$11248:I$11447,Input!$F$221:$F$420,'Exhibit 2'!D$145,Input!$Q$221:$Q$420,$D103) -> 0 | E114: =SUMIFS(Calculation!J$11248:J$11447,Input!$F$221:$F$420,'Exhibit 2'!E$145,Input!$Q$221:$Q$420,$D103) -> 0 | F114: =SUMIFS(Calculation!K$11248:K$11447,Input!$F$221:$F$420,'Exhibit 2'!F$145,Input!$Q$221:$Q$420,$D103) -> 0 | G114: =SUMIFS(Calculation!L$11248:L$11447,Input!$F$221:$F$420,'Exhibit 2'!G$145,Input!$Q$221:$Q$420,$D103) -> 0 | H114: =SUMIFS(Calculation!M$11248:M$11447,Input!$F$221:$F$420,'Exhibit 2'!H$145,Input!$Q$221:$Q$420,$D103) -> 0 | I114: =SUMIFS(Calculation!N$11248:N$11447,Input!$F$221:$F$420,'Exhibit 2'!I$145,Input!$Q$221:$Q$420,$D103) -> 0 | J114: =SUMIFS(Calculation!O$11248:O$11447,Input!$F$221:$F$420,'Exhibit 2'!J$145,Input!$Q$221:$Q$420,$D103) -> 0 | K114: =SUMIFS(Calculation!P$11248:P$11447,Input!$F$221:$F$420,'Exhibit 2'!K$145,Input!$Q$221:$Q$420,$D103) -> 0 | L114: =SUMIFS(Calculation!Q$11248:Q$11447,Input!$F$221:$F$420,'Exhibit 2'!L$145,Input!$Q$221:$Q$420,$D103) -> 0 | M114: =SUMIFS(Calculation!R$11248:R$11447,Input!$F$221:$F$420,'Exhibit 2'!M$145,Input!$Q$221:$Q$420,$D103) -> 0
B115: Row 6 | C115: Closing Balance | D115: =SUM(D112:D114) -> 22.28822534 | E115: 37.22725711 | F115: 37.22725711 | G115: 37.22725711 | H115: 37.22725711 | I115: 37.22725711 | J115: 37.22725711 | K115: 37.22725711 | L115: 37.22725711 | M115: 37.22725711
B116: Row 7
B117: Row 8 | C117: Accumulated Depreciation
B118: Row 9 | C118: Opening Balance | D118: 0 | E118: =D121 -> -0.1826903716 | F118: -0.6097886131 | G118: -1.220071517 | H118: -1.83035442 | I118: -2.440637323 | J118: -3.050920227 | K118: -3.66120313 | L118: -4.271486034 | M118: -4.881768937
B119: Row 10 | C119: Depreciation | D119: =SUMIFS(Calculation!I$11862:I$12061,Input!$Q$221:$Q$420,$D103) -> -0.1826903716 | E119: =SUMIFS(Calculation!J$11862:J$12061,Input!$Q$221:$Q$420,$D103) -> -0.4270982415 | F119: =SUMIFS(Calculation!K$11862:K$12061,Input!$Q$221:$Q$420,$D103) -> -0.6102829034 | G119: =SUMIFS(Calculation!L$11862:L$12061,Input!$Q$221:$Q$420,$D103) -> -0.6102829034 | H119: =SUMIFS(Calculation!M$11862:M$12061,Input!$Q$221:$Q$420,$D103) -> -0.6102829034 | I119: =SUMIFS(Calculation!N$11862:N$12061,Input!$Q$221:$Q$420,$D103) -> -0.6102829034 | J119: =SUMIFS(Calculation!O$11862:O$12061,Input!$Q$221:$Q$420,$D103) -> -0.6102829034 | K119: =SUMIFS(Calculation!P$11862:P$12061,Input!$Q$221:$Q$420,$D103) -> -0.6102829034 | L119: =SUMIFS(Calculation!Q$11862:Q$12061,Input!$Q$221:$Q$420,$D103) -> -0.6102829034 | M119: =SUMIFS(Calculation!R$11862:R$12061,Input!$Q$221:$Q$420,$D103) -> -0.6102829034
B120: Row 11 | C120: Retirement | D120: =SUMIFS(Calculation!I$12066:I$12265,Input!$Q$221:$Q$420,$D103) -> 0 | E120: =SUMIFS(Calculation!J$12066:J$12265,Input!$Q$221:$Q$420,$D103) -> 0 | F120: =SUMIFS(Calculation!K$12066:K$12265,Input!$Q$221:$Q$420,$D103) -> 0 | G120: =SUMIFS(Calculation!L$12066:L$12265,Input!$Q$221:$Q$420,$D103) -> 0 | H120: =SUMIFS(Calculation!M$12066:M$12265,Input!$Q$221:$Q$420,$D103) -> 0 | I120: =SUMIFS(Calculation!N$12066:N$12265,Input!$Q$221:$Q$420,$D103) -> 0 | J120: =SUMIFS(Calculation!O$12066:O$12265,Input!$Q$221:$Q$420,$D103) -> 0 | K120: =SUMIFS(Calculation!P$12066:P$12265,Input!$Q$221:$Q$420,$D103) -> 0 | L120: =SUMIFS(Calculation!Q$12066:Q$12265,Input!$Q$221:$Q$420,$D103) -> 0 | M120: =SUMIFS(Calculation!R$12066:R$12265,Input!$Q$221:$Q$420,$D103) -> 0
B121: Row 12 | C121: Closing Balance | D121: =SUM(D118:D120) -> -0.1826903716 | E121: -0.6097886131 | F121: -1.220071517 | G121: -1.83035442 | H121: -2.440637323 | I121: -3.050920227 | J121: -3.66120313 | K121: -4.271486034 | L121: -4.881768937 | M121: -5.49205184
C123: Asset Category | D123: =Input!C$50 -> Distribution Mains - Plastic
C124: ="Projected Continuity Schedule of "&$D123 -> Projected Continuity Schedule of Distribution Mains - Plastic
C125: (Thousands of Dollars)
D127: Col. 1 | E127: Col. 2 | F127: Col. 3 | G127: Col. 4 | H127: Col. 5 | I127: Col. 6 | J127: Col. 7 | K127: Col. 8 | L127: Col. 9 | M127: Col. 10
C129: Description | D129: =Calculation!I$2 -> 2019 | E129: =Calculation!J$2 -> 2020 | F129: =Calculation!K$2 -> 2021 | G129: =Calculation!L$2 -> 2022 | H129: =Calculation!M$2 -> 2023 | I129: =Calculation!N$2 -> 2024 | J129: =Calculation!O$2 -> 2025 | K129: =Calculation!P$2 -> 2026 | L129: =Calculation!Q$2 -> 2027 | M129: =Calculation!R$2 -> 2028
B130: Row 1
B131: Row 2 | C131: Gross Fixed Assets
B132: Row 3 | C132: Opening Balance | D132: 0 | E132: =D135 -> 9418.276441 | F132: 21855.04728 | G132: 21980.94743 | H132: 22109.19664 | I132: 22240.91004 | J132: 22390.04932 | K132: 22587.16544 | L132: 22751.50653 | M132: 22913.46894
B133: Row 4 | C133: Additions | D133: =SUM('Exhibit 2'!D249:D252) -> 9418.276441 | E133: =SUM('Exhibit 2'!E249:E252) -> 12436.77084 | F133: =SUM('Exhibit 2'!F249:F252) -> 125.9001506 | G133: =SUM('Exhibit 2'!G249:G252) -> 128.2492112 | H133: =SUM('Exhibit 2'!H249:H252) -> 131.7134032 | I133: =SUM('Exhibit 2'!I249:I252) -> 149.139282 | J133: =SUM('Exhibit 2'!J249:J252) -> 197.1161182 | K133: =SUM('Exhibit 2'!K249:K252) -> 164.3410847 | L133: =SUM('Exhibit 2'!L249:L252) -> 161.9624109 | M133: =SUM('Exhibit 2'!M249:M252) -> 93.92025432
B134: Row 5 | C134: Retirement | D134: =SUMIFS(Calculation!I$11248:I$11447,Input!$F$221:$F$420,'Exhibit 2'!D$145,Input!$Q$221:$Q$420,$D123) -> 0 | E134: =SUMIFS(Calculation!J$11248:J$11447,Input!$F$221:$F$420,'Exhibit 2'!E$145,Input!$Q$221:$Q$420,$D123) -> 0 | F134: =SUMIFS(Calculation!K$11248:K$11447,Input!$F$221:$F$420,'Exhibit 2'!F$145,Input!$Q$221:$Q$420,$D123) -> 0 | G134: =SUMIFS(Calculation!L$11248:L$11447,Input!$F$221:$F$420,'Exhibit 2'!G$145,Input!$Q$221:$Q$420,$D123) -> 0 | H134: =SUMIFS(Calculation!M$11248:M$11447,Input!$F$221:$F$420,'Exhibit 2'!H$145,Input!$Q$221:$Q$420,$D123) -> 0 | I134: =SUMIFS(Calculation!N$11248:N$11447,Input!$F$221:$F$420,'Exhibit 2'!I$145,Input!$Q$221:$Q$420,$D123) -> 0 | J134: =SUMIFS(Calculation!O$11248:O$11447,Input!$F$221:$F$420,'Exhibit 2'!J$145,Input!$Q$221:$Q$420,$D123) -> 0 | K134: =SUMIFS(Calculation!P$11248:P$11447,Input!$F$221:$F$420,'Exhibit 2'!K$145,Input!$Q$221:$Q$420,$D123) -> 0 | L134: =SUMIFS(Calculation!Q$11248:Q$11447,Input!$F$221:$F$420,'Exhibit 2'!L$145,Input!$Q$221:$Q$420,$D123) -> 0 | M134: =SUMIFS(Calculation!R$11248:R$11447,Input!$F$221:$F$420,'Exhibit 2'!M$145,Input!$Q$221:$Q$420,$D123) -> 0
B135: Row 6 | C135: Closing Balance | D135: =SUM(D132:D134) -> 9418.276441 | E135: 21855.04728 | F135: 21980.94743 | G135: 22109.19664 | H135: 22240.91004 | I135: 22390.04932 | J135: 22587.16544 | K135: 22751.50653 | L135: 22913.46894 | M135: 23007.38919
B136: Row 7
B137: Row 8 | C137: Accumulated Depreciation
B138: Row 9 | C138: Opening Balance | D138: 0 | E138: =D141 -> -109.5148423 | F138: -436.6246412 | G138: -946.3455098 | H138: -1459.021604 | I138: -1974.720518 | J138: -2493.685162 | K138: -3016.676032 | L138: -3543.869892 | M138: -4074.857979
B139: Row 10 | C139: Depreciation | D139: =SUMIFS(Calculation!I$11862:I$12061,Input!$Q$221:$Q$420,$D123) -> -109.5148423 | E139: =SUMIFS(Calculation!J$11862:J$12061,Input!$Q$221:$Q$420,$D123) -> -327.1097988 | F139: =SUMIFS(Calculation!K$11862:K$12061,Input!$Q$221:$Q$420,$D123) -> -509.7208686 | G139: =SUMIFS(Calculation!L$11862:L$12061,Input!$Q$221:$Q$420,$D123) -> -512.6760938 | H139: =SUMIFS(Calculation!M$11862:M$12061,Input!$Q$221:$Q$420,$D123) -> -515.6989149 | I139: =SUMIFS(Calculation!N$11862:N$12061,Input!$Q$221:$Q$420,$D123) -> -518.9646438 | J139: =SUMIFS(Calculation!O$11862:O$12061,Input!$Q$221:$Q$420,$D123) -> -522.9908694 | K139: =SUMIFS(Calculation!P$11862:P$12061,Input!$Q$221:$Q$420,$D123) -> -527.1938601 | L139: =SUMIFS(Calculation!Q$11862:Q$12061,Input!$Q$221:$Q$420,$D123) -> -530.9880868 | M139: =SUMIFS(Calculation!R$11862:R$12061,Input!$Q$221:$Q$420,$D123) -> -533.9634666
B140: Row 11 | C140: Retirement | D140: =SUMIFS(Calculation!I$12066:I$12265,Input!$Q$221:$Q$420,$D123) -> 0 | E140: =SUMIFS(Calculation!J$12066:J$12265,Input!$Q$221:$Q$420,$D123) -> 0 | F140: =SUMIFS(Calculation!K$12066:K$12265,Input!$Q$221:$Q$420,$D123) -> 0 | G140: =SUMIFS(Calculation!L$12066:L$12265,Input!$Q$221:$Q$420,$D123) -> 0 | H140: =SUMIFS(Calculation!M$12066:M$12265,Input!$Q$221:$Q$420,$D123) -> 0 | I140: =SUMIFS(Calculation!N$12066:N$12265,Input!$Q$221:$Q$420,$D123) -> 0 | J140: =SUMIFS(Calculation!O$12066:O$12265,Input!$Q$221:$Q$420,$D123) -> 0 | K140: =SUMIFS(Calculation!P$12066:P$12265,Input!$Q$221:$Q$420,$D123) -> 0 | L140: =SUMIFS(Calculation!Q$12066:Q$12265,Input!$Q$221:$Q$420,$D123) -> 0 | M140: =SUMIFS(Calculation!R$12066:R$12265,Input!$Q$221:$Q$420,$D123) -> 0
B141: Row 12 | C141: Closing Balance | D141: =SUM(D138:D140) -> -109.5148423 | E141: -436.6246412 | F141: -946.3455098 | G141: -1459.021604 | H141: -1974.720518 | I141: -2493.685162 | J141: -3016.676032 | K141: -3543.869892 | L141: -4074.857979 | M141: -4608.821445
C143: Asset Category | D143: =Input!C$51 -> Distribution Services Plastic
C144: ="Projected Continuity Schedule of "&$D143 -> Projected Continuity Schedule of Distribution Services Plastic
C145: (Thousands of Dollars)
D147: Col. 1 | E147: Col. 2 | F147: Col. 3 | G147: Col. 4 | H147: Col. 5 | I147: Col. 6 | J147: Col. 7 | K147: Col. 8 | L147: Col. 9 | M147: Col. 10
C149: Description | D149: =Calculation!I$2 -> 2019 | E149: =Calculation!J$2 -> 2020 | F149: =Calculation!K$2 -> 2021 | G149: =Calculation!L$2 -> 2022 | H149: =Calculation!M$2 -> 2023 | I149: =Calculation!N$2 -> 2024 | J149: =Calculation!O$2 -> 2025 | K149: =Calculation!P$2 -> 2026 | L149: =Calculation!Q$2 -> 2027 | M149: =Calculation!R$2 -> 2028
B150: Row 1
B151: Row 2 | C151: Gross Fixed Assets
B152: Row 3 | C152: Opening Balance | D152: 0 | E152: =D155 -> 1524.582072 | F152: 4279.953861 | G152: 6427.95082 | H152: 7694.83251 | I152: 8795.612361 | J152: 9347.21044 | K152: 9513.432126 | L152: 9652.01568 | M152: 9788.593374
B153: Row 4 | C153: Additions | D153: =SUM('Exhibit 2'!D274:D277) -> 1524.582072 | E153: =SUM('Exhibit 2'!E274:E277) -> 2755.371789 | F153: =SUM('Exhibit 2'!F274:F277) -> 2147.996959 | G153: =SUM('Exhibit 2'!G274:G277) -> 1266.88169 | H153: =SUM('Exhibit 2'!H274:H277) -> 1100.779851 | I153: =SUM('Exhibit 2'!I274:I277) -> 551.5980791 | J153: =SUM('Exhibit 2'!J274:J277) -> 166.2216857 | K153: =SUM('Exhibit 2'!K274:K277) -> 138.5835536 | L153: =SUM('Exhibit 2'!L274:L277) -> 136.5776945 | M153: =SUM('Exhibit 2'!M274:M277) -> 79.19993118
B154: Row 5 | C154: Retirement | D154: =SUMIFS(Calculation!I$11248:I$11447,Input!$F$221:$F$420,'Exhibit 2'!D$145,Input!$Q$221:$Q$420,$D143) -> 0 | E154: =SUMIFS(Calculation!J$11248:J$11447,Input!$F$221:$F$420,'Exhibit 2'!E$145,Input!$Q$221:$Q$420,$D143) -> 0 | F154: =SUMIFS(Calculation!K$11248:K$11447,Input!$F$221:$F$420,'Exhibit 2'!F$145,Input!$Q$221:$Q$420,$D143) -> 0 | G154: =SUMIFS(Calculation!L$11248:L$11447,Input!$F$221:$F$420,'Exhibit 2'!G$145,Input!$Q$221:$Q$420,$D143) -> 0 | H154: =SUMIFS(Calculation!M$11248:M$11447,Input!$F$221:$F$420,'Exhibit 2'!H$145,Input!$Q$221:$Q$420,$D143) -> 0 | I154: =SUMIFS(Calculation!N$11248:N$11447,Input!$F$221:$F$420,'Exhibit 2'!I$145,Input!$Q$221:$Q$420,$D143) -> 0 | J154: =SUMIFS(Calculation!O$11248:O$11447,Input!$F$221:$F$420,'Exhibit 2'!J$145,Input!$Q$221:$Q$420,$D143) -> 0 | K154: =SUMIFS(Calculation!P$11248:P$11447,Input!$F$221:$F$420,'Exhibit 2'!K$145,Input!$Q$221:$Q$420,$D143) -> 0 | L154: =SUMIFS(Calculation!Q$11248:Q$11447,Input!$F$221:$F$420,'Exhibit 2'!L$145,Input!$Q$221:$Q$420,$D143) -> 0 | M154: =SUMIFS(Calculation!R$11248:R$11447,Input!$F$221:$F$420,'Exhibit 2'!M$145,Input!$Q$221:$Q$420,$D143) -> 0
B155: Row 6 | C155: Closing Balance | D155: =SUM(D152:D154) -> 1524.582072 | E155: 4279.953861 | F155: 6427.95082 | G155: 7694.83251 | H155: 8795.612361 | I155: 9347.21044 | J155: 9513.432126 | K155: 9652.01568 | L155: 9788.593374 | M155: 9867.793305
B156: Row 7
B157: Row 8 | C157: Accumulated Depreciation
B158: Row 9 | C158: Opening Balance | D158: 0 | E158: =D161 -> -19.0572759 | F158: -85.25096672 | G158: -219.0997752 | H158: -395.6345668 | I158: -601.7651277 | J158: -828.5504128 | K158: -1064.308445 | L158: -1303.876542 | M158: -1546.884156
B159: Row 10 | C159: Depreciation | D159: =SUMIFS(Calculation!I$11862:I$12061,Input!$Q$221:$Q$420,$D143) -> -19.0572759 | E159: =SUMIFS(Calculation!J$11862:J$12061,Input!$Q$221:$Q$420,$D143) -> -66.19369082 | F159: =SUMIFS(Calculation!K$11862:K$12061,Input!$Q$221:$Q$420,$D143) -> -133.8488085 | G159: =SUMIFS(Calculation!L$11862:L$12061,Input!$Q$221:$Q$420,$D143) -> -176.5347916 | H159: =SUMIFS(Calculation!M$11862:M$12061,Input!$Q$221:$Q$420,$D143) -> -206.1305609 | I159: =SUMIFS(Calculation!N$11862:N$12061,Input!$Q$221:$Q$420,$D143) -> -226.785285 | J159: =SUMIFS(Calculation!O$11862:O$12061,Input!$Q$221:$Q$420,$D143) -> -235.7580321 | K159: =SUMIFS(Calculation!P$11862:P$12061,Input!$Q$221:$Q$420,$D143) -> -239.5680976 | L159: =SUMIFS(Calculation!Q$11862:Q$12061,Input!$Q$221:$Q$420,$D143) -> -243.0076132 | M159: =SUMIFS(Calculation!R$11862:R$12061,Input!$Q$221:$Q$420,$D143) -> -245.7048335
B160: Row 11 | C160: Retirement | D160: =SUMIFS(Calculation!I$12066:I$12265,Input!$Q$221:$Q$420,$D143) -> 0 | E160: =SUMIFS(Calculation!J$12066:J$12265,Input!$Q$221:$Q$420,$D143) -> 0 | F160: =SUMIFS(Calculation!K$12066:K$12265,Input!$Q$221:$Q$420,$D143) -> 0 | G160: =SUMIFS(Calculation!L$12066:L$12265,Input!$Q$221:$Q$420,$D143) -> 0 | H160: =SUMIFS(Calculation!M$12066:M$12265,Input!$Q$221:$Q$420,$D143) -> 0 | I160: =SUMIFS(Calculation!N$12066:N$12265,Input!$Q$221:$Q$420,$D143) -> 0 | J160: =SUMIFS(Calculation!O$12066:O$12265,Input!$Q$221:$Q$420,$D143) -> 0 | K160: =SUMIFS(Calculation!P$12066:P$12265,Input!$Q$221:$Q$420,$D143) -> 0 | L160: =SUMIFS(Calculation!Q$12066:Q$12265,Input!$Q$221:$Q$420,$D143) -> 0 | M160: =SUMIFS(Calculation!R$12066:R$12265,Input!$Q$221:$Q$420,$D143) -> 0
B161: Row 12 | C161: Closing Balance | D161: =SUM(D158:D160) -> -19.0572759 | E161: -85.25096672 | F161: -219.0997752 | G161: -395.6345668 | H161: -601.7651277 | I161: -828.5504128 | J161: -1064.308445 | K161: -1303.876542 | L161: -1546.884156 | M161: -1792.588989
C163: Asset Category | D163: =Input!C$52 -> Distribution Meters
C164: ="Projected Continuity Schedule of "&$D163 -> Projected Continuity Schedule of Distribution Meters
C165: (Thousands of Dollars)
D167: Col. 1 | E167: Col. 2 | F167: Col. 3 | G167: Col. 4 | H167: Col. 5 | I167: Col. 6 | J167: Col. 7 | K167: Col. 8 | L167: Col. 9 | M167: Col. 10
C169: Description | D169: =Calculation!I$2 -> 2019 | E169: =Calculation!J$2 -> 2020 | F169: =Calculation!K$2 -> 2021 | G169: =Calculation!L$2 -> 2022 | H169: =Calculation!M$2 -> 2023 | I169: =Calculation!N$2 -> 2024 | J169: =Calculation!O$2 -> 2025 | K169: =Calculation!P$2 -> 2026 | L169: =Calculation!Q$2 -> 2027 | M169: =Calculation!R$2 -> 2028
B170: Row 1
B171: Row 2 | C171: Gross Fixed Assets
B172: Row 3 | C172: Opening Balance | D172: 0 | E172: =D175 -> 581.1471232 | F172: 1536.486463 | G172: 2223.221046 | H172: 2645.430501 | I172: 3012.283747 | J172: 3196.113008 | K172: 3251.509157 | L172: 3297.694438 | M172: 3343.211233
B173: Row 4 | C173: Additions | D173: =SUM('Exhibit 2'!D299:D302) -> 581.1471232 | E173: =SUM('Exhibit 2'!E299:E302) -> 955.3393393 | F173: =SUM('Exhibit 2'!F299:F302) -> 686.7345836 | G173: =SUM('Exhibit 2'!G299:G302) -> 422.2094548 | H173: =SUM('Exhibit 2'!H299:H302) -> 366.8532465 | I173: =SUM('Exhibit 2'!I299:I302) -> 183.8292605 | J173: =SUM('Exhibit 2'!J299:J302) -> 55.39614935 | K173: =SUM('Exhibit 2'!K299:K302) -> 46.18528079 | L173: =SUM('Exhibit 2'!L299:L302) -> 45.51679479 | M173: =SUM('Exhibit 2'!M299:M302) -> 26.39469812
B174: Row 5 | C174: Retirement | D174: =SUMIFS(Calculation!I$11248:I$11447,Input!$F$221:$F$420,'Exhibit 2'!D$145,Input!$Q$221:$Q$420,$D163) -> 0 | E174: =SUMIFS(Calculation!J$11248:J$11447,Input!$F$221:$F$420,'Exhibit 2'!E$145,Input!$Q$221:$Q$420,$D163) -> 0 | F174: =SUMIFS(Calculation!K$11248:K$11447,Input!$F$221:$F$420,'Exhibit 2'!F$145,Input!$Q$221:$Q$420,$D163) -> 0 | G174: =SUMIFS(Calculation!L$11248:L$11447,Input!$F$221:$F$420,'Exhibit 2'!G$145,Input!$Q$221:$Q$420,$D163) -> 0 | H174: =SUMIFS(Calculation!M$11248:M$11447,Input!$F$221:$F$420,'Exhibit 2'!H$145,Input!$Q$221:$Q$420,$D163) -> 0 | I174: =SUMIFS(Calculation!N$11248:N$11447,Input!$F$221:$F$420,'Exhibit 2'!I$145,Input!$Q$221:$Q$420,$D163) -> 0 | J174: =SUMIFS(Calculation!O$11248:O$11447,Input!$F$221:$F$420,'Exhibit 2'!J$145,Input!$Q$221:$Q$420,$D163) -> 0 | K174: =SUMIFS(Calculation!P$11248:P$11447,Input!$F$221:$F$420,'Exhibit 2'!K$145,Input!$Q$221:$Q$420,$D163) -> 0 | L174: =SUMIFS(Calculation!Q$11248:Q$11447,Input!$F$221:$F$420,'Exhibit 2'!L$145,Input!$Q$221:$Q$420,$D163) -> 0 | M174: =SUMIFS(Calculation!R$11248:R$11447,Input!$F$221:$F$420,'Exhibit 2'!M$145,Input!$Q$221:$Q$420,$D163) -> 0
B175: Row 6 | C175: Closing Balance | D175: =SUM(D172:D174) -> 581.1471232 | E175: 1536.486463 | F175: 2223.221046 | G175: 2645.430501 | H175: 3012.283747 | I175: 3196.113008 | J175: 3251.509157 | K175: 3297.694438 | L175: 3343.211233 | M175: 3369.605931
B176: Row 7
B177: Row 8 | C177: Accumulated Depreciation
B178: Row 9 | C178: Opening Balance | D178: 0 | E178: =D181 -> -11.17590622 | F178: -51.89962902 | G178: -124.2016965 | H178: -217.8296109 | I178: -326.6318079 | J178: -446.0240532 | K178: -570.0167872 | L178: -695.9630102 | M178: -823.6727346
B179: Row 10 | C179: Depreciation | D179: =SUMIFS(Calculation!I$11862:I$12061,Input!$Q$221:$Q$420,$D163) -> -11.17590622 | E179: =SUMIFS(Calculation!J$11862:J$12061,Input!$Q$221:$Q$420,$D163) -> -40.7237228 | F179: =SUMIFS(Calculation!K$11862:K$12061,Input!$Q$221:$Q$420,$D163) -> -72.30206747 | G179: =SUMIFS(Calculation!L$11862:L$12061,Input!$Q$221:$Q$420,$D163) -> -93.62791436 | H179: =SUMIFS(Calculation!M$11862:M$12061,Input!$Q$221:$Q$420,$D163) -> -108.8021971 | I179: =SUMIFS(Calculation!N$11862:N$12061,Input!$Q$221:$Q$420,$D163) -> -119.3922453 | J179: =SUMIFS(Calculation!O$11862:O$12061,Input!$Q$221:$Q$420,$D163) -> -123.9927339 | K179: =SUMIFS(Calculation!P$11862:P$12061,Input!$Q$221:$Q$420,$D163) -> -125.946223 | L179: =SUMIFS(Calculation!Q$11862:Q$12061,Input!$Q$221:$Q$420,$D163) -> -127.7097244 | M179: =SUMIFS(Calculation!R$11862:R$12061,Input!$Q$221:$Q$420,$D163) -> -129.0926378
B180: Row 11 | C180: Retirement | D180: =SUMIFS(Calculation!I$12066:I$12265,Input!$Q$221:$Q$420,$D163) -> 0 | E180: =SUMIFS(Calculation!J$12066:J$12265,Input!$Q$221:$Q$420,$D163) -> 0 | F180: =SUMIFS(Calculation!K$12066:K$12265,Input!$Q$221:$Q$420,$D163) -> 0 | G180: =SUMIFS(Calculation!L$12066:L$12265,Input!$Q$221:$Q$420,$D163) -> 0 | H180: =SUMIFS(Calculation!M$12066:M$12265,Input!$Q$221:$Q$420,$D163) -> 0 | I180: =SUMIFS(Calculation!N$12066:N$12265,Input!$Q$221:$Q$420,$D163) -> 0 | J180: =SUMIFS(Calculation!O$12066:O$12265,Input!$Q$221:$Q$420,$D163) -> 0 | K180: =SUMIFS(Calculation!P$12066:P$12265,Input!$Q$221:$Q$420,$D163) -> 0 | L180: =SUMIFS(Calculation!Q$12066:Q$12265,Input!$Q$221:$Q$420,$D163) -> 0 | M180: =SUMIFS(Calculation!R$12066:R$12265,Input!$Q$221:$Q$420,$D163) -> 0
B181: Row 12 | C181: Closing Balance | D181: =SUM(D178:D180) -> -11.17590622 | E181: -51.89962902 | F181: -124.2016965 | G181: -217.8296109 | H181: -326.6318079 | I181: -446.0240532 | J181: -570.0167872 | K181: -695.9630102 | L181: -823.6727346 | M181: -952.7653724
C183: Asset Category | D183: =Input!C$53 -> Distribution Measuring and Regulating Equipt.
C184: ="Projected Continuity Schedule of "&$D183 -> Projected Continuity Schedule of Distribution Measuring and Regulating Equipt.
C185: (Thousands of Dollars)
D187: Col. 1 | E187: Col. 2 | F187: Col. 3 | G187: Col. 4 | H187: Col. 5 | I187: Col. 6 | J187: Col. 7 | K187: Col. 8 | L187: Col. 9 | M187: Col. 10
C189: Description | D189: =Calculation!I$2 -> 2019 | E189: =Calculation!J$2 -> 2020 | F189: =Calculation!K$2 -> 2021 | G189: =Calculation!L$2 -> 2022 | H189: =Calculation!M$2 -> 2023 | I189: =Calculation!N$2 -> 2024 | J189: =Calculation!O$2 -> 2025 | K189: =Calculation!P$2 -> 2026 | L189: =Calculation!Q$2 -> 2027 | M189: =Calculation!R$2 -> 2028
B190: Row 1
B191: Row 2 | C191: Gross Fixed Assets
B192: Row 3 | C192: Opening Balance | D192: 0 | E192: =D195 -> 1021.859599 | F192: 1481.271241 | G192: 1588.582008 | H192: 1588.582008 | I192: 1588.582008 | J192: 1588.582008 | K192: 1588.582008 | L192: 1588.582008 | M192: 1588.582008
B193: Row 4 | C193: Additions | D193: =SUM('Exhibit 2'!D324:D327) -> 1021.859599 | E193: =SUM('Exhibit 2'!E324:E327) -> 459.4116412 | F193: =SUM('Exhibit 2'!F324:F327) -> 107.310767 | G193: =SUM('Exhibit 2'!G324:G327) -> 0 | H193: =SUM('Exhibit 2'!H324:H327) -> 0 | I193: =SUM('Exhibit 2'!I324:I327) -> 0 | J193: =SUM('Exhibit 2'!J324:J327) -> 0 | K193: =SUM('Exhibit 2'!K324:K327) -> 0 | L193: =SUM('Exhibit 2'!L324:L327) -> 0 | M193: =SUM('Exhibit 2'!M324:M327) -> 0
B194: Row 5 | C194: Retirement | D194: =SUMIFS(Calculation!I$11248:I$11447,Input!$F$221:$F$420,'Exhibit 2'!D$145,Input!$Q$221:$Q$420,$D183) -> 0 | E194: =SUMIFS(Calculation!J$11248:J$11447,Input!$F$221:$F$420,'Exhibit 2'!E$145,Input!$Q$221:$Q$420,$D183) -> 0 | F194: =SUMIFS(Calculation!K$11248:K$11447,Input!$F$221:$F$420,'Exhibit 2'!F$145,Input!$Q$221:$Q$420,$D183) -> 0 | G194: =SUMIFS(Calculation!L$11248:L$11447,Input!$F$221:$F$420,'Exhibit 2'!G$145,Input!$Q$221:$Q$420,$D183) -> 0 | H194: =SUMIFS(Calculation!M$11248:M$11447,Input!$F$221:$F$420,'Exhibit 2'!H$145,Input!$Q$221:$Q$420,$D183) -> 0 | I194: =SUMIFS(Calculation!N$11248:N$11447,Input!$F$221:$F$420,'Exhibit 2'!I$145,Input!$Q$221:$Q$420,$D183) -> 0 | J194: =SUMIFS(Calculation!O$11248:O$11447,Input!$F$221:$F$420,'Exhibit 2'!J$145,Input!$Q$221:$Q$420,$D183) -> 0 | K194: =SUMIFS(Calculation!P$11248:P$11447,Input!$F$221:$F$420,'Exhibit 2'!K$145,Input!$Q$221:$Q$420,$D183) -> 0 | L194: =SUMIFS(Calculation!Q$11248:Q$11447,Input!$F$221:$F$420,'Exhibit 2'!L$145,Input!$Q$221:$Q$420,$D183) -> 0 | M194: =SUMIFS(Calculation!R$11248:R$11447,Input!$F$221:$F$420,'Exhibit 2'!M$145,Input!$Q$221:$Q$420,$D183) -> 0
B195: Row 6 | C195: Closing Balance | D195: =SUM(D192:D194) -> 1021.859599 | E195: 1481.271241 | F195: 1588.582008 | G195: 1588.582008 | H195: 1588.582008 | I195: 1588.582008 | J195: 1588.582008 | K195: 1588.582008 | L195: 1588.582008 | M195: 1588.582008
B196: Row 7
B197: Row 8 | C197: Accumulated Depreciation
B198: Row 9 | C198: Opening Balance | D198: 0 | E198: =D201 -> -18.92332591 | F198: -58.92057257 | G198: -115.7697068 | H198: -174.6060774 | I198: -233.4424481 | J198: -292.2788187 | K198: -351.1151894 | L198: -409.95156 | M198: -468.7879307
B199: Row 10 | C199: Depreciation | D199: =SUMIFS(Calculation!I$11862:I$12061,Input!$Q$221:$Q$420,$D183) -> -18.92332591 | E199: =SUMIFS(Calculation!J$11862:J$12061,Input!$Q$221:$Q$420,$D183) -> -39.99724666 | F199: =SUMIFS(Calculation!K$11862:K$12061,Input!$Q$221:$Q$420,$D183) -> -56.84913422 | G199: =SUMIFS(Calculation!L$11862:L$12061,Input!$Q$221:$Q$420,$D183) -> -58.83637065 | H199: =SUMIFS(Calculation!M$11862:M$12061,Input!$Q$221:$Q$420,$D183) -> -58.83637065 | I199: =SUMIFS(Calculation!N$11862:N$12061,Input!$Q$221:$Q$420,$D183) -> -58.83637065 | J199: =SUMIFS(Calculation!O$11862:O$12061,Input!$Q$221:$Q$420,$D183) -> -58.83637065 | K199: =SUMIFS(Calculation!P$11862:P$12061,Input!$Q$221:$Q$420,$D183) -> -58.83637065 | L199: =SUMIFS(Calculation!Q$11862:Q$12061,Input!$Q$221:$Q$420,$D183) -> -58.83637065 | M199: =SUMIFS(Calculation!R$11862:R$12061,Input!$Q$221:$Q$420,$D183) -> -58.83637065
B200: Row 11 | C200: Retirement | D200: =SUMIFS(Calculation!I$12066:I$12265,Input!$Q$221:$Q$420,$D183) -> 0 | E200: =SUMIFS(Calculation!J$12066:J$12265,Input!$Q$221:$Q$420,$D183) -> 0 | F200: =SUMIFS(Calculation!K$12066:K$12265,Input!$Q$221:$Q$420,$D183) -> 0 | G200: =SUMIFS(Calculation!L$12066:L$12265,Input!$Q$221:$Q$420,$D183) -> 0 | H200: =SUMIFS(Calculation!M$12066:M$12265,Input!$Q$221:$Q$420,$D183) -> 0 | I200: =SUMIFS(Calculation!N$12066:N$12265,Input!$Q$221:$Q$420,$D183) -> 0 | J200: =SUMIFS(Calculation!O$12066:O$12265,Input!$Q$221:$Q$420,$D183) -> 0 | K200: =SUMIFS(Calculation!P$12066:P$12265,Input!$Q$221:$Q$420,$D183) -> 0 | L200: =SUMIFS(Calculation!Q$12066:Q$12265,Input!$Q$221:$Q$420,$D183) -> 0 | M200: =SUMIFS(Calculation!R$12066:R$12265,Input!$Q$221:$Q$420,$D183) -> 0
B201: Row 12 | C201: Closing Balance | D201: =SUM(D198:D200) -> -18.92332591 | E201: -58.92057257 | F201: -115.7697068 | G201: -174.6060774 | H201: -233.4424481 | I201: -292.2788187 | J201: -351.1151894 | K201: -409.95156 | L201: -468.7879307 | M201: -527.6243013
C203: Asset Category | D203: =Input!C$54 -> Vehicles
C204: ="Projected Continuity Schedule of "&$D203 -> Projected Continuity Schedule of Vehicles
C205: (Thousands of Dollars)
D207: Col. 1 | E207: Col. 2 | F207: Col. 3 | G207: Col. 4 | H207: Col. 5 | I207: Col. 6 | J207: Col. 7 | K207: Col. 8 | L207: Col. 9 | M207: Col. 10
C209: Description | D209: =Calculation!I$2 -> 2019 | E209: =Calculation!J$2 -> 2020 | F209: =Calculation!K$2 -> 2021 | G209: =Calculation!L$2 -> 2022 | H209: =Calculation!M$2 -> 2023 | I209: =Calculation!N$2 -> 2024 | J209: =Calculation!O$2 -> 2025 | K209: =Calculation!P$2 -> 2026 | L209: =Calculation!Q$2 -> 2027 | M209: =Calculation!R$2 -> 2028
B210: Row 1
B211: Row 2 | C211: Gross Fixed Assets
B212: Row 3 | C212: Opening Balance | D212: 0 | E212: =D215 -> 474.8546782 | F212: 474.8546782 | G212: 474.8546782 | H212: 474.8546782 | I212: 474.8546782 | J212: 474.8546782 | K212: 474.8546782 | L212: 474.8546782 | M212: 981.5016185
B213: Row 4 | C213: Additions | D213: =SUM('Exhibit 2'!D349:D352) -> 474.8546782 | E213: =SUM('Exhibit 2'!E349:E352) -> 0 | F213: =SUM('Exhibit 2'!F349:F352) -> 0 | G213: =SUM('Exhibit 2'!G349:G352) -> 0 | H213: =SUM('Exhibit 2'!H349:H352) -> 0 | I213: =SUM('Exhibit 2'!I349:I352) -> 0 | J213: =SUM('Exhibit 2'!J349:J352) -> 0 | K213: =SUM('Exhibit 2'!K349:K352) -> 0 | L213: =SUM('Exhibit 2'!L349:L352) -> 506.6469402 | M213: =SUM('Exhibit 2'!M349:M352) -> 0
B214: Row 5 | C214: Retirement | D214: =SUMIFS(Calculation!I$11248:I$11447,Input!$F$221:$F$420,'Exhibit 2'!D$145,Input!$Q$221:$Q$420,$D203) -> 0 | E214: =SUMIFS(Calculation!J$11248:J$11447,Input!$F$221:$F$420,'Exhibit 2'!E$145,Input!$Q$221:$Q$420,$D203) -> 0 | F214: =SUMIFS(Calculation!K$11248:K$11447,Input!$F$221:$F$420,'Exhibit 2'!F$145,Input!$Q$221:$Q$420,$D203) -> 0 | G214: =SUMIFS(Calculation!L$11248:L$11447,Input!$F$221:$F$420,'Exhibit 2'!G$145,Input!$Q$221:$Q$420,$D203) -> 0 | H214: =SUMIFS(Calculation!M$11248:M$11447,Input!$F$221:$F$420,'Exhibit 2'!H$145,Input!$Q$221:$Q$420,$D203) -> 0 | I214: =SUMIFS(Calculation!N$11248:N$11447,Input!$F$221:$F$420,'Exhibit 2'!I$145,Input!$Q$221:$Q$420,$D203) -> 0 | J214: =SUMIFS(Calculation!O$11248:O$11447,Input!$F$221:$F$420,'Exhibit 2'!J$145,Input!$Q$221:$Q$420,$D203) -> 0 | K214: =SUMIFS(Calculation!P$11248:P$11447,Input!$F$221:$F$420,'Exhibit 2'!K$145,Input!$Q$221:$Q$420,$D203) -> 0 | L214: =SUMIFS(Calculation!Q$11248:Q$11447,Input!$F$221:$F$420,'Exhibit 2'!L$145,Input!$Q$221:$Q$420,$D203) -> 0 | M214: =SUMIFS(Calculation!R$11248:R$11447,Input!$F$221:$F$420,'Exhibit 2'!M$145,Input!$Q$221:$Q$420,$D203) -> 0
B215: Row 6 | C215: Closing Balance | D215: =SUM(D212:D214) -> 474.8546782 | E215: 474.8546782 | F215: 474.8546782 | G215: 474.8546782 | H215: 474.8546782 | I215: 474.8546782 | J215: 474.8546782 | K215: 474.8546782 | L215: 981.5016185 | M215: 981.5016185
B216: Row 7
B217: Row 8 | C217: Accumulated Depreciation
B218: Row 9 | C218: Opening Balance | D218: 0 | E218: =D221 -> -26.38081546 | F218: -79.14244637 | G218: -131.9040773 | H218: -184.6657082 | I218: -237.4273391 | J218: -290.18897 | K218: -342.950601 | L218: -395.7122319 | M218: -476.620915
B219: Row 10 | C219: Depreciation | D219: =SUMIFS(Calculation!I$11862:I$12061,Input!$Q$221:$Q$420,$D203) -> -26.38081546 | E219: =SUMIFS(Calculation!J$11862:J$12061,Input!$Q$221:$Q$420,$D203) -> -52.76163092 | F219: =SUMIFS(Calculation!K$11862:K$12061,Input!$Q$221:$Q$420,$D203) -> -52.76163092 | G219: =SUMIFS(Calculation!L$11862:L$12061,Input!$Q$221:$Q$420,$D203) -> -52.76163092 | H219: =SUMIFS(Calculation!M$11862:M$12061,Input!$Q$221:$Q$420,$D203) -> -52.76163092 | I219: =SUMIFS(Calculation!N$11862:N$12061,Input!$Q$221:$Q$420,$D203) -> -52.76163092 | J219: =SUMIFS(Calculation!O$11862:O$12061,Input!$Q$221:$Q$420,$D203) -> -52.76163092 | K219: =SUMIFS(Calculation!P$11862:P$12061,Input!$Q$221:$Q$420,$D203) -> -52.76163092 | L219: =SUMIFS(Calculation!Q$11862:Q$12061,Input!$Q$221:$Q$420,$D203) -> -80.90868315 | M219: =SUMIFS(Calculation!R$11862:R$12061,Input!$Q$221:$Q$420,$D203) -> -82.67491993
B220: Row 11 | C220: Retirement | D220: =SUMIFS(Calculation!I$12066:I$12265,Input!$Q$221:$Q$420,$D203) -> 0 | E220: =SUMIFS(Calculation!J$12066:J$12265,Input!$Q$221:$Q$420,$D203) -> 0 | F220: =SUMIFS(Calculation!K$12066:K$12265,Input!$Q$221:$Q$420,$D203) -> 0 | G220: =SUMIFS(Calculation!L$12066:L$12265,Input!$Q$221:$Q$420,$D203) -> 0 | H220: =SUMIFS(Calculation!M$12066:M$12265,Input!$Q$221:$Q$420,$D203) -> 0 | I220: =SUMIFS(Calculation!N$12066:N$12265,Input!$Q$221:$Q$420,$D203) -> 0 | J220: =SUMIFS(Calculation!O$12066:O$12265,Input!$Q$221:$Q$420,$D203) -> 0 | K220: =SUMIFS(Calculation!P$12066:P$12265,Input!$Q$221:$Q$420,$D203) -> 0 | L220: =SUMIFS(Calculation!Q$12066:Q$12265,Input!$Q$221:$Q$420,$D203) -> 0 | M220: =SUMIFS(Calculation!R$12066:R$12265,Input!$Q$221:$Q$420,$D203) -> 0
B221: Row 12 | C221: Closing Balance | D221: =SUM(D218:D220) -> -26.38081546 | E221: -79.14244637 | F221: -131.9040773 | G221: -184.6657082 | H221: -237.4273391 | I221: -290.18897 | J221: -342.950601 | K221: -395.7122319 | L221: -476.620915 | M221: -559.295835
C223: Asset Category | D223: =Input!C$55 -> Machinery and Equipment
C224: ="Projected Continuity Schedule of "&$D223 -> Projected Continuity Schedule of Machinery and Equipment
C225: (Thousands of Dollars)
D227: Col. 1 | E227: Col. 2 | F227: Col. 3 | G227: Col. 4 | H227: Col. 5 | I227: Col. 6 | J227: Col. 7 | K227: Col. 8 | L227: Col. 9 | M227: Col. 10
C229: Description | D229: =Calculation!I$2 -> 2019 | E229: =Calculation!J$2 -> 2020 | F229: =Calculation!K$2 -> 2021 | G229: =Calculation!L$2 -> 2022 | H229: =Calculation!M$2 -> 2023 | I229: =Calculation!N$2 -> 2024 | J229: =Calculation!O$2 -> 2025 | K229: =Calculation!P$2 -> 2026 | L229: =Calculation!Q$2 -> 2027 | M229: =Calculation!R$2 -> 2028
B230: Row 1
B231: Row 2 | C231: Gross Fixed Assets
B232: Row 3 | C232: Opening Balance | D232: 0 | E232: =D235 -> 0 | F232: 328.3227817 | G232: 328.3227817 | H232: 328.3227817 | I232: 328.3227817 | J232: 328.3227817 | K232: 328.3227817 | L232: 328.3227817 | M232: 328.3227817
B233: Row 4 | C233: Additions | D233: =SUM('Exhibit 2'!D374:D377) -> 0 | E233: =SUM('Exhibit 2'!E374:E377) -> 328.3227817 | F233: =SUM('Exhibit 2'!F374:F377) -> 0 | G233: =SUM('Exhibit 2'!G374:G377) -> 0 | H233: =SUM('Exhibit 2'!H374:H377) -> 0 | I233: =SUM('Exhibit 2'!I374:I377) -> 0 | J233: =SUM('Exhibit 2'!J374:J377) -> 0 | K233: =SUM('Exhibit 2'!K374:K377) -> 0 | L233: =SUM('Exhibit 2'!L374:L377) -> 0 | M233: =SUM('Exhibit 2'!M374:M377) -> 0
B234: Row 5 | C234: Retirement | D234: =SUMIFS(Calculation!I$11248:I$11447,Input!$F$221:$F$420,'Exhibit 2'!D$145,Input!$Q$221:$Q$420,$D223) -> 0 | E234: =SUMIFS(Calculation!J$11248:J$11447,Input!$F$221:$F$420,'Exhibit 2'!E$145,Input!$Q$221:$Q$420,$D223) -> 0 | F234: =SUMIFS(Calculation!K$11248:K$11447,Input!$F$221:$F$420,'Exhibit 2'!F$145,Input!$Q$221:$Q$420,$D223) -> 0 | G234: =SUMIFS(Calculation!L$11248:L$11447,Input!$F$221:$F$420,'Exhibit 2'!G$145,Input!$Q$221:$Q$420,$D223) -> 0 | H234: =SUMIFS(Calculation!M$11248:M$11447,Input!$F$221:$F$420,'Exhibit 2'!H$145,Input!$Q$221:$Q$420,$D223) -> 0 | I234: =SUMIFS(Calculation!N$11248:N$11447,Input!$F$221:$F$420,'Exhibit 2'!I$145,Input!$Q$221:$Q$420,$D223) -> 0 | J234: =SUMIFS(Calculation!O$11248:O$11447,Input!$F$221:$F$420,'Exhibit 2'!J$145,Input!$Q$221:$Q$420,$D223) -> 0 | K234: =SUMIFS(Calculation!P$11248:P$11447,Input!$F$221:$F$420,'Exhibit 2'!K$145,Input!$Q$221:$Q$420,$D223) -> 0 | L234: =SUMIFS(Calculation!Q$11248:Q$11447,Input!$F$221:$F$420,'Exhibit 2'!L$145,Input!$Q$221:$Q$420,$D223) -> 0 | M234: =SUMIFS(Calculation!R$11248:R$11447,Input!$F$221:$F$420,'Exhibit 2'!M$145,Input!$Q$221:$Q$420,$D223) -> 0
B235: Row 6 | C235: Closing Balance | D235: =SUM(D232:D234) -> 0 | E235: 328.3227817 | F235: 328.3227817 | G235: 328.3227817 | H235: 328.3227817 | I235: 328.3227817 | J235: 328.3227817 | K235: 328.3227817 | L235: 328.3227817 | M235: 328.3227817
B236: Row 7
B237: Row 8 | C237: Accumulated Depreciation
B238: Row 9 | C238: Opening Balance | D238: 0 | E238: =D241 -> 0 | F238: -9.656552401 | G238: -28.9696572 | H238: -48.28276201 | I238: -67.59586681 | J238: -86.90897161 | K238: -106.2220764 | L238: -125.5351812 | M238: -144.848286
B239: Row 10 | C239: Depreciation | D239: =SUMIFS(Calculation!I$11862:I$12061,Input!$Q$221:$Q$420,$D223) -> 0 | E239: =SUMIFS(Calculation!J$11862:J$12061,Input!$Q$221:$Q$420,$D223) -> -9.656552401 | F239: =SUMIFS(Calculation!K$11862:K$12061,Input!$Q$221:$Q$420,$D223) -> -19.3131048 | G239: =SUMIFS(Calculation!L$11862:L$12061,Input!$Q$221:$Q$420,$D223) -> -19.3131048 | H239: =SUMIFS(Calculation!M$11862:M$12061,Input!$Q$221:$Q$420,$D223) -> -19.3131048 | I239: =SUMIFS(Calculation!N$11862:N$12061,Input!$Q$221:$Q$420,$D223) -> -19.3131048 | J239: =SUMIFS(Calculation!O$11862:O$12061,Input!$Q$221:$Q$420,$D223) -> -19.3131048 | K239: =SUMIFS(Calculation!P$11862:P$12061,Input!$Q$221:$Q$420,$D223) -> -19.3131048 | L239: =SUMIFS(Calculation!Q$11862:Q$12061,Input!$Q$221:$Q$420,$D223) -> -19.3131048 | M239: =SUMIFS(Calculation!R$11862:R$12061,Input!$Q$221:$Q$420,$D223) -> -19.3131048
B240: Row 11 | C240: Retirement | D240: =SUMIFS(Calculation!I$12066:I$12265,Input!$Q$221:$Q$420,$D223) -> 0 | E240: =SUMIFS(Calculation!J$12066:J$12265,Input!$Q$221:$Q$420,$D223) -> 0 | F240: =SUMIFS(Calculation!K$12066:K$12265,Input!$Q$221:$Q$420,$D223) -> 0 | G240: =SUMIFS(Calculation!L$12066:L$12265,Input!$Q$221:$Q$420,$D223) -> 0 | H240: =SUMIFS(Calculation!M$12066:M$12265,Input!$Q$221:$Q$420,$D223) -> 0 | I240: =SUMIFS(Calculation!N$12066:N$12265,Input!$Q$221:$Q$420,$D223) -> 0 | J240: =SUMIFS(Calculation!O$12066:O$12265,Input!$Q$221:$Q$420,$D223) -> 0 | K240: =SUMIFS(Calculation!P$12066:P$12265,Input!$Q$221:$Q$420,$D223) -> 0 | L240: =SUMIFS(Calculation!Q$12066:Q$12265,Input!$Q$221:$Q$420,$D223) -> 0 | M240: =SUMIFS(Calculation!R$12066:R$12265,Input!$Q$221:$Q$420,$D223) -> 0
B241: Row 12 | C241: Closing Balance | D241: =SUM(D238:D240) -> 0 | E241: -9.656552401 | F241: -28.9696572 | G241: -48.28276201 | H241: -67.59586681 | I241: -86.90897161 | J241: -106.2220764 | K241: -125.5351812 | L241: -144.848286 | M241: -164.1613908
A243: EXHIBIT 4 - Tax Schedules
... 38 more rows

Sheet Exhibit 5
A1: EXHIBIT 5 - Capital Structure and Cost of Capital
C3: Capital Structure
C5: Col. 1 | D5: Col. 2
C6: Capital Component | D6: Weighting
B7: Row 1 | C7: Equity | D7: =Input!G38 -> 0.36
B8: Row 2 | C8: Long-term Debt | D8: =Input!G37 -> 0.6
B9: Row 3 | C9: Short-term Debt | D9: =Input!G36 -> 0.04
C12: Cost of Capital
C14: Col. 1 | D14: Col. 2
C15: Capital Component | D15: Annual Cost
B16: Row 1 | C16: Equity | D16: =Input!E38 -> 0.0878
B17: Row 2 | C17: Long-term Debt | D17: =Input!E37 -> 0.0372
B18: Row 3 | C18: Short-term Debt | D18: =Input!E36 -> 0.0176
B19: Row 4 | C19: WACC | D19: =SUMPRODUCT(D7:D9,D16:D18) -> 0.054632

Sheet Exhibit 6
A1: EXHIBIT 6 - Revenue Deficiency
A5: 2 | C5: ="Table 6-"&A5&": "&"Summary of Revenue Deficiency" -> Table 6-2: Summary of Revenue Deficiency
C6: (Thousands of Dollars)
E8: Col. 1
C10: Description | E10: NPV of Revenue Deficiency
B11: Row 1 | C11: Change in Customer Connection Profile - Forgone Revenue | E11: =F40 -> 2323.965452
B12: Row 2 | C12: Delay in Property Taxes - Forgone Cost | E12: =F56 -> -224.3334914
B13: Row 3 | C13: Change in Capital Expenditure Profile - Forgone Cost | E13: =F72 -> -459.6061235
B14: Row 4 | C14: Deferred Recovery of Upstream Charges | E14: =F88 -> 124.2913204
B15: Row 5 | C15: Sum | E15: =SUM(E11:E14) -> 1764.317157
A18: 4 | C18: ="Table 6-"&A18&": "&"Delay in Connecting Population Centers" -> Table 6-4: Delay in Connecting Population Centers
F20: Col. 1 | G20: Col. 2 | H20: Col. 3 | I20: Col. 4 | J20: Col. 5 | K20: Col. 6 | L20: Col. 7 | M20: Col. 8 | N20: Col. 9 | O20: Col. 10
C22: Description | F22: 2019 | G22: 2020 | H22: 2021 | I22: 2022 | J22: 2023 | K22: 2024 | L22: 2025 | M22: 2026 | N22: 2027 | O22: 2028
B23: Row 1 | C23: Connection Forecast as per Original Application | F23: 979 | G23: 2583 | H23: 3676 | I23: 4332 | J23: 4887 | K23: 5137 | L23: 5193 | M23: 5233 | N23: 5271 | O23: 5278
B24: Row 1 | C24: Connection Forecast with the Delay | F24: =Input!I1158 -> 2 | G24: =Input!J1158 -> 1292 | H24: =H23 -> 3676 | I24: 4332 | J24: 4887 | K24: 5137 | L24: 5193 | M24: 5233 | N24: 5271 | O24: 5278
A27: 5 | C27: ="Table 6-"&A27&": "&"Forgone Distribution Revenue" -> Table 6-5: Forgone Distribution Revenue
C28: (Thousands of Dollars)
E30: Col. 1 | F30: Col. 2 | G30: Col. 3 | H30: Col. 4 | I30: Col. 5 | J30: Col. 6 | K30: Col. 7 | L30: Col. 8 | M30: Col. 9 | N30: Col. 10 | O30: Col. 11
C32: Description | D32: Calculation | E32: Var 1 | F32: 2019 | G32: 2020 | H32: 2021 | I32: 2022 | J32: 2023 | K32: 2024 | L32: 2025 | M32: 2026 | N32: 2027 | O32: 2028
B33: Row 1 | C33: Distribution Revenue as per Original Application | F33: =Calculation!I15096 -> 589.3574572 | G33: =Calculation!J15096 -> 3049.735184 | H33: =Calculation!K15096 -> 4620.571579 | I33: =Calculation!L15096 -> 5818.265115 | J33: =Calculation!M15096 -> 6645.722079 | K33: =Calculation!N15096 -> 7189.662155 | L33: =Calculation!O15096 -> 7454.57377 | M33: =Calculation!P15096 -> 7593.705961 | N33: =Calculation!Q15096 -> 7726.727811 | O33: =Calculation!R15096 -> 7846.230162
B34: Row 2 | C34: Distribution Revenue with the Delay | F34: =Calculation!I15669 -> 31.59730155 | G34: =Calculation!J15669 -> 1834.773962 | H34: =Calculation!K15669 -> 3928.378558 | I34: =Calculation!L15669 -> 5818.265115 | J34: =Calculation!M15669 -> 6645.722079 | K34: =Calculation!N15669 -> 7189.662155 | L34: =Calculation!O15669 -> 7454.57377 | M34: =Calculation!P15669 -> 7593.705961 | N34: =Calculation!Q15669 -> 7726.727811 | O34: =Calculation!R15669 -> 7846.230162
B35: Row 3 | C35: Lost Revenue due to the Delay | D35: R1 - R2 | F35: =F33-F34 -> 557.7601557 | G35: 1214.961222 | H35: 692.1930207 | I35: 0 | J35: 0 | K35: 0 | L35: 0 | M35: 0 | N35: 0 | O35: 0
B36: Row 4
B37: Row 5 | C37: WACC | E37: =Input!$E$1149 -> 0.058236
B38: Row 6 | C38: PV Factor | F38: =1/(1+$E37)^(F32-$F32) -> 1 | G38: 0.9449687971 | H38: 0.8929660275 | I38: 0.8438250329 | J38: 0.7973883264 | K38: 0.7535070876 | L38: 0.7120406862 | M38: 0.6728562307 | N38: 0.635828143 | O38: 0.6008377555
B39: Row 7 | C39: PV | D39: R3 x R6 | F39: =F35*F38 -> 557.7601557 | G39: 1148.100444 | H39: 618.104852 | I39: 0 | J39: 0 | K39: 0 | L39: 0 | M39: 0 | N39: 0 | O39: 0
B40: Row 8 | C40: NPV | D40: Sum of R7 | F40: =SUM(F39:O39) -> 2323.965452
A43: 6 | C43: ="Table 6-"&A43&": "&"Change in Property Taxes Paid" -> Table 6-6: Change in Property Taxes Paid
C44: (Thousands of Dollars)
E46: Col. 1 | F46: Col. 2 | G46: Col. 3 | H46: Col. 4 | I46: Col. 5 | J46: Col. 6 | K46: Col. 7 | L46: Col. 8 | M46: Col. 9 | N46: Col. 10 | O46: Col. 11
C48: Description | D48: Calculation | E48: Var 1 | F48: 2019 | G48: 2020 | H48: 2021 | I48: 2022 | J48: 2023 | K48: 2024 | L48: 2025 | M48: 2026 | N48: 2027 | O48: 2028
B49: Row 1 | C49: Property Taxes as per Original Application | F49: =Calculation!I13959 -> -331.2186812 | G49: =Calculation!J13959 -> -490.1762393 | H49: =Calculation!K13959 -> -546.7012192 | I49: =Calculation!L13959 -> -565.324383 | J49: =Calculation!M13959 -> -581.5868961 | K49: =Calculation!N13959 -> -590.0554385 | L49: =Calculation!O13959 -> -623.7409517 | M49: =Calculation!P13959 -> -626.2768862 | N49: =Calculation!Q13959 -> -628.7596173 | O49: =Calculation!R13959 -> -630.0247608
B50: Row 2 | C50: Property Taxes with the Delay | F50: =Calculation!I17724 -> -213.8674203 | G50: =Calculation!J17724 -> -376.9637916 | H50: =Calculation!K17724 -> -546.7012192 | I50: =Calculation!L17724 -> -565.324383 | J50: =Calculation!M17724 -> -581.5868961 | K50: =Calculation!N17724 -> -590.0554385 | L50: =Calculation!O17724 -> -623.7409517 | M50: =Calculation!P17724 -> -626.2768862 | N50: =Calculation!Q17724 -> -628.7596173 | O50: =Calculation!R17724 -> -630.0247608
B51: Row 3 | C51: Reduction in Property Tax due to the Delay | D51: R1 - R2 | F51: =F49-F50 -> -117.3512609 | G51: -113.2124477 | H51: 0 | I51: 0 | J51: 0 | K51: 0 | L51: 0 | M51: 0 | N51: 0 | O51: 0
B52: Row 4
B53: Row 5 | C53: WACC | E53: =Input!$E$1149 -> 0.058236
B54: Row 6 | C54: PV Factor | F54: =1/(1+$E53)^(F48-$F48) -> 1 | G54: 0.9449687971 | H54: 0.8929660275 | I54: 0.8438250329 | J54: 0.7973883264 | K54: 0.7535070876 | L54: 0.7120406862 | M54: 0.6728562307 | N54: 0.635828143 | O54: 0.6008377555
B55: Row 7 | C55: PV | D55: R3 x R6 | F55: =F51*F54 -> -117.3512609 | G55: -106.9822305 | H55: 0 | I55: 0 | J55: 0 | K55: 0 | L55: 0 | M55: 0 | N55: 0 | O55: 0
B56: Row 8 | C56: NPV | D56: Sum of R7 | F56: =SUM(F55:O55) -> -224.3334914
A59: 7 | C59: ="Table 6-"&A59&": "&"Change in Capital Expenditure Profile" -> Table 6-7: Change in Capital Expenditure Profile
C60: (Thousands of Dollars)
E62: Col. 1 | F62: Col. 2 | G62: Col. 3 | H62: Col. 4 | I62: Col. 5 | J62: Col. 6 | K62: Col. 7 | L62: Col. 8 | M62: Col. 9 | N62: Col. 10 | O62: Col. 11
C64: Description | D64: Calculation | E64: Var 1 | F64: 2019 | G64: 2020 | H64: 2021 | I64: 2022 | J64: 2023 | K64: 2024 | L64: 2025 | M64: 2026 | N64: 2027 | O64: 2028
B65: Row 1 | C65: CapEx as per Original Application | F65: =-Calculation!I589 -> -57345.6927 | G65: =-Calculation!J589 -> -25030.02461 | H65: =-Calculation!K589 -> -3022.752313 | I65: =-Calculation!L589 -> -1790.571315 | J65: =-Calculation!M589 -> -1575.788464 | K65: =-Calculation!N589 -> -871.5371414 | L65: =-Calculation!O589 -> -412.5660903 | M65: =-Calculation!P589 -> -343.9676033 | N65: =-Calculation!Q589 -> -838.1731518 | O65: =-Calculation!R589 -> -196.5760714
B66: Row 2 | C66: CapEx with the Delay | F66: =-Calculation!I16087 -> -37905.92225 | G66: =-Calculation!J16087 -> -26335.0305 | H66: =-Calculation!K16087 -> -22896.94004 | I66: =-Calculation!L16087 -> -1790.571315 | J66: =-Calculation!M16087 -> -1575.788464 | K66: =-Calculation!N16087 -> -871.5371414 | L66: =-Calculation!O16087 -> -412.5660903 | M66: =-Calculation!P16087 -> -343.9676033 | N66: =-Calculation!Q16087 -> -838.1731518 | O66: =-Calculation!R16087 -> -196.5760714
B67: Row 3 | C67: Change in CapEx | D67: R1 - R2 | F67: =F65-F66 -> -19439.77044 | G67: 1305.005899 | H67: 19874.18773 | I67: 0 | J67: 0 | K67: 0 | L67: 0 | M67: 0 | N67: 0 | O67: 0
B68: Row 4
B69: Row 5 | C69: WACC | E69: =Input!$E$1149 -> 0.058236
B70: Row 6 | C70: PV Factor | F70: =1/(1+$E69)^(F64-$F64) -> 1 | G70: 0.9449687971 | H70: 0.8929660275 | I70: 0.8438250329 | J70: 0.7973883264 | K70: 0.7535070876 | L70: 0.7120406862 | M70: 0.6728562307 | N70: 0.635828143 | O70: 0.6008377555
B71: Row 7 | C71: PV | D71: R3 x R6 | F71: =F67*F70 -> -19439.77044 | G71: 1233.189854 | H71: 17746.97446 | I71: 0 | J71: 0 | K71: 0 | L71: 0 | M71: 0 | N71: 0 | O71: 0
B72: Row 8 | C72: NPV | D72: Sum of R7 | F72: =SUM(F71:O71) -> -459.6061235
A75: 8 | C75: ="Table 6-"&A75&": "&"Change in Deferred Upstream Costs due to Delay" -> Table 6-8: Change in Deferred Upstream Costs due to Delay
C76: (Thousands of Dollars)
E78: Col. 1 | F78: Col. 2 | G78: Col. 3 | H78: Col. 4 | I78: Col. 5 | J78: Col. 6 | K78: Col. 7 | L78: Col. 8 | M78: Col. 9 | N78: Col. 10 | O78: Col. 11
C80: Description | D80: Calculation | E80: Var 1 | F80: 2019 | G80: 2020 | H80: 2021 | I80: 2022 | J80: 2023 | K80: 2024 | L80: 2025 | M80: 2026 | N80: 2027 | O80: 2028
B81: Row 1 | C81: Upstream Recovery Requirement as per Original Application | F81: =Calculation!I15156 -> 49.23445932 | G81: =Calculation!J15156 -> 239.1759074 | H81: =Calculation!K15156 -> 309.8046374 | I81: =Calculation!L15156 -> 365.8141584 | J81: =Calculation!M15156 -> 403.3511245 | K81: =Calculation!N15156 -> 466.7974624 | L81: =Calculation!O15156 -> 460.4335088 | M81: =Calculation!P15156 -> 451.9484704 | N81: =Calculation!Q15156 -> 443.4966197 | O81: =Calculation!R15156 -> 435.0606815
B82: Row 2 | C82: Upstream Recovery Revenue with the Delay | F82: =Calculation!I15677 -> 4.27092487 | G82: =Calculation!J15677 -> 184.7778621 | H82: =Calculation!K15677 -> 278.5343205 | I82: =Calculation!L15677 -> 365.8141584 | J82: =Calculation!M15677 -> 403.3511245 | K82: =Calculation!N15677 -> 466.7974624 | L82: =Calculation!O15677 -> 460.4335088 | M82: =Calculation!P15677 -> 451.9484704 | N82: =Calculation!Q15677 -> 443.4966197 | O82: =Calculation!R15677 -> 435.0606815
B83: Row 3 | C83: Lost Revenue due to the Delay | D83: R1 - R2 | F83: =F81-F82 -> 44.96353445 | G83: 54.39804522 | H83: 31.27031683 | I83: 0 | J83: 0 | K83: 0 | L83: 0 | M83: 0 | N83: 0 | O83: 0
B84: Row 4
B85: Row 5 | C85: WACC | E85: =Input!$E$1149 -> 0.058236
B86: Row 6 | C86: PV Factor | F86: =1/(1+$E85)^(F80-$F80) -> 1 | G86: 0.9449687971 | H86: 0.8929660275 | I86: 0.8438250329 | J86: 0.7973883264 | K86: 0.7535070876 | L86: 0.7120406862 | M86: 0.6728562307 | N86: 0.635828143 | O86: 0.6008377555
B87: Row 7 | C87: PV | D87: R3 x R6 | F87: =F83*F86 -> 44.96353445 | G87: 51.40445536 | H87: 27.9233306 | I87: 0 | J87: 0 | K87: 0 | L87: 0 | M87: 0 | N87: 0 | O87: 0
B88: Row 8 | C88: NPV | D88: Sum of R7 | F88: =SUM(F87:O87) -> 124.2913204
A91: 9 | C91: ="Table 6-"&A91&": "&"Proposed Rate Rider" -> Table 6-9: Proposed Rate Rider
C92: (Thousands of Dollars)
D94: Col. 1
C96: Description | D96: Rate Rider (cents / m3)
B97: Row 1 | C97: =Input!$C$569 -> Rate 1 - General Firm Service | D97: =RateRider1*100 -> 2.183116504
B98: Row 2 | C98: =Input!$C$570 -> Rate 6 - Large Volume General Firm Service | D98: =RateRider6*100 -> 1.215250336
B99: Row 3 | C99: =Input!$C$571 -> Rate 11 - Large Volume Seasonal Service | D99: =RateRider11*100 -> 0.7385302047
B100: Row 4 | C100: =Input!$C$572 -> Rate 16 - Contracted Firm Service | D100: =RateRider16*100 -> 0.08031570958
A103: 10 | C103: ="Table 6-"&A103&": "&"Allocation of Costs due to Delay" -> Table 6-10: Allocation of Costs due to Delay
C104: (Thousands of Dollars)
D106: Col. 1 | E106: Col. 2
C108: Description | D108: % of Delay in Revenues | E108: Allocation of Costs
B109: Row 1 | C109: =Input!$C$569 -> Rate 1 - General Firm Service | D109: =E211 -> 0.7696969466 | E109: =$E$15*D109 -> 1357.989529
B110: Row 2 | C110: =Input!$C$570 -> Rate 6 - Large Volume General Firm Service | D110: =E212 -> 0.1261535427 | E110: =$E$15*D110 -> 222.5748599
B111: Row 3 | C111: =Input!$C$571 -> Rate 11 - Large Volume Seasonal Service | D111: =E213 -> 0.0308969278 | E111: 54.51197983
B112: Row 4 | C112: =Input!$C$572 -> Rate 16 - Contracted Firm Service | D112: =E214 -> 0.07325258288 | E112: 129.2407888
B113: Row 5 | C113: Sum | D113: =SUM(D109:D112) -> 1 | E113: =SUM(E109:E112) -> 1764.317157
A116: 11 | C116: ="Table 6-"&A116&": "&"Derrivations of NPVs of Distribution and Upstream Revenues by Rate Class" -> Table 6-11: Derrivations of NPVs of Distribution and Upstream Revenues by Rate Class
C117: (Thousands of Dollars)
E119: Col. 1 | F119: Col. 2 | G119: Col. 3 | H119: Col. 4 | I119: Col. 5 | J119: Col. 6 | K119: Col. 7 | L119: Col. 8 | M119: Col. 9 | N119: Col. 10 | O119: Col. 11
C121: Description | D121: Calculation | E121: Var 1 | F121: 2019 | G121: 2020 | H121: 2021 | I121: 2022 | J121: 2023 | K121: 2024 | L121: 2025 | M121: 2026 | N121: 2027 | O121: 2028
B122: Row 1 | C122: WACC | E122: =Input!$E$1149 -> 0.058236
B123: Row 2 | C123: PV Factor | F123: =1/(1+$E122)^(F121-$F121) -> 1 | G123: 0.9449687971 | H123: 0.8929660275 | I123: 0.8438250329 | J123: 0.7973883264 | K123: 0.7535070876 | L123: 0.7120406862 | M123: 0.6728562307 | N123: 0.635828143 | O123: 0.6008377555
B124: Row 3
B125: Row 4 | C125: =Input!C569 -> Rate 1 - General Firm Service
B126: Row 5 | C126: Base Case | F126: =INDEX(Calculation!I$15092:I$15095,MATCH($C125,Calculation!$A$15092:$A$15095,0),1)+INDEX(Calculation!I$15152:I$15155,MATCH($C125,Calculation!$A$15152:$A$15155,0),1) -> 332.0732594 | G126: =INDEX(Calculation!J$15092:J$15095,MATCH($C125,Calculation!$A$15092:$A$15095,0),1)+INDEX(Calculation!J$15152:J$15155,MATCH($C125,Calculation!$A$15152:$A$15155,0),1) -> 1668.375971 | H126: =INDEX(Calculation!K$15092:K$15095,MATCH($C125,Calculation!$A$15092:$A$15095,0),1)+INDEX(Calculation!K$15152:K$15155,MATCH($C125,Calculation!$A$15152:$A$15155,0),1) -> 2968.258698 | I126: =INDEX(Calculation!L$15092:L$15095,MATCH($C125,Calculation!$A$15092:$A$15095,0),1)+INDEX(Calculation!L$15152:L$15155,MATCH($C125,Calculation!$A$15152:$A$15155,0),1) -> 3851.575884 | J126: =INDEX(Calculation!M$15092:M$15095,MATCH($C125,Calculation!$A$15092:$A$15095,0),1)+INDEX(Calculation!M$15152:M$15155,MATCH($C125,Calculation!$A$15152:$A$15155,0),1) -> 4504.040457 | K126: =INDEX(Calculation!N$15092:N$15095,MATCH($C125,Calculation!$A$15092:$A$15095,0),1)+INDEX(Calculation!N$15152:N$15155,MATCH($C125,Calculation!$A$15152:$A$15155,0),1) -> 4989.312999 | L126: =INDEX(Calculation!O$15092:O$15095,MATCH($C125,Calculation!$A$15092:$A$15095,0),1)+INDEX(Calculation!O$15152:O$15155,MATCH($C125,Calculation!$A$15152:$A$15155,0),1) -> 5193.983235 | M126: =INDEX(Calculation!P$15092:P$15095,MATCH($C125,Calculation!$A$15092:$A$15095,0),1)+INDEX(Calculation!P$15152:P$15155,MATCH($C125,Calculation!$A$15152:$A$15155,0),1) -> 5298.40559 | N126: =INDEX(Calculation!Q$15092:Q$15095,MATCH($C125,Calculation!$A$15092:$A$15095,0),1)+INDEX(Calculation!Q$15152:Q$15155,MATCH($C125,Calculation!$A$15152:$A$15155,0),1) -> 5396.342733 | O126: =INDEX(Calculation!R$15092:R$15095,MATCH($C125,Calculation!$A$15092:$A$15095,0),1)+INDEX(Calculation!R$15152:R$15155,MATCH($C125,Calculation!$A$15152:$A$15155,0),1) -> 5480.369701
B127: Row 6 | C127: With the Delay | F127: =INDEX(Calculation!I$15665:I$15668,MATCH($C125,Calculation!$A$15665:$A$15668,0),1)+INDEX(Calculation!I$15673:I$15676,MATCH($C125,Calculation!$A$15673:$A$15676,0),1) -> 0 | G127: =INDEX(Calculation!J$15665:J$15668,MATCH($C125,Calculation!$A$15665:$A$15668,0),1)+INDEX(Calculation!J$15673:J$15676,MATCH($C125,Calculation!$A$15673:$A$15676,0),1) -> 605.2978421 | H127: =INDEX(Calculation!K$15665:K$15668,MATCH($C125,Calculation!$A$15665:$A$15668,0),1)+INDEX(Calculation!K$15673:K$15676,MATCH($C125,Calculation!$A$15673:$A$15676,0),1) -> 2354.834642 | I127: =INDEX(Calculation!L$15665:L$15668,MATCH($C125,Calculation!$A$15665:$A$15668,0),1)+INDEX(Calculation!L$15673:L$15676,MATCH($C125,Calculation!$A$15673:$A$15676,0),1) -> 3851.575884 | J127: =INDEX(Calculation!M$15665:M$15668,MATCH($C125,Calculation!$A$15665:$A$15668,0),1)+INDEX(Calculation!M$15673:M$15676,MATCH($C125,Calculation!$A$15673:$A$15676,0),1) -> 4504.040457 | K127: =INDEX(Calculation!N$15665:N$15668,MATCH($C125,Calculation!$A$15665:$A$15668,0),1)+INDEX(Calculation!N$15673:N$15676,MATCH($C125,Calculation!$A$15673:$A$15676,0),1) -> 4989.312999 | L127: =INDEX(Calculation!O$15665:O$15668,MATCH($C125,Calculation!$A$15665:$A$15668,0),1)+INDEX(Calculation!O$15673:O$15676,MATCH($C125,Calculation!$A$15673:$A$15676,0),1) -> 5193.983235 | M127: =INDEX(Calculation!P$15665:P$15668,MATCH($C125,Calculation!$A$15665:$A$15668,0),1)+INDEX(Calculation!P$15673:P$15676,MATCH($C125,Calculation!$A$15673:$A$15676,0),1) -> 5298.40559 | N127: =INDEX(Calculation!Q$15665:Q$15668,MATCH($C125,Calculation!$A$15665:$A$15668,0),1)+INDEX(Calculation!Q$15673:Q$15676,MATCH($C125,Calculation!$A$15673:$A$15676,0),1) -> 5396.342733 | O127: =INDEX(Calculation!R$15665:R$15668,MATCH($C125,Calculation!$A$15665:$A$15668,0),1)+INDEX(Calculation!R$15673:R$15676,MATCH($C125,Calculation!$A$15673:$A$15676,0),1) -> 5480.369701
B128: Row 7 | C128: Difference | F128: =F126-F127 -> 332.0732594 | G128: =G126-G127 -> 1063.078128 | H128: 613.4240559 | I128: 0 | J128: 0 | K128: 0 | L128: 0 | M128: 0 | N128: 0 | O128: 0
B129: Row 8 | C129: NPV of the Difference | F129: =NPV(Input!$E$1149,G128:O128)+F128 -> 1884.415762
B130: Row 9
B131: Row 10
B132: Row 11 | C132: =Input!C570 -> Rate 6 - Large Volume General Firm Service
B133: Row 12 | C133: Base Case | F133: =INDEX(Calculation!I$15092:I$15095,MATCH($C132,Calculation!$A$15092:$A$15095,0),1)+INDEX(Calculation!I$15152:I$15155,MATCH($C132,Calculation!$A$15152:$A$15155,0),1) -> 65.07083049 | G133: =INDEX(Calculation!J$15092:J$15095,MATCH($C132,Calculation!$A$15092:$A$15095,0),1)+INDEX(Calculation!J$15152:J$15155,MATCH($C132,Calculation!$A$15152:$A$15155,0),1) -> 260.4512622 | H133: =INDEX(Calculation!K$15092:K$15095,MATCH($C132,Calculation!$A$15092:$A$15095,0),1)+INDEX(Calculation!K$15152:K$15155,MATCH($C132,Calculation!$A$15152:$A$15155,0),1) -> 520.128007 | I133: =INDEX(Calculation!L$15092:L$15095,MATCH($C132,Calculation!$A$15092:$A$15095,0),1)+INDEX(Calculation!L$15152:L$15155,MATCH($C132,Calculation!$A$15152:$A$15155,0),1) -> 789.6564913 | J133: =INDEX(Calculation!M$15092:M$15095,MATCH($C132,Calculation!$A$15092:$A$15095,0),1)+INDEX(Calculation!M$15152:M$15155,MATCH($C132,Calculation!$A$15152:$A$15155,0),1) -> 967.264123 | K133: =INDEX(Calculation!N$15092:N$15095,MATCH($C132,Calculation!$A$15092:$A$15095,0),1)+INDEX(Calculation!N$15152:N$15155,MATCH($C132,Calculation!$A$15152:$A$15155,0),1) -> 1070.657875 | L133: =INDEX(Calculation!O$15092:O$15095,MATCH($C132,Calculation!$A$15092:$A$15095,0),1)+INDEX(Calculation!O$15152:O$15155,MATCH($C132,Calculation!$A$15152:$A$15155,0),1) -> 1108.943402 | M133: =INDEX(Calculation!P$15092:P$15095,MATCH($C132,Calculation!$A$15092:$A$15095,0),1)+INDEX(Calculation!P$15152:P$15155,MATCH($C132,Calculation!$A$15152:$A$15155,0),1) -> 1119.394163 | N133: =INDEX(Calculation!Q$15092:Q$15095,MATCH($C132,Calculation!$A$15092:$A$15095,0),1)+INDEX(Calculation!Q$15152:Q$15155,MATCH($C132,Calculation!$A$15152:$A$15155,0),1) -> 1130.017454 | O133: =INDEX(Calculation!R$15092:R$15095,MATCH($C132,Calculation!$A$15092:$A$15095,0),1)+INDEX(Calculation!R$15152:R$15155,MATCH($C132,Calculation!$A$15152:$A$15155,0),1) -> 1140.808843
B134: Row 13 | C134: With the Delay | F134: =INDEX(Calculation!I$15665:I$15668,MATCH($C132,Calculation!$A$15665:$A$15668,0),1)+INDEX(Calculation!I$15673:I$15676,MATCH($C132,Calculation!$A$15673:$A$15676,0),1) -> 0 | G134: =INDEX(Calculation!J$15665:J$15668,MATCH($C132,Calculation!$A$15665:$A$15668,0),1)+INDEX(Calculation!J$15673:J$15676,MATCH($C132,Calculation!$A$15673:$A$15676,0),1) -> 94.95618933 | H134: =INDEX(Calculation!K$15665:K$15668,MATCH($C132,Calculation!$A$15665:$A$15668,0),1)+INDEX(Calculation!K$15673:K$15676,MATCH($C132,Calculation!$A$15673:$A$15676,0),1) -> 422.2544573 | I134: =INDEX(Calculation!L$15665:L$15668,MATCH($C132,Calculation!$A$15665:$A$15668,0),1)+INDEX(Calculation!L$15673:L$15676,MATCH($C132,Calculation!$A$15673:$A$15676,0),1) -> 789.6564913 | J134: =INDEX(Calculation!M$15665:M$15668,MATCH($C132,Calculation!$A$15665:$A$15668,0),1)+INDEX(Calculation!M$15673:M$15676,MATCH($C132,Calculation!$A$15673:$A$15676,0),1) -> 967.264123 | K134: =INDEX(Calculation!N$15665:N$15668,MATCH($C132,Calculation!$A$15665:$A$15668,0),1)+INDEX(Calculation!N$15673:N$15676,MATCH($C132,Calculation!$A$15673:$A$15676,0),1) -> 1070.657875 | L134: =INDEX(Calculation!O$15665:O$15668,MATCH($C132,Calculation!$A$15665:$A$15668,0),1)+INDEX(Calculation!O$15673:O$15676,MATCH($C132,Calculation!$A$15673:$A$15676,0),1) -> 1108.943402 | M134: =INDEX(Calculation!P$15665:P$15668,MATCH($C132,Calculation!$A$15665:$A$15668,0),1)+INDEX(Calculation!P$15673:P$15676,MATCH($C132,Calculation!$A$15673:$A$15676,0),1) -> 1119.394163 | N134: =INDEX(Calculation!Q$15665:Q$15668,MATCH($C132,Calculation!$A$15665:$A$15668,0),1)+INDEX(Calculation!Q$15673:Q$15676,MATCH($C132,Calculation!$A$15673:$A$15676,0),1) -> 1130.017454 | O134: =INDEX(Calculation!R$15665:R$15668,MATCH($C132,Calculation!$A$15665:$A$15668,0),1)+INDEX(Calculation!R$15673:R$15676,MATCH($C132,Calculation!$A$15673:$A$15676,0),1) -> 1140.808843
B135: Row 14 | C135: Difference | F135: =F133-F134 -> 65.07083049 | G135: =G133-G134 -> 165.4950728 | H135: =H133-H134 -> 97.8735497 | I135: =I133-I134 -> 0 | J135: =J133-J134 -> 0 | K135: =K133-K134 -> 0 | L135: =L133-L134 -> 0 | M135: =M133-M134 -> 0 | N135: =N133-N134 -> 0 | O135: =O133-O134 -> 0
B136: Row 15 | C136: NPV of the Difference | F136: =NPV(Input!$E$1149,G135:O135)+F135 -> 308.8562653
B137: Row 16
B138: Row 17
B139: Row 18 | C139: =Input!C571 -> Rate 11 - Large Volume Seasonal Service
B140: Row 19 | C140: Base Case | F140: =INDEX(Calculation!I$15092:I$15095,MATCH($C139,Calculation!$A$15092:$A$15095,0),1)+INDEX(Calculation!I$15152:I$15155,MATCH($C139,Calculation!$A$15152:$A$15155,0),1) -> 26.23846807 | G140: =INDEX(Calculation!J$15092:J$15095,MATCH($C139,Calculation!$A$15092:$A$15095,0),1)+INDEX(Calculation!J$15152:J$15155,MATCH($C139,Calculation!$A$15152:$A$15155,0),1) -> 54.38142077 | H140: =INDEX(Calculation!K$15092:K$15095,MATCH($C139,Calculation!$A$15092:$A$15095,0),1)+INDEX(Calculation!K$15152:K$15155,MATCH($C139,Calculation!$A$15152:$A$15155,0),1) -> 121.6573194 | I140: =INDEX(Calculation!L$15092:L$15095,MATCH($C139,Calculation!$A$15092:$A$15095,0),1)+INDEX(Calculation!L$15152:L$15155,MATCH($C139,Calculation!$A$15152:$A$15155,0),1) -> 207.6991549 | J140: =INDEX(Calculation!M$15092:M$15095,MATCH($C139,Calculation!$A$15092:$A$15095,0),1)+INDEX(Calculation!M$15152:M$15155,MATCH($C139,Calculation!$A$15152:$A$15155,0),1) -> 227.6171704 | K140: =INDEX(Calculation!N$15092:N$15095,MATCH($C139,Calculation!$A$15092:$A$15095,0),1)+INDEX(Calculation!N$15152:N$15155,MATCH($C139,Calculation!$A$15152:$A$15155,0),1) -> 230.1690265 | L140: =INDEX(Calculation!O$15092:O$15095,MATCH($C139,Calculation!$A$15092:$A$15095,0),1)+INDEX(Calculation!O$15152:O$15155,MATCH($C139,Calculation!$A$15152:$A$15155,0),1) -> 233.09112 | M140: =INDEX(Calculation!P$15092:P$15095,MATCH($C139,Calculation!$A$15092:$A$15095,0),1)+INDEX(Calculation!P$15152:P$15155,MATCH($C139,Calculation!$A$15152:$A$15155,0),1) -> 236.0466495 | N140: =INDEX(Calculation!Q$15092:Q$15095,MATCH($C139,Calculation!$A$15092:$A$15095,0),1)+INDEX(Calculation!Q$15152:Q$15155,MATCH($C139,Calculation!$A$15152:$A$15155,0),1) -> 239.0398093 | O140: =INDEX(Calculation!R$15092:R$15095,MATCH($C139,Calculation!$A$15092:$A$15095,0),1)+INDEX(Calculation!R$15152:R$15155,MATCH($C139,Calculation!$A$15152:$A$15155,0),1) -> 242.0710461
B141: Row 20 | C141: With the Delay | F141: =INDEX(Calculation!I$15665:I$15668,MATCH($C139,Calculation!$A$15665:$A$15668,0),1)+INDEX(Calculation!I$15673:I$15676,MATCH($C139,Calculation!$A$15673:$A$15676,0),1) -> 0 | G141: =INDEX(Calculation!J$15665:J$15668,MATCH($C139,Calculation!$A$15665:$A$15668,0),1)+INDEX(Calculation!J$15673:J$15676,MATCH($C139,Calculation!$A$15673:$A$15676,0),1) -> 13.59535519 | H141: =INDEX(Calculation!K$15665:K$15668,MATCH($C139,Calculation!$A$15665:$A$15668,0),1)+INDEX(Calculation!K$15673:K$15676,MATCH($C139,Calculation!$A$15673:$A$15676,0),1) -> 109.4915875 | I141: =INDEX(Calculation!L$15665:L$15668,MATCH($C139,Calculation!$A$15665:$A$15668,0),1)+INDEX(Calculation!L$15673:L$15676,MATCH($C139,Calculation!$A$15673:$A$15676,0),1) -> 207.6991549 | J141: =INDEX(Calculation!M$15665:M$15668,MATCH($C139,Calculation!$A$15665:$A$15668,0),1)+INDEX(Calculation!M$15673:M$15676,MATCH($C139,Calculation!$A$15673:$A$15676,0),1) -> 227.6171704 | K141: =INDEX(Calculation!N$15665:N$15668,MATCH($C139,Calculation!$A$15665:$A$15668,0),1)+INDEX(Calculation!N$15673:N$15676,MATCH($C139,Calculation!$A$15673:$A$15676,0),1) -> 230.1690265 | L141: =INDEX(Calculation!O$15665:O$15668,MATCH($C139,Calculation!$A$15665:$A$15668,0),1)+INDEX(Calculation!O$15673:O$15676,MATCH($C139,Calculation!$A$15673:$A$15676,0),1) -> 233.09112 | M141: =INDEX(Calculation!P$15665:P$15668,MATCH($C139,Calculation!$A$15665:$A$15668,0),1)+INDEX(Calculation!P$15673:P$15676,MATCH($C139,Calculation!$A$15673:$A$15676,0),1) -> 236.0466495 | N141: =INDEX(Calculation!Q$15665:Q$15668,MATCH($C139,Calculation!$A$15665:$A$15668,0),1)+INDEX(Calculation!Q$15673:Q$15676,MATCH($C139,Calculation!$A$15673:$A$15676,0),1) -> 239.0398093 | O141: =INDEX(Calculation!R$15665:R$15668,MATCH($C139,Calculation!$A$15665:$A$15668,0),1)+INDEX(Calculation!R$15673:R$15676,MATCH($C139,Calculation!$A$15673:$A$15676,0),1) -> 242.0710461
B142: Row 21 | C142: Difference | F142: =F140-F141 -> 26.23846807 | G142: =G140-G141 -> 40.78606558 | H142: =H140-H141 -> 12.16573194 | I142: =I140-I141 -> 0 | J142: =J140-J141 -> 0 | K142: =K140-K141 -> 0 | L142: =L140-L141 -> 0 | M142: =M140-M141 -> 0 | N142: =N140-N141 -> 0 | O142: =O140-O141 -> 0
B143: Row 22 | C143: NPV of the Difference | F143: =NPV(Input!$E$1149,G142:O142)+F142 -> 75.64361273
B144: Row 23
B145: Row 24
B146: Row 25
B147: Row 26 | C147: =Input!C572 -> Rate 16 - Contracted Firm Service
